Workbook

Sheet Version History
A1: Florida- 2019 IRP Fall Refresh Update - Coal -
A2: Version History
B4: File Preparer: | C4: ='Coal Price Inputs'!M2 -> Michael Quinto
B5: Date Prepared: | C5: 2019-10-07
B6: Concurring Manager: | C6: Brett Phipps
B7: Date Approved:
B8: Updates to File: | C8: Coal Fundamental Prices
C9: Rail Rates
C10: Barge Rates
C11: Assumptions

Sheet Assumptions
A1: Florida- Fall 2019 IRP Refresh Update - Coal
B2: No Carbon
B4: *************** Key Assumptions - PLEASE READ ***************
A6: 1. | B6: Using the following CERA fundamental price forecast in Nominal dollars (see the "Coal Price Inputs" sheet):
B7: Source File: | C7: ='Coal Price Inputs'!D3 -> Base, Low High Commodity Coal Curves_FL
B8: Source Tab: | C8: ='Coal Price Inputs'!I3 -> Fundamentals - Ratio Method
B9: From: | C9: ='Coal Price Inputs'!D4 -> Michael Quinto
A10: 2. | B10: Vendors for the fundemental price curves changed in 2017 from EVA to CERA. With this change there was a reduction in the number of coal prices forecasts provided for each region. However, where transportation rates provided alternative delivery methods for the same coal price forecast a delivered price was calculated.
A11: 3. | B11: This is an evaluation of the delivered cost per mmbtu only (coal price plus transportation cost). See the "Master" sheet for the overall summary of the lowest cost alternatives by station by year (including cost and quality). Additional cost adjustments for scrubber costs, O&M, etc. could be added upon request.
A12: 4. | B12: The delivered cost per mmbtu was calculated for all coal alternatives that can be transported to each station (see the sheets for each station). The coal alternative with the lowest delivered cost was then able to be identified and chosen for each year. This format allows the reviewer to see the delivered costs for all alternatives, regardless of whether or not they were not chosen (enables quick review of cost deltas for the next lowest cost alternatives). Where the station cannot burn the single lowest cost alternative at 100%, the lowest cost blend was determined.
A13: 5. | B13: This update incorporates unit capability constraints (Min BTU, Max SO2, Max Ash, Max Chlorine, and Max Mercury) and current capacity for on-site blending as we know them today.
A14: 6. | B14: Does not include any other adders for sulfur removal costs, O&M impacts or anything else. However, please note these additional cost impacts can be incorporated into the analysis upon request.
A15: 7. | B15: The CSX rail transportation rates assume the current proposed rates based off of Aug. 2019 CSX rate proposal (with Fuel Surcharge calculations based on COB 9/12/2019 WTI fuel pricing and AII-LF based on the actual index numbers through Q3 2019). The rates are escalated at 2.0% annually for 2020 through 2050.
A16: 8 | B16: For additional rail and barge assumptions see tab " Transportation Rate assumptions".
A17: 9 | B17: Crystal River Units 1&2 retirement occurred 12/31/18
A18: 10 | B18: This IRP is for planning purposes only. Using fundamental pricing for coal and market estimates for transportation rates. This evaluation does not include the modeling of the existing contractual commitments for coal, transportation and trans-loading.

Sheet MASTER
A1: =Assumptions!A1 -> Florida- Fall 2019 IRP Refresh Update - Coal | C1: =Assumptions!B2 -> No Carbon | E1: High Commodity Price
B3: ** | C3: Indicates unit capability constraints prevented selection of 100% of the lowest cost alternative
A4: DELIVERED COST ($/MMBTU)
A5: Station | B5: Lowest Cost Alternatives | C5: ='Coal Price Inputs'!K7 -> 2019 | D5: ='Coal Price Inputs'!L7 -> 2020 | E5: ='Coal Price Inputs'!M7 -> 2021 | F5: ='Coal Price Inputs'!N7 -> 2022 | G5: ='Coal Price Inputs'!O7 -> 2023 | H5: ='Coal Price Inputs'!P7 -> 2024 | I5: ='Coal Price Inputs'!Q7 -> 2025 | J5: ='Coal Price Inputs'!R7 -> 2026 | K5: ='Coal Price Inputs'!S7 -> 2027 | L5: ='Coal Price Inputs'!T7 -> 2028 | M5: ='Coal Price Inputs'!U7 -> 2029 | N5: ='Coal Price Inputs'!V7 -> 2030 | O5: ='Coal Price Inputs'!W7 -> 2031 | P5: ='Coal Price Inputs'!X7 -> 2032 | Q5: ='Coal Price Inputs'!Y7 -> 2033 | R5: ='Coal Price Inputs'!Z7 -> 2034 | S5: ='Coal Price Inputs'!AA7 -> 2035 | T5: ='Coal Price Inputs'!AB7 -> 2036 | U5: ='Coal Price Inputs'!AC7 -> 2037 | V5: ='Coal Price Inputs'!AD7 -> 2038 | W5: ='Coal Price Inputs'!AE7 -> 2039 | X5: ='Coal Price Inputs'!AF7 -> 2040 | Y5: ='Coal Price Inputs'!AG7 -> 2041 | Z5: ='Coal Price Inputs'!AH7 -> 2042 | AA5: ='Coal Price Inputs'!AI7 -> 2043 | AB5: ='Coal Price Inputs'!AJ7 -> 2044 | AC5: ='Coal Price Inputs'!AK7 -> 2045 | AD5: ='Coal Price Inputs'!AL7 -> 2046 | AE5: ='Coal Price Inputs'!AM7 -> 2047 | AF5: ='Coal Price Inputs'!AN7 -> 2048 | AG5: ='Coal Price Inputs'!AO7 -> 2049 | AH5: ='Coal Price Inputs'!AP7 -> 2050
A6: ='Crystal River 4 & 5'!A5 -> Crystal River 4 & 5 | B6: ='Crystal River 4 & 5'!B5 -> A 50%/50% blend of IL-OH Rvr 11,500 5# & IL-OH Rvr 11,000 6# 2019-2030, and a 30%/60%/10% blend of IL-OH Rvr 11,500 5#, IL-OH Rvr 11,000 6#, & NAPP Rail 113,0004# coal 2031-2050** | C6: ='Crystal River 4 & 5'!J4 -> 2.272161255 | D6: ='Crystal River 4 & 5'!K4 -> 2.300340914 | E6: ='Crystal River 4 & 5'!L4 -> 2.5245691 | F6: ='Crystal River 4 & 5'!M4 -> 2.585462264 | G6: ='Crystal River 4 & 5'!N4 -> 2.719700993 | H6: ='Crystal River 4 & 5'!O4 -> 2.842564307 | I6: ='Crystal River 4 & 5'!P4 -> 3.176149002 | J6: ='Crystal River 4 & 5'!Q4 -> 3.285596784 | K6: ='Crystal River 4 & 5'!R4 -> 3.377045776 | L6: ='Crystal River 4 & 5'!S4 -> 3.474044259 | M6: ='Crystal River 4 & 5'!T4 -> 3.513347539 | N6: ='Crystal River 4 & 5'!U4 -> 3.64765247 | O6: ='Crystal River 4 & 5'!V4 -> 4.037139643 | P6: ='Crystal River 4 & 5'!W4 -> 4.183440947 | Q6: ='Crystal River 4 & 5'!X4 -> 4.330155528 | R6: ='Crystal River 4 & 5'!Y4 -> 4.467284675 | S6: ='Crystal River 4 & 5'!Z4 -> 4.511705619 | T6: ='Crystal River 4 & 5'!AA4 -> 4.611426421 | U6: ='Crystal River 4 & 5'!AB4 -> 4.768655819 | V6: ='Crystal River 4 & 5'!AC4 -> 4.913302142 | W6: ='Crystal River 4 & 5'!AD4 -> 5.093007445 | X6: ='Crystal River 4 & 5'!AE4 -> 5.260785485 | Y6: ='Crystal River 4 & 5'!AF4 -> 5.42017439 | Z6: ='Crystal River 4 & 5'!AG4 -> 5.575063782 | AA6: ='Crystal River 4 & 5'!AH4 -> 5.745954631 | AB6: ='Crystal River 4 & 5'!AI4 -> 5.917080233 | AC6: ='Crystal River 4 & 5'!AJ4 -> 6.038005254 | AD6: ='Crystal River 4 & 5'!AK4 -> 6.207891866 | AE6: ='Crystal River 4 & 5'!AL4 -> 6.400657834 | AF6: ='Crystal River 4 & 5'!AM4 -> 6.555590102 | AG6: ='Crystal River 4 & 5'!AN4 -> 6.715226966 | AH6: ='Crystal River 4 & 5'!AO4 -> 6.884274829
A9: BTU | B9: Minimum BTU Limit | C9: =C5 -> 2019 | D9: 2020 | E9: 2021 | F9: 2022 | G9: 2023 | H9: 2024 | I9: 2025 | J9: 2026 | K9: 2027 | L9: 2028 | M9: 2029 | N9: 2030 | O9: 2031 | P9: 2032 | Q9: 2033 | R9: 2034 | S9: 2035 | T9: 2036 | U9: 2037 | V9: 2038 | W9: 2039 | X9: 2040 | Y9: 2041 | Z9: =Z5 -> 2042 | AA9: 2043 | AB9: 2044 | AC9: 2045 | AD9: 2046 | AE9: 2047 | AF9: 2048 | AG9: 2049 | AH9: =AH5 -> 2050
A10: =A6 -> Crystal River 4 & 5 | B10: ='Crystal River 4 & 5'!D5 -> 10700 | C10: ='Crystal River 4 & 5'!J5 -> 11250 | D10: ='Crystal River 4 & 5'!K5 -> 11250 | E10: ='Crystal River 4 & 5'!L5 -> 11250 | F10: ='Crystal River 4 & 5'!M5 -> 11250 | G10: ='Crystal River 4 & 5'!N5 -> 11250 | H10: ='Crystal River 4 & 5'!O5 -> 11250 | I10: ='Crystal River 4 & 5'!P5 -> 11250 | J10: ='Crystal River 4 & 5'!Q5 -> 11250 | K10: ='Crystal River 4 & 5'!R5 -> 11250 | L10: ='Crystal River 4 & 5'!S5 -> 11250 | M10: ='Crystal River 4 & 5'!T5 -> 11250 | N10: ='Crystal River 4 & 5'!U5 -> 11250 | O10: ='Crystal River 4 & 5'!V5 -> 11350 | P10: ='Crystal River 4 & 5'!W5 -> 11350 | Q10: ='Crystal River 4 & 5'!X5 -> 11350 | R10: ='Crystal River 4 & 5'!Y5 -> 11350 | S10: ='Crystal River 4 & 5'!Z5 -> 11350 | T10: ='Crystal River 4 & 5'!AA5 -> 11350 | U10: ='Crystal River 4 & 5'!AB5 -> 11350 | V10: ='Crystal River 4 & 5'!AC5 -> 11350 | W10: ='Crystal River 4 & 5'!AD5 -> 11350 | X10: ='Crystal River 4 & 5'!AE5 -> 11350 | Y10: ='Crystal River 4 & 5'!AF5 -> 11350 | Z10: ='Crystal River 4 & 5'!AG5 -> 11350 | AA10: ='Crystal River 4 & 5'!AH5 -> 11350 | AB10: ='Crystal River 4 & 5'!AI5 -> 11350 | AC10: ='Crystal River 4 & 5'!AJ5 -> 11350 | AD10: ='Crystal River 4 & 5'!AK5 -> 11350 | AE10: ='Crystal River 4 & 5'!AL5 -> 11350 | AF10: ='Crystal River 4 & 5'!AM5 -> 11350 | AG10: ='Crystal River 4 & 5'!AN5 -> 11350 | AH10: ='Crystal River 4 & 5'!AO5 -> 11350
A12: SO2 (#/mmbtu) | B12: Max SO2 Limit | C12: =C5 -> 2019 | D12: 2020 | E12: 2021 | F12: 2022 | G12: 2023 | H12: 2024 | I12: 2025 | J12: 2026 | K12: 2027 | L12: 2028 | M12: 2029 | N12: 2030 | O12: 2031 | P12: 2032 | Q12: 2033 | R12: 2034 | S12: 2035 | T12: 2036 | U12: 2037 | V12: 2038 | W12: 2039 | X12: 2040 | Y12: 2041 | Z12: =Z5 -> 2042 | AA12: 2043 | AB12: 2044 | AC12: 2045 | AD12: 2046 | AE12: 2047 | AF12: 2048 | AG12: 2049 | AH12: =AH5 -> 2050
A13: =A10 -> Crystal River 4 & 5 | B13: ='Crystal River 4 & 5'!E5 -> 5.5 | C13: ='Crystal River 4 & 5'!J6 -> 5.488888889 | D13: ='Crystal River 4 & 5'!K6 -> 5.488888889 | E13: ='Crystal River 4 & 5'!L6 -> 5.488888889 | F13: ='Crystal River 4 & 5'!M6 -> 5.488888889 | G13: ='Crystal River 4 & 5'!N6 -> 5.488888889 | H13: ='Crystal River 4 & 5'!O6 -> 5.488888889 | I13: ='Crystal River 4 & 5'!P6 -> 5.488888889 | J13: ='Crystal River 4 & 5'!Q6 -> 5.488888889 | K13: ='Crystal River 4 & 5'!R6 -> 5.488888889 | L13: ='Crystal River 4 & 5'!S6 -> 5.488888889 | M13: ='Crystal River 4 & 5'!T6 -> 5.488888889 | N13: ='Crystal River 4 & 5'!U6 -> 5.488888889 | O13: ='Crystal River 4 & 5'!V6 -> 5.466960352 | P13: ='Crystal River 4 & 5'!W6 -> 5.466960352 | Q13: ='Crystal River 4 & 5'!X6 -> 5.466960352 | R13: ='Crystal River 4 & 5'!Y6 -> 5.466960352 | S13: ='Crystal River 4 & 5'!Z6 -> 5.466960352 | T13: ='Crystal River 4 & 5'!AA6 -> 5.466960352 | U13: ='Crystal River 4 & 5'!AB6 -> 5.466960352 | V13: ='Crystal River 4 & 5'!AC6 -> 5.466960352 | W13: ='Crystal River 4 & 5'!AD6 -> 5.466960352 | X13: ='Crystal River 4 & 5'!AE6 -> 5.466960352 | Y13: ='Crystal River 4 & 5'!AF6 -> 5.466960352 | Z13: ='Crystal River 4 & 5'!AG6 -> 5.466960352 | AA13: ='Crystal River 4 & 5'!AH6 -> 5.466960352 | AB13: ='Crystal River 4 & 5'!AI6 -> 5.466960352 | AC13: ='Crystal River 4 & 5'!AJ6 -> 5.466960352 | AD13: ='Crystal River 4 & 5'!AK6 -> 5.466960352 | AE13: ='Crystal River 4 & 5'!AL6 -> 5.466960352 | AF13: ='Crystal River 4 & 5'!AM6 -> 5.466960352 | AG13: ='Crystal River 4 & 5'!AN6 -> 5.466960352 | AH13: ='Crystal River 4 & 5'!AO6 -> 5.466960352
A15: ASH | B15: Max Ash Limit | C15: =C5 -> 2019 | D15: 2020 | E15: 2021 | F15: 2022 | G15: 2023 | H15: 2024 | I15: 2025 | J15: 2026 | K15: 2027 | L15: 2028 | M15: 2029 | N15: 2030 | O15: 2031 | P15: 2032 | Q15: 2033 | R15: 2034 | S15: 2035 | T15: 2036 | U15: 2037 | V15: 2038 | W15: 2039 | X15: 2040 | Y15: 2041 | Z15: =Z5 -> 2042 | AA15: 2043 | AB15: 2044 | AC15: 2045 | AD15: 2046 | AE15: 2047 | AF15: 2048 | AG15: 2049 | AH15: =AH5 -> 2050
A16: =A13 -> Crystal River 4 & 5 | B16: ='Crystal River 4 & 5'!F5 -> 0.13 | C16: ='Crystal River 4 & 5'!J7 -> 10 | D16: ='Crystal River 4 & 5'!K7 -> 10 | E16: ='Crystal River 4 & 5'!L7 -> 10 | F16: ='Crystal River 4 & 5'!M7 -> 10 | G16: ='Crystal River 4 & 5'!N7 -> 10 | H16: ='Crystal River 4 & 5'!O7 -> 10 | I16: ='Crystal River 4 & 5'!P7 -> 10 | J16: ='Crystal River 4 & 5'!Q7 -> 10 | K16: ='Crystal River 4 & 5'!R7 -> 10 | L16: ='Crystal River 4 & 5'!S7 -> 10 | M16: ='Crystal River 4 & 5'!T7 -> 10 | N16: ='Crystal River 4 & 5'!U7 -> 10 | O16: ='Crystal River 4 & 5'!V7 -> 9.8 | P16: ='Crystal River 4 & 5'!W7 -> 9.8 | Q16: ='Crystal River 4 & 5'!X7 -> 9.8 | R16: ='Crystal River 4 & 5'!Y7 -> 9.8 | S16: ='Crystal River 4 & 5'!Z7 -> 9.8 | T16: ='Crystal River 4 & 5'!AA7 -> 9.8 | U16: ='Crystal River 4 & 5'!AB7 -> 9.8 | V16: ='Crystal River 4 & 5'!AC7 -> 9.8 | W16: ='Crystal River 4 & 5'!AD7 -> 9.8 | X16: ='Crystal River 4 & 5'!AE7 -> 9.8 | Y16: ='Crystal River 4 & 5'!AF7 -> 9.8 | Z16: ='Crystal River 4 & 5'!AG7 -> 9.8 | AA16: ='Crystal River 4 & 5'!AH7 -> 9.8 | AB16: ='Crystal River 4 & 5'!AI7 -> 9.8 | AC16: ='Crystal River 4 & 5'!AJ7 -> 9.8 | AD16: ='Crystal River 4 & 5'!AK7 -> 9.8 | AE16: ='Crystal River 4 & 5'!AL7 -> 9.8 | AF16: ='Crystal River 4 & 5'!AM7 -> 9.8 | AG16: ='Crystal River 4 & 5'!AN7 -> 9.8 | AH16: ='Crystal River 4 & 5'!AO7 -> 9.8
A18: MERCURY (Hg) - ppm dry | B18: Max Mercury (Hg) Limit | C18: =C5 -> 2019 | D18: 2020 | E18: 2021 | F18: 2022 | G18: 2023 | H18: 2024 | I18: 2025 | J18: 2026 | K18: 2027 | L18: 2028 | M18: 2029 | N18: 2030 | O18: 2031 | P18: 2032 | Q18: 2033 | R18: 2034 | S18: 2035 | T18: 2036 | U18: 2037 | V18: 2038 | W18: 2039 | X18: 2040 | Y18: 2041 | Z18: =Z5 -> 2042 | AA18: 2043 | AB18: 2044 | AC18: 2045 | AD18: 2046 | AE18: 2047 | AF18: 2048 | AG18: 2049 | AH18: =AH5 -> 2050
A19: =A16 -> Crystal River 4 & 5 | B19: NA | C19: ='Crystal River 4 & 5'!J8 -> 0.102 | D19: ='Crystal River 4 & 5'!K8 -> 0.102 | E19: ='Crystal River 4 & 5'!L8 -> 0.102 | F19: ='Crystal River 4 & 5'!M8 -> 0.102 | G19: ='Crystal River 4 & 5'!N8 -> 0.102 | H19: ='Crystal River 4 & 5'!O8 -> 0.102 | I19: ='Crystal River 4 & 5'!P8 -> 0.102 | J19: ='Crystal River 4 & 5'!Q8 -> 0.102 | K19: ='Crystal River 4 & 5'!R8 -> 0.102 | L19: ='Crystal River 4 & 5'!S8 -> 0.102 | M19: ='Crystal River 4 & 5'!T8 -> 0.102 | N19: ='Crystal River 4 & 5'!U8 -> 0.102 | O19: ='Crystal River 4 & 5'!V8 -> 0.104 | P19: ='Crystal River 4 & 5'!W8 -> 0.104 | Q19: ='Crystal River 4 & 5'!X8 -> 0.104 | R19: ='Crystal River 4 & 5'!Y8 -> 0.104 | S19: ='Crystal River 4 & 5'!Z8 -> 0.104 | T19: ='Crystal River 4 & 5'!AA8 -> 0.104 | U19: ='Crystal River 4 & 5'!AB8 -> 0.104 | V19: ='Crystal River 4 & 5'!AC8 -> 0.104 | W19: ='Crystal River 4 & 5'!AD8 -> 0.104 | X19: ='Crystal River 4 & 5'!AE8 -> 0.104 | Y19: ='Crystal River 4 & 5'!AF8 -> 0.104 | Z19: ='Crystal River 4 & 5'!AG8 -> 0.104 | AA19: ='Crystal River 4 & 5'!AH8 -> 0.104 | AB19: ='Crystal River 4 & 5'!AI8 -> 0.104 | AC19: ='Crystal River 4 & 5'!AJ8 -> 0.104 | AD19: ='Crystal River 4 & 5'!AK8 -> 0.104 | AE19: ='Crystal River 4 & 5'!AL8 -> 0.104 | AF19: ='Crystal River 4 & 5'!AM8 -> 0.104 | AG19: ='Crystal River 4 & 5'!AN8 -> 0.104 | AH19: ='Crystal River 4 & 5'!AO8 -> 0.104
A21: CHLORINE % AR | B21: Max Chlorine Limit - ppm | C21: =C5 -> 2019 | D21: 2020 | E21: 2021 | F21: 2022 | G21: 2023 | H21: 2024 | I21: 2025 | J21: 2026 | K21: 2027 | L21: 2028 | M21: 2029 | N21: 2030 | O21: 2031 | P21: 2032 | Q21: 2033 | R21: 2034 | S21: 2035 | T21: 2036 | U21: 2037 | V21: 2038 | W21: 2039 | X21: 2040 | Y21: 2041 | Z21: =Z5 -> 2042 | AA21: 2043 | AB21: 2044 | AC21: 2045 | AD21: 2046 | AE21: 2047 | AF21: 2048 | AG21: 2049 | AH21: =AH5 -> 2050
A22: =A19 -> Crystal River 4 & 5 | B22: ='Crystal River 4 & 5'!G5 -> 0.0025 | C22: ='Crystal River 4 & 5'!J9 -> 0.00125 | D22: ='Crystal River 4 & 5'!K9 -> 0.00125 | E22: ='Crystal River 4 & 5'!L9 -> 0.00125 | F22: ='Crystal River 4 & 5'!M9 -> 0.00125 | G22: ='Crystal River 4 & 5'!N9 -> 0.00125 | H22: ='Crystal River 4 & 5'!O9 -> 0.00125 | I22: ='Crystal River 4 & 5'!P9 -> 0.00125 | J22: ='Crystal River 4 & 5'!Q9 -> 0.00125 | K22: ='Crystal River 4 & 5'!R9 -> 0.00125 | L22: ='Crystal River 4 & 5'!S9 -> 0.00125 | M22: ='Crystal River 4 & 5'!T9 -> 0.00125 | N22: ='Crystal River 4 & 5'!U9 -> 0.00125 | O22: ='Crystal River 4 & 5'!V9 -> 0.00115 | P22: ='Crystal River 4 & 5'!W9 -> 0.00115 | Q22: ='Crystal River 4 & 5'!X9 -> 0.00115 | R22: ='Crystal River 4 & 5'!Y9 -> 0.00115 | S22: ='Crystal River 4 & 5'!Z9 -> 0.00115 | T22: ='Crystal River 4 & 5'!AA9 -> 0.00115 | U22: ='Crystal River 4 & 5'!AB9 -> 0.00115 | V22: ='Crystal River 4 & 5'!AC9 -> 0.00115 | W22: ='Crystal River 4 & 5'!AD9 -> 0.00115 | X22: ='Crystal River 4 & 5'!AE9 -> 0.00115 | Y22: ='Crystal River 4 & 5'!AF9 -> 0.00115 | Z22: ='Crystal River 4 & 5'!AG9 -> 0.00115 | AA22: ='Crystal River 4 & 5'!AH9 -> 0.00115 | AB22: ='Crystal River 4 & 5'!AI9 -> 0.00115 | AC22: ='Crystal River 4 & 5'!AJ9 -> 0.00115 | AD22: ='Crystal River 4 & 5'!AK9 -> 0.00115 | AE22: ='Crystal River 4 & 5'!AL9 -> 0.00115 | AF22: ='Crystal River 4 & 5'!AM9 -> 0.00115 | AG22: ='Crystal River 4 & 5'!AN9 -> 0.00115 | AH22: ='Crystal River 4 & 5'!AO9 -> 0.00115
A25: Market - COB 10/16/2019 | K25: esc@2.5%
A26: CRN | C26: 2.031294948 | D26: 2.118692057 | E26: 2.178209466 | F26: 2.259262516 | G26: 2.426641193 | H26: 2.496742383 | I26: 2.561661173 | J26: 2.561872514 | K26: =J26*1.025 -> 2.625919327 | L26: =K26*1.025 -> 2.69156731
A28: Blend
A29: Market | C29: 1 | D29: 1 | E29: 1 | F29: 1 | G29: 1 | H29: 0.89 | I29: 0.69 | J29: 0.49 | K29: 0.29 | L29: 0.09 | M29: 0 | N29: 0 | O29: 0 | P29: 0 | Q29: 0 | R29: 0 | S29: 0 | T29: 0 | U29: 0 | V29: 0 | W29: 0 | X29: 0 | Y29: 0 | Z29: 0 | AA29: 0 | AB29: 0 | AC29: 0 | AD29: 0 | AE29: 0 | AF29: 0 | AG29: 0 | AH29: 0
A30: Fundamentals | C30: =1-C29 -> 0 | D30: =1-D29 -> 0 | E30: 0 | F30: 0 | G30: 0 | H30: 0.11 | I30: 0.31 | J30: 0.51 | K30: 0.71 | L30: 0.91 | M30: =1-M29 -> 1 | N30: =1-N29 -> 1 | O30: =1-O29 -> 1 | P30: =1-P29 -> 1 | Q30: =1-Q29 -> 1 | R30: =1-R29 -> 1 | S30: =1-S29 -> 1 | T30: =1-T29 -> 1 | U30: =1-U29 -> 1 | V30: =1-V29 -> 1 | W30: =1-W29 -> 1 | X30: =1-X29 -> 1 | Y30: =1-Y29 -> 1 | Z30: 1 | AA30: 1 | AB30: 1 | AC30: 1 | AD30: 1 | AE30: 1 | AF30: 1 | AG30: 1 | AH30: 1
A32: Final Forecast
A33: CRN | C33: =C26*C29+C30*C6 -> 2.031294948 | D33: 2.118692057 | E33: 2.178209466 | F33: 2.259262516 | G33: 2.426641193 | H33: 2.534782795 | I33: 2.7521524 | J33: 2.930971892 | K33: 3.159219106 | L33: 3.403621333 | M33: 3.513347539 | N33: 3.64765247 | O33: 4.037139643 | P33: 4.183440947 | Q33: 4.330155528 | R33: 4.467284675 | S33: 4.511705619 | T33: 4.611426421 | U33: 4.768655819 | V33: 4.913302142 | W33: 5.093007445 | X33: 5.260785485 | Y33: 5.42017439 | Z33: 5.575063782 | AA33: 5.745954631 | AB33: 5.917080233 | AC33: 6.038005254 | AD33: 6.207891866 | AE33: 6.400657834 | AF33: 6.555590102 | AG33: 6.715226966 | AH33: 6.884274829

Sheet Crystal River 4 & 5
C1: =Assumptions!$A$1 -> Florida- Fall 2019 IRP Refresh Update - Coal | D1: =Assumptions!B2 -> No Carbon
A3: LOWEST COST ALTERNATIVE (Delivered $/mmbtu) | J3: =Start_Year -> 2019 | K3: =J3+1 -> 2020 | L3: =K3+1 -> 2021 | M3: 2022 | N3: 2023 | O3: 2024 | P3: 2025 | Q3: 2026 | R3: 2027 | S3: 2028 | T3: 2029 | U3: 2030 | V3: 2031 | W3: 2032 | X3: 2033 | Y3: 2034 | Z3: 2035 | AA3: 2036 | AB3: 2037 | AC3: 2038 | AD3: 2039 | AE3: 2040 | AF3: 2041 | AG3: =AF3+1 -> 2042 | AH3: =AG3+1 -> 2043 | AI3: =AH3+1 -> 2044 | AJ3: =AI3+1 -> 2045 | AK3: =AJ3+1 -> 2046 | AL3: =AK3+1 -> 2047 | AM3: =AL3+1 -> 2048 | AN3: =AM3+1 -> 2049 | AO3: 2050
C4: Limits: | D4: Min BTU | E4: Max SO2 | F4: Max Ash | G4: Max Cl | H4: Cost ($/mmbtu): | J4: =SUMPRODUCT(J14:J29,J34:J49) -> 2.272161255 | K4: 2.300340914 | L4: 2.5245691 | M4: 2.585462264 | N4: 2.719700993 | O4: 2.842564307 | P4: 3.176149002 | Q4: 3.285596784 | R4: 3.377045776 | S4: 3.474044259 | T4: 3.513347539 | U4: 3.64765247 | V4: 4.037139643 | W4: 4.183440947 | X4: 4.330155528 | Y4: 4.467284675 | Z4: 4.511705619 | AA4: 4.611426421 | AB4: 4.768655819 | AC4: 4.913302142 | AD4: 5.093007445 | AE4: 5.260785485 | AF4: 5.42017439 | AG4: 5.575063782 | AH4: 5.745954631 | AI4: 5.917080233 | AJ4: 6.038005254 | AK4: 6.207891866 | AL4: 6.400657834 | AM4: 6.555590102 | AN4: 6.715226966 | AO4: 6.884274829
A5: Crystal River 4 & 5 | B5: A 50%/50% blend of IL-OH Rvr 11,500 5# & IL-OH Rvr 11,000 6# 2019-2030, and a 30%/60%/10% blend of IL-OH Rvr 11,500 5#, IL-OH Rvr 11,000 6#, & NAPP Rail 113,0004# coal 2031-2050** | D5: 10700 | E5: 5.5 | F5: 0.13 | G5: =2500/1000000 -> 0.0025 | H5: BTU/lb: | J5: =SUMPRODUCT(J14:J29,$E14:$E29) -> 11250 | K5: 11250 | L5: 11250 | M5: 11250 | N5: 11250 | O5: 11250 | P5: 11250 | Q5: 11250 | R5: 11250 | S5: 11250 | T5: 11250 | U5: 11250 | V5: 11350 | W5: 11350 | X5: 11350 | Y5: 11350 | Z5: 11350 | AA5: 11350 | AB5: 11350 | AC5: 11350 | AD5: 11350 | AE5: 11350 | AF5: 11350 | AG5: 11350 | AH5: 11350 | AI5: 11350 | AJ5: 11350 | AK5: 11350 | AL5: 11350 | AM5: 11350 | AN5: 11350 | AO5: 11350
H6: SO2 (#/mmbtu): | J6: =SUMPRODUCT(J14:J29,$E14:$E29,$F14:$F29)/J5 -> 5.488888889 | K6: 5.488888889 | L6: 5.488888889 | M6: 5.488888889 | N6: 5.488888889 | O6: 5.488888889 | P6: 5.488888889 | Q6: 5.488888889 | R6: 5.488888889 | S6: 5.488888889 | T6: 5.488888889 | U6: 5.488888889 | V6: 5.466960352 | W6: 5.466960352 | X6: 5.466960352 | Y6: 5.466960352 | Z6: 5.466960352 | AA6: 5.466960352 | AB6: 5.466960352 | AC6: 5.466960352 | AD6: 5.466960352 | AE6: 5.466960352 | AF6: 5.466960352 | AG6: 5.466960352 | AH6: 5.466960352 | AI6: 5.466960352 | AJ6: 5.466960352 | AK6: 5.466960352 | AL6: 5.466960352 | AM6: 5.466960352 | AN6: 5.466960352 | AO6: 5.466960352
H7: Ash (%): | J7: =SUMPRODUCT(J14:J29,$G14:$G29) -> 10 | K7: 10 | L7: 10 | M7: 10 | N7: 10 | O7: 10 | P7: 10 | Q7: 10 | R7: 10 | S7: 10 | T7: 10 | U7: 10 | V7: 9.8 | W7: 9.8 | X7: 9.8 | Y7: 9.8 | Z7: 9.8 | AA7: 9.8 | AB7: 9.8 | AC7: 9.8 | AD7: 9.8 | AE7: 9.8 | AF7: 9.8 | AG7: 9.8 | AH7: 9.8 | AI7: 9.8 | AJ7: 9.8 | AK7: 9.8 | AL7: 9.8 | AM7: 9.8 | AN7: 9.8 | AO7: 9.8
H8: Hg (ppm - dry): | J8: =SUMPRODUCT(J14:J29,$H14:$H29) -> 0.102 | K8: 0.102 | L8: 0.102 | M8: 0.102 | N8: 0.102 | O8: 0.102 | P8: 0.102 | Q8: 0.102 | R8: 0.102 | S8: 0.102 | T8: 0.102 | U8: 0.102 | V8: 0.104 | W8: 0.104 | X8: 0.104 | Y8: 0.104 | Z8: 0.104 | AA8: 0.104 | AB8: 0.104 | AC8: 0.104 | AD8: 0.104 | AE8: 0.104 | AF8: 0.104 | AG8: 0.104 | AH8: 0.104 | AI8: 0.104 | AJ8: 0.104 | AK8: 0.104 | AL8: 0.104 | AM8: 0.104 | AN8: 0.104 | AO8: 0.104
H9: Chlorine %AR | J9: =SUMPRODUCT(J14:J29,$I14:$I29) -> 0.00125 | K9: 0.00125 | L9: 0.00125 | M9: 0.00125 | N9: 0.00125 | O9: 0.00125 | P9: 0.00125 | Q9: 0.00125 | R9: 0.00125 | S9: 0.00125 | T9: 0.00125 | U9: 0.00125 | V9: 0.00115 | W9: 0.00115 | X9: 0.00115 | Y9: 0.00115 | Z9: 0.00115 | AA9: 0.00115 | AB9: 0.00115 | AC9: 0.00115 | AD9: 0.00115 | AE9: 0.00115 | AF9: 0.00115 | AG9: 0.00115 | AH9: 0.00115 | AI9: 0.00115 | AJ9: 0.00115 | AK9: 0.00115 | AL9: 0.00115 | AM9: 0.00115 | AN9: 0.00115 | AO9: 0.00115
H11: Delta to Single Lowest Cost Alternative: | J11: =J4-J32 -> 0.02617721893 | K11: 0.02951848125 | L11: 0.03481145743 | M11: 0.0357390285 | N11: 0.03336344729 | O11: 0.035670637 | P11: 0.03090362173 | Q11: 0.03291676387 | R11: 0.03339148608 | S11: 0.03451839792 | T11: 0.03419806873 | U11: 0.1284960036 | V11: 0.2564010813 | W11: 0.2672281897 | X11: 0.2667586808 | Y11: 0.2724425673 | Z11: 0.2881838506 | AA11: 0.2758264736 | AB11: 0.2749462129 | AC11: 0.2840132735 | AD11: 0.2875707632 | AE11: 0.2940771046 | AF11: 0.2965252997 | AG11: 0.3020268066 | AH11: 0.3076634812 | AI11: 0.3121541229 | AJ11: 0.3185910779 | AK11: 0.3204161866 | AL11: 0.3280506646 | AM11: 0.3353493008 | AN11: 0.3368913208 | AO11: 0.3445841611
A12: SELECTED PERCENTAGES
A13: =A33 -> Station | B13: Basin | C13: Coal Type | D13: FOB Point | E13: Btu/lb | F13: #SO2/MMBtu | G13: %Ash | H13: Hg (ppm - dry) | I13: Chlorine % AR | J13: =J3 -> 2019 | K13: 2020 | L13: 2021 | M13: 2022 | N13: 2023 | O13: 2024 | P13: 2025 | Q13: 2026 | R13: 2027 | S13: 2028 | T13: 2029 | U13: 2030 | V13: 2031 | W13: 2032 | X13: 2033 | Y13: 2034 | Z13: 2035 | AA13: 2036 | AB13: 2037 | AC13: 2038 | AD13: 2039 | AE13: 2040 | AF13: 2041 | AG13: 2042 | AH13: 2043 | AI13: 2044 | AJ13: 2045 | AK13: 2046 | AL13: 2047 | AM13: 2048 | AN13: 2049 | AO13: 2050
A14: Crystal River 4&5 | B14: =B34 -> NAPP | C14: Pittsburgh Seam | D14: Rail | E14: 13000 | F14: 4 | G14: 8 | H14: ='Coal Price Inputs'!H10 -> 0.122 | I14: ='Coal Price Inputs'!I10 -> 0.001 | J14: 0 | K14: 0 | L14: 0 | M14: 0 | N14: 0 | O14: 0 | P14: 0 | Q14: 0 | R14: 0 | S14: 0 | T14: 0 | U14: 0 | V14: 0.1 | W14: 0.1 | X14: 0.1 | Y14: 0.1 | Z14: 0.1 | AA14: 0.1 | AB14: 0.1 | AC14: 0.1 | AD14: 0.1 | AE14: 0.1 | AF14: 0.1 | AG14: 0.1 | AH14: 0.1 | AI14: 0.1 | AJ14: 0.1 | AK14: 0.1 | AL14: 0.1 | AM14: 0.1 | AN14: 0.1 | AO14: 0.1
A15: =$A$14 -> Crystal River 4&5 | B15: =B35 -> NAPP | C15: Pittsburgh Seam | D15: Barge | E15: 13000 | F15: 4 | G15: 8 | H15: ='Coal Price Inputs'!H11 -> 0.122 | I15: ='Coal Price Inputs'!I11 -> 0.001 | J15: 0 | K15: 0 | L15: 0 | M15: 0 | N15: 0 | O15: 0 | P15: 0 | Q15: 0 | R15: 0 | S15: 0 | T15: 0 | U15: 0 | V15: 0 | W15: 0 | X15: 0 | Y15: 0 | Z15: 0 | AA15: 0 | AB15: 0 | AC15: 0 | AD15: 0 | AE15: 0 | AF15: 0 | AG15: 0 | AH15: 0 | AI15: 0 | AJ15: 0 | AK15: 0 | AL15: 0 | AM15: 0 | AN15: 0 | AO15: 0
A16: =$A$14 -> Crystal River 4&5 | B16: =B36 -> CAPP | C16: Low-Sulfur | D16: Rail | E16: 12500 | F16: 1.6 | G16: 10 | H16: ='Coal Price Inputs'!H12 -> 0.11 | I16: ='Coal Price Inputs'!I12 -> 0.001 | J16: 0 | K16: 0 | L16: 0 | M16: 0 | N16: 0 | O16: 0 | P16: 0 | Q16: 0 | R16: 0 | S16: 0 | T16: 0 | U16: 0 | V16: 0 | W16: 0 | X16: 0 | Y16: 0 | Z16: 0 | AA16: 0 | AB16: 0 | AC16: 0 | AD16: 0 | AE16: 0 | AF16: 0 | AG16: 0 | AH16: 0 | AI16: 0 | AJ16: 0 | AK16: 0 | AL16: 0 | AM16: 0 | AN16: 0 | AO16: 0
A17: Crystal River 4&5 | B17: CAPP | C17: Low-Sulfur | D17: Barge | E17: 12500 | F17: 1.67 | G17: 10 | H17: ='Coal Price Inputs'!H13 -> 0.11 | I17: ='Coal Price Inputs'!I13 -> 0.001 | J17: 0 | K17: 0 | L17: 0 | M17: 0 | N17: 0 | O17: 0 | P17: 0 | Q17: 0 | R17: 0 | S17: 0 | T17: 0 | U17: 0 | V17: 0 | W17: 0 | X17: 0 | Y17: 0 | Z17: 0 | AA17: 0 | AB17: 0 | AC17: 0 | AD17: 0 | AE17: 0 | AF17: 0 | AG17: 0 | AH17: 0 | AI17: 0 | AJ17: 0 | AK17: 0 | AL17: 0 | AM17: 0 | AN17: 0 | AO17: 0
A18: Crystal River 4&5 | B18: =B38 -> ILB | C18: Illinois | D18: Rail | E18: 11500 | F18: 5 | G18: 10 | H18: ='Coal Price Inputs'!H14 -> 0.102 | I18: ='Coal Price Inputs'!I14 -> 0.003 | J18: 0 | K18: 0 | L18: 0 | M18: 0 | N18: 0 | O18: 0 | P18: 0 | Q18: 0 | R18: 0 | S18: 0 | T18: 0 | U18: 0 | V18: 0 | W18: 0 | X18: 0 | Y18: 0 | Z18: 0 | AA18: 0 | AB18: 0 | AC18: 0 | AD18: 0 | AE18: 0 | AF18: 0 | AG18: 0 | AH18: 0 | AI18: 0 | AJ18: 0 | AK18: 0 | AL18: 0 | AM18: 0 | AN18: 0 | AO18: 0
A19: Crystal River 4&5 | B19: ILB | C19: Illinois | D19: Barge | E19: 11500 | F19: 5 | G19: 10 | H19: ='Coal Price Inputs'!H15 -> 0.102 | I19: ='Coal Price Inputs'!I15 -> 0.0015 | J19: 0.5 | K19: 0.5 | L19: 0.5 | M19: 0.5 | N19: 0.5 | O19: 0.5 | P19: 0.5 | Q19: 0.5 | R19: 0.5 | S19: 0.5 | T19: 0.5 | U19: 0.5 | V19: 0.3 | W19: 0.3 | X19: 0.3 | Y19: 0.3 | Z19: 0.3 | AA19: 0.3 | AB19: 0.3 | AC19: 0.3 | AD19: 0.3 | AE19: 0.3 | AF19: 0.3 | AG19: 0.3 | AH19: 0.3 | AI19: 0.3 | AJ19: 0.3 | AK19: 0.3 | AL19: 0.3 | AM19: 0.3 | AN19: 0.3 | AO19: 0.3
A20: Crystal River 4&5 | B20: =B40 -> ILB | C20: Illinois | D20: Rail | E20: 11500 | F20: 5 | G20: 10 | H20: ='Coal Price Inputs'!H16 -> 0.102 | I20: ='Coal Price Inputs'!I16 -> 0.0012 | J20: 0 | K20: 0 | L20: 0 | M20: 0 | N20: 0 | O20: 0 | P20: 0 | Q20: 0 | R20: 0 | S20: 0 | T20: 0 | U20: 0 | V20: 0 | W20: 0 | X20: 0 | Y20: 0 | Z20: 0 | AA20: 0 | AB20: 0 | AC20: 0 | AD20: 0 | AE20: 0 | AF20: 0 | AG20: 0 | AH20: 0 | AI20: 0 | AJ20: 0 | AK20: 0 | AL20: 0 | AM20: 0 | AN20: 0 | AO20: 0
A21: Crystal River 4&5 | B21: =B41 -> ILB | C21: Illinois | D21: Barge | E21: 11000 | F21: 6 | G21: 10 | H21: ='Coal Price Inputs'!H17 -> 0.102 | I21: ='Coal Price Inputs'!I17 -> 0.001 | J21: 0.5 | K21: 0.5 | L21: 0.5 | M21: 0.5 | N21: 0.5 | O21: 0.5 | P21: 0.5 | Q21: 0.5 | R21: 0.5 | S21: 0.5 | T21: 0.5 | U21: 0.5 | V21: 0.6 | W21: 0.6 | X21: 0.6 | Y21: 0.6 | Z21: 0.6 | AA21: 0.6 | AB21: 0.6 | AC21: 0.6 | AD21: 0.6 | AE21: 0.6 | AF21: 0.6 | AG21: 0.6 | AH21: 0.6 | AI21: 0.6 | AJ21: 0.6 | AK21: 0.6 | AL21: 0.6 | AM21: 0.6 | AN21: 0.6 | AO21: 0.6
A22: Crystal River 4&5 | B22: =B42 -> ILB | C22: Illinois | D22: Rail | E22: 11000 | F22: 6 | G22: 10 | H22: ='Coal Price Inputs'!H18 -> 0.102 | I22: ='Coal Price Inputs'!I18 -> 0.0015 | J22: 0 | K22: 0 | L22: 0 | M22: 0 | N22: 0 | O22: 0 | P22: 0 | Q22: 0 | R22: 0 | S22: 0 | T22: 0 | U22: 0 | V22: 0 | W22: 0 | X22: 0 | Y22: 0 | Z22: 0 | AA22: 0 | AB22: 0 | AC22: 0 | AD22: 0 | AE22: 0 | AF22: 0 | AG22: 0 | AH22: 0 | AI22: 0 | AJ22: 0 | AK22: 0 | AL22: 0 | AM22: 0 | AN22: 0 | AO22: 0
A23: Crystal River 4&5 | B23: =B43 -> ILB | C23: Illinois | D23: Barge | E23: 11800 | F23: 4.5 | G23: 10 | H23: ='Coal Price Inputs'!H20 -> 0.102 | I23: ='Coal Price Inputs'!I20 -> 0.002 | J23: 0 | K23: 0 | L23: 0 | M23: 0 | N23: 0 | O23: 0 | P23: 0 | Q23: 0 | R23: 0 | S23: 0 | T23: 0 | U23: 0 | V23: 0 | W23: 0 | X23: 0 | Y23: 0 | Z23: 0 | AA23: 0 | AB23: 0 | AC23: 0 | AD23: 0 | AE23: 0 | AF23: 0 | AG23: 0 | AH23: 0 | AI23: 0 | AJ23: 0 | AK23: 0 | AL23: 0 | AM23: 0 | AN23: 0 | AO23: 0
A24: Crystal River 4&5 | B24: =B44 -> ILB | C24: Illinois | D24: Barge | E24: 11800 | F24: 4.5 | G24: 10 | H24: ='Coal Price Inputs'!H21 -> 0.102 | I24: ='Coal Price Inputs'!I21 -> 0.002 | J24: 0 | K24: 0 | L24: 0 | M24: 0 | N24: 0 | O24: 0 | P24: 0 | Q24: 0 | R24: 0 | S24: 0 | T24: 0 | U24: 0 | V24: 0 | W24: 0 | X24: 0 | Y24: 0 | Z24: 0 | AA24: 0 | AB24: 0 | AC24: 0 | AD24: 0 | AE24: 0 | AF24: 0 | AG24: 0 | AH24: 0 | AI24: 0 | AJ24: 0 | AK24: 0 | AL24: 0 | AM24: 0 | AN24: 0 | AO24: 0
A25: Crystal River 4&5 | B25: =B45 -> ILB | C25: Low Chlorine | D25: Barge | E25: 11500 | F25: 5.2 | G25: 10 | H25: ='Coal Price Inputs'!H22 -> 0.102 | I25: ='Coal Price Inputs'!I22 -> 0.0008 | J25: 0 | K25: 0 | L25: 0 | M25: 0 | N25: 0 | O25: 0 | P25: 0 | Q25: 0 | R25: 0 | S25: 0 | T25: 0 | U25: 0 | V25: 0 | W25: 0 | X25: 0 | Y25: 0 | Z25: 0 | AA25: 0 | AB25: 0 | AC25: 0 | AD25: 0 | AE25: 0 | AF25: 0 | AG25: 0 | AH25: 0 | AI25: 0 | AJ25: 0 | AK25: 0 | AL25: 0 | AM25: 0 | AN25: 0 | AO25: 0
A26: Crystal River 4&5 | B26: =B46 -> ILB | C26: Low Chlorine | D26: Rail | E26: 11500 | F26: 5.2 | G26: 10 | H26: ='Coal Price Inputs'!H23 -> 0.102 | I26: ='Coal Price Inputs'!I23 -> 0.0008 | J26: 0 | K26: 0 | L26: 0 | M26: 0 | N26: 0 | O26: 0 | P26: 0 | Q26: 0 | R26: 0 | S26: 0 | T26: 0 | U26: 0 | V26: 0 | W26: 0 | X26: 0 | Y26: 0 | Z26: 0 | AA26: 0 | AB26: 0 | AC26: 0 | AD26: 0 | AE26: 0 | AF26: 0 | AG26: 0 | AH26: 0 | AI26: 0 | AJ26: 0 | AK26: 0 | AL26: 0 | AM26: 0 | AN26: 0 | AO26: 0
A27: Crystal River 4&5 | B27: =B47 -> PRB | C27: High-Btu Gillette | D27: Rail | E27: 8800 | F27: 0.8 | G27: 5 | H27: ='Coal Price Inputs'!H24 -> 0.06 | I27: ='Coal Price Inputs'!I24 -> 0.0001 | J27: 0 | K27: 0 | L27: 0 | M27: 0 | N27: 0 | O27: 0 | P27: 0 | Q27: 0 | R27: 0 | S27: 0 | T27: 0 | U27: 0 | V27: 0 | W27: 0 | X27: 0 | Y27: 0 | Z27: 0 | AA27: 0 | AB27: 0 | AC27: 0 | AD27: 0 | AE27: 0 | AF27: 0 | AG27: 0 | AH27: 0 | AI27: 0 | AJ27: 0 | AK27: 0 | AL27: 0 | AM27: 0 | AN27: 0 | AO27: 0
A28: Crystal River 4&5 | B28: RM | C28: Rockies | D28: Rail | E28: 11700 | F28: 0.8 | G28: 8 | H28: ='Coal Price Inputs'!H25 -> 0.04 | I28: ='Coal Price Inputs'!I25 -> 0.0002 | J28: 0 | K28: 0 | L28: 0 | M28: 0 | N28: 0 | O28: 0 | P28: 0 | Q28: 0 | R28: 0 | S28: 0 | T28: 0 | U28: 0 | V28: 0 | W28: 0 | X28: 0 | Y28: 0 | Z28: 0 | AA28: 0 | AB28: 0 | AC28: 0 | AD28: 0 | AE28: 0 | AF28: 0 | AG28: 0 | AH28: 0 | AI28: 0 | AJ28: 0 | AK28: 0 | AL28: 0 | AM28: 0 | AN28: 0 | AO28: 0
A29: Crystal River 4&5 | B29: RM | C29: Rockies | D29: Barge | E29: 11700 | F29: 0.8 | G29: 8 | H29: ='Coal Price Inputs'!H26 -> 0.04 | I29: ='Coal Price Inputs'!I26 -> 0.0002 | J29: 0 | K29: 0 | L29: 0 | M29: 0 | N29: 0 | O29: 0 | P29: 0 | Q29: 0 | R29: 0 | S29: 0 | T29: 0 | U29: 0 | V29: 0 | W29: 0 | X29: 0 | Y29: 0 | Z29: 0 | AA29: 0 | AB29: 0 | AC29: 0 | AD29: 0 | AE29: 0 | AF29: 0 | AG29: 0 | AH29: 0 | AI29: 0 | AJ29: 0 | AK29: 0 | AL29: 0 | AM29: 0 | AN29: 0 | AO29: 0
J30: =SUM(J14:J29) -> 1 | K30: 1 | L30: 1 | M30: 1 | N30: 1 | O30: 1 | P30: 1 | Q30: 1 | R30: 1 | S30: 1 | T30: 1 | U30: 1 | V30: 1 | W30: 1 | X30: 1 | Y30: 1 | Z30: 1 | AA30: 1 | AB30: 1 | AC30: 1 | AD30: 1 | AE30: 1 | AF30: 1 | AG30: 1 | AH30: 1 | AI30: 1 | AJ30: 1 | AK30: 1 | AL30: 1 | AM30: 1 | AN30: 1 | AO30: 1
A32: DELIVERED COST ($/MMBTU) | H32: Single Lowest Cost Alternative: | J32: =MIN(J34:J49) -> 2.245984036 | K32: 2.270822432 | L32: 2.489757643 | M32: 2.549723236 | N32: 2.686337546 | O32: 2.80689367 | P32: 3.145245381 | Q32: 3.252680021 | R32: 3.34365429 | S32: 3.439525861 | T32: 3.47914947 | U32: 3.519156466 | V32: 3.780738562 | W32: 3.916212757 | X32: 4.063396847 | Y32: 4.194842107 | Z32: 4.223521768 | AA32: 4.335599948 | AB32: 4.493709606 | AC32: 4.629288869 | AD32: 4.805436682 | AE32: 4.96670838 | AF32: 5.12364909 | AG32: 5.273036976 | AH32: 5.43829115 | AI32: 5.60492611 | AJ32: 5.719414176 | AK32: 5.887475679 | AL32: 6.07260717 | AM32: 6.220240801 | AN32: 6.378335645 | AO32: 6.539690668
A33: =A52 -> Station | B33: Basin | C33: Coal Type | D33: FOB Point | E33: Btu/lb | F33: #SO2/MMBtu | G33: %Ash | H33: Hg (ppm - dry) | I33: Chlorine % AR | J33: =J3 -> 2019 | K33: 2020 | L33: 2021 | M33: 2022 | N33: 2023 | O33: 2024 | P33: 2025 | Q33: 2026 | R33: 2027 | S33: 2028 | T33: 2029 | U33: 2030 | V33: 2031 | W33: 2032 | X33: 2033 | Y33: 2034 | Z33: 2035 | AA33: 2036 | AB33: 2037 | AC33: 2038 | AD33: 2039 | AE33: 2040 | AF33: 2041 | AG33: 2042 | AH33: 2043 | AI33: 2044 | AJ33: 2045 | AK33: 2046 | AL33: 2047 | AM33: 2048 | AN33: 2049 | AO33: 2050
A34: =$A$14 -> Crystal River 4&5 | B34: =B53 -> NAPP | C34: Pittsburgh Seam | D34: Rail | E34: 13000 | F34: 4 | G34: 8 | H34: =H14 -> 0.122 | I34: 0.001 | J34: =IF(J92="n/a","n/a",J53/($E34/500)) -> 2.84275215 | K34: 2.886860282 | L34: 3.246453589 | M34: 3.269804933 | N34: 3.378391063 | O34: 3.428300979 | P34: 3.52039418 | Q34: 3.678340746 | R34: 3.773559805 | S34: 3.856521758 | T34: 3.960631137 | U34: 4.042096017 | V34: 4.133096526 | W34: 4.298317098 | X34: 4.386899504 | Y34: 4.522926728 | Z34: 4.641357625 | AA34: 4.580471795 | AB34: 4.669458793 | AC34: 4.803949313 | AD34: 4.950427758 | AE34: 5.112702215 | AF34: 5.245556888 | AG34: 5.381901168 | AH34: 5.531174601 | AI34: 5.685289886 | AJ34: 5.784994088 | AK34: 5.939606839 | AL34: 6.110843232 | AM34: 6.246086774 | AN34: 6.391555496 | AO34: 6.540892656
A35: Crystal River 4&5 | B35: =B54 -> NAPP | C35: Pittsburgh Seam | D35: Barge | E35: 13000 | F35: =F54 -> 4 | G35: =G54 -> 8 | H35: 0.122 | I35: 0.001 | J35: =IF(J93="n/a","n/a",J54/($E35/500)) -> 2.626792856 | K35: 2.681763407 | L35: 3.021065307 | M35: 3.039343605 | N35: 3.232966591 | O35: 3.274782398 | P35: 3.58582131 | Q35: 3.735609603 | R35: 3.849831632 | S35: 3.942682677 | T35: 4.056990304 | U35: 4.146647768 | V35: 4.497885808 | W35: 4.673159476 | X35: 4.769558813 | Y35: 4.913575219 | Z35: 5.042957254 | AA35: 4.990180552 | AB35: 5.087979312 | AC35: 5.234751407 | AD35: 5.390515699 | AE35: 5.562309621 | AF35: 5.699928767 | AG35: 5.846859771 | AH35: 6.007091213 | AI35: 6.167218709 | AJ35: 6.279487212 | AK35: 6.437668234 | AL35: 6.621635254 | AM35: 6.769792874 | AN35: 6.918636216 | AO35: 7.081237798
A36: Crystal River 4&5 | B36: CAPP | C36: Low-Sulfur | D36: Rail | E36: 12500 | F36: =F55 -> 1.6 | G36: =G55 -> 10 | H36: 0.11 | I36: 0.001 | J36: =IF(J94="n/a","n/a",J55/($E36/500)) -> 3.264922341 | K36: 2.94596893 | L36: 3.534980704 | M36: 3.771859094 | N36: 3.801224799 | O36: 3.979946195 | P36: 4.107621388 | Q36: 4.271789356 | R36: 4.412298142 | S36: 4.531416765 | T36: 4.628707151 | U36: 4.752849599 | V36: 4.911063609 | W36: 4.915287052 | X36: 5.113792854 | Y36: 5.276840562 | Z36: 5.450884331 | AA36: 5.659051604 | AB36: 5.878902898 | AC36: 6.111867347 | AD36: 6.109580173 | AE36: 6.336185591 | AF36: 6.504477918 | AG36: 6.65119439 | AH36: 6.796044185 | AI36: 6.979910727 | AJ36: 7.08203475 | AK36: 7.254821963 | AL36: 7.450284682 | AM36: 7.601379971 | AN36: 7.76480121 | AO36: 7.933091065
A37: Crystal River 4&5 | B37: CAPP | C37: Low-Sulfur | D37: Barge | E37: 12500 | F37: 1.67 | G37: =G56 -> 10 | H37: 0.11 | I37: 0.001 | J37: =IF(J95="n/a","n/a",J56/($E37/500)) -> 3.002666141 | K37: 2.692667829 | L37: 3.262381184 | M37: 3.494106501 | N37: 3.61141166 | O37: 3.781099319 | P37: 4.136007846 | Q37: 4.290957726 | R37: 4.448978576 | S37: 4.575725654 | T37: 4.680888876 | U37: 4.811240041 | V37: 5.238851276 | W37: 5.252316058 | X37: 5.457613849 | Y37: 5.627602503 | Z37: 5.811686317 | AA37: 6.026907752 | AB37: 6.254399828 | AC37: 6.498563062 | AD37: 6.504322709 | AE37: 6.739175373 | AF37: 6.912535266 | AG37: 7.068394957 | AH37: 7.222702365 | AI37: 7.412734849 | AJ37: 7.525927269 | AK37: 7.702380928 | AL37: 7.909077869 | AM37: 8.071573399 | AN37: 8.238545807 | AO37: 8.418555186
A38: Crystal River 4&5 | B38: =B57 -> ILB | C38: Illinois | D38: Rail | E38: 11500 | F38: 5 | G38: =G57 -> 10 | H38: 0.102 | I38: 0.003 | J38: =IF(J96="n/a","n/a",J57/($E38/500)) -> 2.740901569 | K38: 2.765368581 | L38: 3.015941615 | M38: 3.087674556 | N38: 3.127057258 | O38: 3.264889533 | P38: 3.350002291 | Q38: 3.475520092 | R38: 3.553530303 | S38: 3.648978112 | T38: 3.685156161 | U38: 3.641537423 | V38: 3.915206136 | W38: 4.056387402 | X38: 4.209846447 | Y38: 4.346750311 | Z38: 4.375684448 | AA38: 4.492197682 | AB38: 4.657038696 | AC38: 4.798188692 | AD38: 4.981927151 | AE38: 5.150013748 | AF38: 5.313524709 | AG38: 5.46907525 | AH38: 5.641264582 | AI38: 5.814876394 | AJ38: 5.93368393 | AK38: 6.10873668 | AL38: 6.301690348 | AM38: 6.455225542 | AN38: 6.619718511 | AO38: 6.787604577
A39: Crystal River 4&5 | B39: ILB | C39: Illinois | D39: Barge | E39: 11500 | F39: 5 | G39: =G58 -> 10 | H39: 0.102 | I39: 0.0015 | J39: =IF(J97="n/a","n/a",J58/($E39/500)) -> 2.298338474 | K39: 2.329859395 | L39: 2.559380558 | M39: 2.621201293 | N39: 2.75306444 | O39: 2.878234944 | P39: 3.207052624 | Q39: 3.318513548 | R39: 3.410437262 | S39: 3.508562657 | T39: 3.547545607 | U39: 3.68391034 | V39: 4.067559183 | W39: 4.214509309 | X39: 4.370881529 | Y39: 4.510767371 | Z39: 4.546010714 | AA39: 4.665492068 | AB39: 4.833718518 | AC39: 4.98200112 | AD39: 5.169340001 | AE39: 5.341130753 | AF39: 5.506734251 | AG39: 5.666590745 | AH39: 5.843277824 | AI39: 6.019743509 | AJ39: 6.144586164 | AK39: 6.319670021 | AL39: 6.518676594 | AM39: 6.678338618 | AN39: 6.842591682 | AO39: 7.01673859
A40: Crystal River 4&5 | B40: =B59 -> ILB | C40: Illinois | D40: Rail | E40: 11500 | F40: 5 | G40: 10 | H40: 0.102 | I40: 0.0012 | J40: =IF(J98="n/a","n/a",J59/($E40/500)) -> 2.627523179 | K40: 2.71643422 | L40: 2.965138896 | M40: 3.037097448 | N40: 3.074914319 | O40: 3.210734329 | P40: 3.29428508 | Q40: 3.41840995 | R40: 3.495277958 | S40: 3.589560721 | T40: 3.624550422 | U40: 3.579719569 | V40: 3.852151925 | W40: 3.992072107 | X40: 4.144244846 | Y40: 4.279836677 | Z40: 4.307432541 | AA40: 4.422580738 | AB40: 4.586029413 | AC40: 4.725759223 | AD40: 4.908049093 | AE40: 5.074658129 | AF40: 5.236661977 | AG40: 5.390675263 | AH40: 5.561296596 | AI40: 5.733309048 | AJ40: 5.850485237 | AK40: 6.023874014 | AL40: 6.215130428 | AM40: 6.366934424 | AN40: 6.52966157 | AO40: 6.695746497
A41: Crystal River 4&5 | B41: =B60 -> ILB | C41: Illinois | D41: Barge | E41: 11000 | F41: 6 | G41: 10 | H41: 0.102 | I41: 0.001 | J41: =IF(J99="n/a","n/a",J60/($E41/500)) -> 2.245984036 | K41: 2.270822432 | L41: 2.489757643 | M41: 2.549723236 | N41: 2.686337546 | O41: 2.80689367 | P41: 3.145245381 | Q41: 3.252680021 | R41: 3.34365429 | S41: 3.439525861 | T41: 3.47914947 | U41: 3.6113946 | V41: 4.005937059 | W41: 4.148760741 | X41: 4.300335199 | Y41: 4.436269651 | Z41: 4.472944404 | AA41: 4.589552702 | AB41: 4.752657306 | AC41: 4.897178125 | AD41: 5.078604449 | AE41: 5.245293396 | AF41: 5.405997376 | AG41: 5.56149407 | AH41: 5.733089707 | AI41: 5.90438032 | AJ41: 6.026883326 | AK41: 6.19671696 | AL41: 6.389950888 | AM41: 6.545799732 | AN41: 6.705489853 | AO41: 6.875273311
A42: Crystal River 4&5 | B42: =B61 -> ILB | C42: Illinois | D42: Rail | E42: 11000 | F42: 6 | G42: 10 | H42: 0.102 | I42: 0.0015 | J42: =IF(J100="n/a","n/a",J61/($E42/500)) -> 2.590131682 | K42: 2.674968841 | L42: 2.913959542 | M42: 2.984523762 | N42: 3.022816964 | O42: 3.154506663 | P42: 3.236442948 | Q42: 3.357117167 | R42: 3.432351381 | S42: 3.524205655 | T42: 3.559654503 | U42: 3.519156466 | V42: 3.780738562 | W42: 3.916212757 | X42: 4.063396847 | Y42: 4.194842107 | Z42: 4.223521768 | AA42: 4.335599948 | AB42: 4.493709606 | AC42: 4.629288869 | AD42: 4.805436682 | AE42: 4.96670838 | AF42: 5.12364909 | AG42: 5.273036976 | AH42: 5.43829115 | AI42: 5.60492611 | AJ42: 5.719414176 | AK42: 5.887475679 | AL42: 6.07260717 | AM42: 6.220240801 | AN42: 6.378335645 | AO42: 6.539690668
A43: Crystal River 4&5 | B43: =B62 -> ILB | C43: Illinois | D43: Barge | E43: 11800 | F43: 4.5 | G43: 10 | H43: 0.102 | I43: 0.002 | J43: =IF(J101="n/a","n/a",J62/($E43/500)) -> 2.287350413 | K43: 2.312401231 | L43: 2.537226653 | M43: 2.696766715 | N43: 2.850987294 | O43: 2.988847045 | P43: 3.314225067 | Q43: 3.431118165 | R43: 3.52536638 | S43: 3.627100644 | T43: 3.666120933 | U43: 3.619181797 | V43: 4.188243506 | W43: 4.341281058 | X43: 4.504500774 | Y43: 4.650202598 | Z43: 4.684704976 | AA43: 4.808697641 | AB43: 4.984254658 | AC43: 5.138314366 | AD43: 5.334006474 | AE43: 5.513166239 | AF43: 5.685856493 | AG43: 5.852217734 | AH43: 6.036342247 | AI43: 6.220317871 | AJ43: 6.349272163 | AK43: 6.53191231 | AL43: 6.73933041 | AM43: 6.904997173 | AN43: 7.076009552 | AO43: 7.256891712
A44: Crystal River 4&5 | B44: =B63 -> ILB | C44: Illinois | D44: Barge | E44: 11800 | F44: 4.5 | G44: 10 | H44: 0.102 | I44: 0.002 | J44: =IF(J102="n/a","n/a",J63/($E44/500)) -> 2.610800239 | K44: 2.639959814 | L44: 2.839050845 | M44: 2.984200631 | N44: 3.144590816 | O44: 3.288750803 | P44: 3.620556042 | Q44: 3.744709572 | R44: 3.847305668 | S44: 3.958072866 | T44: 4.00634129 | U44: 3.968149895 | V44: 4.544540437 | W44: 4.70496576 | X44: 4.87586408 | Y44: 5.029403016 | Z44: 5.071833045 | AA44: 5.203916533 | AB44: 5.387893821 | AC44: 5.55057117 | AD44: 5.755060356 | AE44: 5.943207998 | AF44: 6.122478627 | AG44: 6.298402598 | AH44: 6.492330585 | AI44: 6.683585912 | AJ44: 6.822713033 | AK44: 7.012861236 | AL44: 7.230757297 | AM44: 7.407089507 | AN44: 7.585941687 | AO44: 7.77786702
A45: Crystal River 4&5 | B45: =B64 -> ILB | C45: Low Chlorine | D45: Barge | E45: 11500 | F45: 5.2 | G45: 10 | H45: 0.102 | I45: 0.0008 | J45: =IF(J103="n/a","n/a",J64/($E45/500)) -> 2.37793944 | K45: 2.438753288 | L45: 2.67770113 | M45: 2.84694732 | N45: 3.006640172 | O45: 3.152718119 | P45: 3.488883894 | Q45: 3.612689819 | R45: 3.711575459 | S45: 3.818816438 | T45: 3.859335328 | U45: 3.808464863 | V45: 4.402243486 | W45: 4.56386474 | X45: 4.736400992 | Y45: 4.890284335 | Z45: 4.925759245 | AA45: 5.056514843 | AB45: 5.242076886 | AC45: 5.404617752 | AD45: 5.611545245 | AE45: 5.800864344 | AF45: 5.983339715 | AG45: 6.158980649 | AH45: 6.353484174 | AI45: 6.547866183 | AJ45: 6.683589745 | AK45: 6.876606682 | AL45: 7.095731957 | AM45: 7.270424286 | AN45: 7.451008919 | AO45: 7.641827127
A46: Crystal River 4&5 | B46: =B65 -> ILB | C46: Low Chlorine | D46: Rail | E46: 11500 | F46: 5.2 | G46: 10 | H46: 0.102 | I46: 0.0008 | J46: =IF(J104="n/a","n/a",J65/($E46/500)) -> 2.593211102 | K46: 2.653956302 | L46: 2.907196117 | M46: 3.083891325 | N46: 3.144834217 | O46: 3.296300814 | P46: 3.382352839 | Q46: 3.513978621 | R46: 3.593836403 | S46: 3.693183155 | T46: 3.725576169 | U46: 3.667880799 | V46: 3.96755739 | W46: 4.117763123 | X46: 4.281626605 | Y46: 4.426653184 | Z46: 4.449826606 | AA46: 4.571501957 | AB46: 4.747444195 | AC46: 4.896493397 | AD46: 5.09333423 | AE46: 5.272333211 | AF46: 5.445967762 | AG46: 5.610419494 | AH46: 5.793404359 | AI46: 5.977771163 | AJ46: 6.100155048 | AK46: 6.285690229 | AL46: 6.491162938 | AM46: 6.65197678 | AN46: 6.82489463 | AO46: 7.001387173
A47: Crystal River 4&5 | B47: =B66 -> PRB | C47: High-Btu Gillette | D47: Rail | E47: 8800 | F47: 0.8 | G47: 5 | H47: 0.06 | I47: 0.0001 | J47: =IF(J105="n/a","n/a",J66/($E47/500)) -> 3.078802563 | K47: 3.127234152 | L47: 3.217571716 | M47: 3.331739591 | N47: 3.392271097 | O47: 3.488460425 | P47: 3.578677427 | Q47: 3.685869527 | R47: 3.775938395 | S47: 3.862130914 | T47: 3.957389286 | U47: 4.063873086 | V47: 4.156985579 | W47: 4.26090006 | X47: 4.376209428 | Y47: 4.491705832 | Z47: 4.601970635 | AA47: 4.697171553 | AB47: 4.824162309 | AC47: 4.954461924 | AD47: 5.092001769 | AE47: 5.238189793 | AF47: 5.371346506 | AG47: 5.505661734 | AH47: 5.649560235 | AI47: 5.799797227 | AJ47: 5.928921649 | AK47: 6.087044379 | AL47: 6.257420035 | AM47: 6.414744138 | AN47: 6.581314969 | AO47: 6.754095388
A48: Crystal River 4&5 | B48: RM | C48: Rockies | D48: Rail | E48: 11700 | F48: 0.8 | G48: 8 | H48: 0.04 | I48: 0.0002 | J48: =IF(J106="n/a","n/a",J67/($E48/500)) -> 3.906905541 | K48: 4.028736666 | L48: 4.214146221 | M48: 4.313179518 | N48: 4.427716535 | O48: 4.592456183 | P48: 4.72247869 | Q48: 4.793897065 | R48: 4.917802694 | S48: 5.033737397 | T48: 5.167509673 | U48: 5.285658933 | V48: 5.412096941 | W48: 5.558624147 | X48: 5.583307912 | Y48: 5.733730829 | Z48: 5.882861359 | AA48: 6.05248387 | AB48: 6.035786303 | AC48: 6.212308284 | AD48: 6.400841937 | AE48: 6.604665774 | AF48: 6.746281543 | AG48: 6.920212339 | AH48: 7.103253454 | AI48: 7.288228032 | AJ48: 7.427093159 | AK48: 7.615161188 | AL48: 7.81652628 | AM48: 7.989509217 | AN48: 8.171451095 | AO48: 8.358189639
A49: Crystal River 4&5 | B49: RM | C49: Rockies | D49: Barge | E49: 11700 | F49: 0.8 | G49: 8 | H49: =H30 -> 0 | I49: =I30 -> 0 | J49: =IF(J107="n/a","n/a",J68/($E49/500)) -> 3.609610204 | K49: 3.774367746 | L49: 3.94522099 | M49: 4.020640314 | N49: 4.117180676 | O49: 4.26602176 | P49: 4.63120793 | Q49: 4.682524126 | R49: 4.816668092 | S49: 4.930614975 | T49: 5.062316085 | U49: 5.17829173 | V49: 5.588011726 | W49: 5.740374744 | X49: 5.767668413 | Y49: 5.920613944 | Z49: 6.0759472 | AA49: 6.248295716 | AB49: 6.234178162 | AC49: 6.417105477 | AD49: 6.60830158 | AE49: 6.815015475 | AF49: 6.963500723 | AG49: 7.14027566 | AH49: 7.326322411 | AI49: 7.51844558 | AJ49: 7.661958647 | AK49: 7.85479373 | AL49: 8.061021217 | AM49: 8.238937642 | AN49: 8.425859371 | AO49: 8.617598901
A51: DELIVERED COST ($/TON)
A52: =A71 -> Station | B52: Basin | C52: Coal Type | D52: FOB Point | E52: Btu/lb | F52: #SO2/MMBtu | G52: %Ash | J52: =J3 -> 2019 | K52: 2020 | L52: 2021 | M52: 2022 | N52: 2023 | O52: 2024 | P52: 2025 | Q52: 2026 | R52: 2027 | S52: 2028 | T52: 2029 | U52: 2030 | V52: 2031 | W52: 2032 | X52: 2033 | Y52: 2034 | Z52: 2035 | AA52: 2036 | AB52: 2037 | AC52: 2038 | AD52: 2039 | AE52: 2040 | AF52: 2041 | AG52: 2042 | AH52: 2043 | AI52: 2044 | AJ52: 2045 | AK52: 2046 | AL52: 2047 | AM52: 2048 | AN52: 2049 | AO52: 2050
A53: =$A$14 -> Crystal River 4&5 | B53: =B72 -> NAPP | C53: Pittsburgh Seam | D53: Rail | E53: 13000 | F53: 4 | G53: 8 | J53: =IF(J92="n/a","n/a",J72+J92) -> 73.91155591 | K53: 75.05836733 | L53: 84.40779332 | M53: 85.01492826 | N53: 87.83816763 | O53: 89.13582546 | P53: 91.53024867 | Q53: 95.63685939 | R53: 98.11255494 | S53: 100.2695657 | T53: 102.9764096 | U53: 105.0944965 | V53: 107.4605097 | W53: 111.7562445 | X53: 114.0593871 | Y53: 117.5960949 | Z53: 120.6752982 | AA53: 119.0922667 | AB53: 121.4059286 | AC53: 124.9026821 | AD53: 128.7111217 | AE53: 132.9302576 | AF53: 136.3844791 | AG53: =IF(AG92="n/a","n/a",AG72+AG92) -> 139.9294304 | AH53: 143.8105396 | AI53: 147.817537 | AJ53: 150.4098463 | AK53: 154.4297778 | AL53: 158.881924 | AM53: 162.3982561 | AN53: 166.1804429 | AO53: =IF(AO92="n/a","n/a",AO72+AO92) -> 170.0632091
A54: Crystal River 4&5 | B54: =B73 -> NAPP | C54: Pittsburgh Seam | D54: Barge | E54: 13000 | F54: =F73 -> 4 | G54: =G73 -> 8 | J54: =IF(J93="n/a","n/a",J73+J93) -> 68.29661426 | K54: 69.72584858 | L54: 78.54769797 | M54: 79.02293374 | N54: 84.05713136 | O54: 85.14434236 | P54: 93.23135405 | Q54: 97.12584968 | R54: 100.0956224 | S54: 102.5097496 | T54: 105.4817479 | U54: 107.812842 | V54: 116.945031 | W54: 121.5021464 | X54: 124.0085291 | Y54: 127.7529557 | Z54: 131.1168886 | AA54: 129.7446944 | AB54: 132.2874621 | AC54: 136.1035366 | AD54: 140.1534082 | AE54: 144.6200501 | AF54: 148.1981479 | AG54: =IF(AG93="n/a","n/a",AG73+AG93) -> 152.0183541 | AH54: 156.1843715 | AI54: 160.3476864 | AJ54: 163.2666675 | AK54: 167.3793741 | AL54: 172.1625166 | AM54: 176.0146147 | AN54: 179.8845416 | AO54: 184.1121827
A55: Crystal River 4&5 | B55: CAPP | C55: Low-Sulfur | D55: Rail | E55: 12500 | F55: =F74 -> 1.6 | G55: =G74 -> 10 | J55: =IF(J94="n/a","n/a",J74+J94) -> 81.62305853 | K55: 73.64922326 | L55: 88.3745176 | M55: 94.29647736 | N55: 95.03061999 | O55: 99.49865487 | P55: 102.6905347 | Q55: 106.7947339 | R55: 110.3074535 | S55: 113.2854191 | T55: 115.7176788 | U55: 118.82124 | V55: 122.7765902 | W55: 122.8821763 | X55: 127.8448214 | Y55: 131.9210141 | Z55: 136.2721083 | AA55: 141.4762901 | AB55: 146.9725724 | AC55: 152.7966837 | AD55: 152.7395043 | AE55: 158.4046398 | AF55: 162.611948 | AG55: =IF(AG94="n/a","n/a",AG74+AG94) -> 166.2798598 | AH55: 169.9011046 | AI55: 174.4977682 | AJ55: 177.0508687 | AK55: 181.3705491 | AL55: 186.2571171 | AM55: 190.0344993 | AN55: 194.1200302 | AO55: 198.3272766
A56: Crystal River 4&5 | B56: CAPP | C56: Low-Sulfur | D56: Barge | E56: 12500 | F56: 1.67 | G56: =G75 -> 10 | J56: =IF(J95="n/a","n/a",J75+J95) -> 75.06665353 | K56: 67.31669573 | L56: 81.5595296 | M56: 87.35266252 | N56: 90.28529151 | O56: 94.52748297 | P56: 103.4001961 | Q56: 107.2739431 | R56: 111.2244644 | S56: 114.3931413 | T56: 117.0222219 | U56: 120.281001 | V56: 130.9712819 | W56: 131.3079015 | X56: 136.4403462 | Y56: 140.6900626 | Z56: 145.2921579 | AA56: 150.6726938 | AB56: 156.3599957 | AC56: 162.4640766 | AD56: 162.6080677 | AE56: 168.4793843 | AF56: 172.8133817 | AG56: =IF(AG95="n/a","n/a",AG75+AG95) -> 176.7098739 | AH56: 180.5675591 | AI56: 185.3183712 | AJ56: 188.1481817 | AK56: 192.5595232 | AL56: 197.7269467 | AM56: 201.789335 | AN56: 205.9636452 | AO56: 210.4638797
A57: Crystal River 4&5 | B57: =B76 -> ILB | C57: =C76 -> Illinois | D57: =D76 -> Rail | E57: =E76 -> 11500 | F57: =F76 -> 5 | G57: =G76 -> 10 | J57: =IF(J96="n/a","n/a",J76+J96) -> 63.04073609 | K57: 63.60347735 | L57: 69.36665714 | M57: 71.01651478 | N57: 71.92231694 | O57: 75.09245926 | P57: 77.0500527 | Q57: 79.9369621 | R57: 81.73119696 | S57: 83.92649658 | T57: 84.75859171 | U57: 83.75536073 | V57: 90.04974113 | W57: 93.29691026 | X57: 96.82646829 | Y57: 99.97525714 | Z57: 100.6407423 | AA57: 103.3205467 | AB57: 107.11189 | AC57: 110.3583399 | AD57: 114.5843245 | AE57: 118.4503162 | AF57: 122.2110683 | AG57: =IF(AG96="n/a","n/a",AG76+AG96) -> 125.7887307 | AH57: 129.7490854 | AI57: 133.7421571 | AJ57: 136.4747304 | AK57: 140.5009436 | AL57: 144.938878 | AM57: 148.4701875 | AN57: 152.2535258 | AO57: 156.1149053
A58: Crystal River 4&5 | B58: =B77 -> ILB | C58: Illinois | D58: Barge | E58: 11500 | F58: 5 | G58: 10 | J58: =IF(J97="n/a","n/a",J77+J97) -> 52.8617849 | K58: 53.58676608 | L58: 58.86575283 | M58: 60.28762973 | N58: 63.32048213 | O58: 66.19940371 | P58: =IF(P97="n/a","n/a",P77+P97) -> 73.76221035 | Q58: 76.32581161 | R58: 78.44005703 | S58: 80.6969411 | T58: 81.59354897 | U58: 84.72993782 | V58: 93.55386122 | W58: 96.9337141 | X58: 100.5302752 | Y58: 103.7476495 | Z58: 104.5582464 | AA58: 107.3063176 | AB58: 111.1755259 | AC58: 114.5860258 | AD58: 118.89482 | AE58: 122.8460073 | AF58: 126.6548878 | AG58: =IF(AG97="n/a","n/a",AG77+AG97) -> 130.3315871 | AH58: 134.39539 | AI58: 138.4541007 | AJ58: 141.3254818 | AK58: 145.3524105 | AL58: 149.9295617 | AM58: 153.6017882 | AN58: 157.3796087 | AO58: 161.3849876
A59: Crystal River 4&5 | B59: =B78 -> ILB | C59: Illinois | D59: Rail | E59: 11500 | F59: 5 | G59: 10 | J59: =IF(J98="n/a","n/a",J78+J98) -> 60.43303311 | K59: 62.47798707 | L59: 68.1981946 | M59: 69.8532413 | N59: 70.72302933 | O59: 73.84688957 | P59: 75.76855684 | Q59: 78.62342884 | R59: 80.39139303 | S59: 82.55989658 | T59: 83.36465971 | U59: 82.33355009 | V59: 88.59949427 | W59: 91.81765846 | X59: 95.31763145 | Y59: 98.43624357 | Z59: 99.07094845 | AA59: 101.719357 | AB59: 105.4786765 | AC59: 108.6924621 | AD59: 112.8851291 | AE59: 116.717137 | AF59: 120.4432255 | AG59: =IF(AG98="n/a","n/a",AG78+AG98) -> 123.9855311 | AH59: 127.9098217 | AI59: 131.8661081 | AJ59: 134.5611605 | AK59: 138.5491023 | AL59: 142.9479998 | AM59: 146.4394918 | AN59: 150.1822161 | AO59: 154.0021694
A60: Crystal River 4&5 | B60: =B79 -> ILB | C60: Illinois | D60: Barge | E60: 11000 | F60: 6 | G60: 10 | J60: =IF(J99="n/a","n/a",J79+J99) -> 49.41164879 | K60: 49.95809351 | L60: 54.77466815 | M60: 56.09391118 | N60: 59.09942601 | O60: 61.75166074 | P60: =IF(P99="n/a","n/a",P79+P99) -> 69.19539837 | Q60: 71.55896045 | R60: 73.56039438 | S60: 75.66956894 | T60: 76.54128834 | U60: 79.4506812 | V60: 88.1306153 | W60: 91.27273629 | X60: 94.60737437 | Y60: 97.59793232 | Z60: 98.40477688 | AA60: =IF(AA99="n/a","n/a",AA79+AA99) -> 100.9701595 | AB60: 104.5584607 | AC60: 107.7379188 | AD60: 111.7292979 | AE60: 115.3964547 | AF60: 118.9319423 | AG60: =IF(AG99="n/a","n/a",AG79+AG99) -> 122.3528695 | AH60: 126.1279735 | AI60: 129.896367 | AJ60: 132.5914332 | AK60: 136.3277731 | AL60: 140.5789195 | AM60: 144.0075941 | AN60: 147.5207768 | AO60: 151.2560128
A61: Crystal River 4&5 | B61: =B80 -> ILB | C61: Illinois | D61: Rail | E61: 11000 | F61: 6 | G61: 10 | J61: =IF(J100="n/a","n/a",J80+J100) -> 56.982897 | K61: 58.8493145 | L61: 64.10710992 | M61: 65.65952275 | N61: 66.50197321 | O61: 69.39914659 | P61: =IF(P100="n/a","n/a",P80+P100) -> 71.20174486 | Q61: =IF(Q100="n/a","n/a",Q80+Q100) -> 73.85657768 | R61: 75.51173038 | S61: 77.53252441 | T61: 78.31239907 | U61: 77.42144226 | V61: 83.17624836 | W61: 86.15668066 | X61: 89.39473064 | Y61: 92.28652636 | Z61: 92.9174789 | AA61: =IF(AA100="n/a","n/a",AA80+AA100) -> 95.38319885 | AB61: =IF(AB100="n/a","n/a",AB80+AB100) -> 98.86161133 | AC61: 101.8443551 | AD61: 105.719607 | AE61: 109.2675844 | AF61: 112.72028 | AG61: =IF(AG100="n/a","n/a",AG80+AG100) -> 116.0068135 | AH61: 119.6424053 | AI61: 123.3083744 | AJ61: 125.8271119 | AK61: 129.5244649 | AL61: 133.5973577 | AM61: 136.8452976 | AN61: 140.3233842 | AO61: 143.8731947
A62: Crystal River 4&5 | B62: =B82 -> ILB | C62: Illinois | D62: Barge | E62: 11800 | F62: 4.5 | G62: 10 | J62: =IF(J101="n/a","n/a",J82+J101) -> 53.98146974 | K62: 54.57266906 | L62: 59.87854901 | M62: 63.64369448 | N62: 67.28330014 | O62: 70.53679026 | P62: 78.21571159 | Q62: 80.9743887 | R62: 83.19864656 | S62: 85.59957521 | T62: 86.52045401 | U62: 85.41269041 | V62: 98.84254673 | W62: 102.454233 | X62: 106.3062183 | Y62: 109.7447813 | Z62: 110.5590374 | AA62: 113.4852643 | AB62: 117.6284099 | AC62: 121.264219 | AD62: 125.8825528 | AE62: 130.1107232 | AF62: 134.1862132 | AG62: 138.1123385 | AH62: 142.457677 | AI62: 146.7995018 | AJ62: 149.842823 | AK62: 154.1531305 | AL62: 159.0481977 | AM62: 162.9579333 | AN62: 166.9938254 | AO62: 171.2626444
A63: Crystal River 4&5 | B63: =B83 -> ILB | C63: Illinois | D63: Barge | E63: 11800 | F63: 4.5 | G63: 10 | J63: =IF(J102="n/a","n/a",J83+J102) -> 61.61488565 | K63: 62.30305161 | L63: 67.00159993 | M63: 70.42713489 | N63: 74.21234325 | O63: 77.61451896 | P63: 85.4451226 | Q63: 88.37514591 | R63: 90.79641378 | S63: 93.41051963 | T63: 94.54965445 | U63: 93.64833752 | V63: 107.2511543 | W63: 111.0371919 | X63: 115.0703923 | Y63: 118.6939112 | Z63: 119.6952599 | AA63: 122.8124302 | AB63: 127.1542942 | AC63: 130.9934796 | AD63: 135.8194244 | AE63: 140.2597088 | AF63: 144.4904956 | AG63: 148.6423013 | AH63: 153.2190018 | AI63: 157.7326275 | AJ63: 161.0160276 | AK63: 165.5035252 | AL63: 170.6458722 | AM63: 174.8073124 | AN63: 179.0282238 | AO63: 183.5576617
A64: Crystal River 4&5 | B64: =B84 -> ILB | C64: =C84 -> Low Chlorine | D64: Barge | E64: 11500 | F64: 5.2 | G64: 10 | J64: =IF(J103="n/a","n/a",J84+J103) -> 54.69260713 | K64: 56.09132562 | L64: 61.58712599 | M64: 65.47978836 | N64: 69.15272395 | O64: 72.51251674 | P64: 80.24432957 | Q64: 83.09186584 | R64: 85.36623556 | S64: 87.83277807 | T64: 88.76471255 | U64: 87.59469184 | V64: 101.2516002 | W64: 104.968889 | X64: 108.9372228 | Y64: 112.4765397 | Z64: 113.2924626 | AA64: 116.2998414 | AB64: 120.5677684 | AC64: 124.3062083 | AD64: 129.0655406 | AE64: 133.4198799 | AF64: 137.6168135 | AG64: 141.6565549 | AH64: 146.130136 | AI64: 150.6009222 | AJ64: 153.7225641 | AK64: 158.1619537 | AL64: 163.201835 | AM64: 167.2197586 | AN64: 171.3732051 | AO64: 175.7620239
A65: Crystal River 4&5 | B65: =B85 -> ILB | C65: Low Chlorine | D65: Rail | E65: 11500 | F65: 5.2 | G65: 10 | J65: =IF(J104="n/a","n/a",J85+J104) -> 59.64385534 | K65: 61.04099496 | L65: 66.86551068 | M65: 70.92950047 | N65: 72.33118698 | O65: 75.81491872 | P65: 77.79411529 | Q65: 80.82150829 | R65: 82.65823727 | S65: 84.94321257 | T65: 85.6882519 | U65: 84.36125838 | V65: 91.25381997 | W65: 94.70855183 | X65: 98.47741192 | Y65: 101.8130232 | Z65: 102.3460119 | AA65: 105.144545 | AB65: 109.1912165 | AC65: 112.6193481 | AD65: 117.1466873 | AE65: 121.2636638 | AF65: 125.2572585 | AG65: 129.0396484 | AH65: 133.2483003 | AI65: 137.4887367 | AJ65: 140.3035661 | AK65: 144.5708753 | AL65: 149.2967476 | AM65: 152.9954659 | AN65: 156.9725765 | AO65: 161.031905
A66: Crystal River 4&5 | B66: =B86 -> PRB | C66: High-Btu Gillette | D66: Rail | E66: 8800 | F66: 0.8 | G66: 5 | J66: =IF(J105="n/a","n/a",J86+J105) -> 54.18692511 | K66: 55.03932108 | L66: 56.6292622 | M66: 58.63861681 | N66: 59.7039713 | O66: 61.39690348 | P66: 62.98472271 | Q66: 64.87130368 | R66: 66.45651575 | S66: 67.97350408 | T66: 69.65005144 | U66: 71.52416631 | V66: 73.16294618 | W66: 74.99184105 | X66: 77.02128593 | Y66: 79.05402265 | Z66: 80.99468317 | AA66: 82.67021933 | AB66: 84.90525664 | AC66: 87.19852987 | AD66: 89.61923113 | AE66: 92.19214036 | AF66: 94.53569851 | AG66: 96.89964651 | AH66: 99.43226014 | AI66: 102.0764312 | AJ66: 104.349021 | AK66: 107.1319811 | AL66: 110.1305926 | AM66: 112.8994968 | AN66: 115.8311435 | AO66: 118.8720788
A67: Crystal River 4&5 | B67: RM | C67: Rockies | D67: Rail | E67: 11700 | F67: 0.8 | G67: 8 | J67: =IF(J106="n/a","n/a",J87+J106) -> 91.42158965 | K67: 94.27243798 | L67: 98.61102158 | M67: 100.9284007 | N67: 103.6085669 | O67: 107.4634747 | P67: 110.5060013 | Q67: 112.1771913 | R67: 115.076583 | S67: 117.7894551 | T67: 120.9197263 | U67: 123.684419 | V67: 126.6430684 | W67: 130.071805 | X67: 130.6494051 | Y67: 134.1693014 | Z67: 137.6589558 | AA67: 141.6281226 | AB67: 141.2373995 | AC67: 145.3680138 | AD67: 149.7797013 | AE67: 154.5491791 | AF67: 157.8629881 | AG67: 161.9329687 | AH67: 166.2161308 | AI67: 170.544536 | AJ67: 173.7939799 | AK67: 178.1947718 | AL67: 182.906715 | AM67: 186.9545157 | AN67: 191.2119556 | AO67: 195.5816376
A68: Crystal River 4&5 | B68: RM | C68: Rockies | D68: Barge | E68: 11700 | F68: 0.8 | G68: 8 | J68: =IF(J107="n/a","n/a",J88+J107) -> 84.46487878 | K68: 88.32020527 | L68: 92.31817117 | M68: 94.08298335 | N68: 96.34202782 | O68: 99.82490919 | P68: 108.3702656 | Q68: 109.5710646 | R68: 112.7100334 | S68: 115.3763904 | T68: 118.4581964 | U68: 121.1720265 | V68: 130.7594744 | W68: 134.324769 | X68: 134.9634409 | Y68: 138.5423663 | Z68: 142.1771645 | AA68: 146.2101198 | AB68: 145.879769 | AC68: 150.1602682 | AD68: 154.634257 | AE68: 159.4713621 | AF68: 162.9459169 | AG68: 167.0824504 | AH68: 171.4359444 | AI68: 175.9316266 | AJ68: 179.2898323 | AK68: 183.8021733 | AL68: 188.6278965 | AM68: 192.7911408 | AN68: 197.1651093 | AO68: 201.6518143
A70: COAL PRICING ($/TON)
A71: Station | B71: ='Coal Price Inputs'!B7 -> Basin | C71: ='Coal Price Inputs'!C7 -> Coal Type | D71: ='Coal Price Inputs'!D7 -> FOB Point | E71: ='Coal Price Inputs'!E7 -> Btu/lb | F71: ='Coal Price Inputs'!F7 -> #SO2/MMBtu | G71: ='Coal Price Inputs'!G7 -> %Ash | H71: ='Coal Price Inputs'!J7 -> INDEX | J71: =J3 -> 2019 | K71: 2020 | L71: 2021 | M71: 2022 | N71: 2023 | O71: 2024 | P71: 2025 | Q71: 2026 | R71: 2027 | S71: 2028 | T71: 2029 | U71: 2030 | V71: 2031 | W71: 2032 | X71: 2033 | Y71: 2034 | Z71: 2035 | AA71: 2036 | AB71: 2037 | AC71: 2038 | AD71: 2039 | AE71: 2040 | AF71: 2041 | AG71: 2042 | AH71: 2043 | AI71: 2044 | AJ71: 2045 | AK71: 2046 | AL71: 2047 | AM71: 2048 | AN71: 2049 | AO71: 2050
A72: =$A$14 -> Crystal River 4&5 | B72: ='Coal Price Inputs'!B10 -> NAPP | C72: ='Coal Price Inputs'!C10 -> Pittsburgh Seam | D72: ='Coal Price Inputs'!D10 -> Rail | E72: ='Coal Price Inputs'!E10 -> 13000 | F72: ='Coal Price Inputs'!F10 -> 4 | G72: ='Coal Price Inputs'!G10 -> 8 | H72: ='Coal Price Inputs'!J10 -> NAPP-Pitt-CSX/NS-MGA-13000-HS-4.0 | J72: ='Coal Price Inputs'!K10 -> 46.00180822 | K72: ='Coal Price Inputs'!L10 -> 47.14861964 | L72: ='Coal Price Inputs'!M10 -> 55.78182349 | M72: ='Coal Price Inputs'!N10 -> 55.78166655 | N72: ='Coal Price Inputs'!O10 -> 57.87683844 | O72: ='Coal Price Inputs'!P10 -> 58.40468334 | P72: ='Coal Price Inputs'!Q10 -> 60.04010569 | Q72: ='Coal Price Inputs'!R10 -> 63.35946284 | R72: ='Coal Price Inputs'!S10 -> 65.18961046 | S72: ='Coal Price Inputs'!T10 -> 66.68816234 | T72: ='Coal Price Inputs'!U10 -> 68.72337812 | U72: ='Coal Price Inputs'!V10 -> 70.15640438 | V72: ='Coal Price Inputs'!W10 -> 71.82365576 | W72: ='Coal Price Inputs'!X10 -> 75.40665356 | X72: ='Coal Price Inputs'!Y10 -> 76.98280429 | Y72: ='Coal Price Inputs'!Z10 -> 79.77798047 | Z72: ='Coal Price Inputs'!AA10 -> 82.10082149 | AA72: ='Coal Price Inputs'!AB10 -> 79.74630039 | AB72: ='Coal Price Inputs'!AC10 -> 81.27304301 | AC72: ='Coal Price Inputs'!AD10 -> 83.9671388 | AD72: ='Coal Price Inputs'!AE10 -> 86.9568675 | AE72: ='Coal Price Inputs'!AF10 -> 90.34091831 | AF72: ='Coal Price Inputs'!AG10 -> 92.94335303 | AG72: ='Coal Price Inputs'!AH10 -> 95.61948179 | AH72: ='Coal Price Inputs'!AI10 -> 98.61439208 | AI72: ='Coal Price Inputs'!AJ10 -> 101.7174665 | AJ72: ='Coal Price Inputs'!AK10 -> 103.3877744 | AK72: ='Coal Price Inputs'!AL10 -> 106.4672645 | AL72: ='Coal Price Inputs'!AM10 -> 109.9601604 | AM72: ='Coal Price Inputs'!AN10 -> 112.4980572 | AN72: ='Coal Price Inputs'!AO10 -> 115.28224 | AO72: ='Coal Price Inputs'!AP10 -> 118.1470421
A73: Crystal River 4&5 | B73: ='Coal Price Inputs'!B11 -> NAPP | C73: ='Coal Price Inputs'!C11 -> Pittsburgh Seam | D73: ='Coal Price Inputs'!D11 -> Barge | E73: ='Coal Price Inputs'!E11 -> 13000 | F73: ='Coal Price Inputs'!F11 -> 4 | G73: ='Coal Price Inputs'!G11 -> 8 | H73: ='Coal Price Inputs'!J11 -> NAPP-Pitt-Barge-MonR-13000-HS-4.0 | J73: ='Coal Price Inputs'!K11 -> 46.00180822 | K73: ='Coal Price Inputs'!L11 -> 47.14861964 | L73: ='Coal Price Inputs'!M11 -> 55.78182349 | M73: ='Coal Price Inputs'!N11 -> 55.78166655 | N73: ='Coal Price Inputs'!O11 -> 57.87683844 | O73: ='Coal Price Inputs'!P11 -> 58.40468334 | P73: ='Coal Price Inputs'!Q11 -> 60.04010569 | Q73: ='Coal Price Inputs'!R11 -> 63.35946284 | R73: ='Coal Price Inputs'!S11 -> 65.18961046 | S73: ='Coal Price Inputs'!T11 -> 66.68816234 | T73: ='Coal Price Inputs'!U11 -> 68.72337812 | U73: ='Coal Price Inputs'!V11 -> 70.15640438 | V73: ='Coal Price Inputs'!W11 -> 71.82365576 | W73: ='Coal Price Inputs'!X11 -> 75.40665356 | X73: ='Coal Price Inputs'!Y11 -> 76.98280429 | Y73: ='Coal Price Inputs'!Z11 -> 79.77798047 | Z73: ='Coal Price Inputs'!AA11 -> 82.10082149 | AA73: ='Coal Price Inputs'!AB11 -> 79.74630039 | AB73: ='Coal Price Inputs'!AC11 -> 81.27304301 | AC73: ='Coal Price Inputs'!AD11 -> 83.9671388 | AD73: ='Coal Price Inputs'!AE11 -> 86.9568675 | AE73: ='Coal Price Inputs'!AF11 -> 90.34091831 | AF73: ='Coal Price Inputs'!AG11 -> 92.94335303 | AG73: ='Coal Price Inputs'!AH11 -> 95.61948179 | AH73: ='Coal Price Inputs'!AI11 -> 98.61439208 | AI73: ='Coal Price Inputs'!AJ11 -> 101.7174665 | AJ73: ='Coal Price Inputs'!AK11 -> 103.3877744 | AK73: ='Coal Price Inputs'!AL11 -> 106.4672645 | AL73: ='Coal Price Inputs'!AM11 -> 109.9601604 | AM73: ='Coal Price Inputs'!AN11 -> 112.4980572 | AN73: ='Coal Price Inputs'!AO11 -> 115.28224 | AO73: ='Coal Price Inputs'!AP11 -> 118.1470421
A74: Crystal River 4&5 | B74: ='Coal Price Inputs'!B12 -> CAPP | C74: ='Coal Price Inputs'!C12 -> Low-Sulfur | D74: ='Coal Price Inputs'!D12 -> Rail | E74: ='Coal Price Inputs'!E12 -> 12500 | F74: ='Coal Price Inputs'!F12 -> 1.6 | G74: ='Coal Price Inputs'!G12 -> 10 | H74: ='Coal Price Inputs'!J12 -> CAPP-EKY-CSX-Big Sandy-12500-LS-1.6 | J74: ='Coal Price Inputs'!K12 -> 57.39354739 | K74: ='Coal Price Inputs'!L12 -> 49.41971213 | L74: ='Coal Price Inputs'!M12 -> 63.51299967 | M74: ='Coal Price Inputs'!N12 -> 68.92928878 | N74: ='Coal Price Inputs'!O12 -> 69.02653854 | O74: ='Coal Price Inputs'!P12 -> 72.8152086 | P74: ='Coal Price Inputs'!Q12 -> 75.34431042 | Q74: ='Coal Price Inputs'!R12 -> 78.76485402 | R74: ='Coal Price Inputs'!S12 -> 81.71697606 | S74: ='Coal Price Inputs'!T12 -> 84.12313209 | T74: ='Coal Price Inputs'!U12 -> 85.97214599 | U74: ='Coal Price Inputs'!V12 -> 88.48079655 | V74: ='Coal Price Inputs'!W12 -> 91.82933791 | W74: ='Coal Price Inputs'!X12 -> 91.31597895 | X74: ='Coal Price Inputs'!Y12 -> 95.64730005 | Y74: ='Coal Price Inputs'!Z12 -> 99.07954233 | Z74: ='Coal Price Inputs'!AA12 -> 102.7738071 | AA74: ='Coal Price Inputs'!AB12 -> 107.3080229 | AB74: ='Coal Price Inputs'!AC12 -> 112.1209399 | AC74: ='Coal Price Inputs'!AD12 -> 117.2480185 | AD74: ='Coal Price Inputs'!AE12 -> 116.4798658 | AE74: ='Coal Price Inputs'!AF12 -> 121.4198085 | AF74: ='Coal Price Inputs'!AG12 -> 124.8874201 | AG74: ='Coal Price Inputs'!AH12 -> 127.8008413 | AH74: ='Coal Price Inputs'!AI12 -> 130.6525058 | AI74: ='Coal Price Inputs'!AJ12 -> 134.4641974 | AJ74: ='Coal Price Inputs'!AK12 -> 136.2166266 | AK74: ='Coal Price Inputs'!AL12 -> 139.719622 | AL74: ='Coal Price Inputs'!AM12 -> 143.7731715 | AM74: ='Coal Price Inputs'!AN12 -> 146.7008748 | AN74: ='Coal Price Inputs'!AO12 -> 149.9197333 | AO74: ='Coal Price Inputs'!AP12 -> 153.2429737
A75: Crystal River 4&5 | B75: ='Coal Price Inputs'!B13 -> CAPP | C75: ='Coal Price Inputs'!C13 -> Low-Sulfur | D75: ='Coal Price Inputs'!D13 -> Barge | E75: ='Coal Price Inputs'!E13 -> 12500 | F75: 1.67 | G75: ='Coal Price Inputs'!G13 -> 10 | H75: ='Coal Price Inputs'!J13 -> CAPP-EKY-Barge-BSR-12000-LS-1.6 | J75: ='Coal Price Inputs'!K13 -> 57.39354739 | K75: ='Coal Price Inputs'!L13 -> 49.41971213 | L75: ='Coal Price Inputs'!M13 -> 63.51299967 | M75: ='Coal Price Inputs'!N13 -> 68.92928878 | N75: ='Coal Price Inputs'!O13 -> 69.02653854 | O75: ='Coal Price Inputs'!P13 -> 72.8152086 | P75: ='Coal Price Inputs'!Q13 -> 75.34431042 | Q75: ='Coal Price Inputs'!R13 -> 78.76485402 | R75: ='Coal Price Inputs'!S13 -> 81.71697606 | S75: ='Coal Price Inputs'!T13 -> 84.12313209 | T75: ='Coal Price Inputs'!U13 -> 85.97214599 | U75: ='Coal Price Inputs'!V13 -> 88.48079655 | V75: ='Coal Price Inputs'!W13 -> 91.82933791 | W75: ='Coal Price Inputs'!X13 -> 91.31597895 | X75: ='Coal Price Inputs'!Y13 -> 95.64730005 | Y75: ='Coal Price Inputs'!Z13 -> 99.07954233 | Z75: ='Coal Price Inputs'!AA13 -> 102.7738071 | AA75: ='Coal Price Inputs'!AB13 -> 107.3080229 | AB75: ='Coal Price Inputs'!AC13 -> 112.1209399 | AC75: ='Coal Price Inputs'!AD13 -> 117.2480185 | AD75: ='Coal Price Inputs'!AE13 -> 116.4798658 | AE75: ='Coal Price Inputs'!AF13 -> 121.4198085 | AF75: ='Coal Price Inputs'!AG13 -> 124.8874201 | AG75: ='Coal Price Inputs'!AH13 -> 127.8008413 | AH75: ='Coal Price Inputs'!AI13 -> 130.6525058 | AI75: ='Coal Price Inputs'!AJ13 -> 134.4641974 | AJ75: ='Coal Price Inputs'!AK13 -> 136.2166266 | AK75: ='Coal Price Inputs'!AL13 -> 139.719622 | AL75: ='Coal Price Inputs'!AM13 -> 143.7731715 | AM75: ='Coal Price Inputs'!AN13 -> 146.7008748 | AN75: ='Coal Price Inputs'!AO13 -> 149.9197333 | AO75: ='Coal Price Inputs'!AP13 -> 153.2429737
A76: Crystal River 4&5 | B76: ='Coal Price Inputs'!B14 -> ILB | C76: ='Coal Price Inputs'!C14 -> Illinois | D76: ='Coal Price Inputs'!D14 -> Rail | E76: ='Coal Price Inputs'!E14 -> 11500 | F76: ='Coal Price Inputs'!F14 -> 5 | G76: ='Coal Price Inputs'!G14 -> 10 | H76: ='Coal Price Inputs'!J14 -> ILLB-IL-Rail-South IL-11500-VH-5 | J76: ='Coal Price Inputs'!K14 -> 40.03303311 | K76: ='Coal Price Inputs'!L14 -> 40.59577438 | L76: ='Coal Price Inputs'!M14 -> 45.76900991 | M76: ='Coal Price Inputs'!N14 -> 46.91722624 | N76: ='Coal Price Inputs'!O14 -> 47.22306536 | O76: ='Coal Price Inputs'!P14 -> 49.7591245 | P76: ='Coal Price Inputs'!Q14 -> 51.09120903 | Q76: ='Coal Price Inputs'!R14 -> 53.32914734 | R76: ='Coal Price Inputs'!S14 -> 54.5912259 | S76: ='Coal Price Inputs'!T14 -> 56.2437261 | T76: ='Coal Price Inputs'!U14 -> 56.52216582 | U76: ='Coal Price Inputs'!V14 -> 54.95420632 | V76: ='Coal Price Inputs'!W14 -> 60.67256363 | W76: ='Coal Price Inputs'!X14 -> 63.33218921 | X76: ='Coal Price Inputs'!Y14 -> 66.26245281 | Y76: ='Coal Price Inputs'!Z14 -> 68.79996136 | Z76: ='Coal Price Inputs'!AA14 -> 68.8419406 | AA76: ='Coal Price Inputs'!AB14 -> 70.88576896 | AB76: ='Coal Price Inputs'!AC14 -> 74.02841673 | AC76: ='Coal Price Inputs'!AD14 -> 76.61319715 | AD76: ='Coal Price Inputs'!AE14 -> 80.16427888 | AE76: ='Coal Price Inputs'!AF14 -> 83.34186969 | AF76: ='Coal Price Inputs'!AG14 -> 86.40045286 | AG76: ='Coal Price Inputs'!AH14 -> 89.26190298 | AH76: ='Coal Price Inputs'!AI14 -> 92.49172108 | AI76: ='Coal Price Inputs'!AJ14 -> 95.73964545 | AJ76: ='Coal Price Inputs'!AK14 -> 97.71216856 | AK76: ='Coal Price Inputs'!AL14 -> 100.9631306 | AL76: ='Coal Price Inputs'!AM14 -> 104.6103087 | AM76: ='Coal Price Inputs'!AN14 -> 107.3350468 | AN76: ='Coal Price Inputs'!AO14 -> 110.2956822 | AO76: ='Coal Price Inputs'!AP14 -> 113.3179049
A77: Crystal River 4&5 | B77: ='Coal Price Inputs'!B15 -> ILB | C77: ='Coal Price Inputs'!C15 -> Illinois | D77: ='Coal Price Inputs'!D15 -> Barge | E77: ='Coal Price Inputs'!E15 -> 11500 | F77: ='Coal Price Inputs'!F15 -> 5 | G77: ='Coal Price Inputs'!G15 -> 10 | H77: ='Coal Price Inputs'!J15 -> ILLB-IL-Barge-OhioR-11500-XH-5 | J77: ='Coal Price Inputs'!K15 -> 40.03303311 | K77: ='Coal Price Inputs'!L15 -> 40.59577438 | L77: ='Coal Price Inputs'!M15 -> 45.76900991 | M77: ='Coal Price Inputs'!N15 -> 46.91722624 | N77: ='Coal Price Inputs'!O15 -> 47.22306536 | O77: ='Coal Price Inputs'!P15 -> 49.7591245 | P77: ='Coal Price Inputs'!Q15 -> 51.09120903 | Q77: ='Coal Price Inputs'!R15 -> 53.32914734 | R77: ='Coal Price Inputs'!S15 -> 54.5912259 | S77: ='Coal Price Inputs'!T15 -> 56.2437261 | T77: ='Coal Price Inputs'!U15 -> 56.52216582 | U77: ='Coal Price Inputs'!V15 -> 59.06168341 | V77: ='Coal Price Inputs'!W15 -> 60.67256363 | W77: ='Coal Price Inputs'!X15 -> 63.33218921 | X77: ='Coal Price Inputs'!Y15 -> 66.26245281 | Y77: ='Coal Price Inputs'!Z15 -> 68.79996136 | Z77: ='Coal Price Inputs'!AA15 -> 68.8419406 | AA77: ='Coal Price Inputs'!AB15 -> 70.88576896 | AB77: ='Coal Price Inputs'!AC15 -> 74.02841673 | AC77: ='Coal Price Inputs'!AD15 -> 76.61319715 | AD77: ='Coal Price Inputs'!AE15 -> 80.16427888 | AE77: ='Coal Price Inputs'!AF15 -> 83.34186969 | AF77: ='Coal Price Inputs'!AG15 -> 86.40045286 | AG77: ='Coal Price Inputs'!AH15 -> 89.26190298 | AH77: ='Coal Price Inputs'!AI15 -> 92.49172108 | AI77: ='Coal Price Inputs'!AJ15 -> 95.73964545 | AJ77: ='Coal Price Inputs'!AK15 -> 97.71216856 | AK77: ='Coal Price Inputs'!AL15 -> 100.9631306 | AL77: ='Coal Price Inputs'!AM15 -> 104.6103087 | AM77: ='Coal Price Inputs'!AN15 -> 107.3350468 | AN77: ='Coal Price Inputs'!AO15 -> 110.2956822 | AO77: ='Coal Price Inputs'!AP15 -> 113.3179049
A78: Crystal River 4&5 | B78: ='Coal Price Inputs'!B16 -> ILB | C78: ='Coal Price Inputs'!C16 -> Illinois | D78: ='Coal Price Inputs'!D16 -> Rail | E78: ='Coal Price Inputs'!E16 -> 11500 | F78: ='Coal Price Inputs'!F16 -> 5 | G78: ='Coal Price Inputs'!G16 -> 10 | H78: ='Coal Price Inputs'!J16 -> ILLB-IN-Rail-Sullivan-11500-VH-5 | J78: ='Coal Price Inputs'!K16 -> 40.03303311 | K78: ='Coal Price Inputs'!L16 -> 40.59577438 | L78: ='Coal Price Inputs'!M16 -> 45.76900991 | M78: ='Coal Price Inputs'!N16 -> 46.91722624 | N78: ='Coal Price Inputs'!O16 -> 47.22306536 | O78: ='Coal Price Inputs'!P16 -> 49.7591245 | P78: ='Coal Price Inputs'!Q16 -> 51.09120903 | Q78: ='Coal Price Inputs'!R16 -> 53.32914734 | R78: ='Coal Price Inputs'!S16 -> 54.5912259 | S78: ='Coal Price Inputs'!T16 -> 56.2437261 | T78: ='Coal Price Inputs'!U16 -> 56.52216582 | U78: ='Coal Price Inputs'!V16 -> 54.95420632 | V78: ='Coal Price Inputs'!W16 -> 60.67256363 | W78: ='Coal Price Inputs'!X16 -> 63.33218921 | X78: ='Coal Price Inputs'!Y16 -> 66.26245281 | Y78: ='Coal Price Inputs'!Z16 -> 68.79996136 | Z78: ='Coal Price Inputs'!AA16 -> 68.8419406 | AA78: ='Coal Price Inputs'!AB16 -> 70.88576896 | AB78: ='Coal Price Inputs'!AC16 -> 74.02841673 | AC78: ='Coal Price Inputs'!AD16 -> 76.61319715 | AD78: ='Coal Price Inputs'!AE16 -> 80.16427888 | AE78: ='Coal Price Inputs'!AF16 -> 83.34186969 | AF78: ='Coal Price Inputs'!AG16 -> 86.40045286 | AG78: ='Coal Price Inputs'!AH16 -> 89.26190298 | AH78: ='Coal Price Inputs'!AI16 -> 92.49172108 | AI78: ='Coal Price Inputs'!AJ16 -> 95.73964545 | AJ78: ='Coal Price Inputs'!AK16 -> 97.71216856 | AK78: ='Coal Price Inputs'!AL16 -> 100.9631306 | AL78: ='Coal Price Inputs'!AM16 -> 104.6103087 | AM78: ='Coal Price Inputs'!AN16 -> 107.3350468 | AN78: ='Coal Price Inputs'!AO16 -> 110.2956822 | AO78: ='Coal Price Inputs'!AP16 -> 113.3179049
A79: Crystal River 4&5 | B79: ='Coal Price Inputs'!B17 -> ILB | C79: ='Coal Price Inputs'!C17 -> Illinois | D79: ='Coal Price Inputs'!D17 -> Barge | E79: ='Coal Price Inputs'!E17 -> 11000 | F79: ='Coal Price Inputs'!F17 -> 6 | G79: ='Coal Price Inputs'!G17 -> 10 | H79: ='Coal Price Inputs'!J17 -> ILLB-WKY-Barge-OhioR-11000-XH-6 | J79: ='Coal Price Inputs'!K17 -> 36.582897 | K79: ='Coal Price Inputs'!L17 -> 36.96710181 | L79: ='Coal Price Inputs'!M17 -> 41.67792522 | M79: ='Coal Price Inputs'!N17 -> 42.7235077 | N79: ='Coal Price Inputs'!O17 -> 43.00200923 | O79: ='Coal Price Inputs'!P17 -> 45.31138153 | P79: ='Coal Price Inputs'!Q17 -> 46.52439705 | Q79: ='Coal Price Inputs'!R17 -> 48.56229618 | R79: ='Coal Price Inputs'!S17 -> 49.71156325 | S79: ='Coal Price Inputs'!T17 -> 51.21635393 | T79: ='Coal Price Inputs'!U17 -> 51.46990519 | U79: ='Coal Price Inputs'!V17 -> 53.78242679 | V79: ='Coal Price Inputs'!W17 -> 55.24931772 | W79: ='Coal Price Inputs'!X17 -> 57.6712114 | X79: ='Coal Price Inputs'!Y17 -> 60.339552 | Y79: ='Coal Price Inputs'!Z17 -> 62.65024415 | Z79: ='Coal Price Inputs'!AA17 -> 62.68847105 | AA79: ='Coal Price Inputs'!AB17 -> 64.54961084 | AB79: ='Coal Price Inputs'!AC17 -> 67.41135155 | AC79: ='Coal Price Inputs'!AD17 -> 69.76509015 | AD79: ='Coal Price Inputs'!AE17 -> 72.99875674 | AE79: ='Coal Price Inputs'!AF17 -> 75.89231709 | AF79: ='Coal Price Inputs'!AG17 -> 78.67750735 | AG79: ='Coal Price Inputs'!AH17 -> 81.2831854 | AH79: ='Coal Price Inputs'!AI17 -> 84.22430467 | AI79: ='Coal Price Inputs'!AJ17 -> 87.18191178 | AJ79: ='Coal Price Inputs'!AK17 -> 88.97811997 | AK79: ='Coal Price Inputs'!AL17 -> 91.93849321 | AL79: ='Coal Price Inputs'!AM17 -> 95.25966656 | AM79: ='Coal Price Inputs'!AN17 -> 97.74085263 | AN79: ='Coal Price Inputs'!AO17 -> 100.4368503 | AO79: ='Coal Price Inputs'!AP17 -> 103.1889301
A80: Crystal River 4&5 | B80: ='Coal Price Inputs'!B18 -> ILB | C80: ='Coal Price Inputs'!C18 -> Illinois | D80: ='Coal Price Inputs'!D18 -> Rail | E80: ='Coal Price Inputs'!E18 -> 11000 | F80: ='Coal Price Inputs'!F18 -> 6 | G80: ='Coal Price Inputs'!G18 -> 10 | H80: ='Coal Price Inputs'!J18 -> ILLB-IN-Rail-Sullivan-11000-XH-6 | J80: ='Coal Price Inputs'!K18 -> 36.582897 | K80: ='Coal Price Inputs'!L18 -> 36.96710181 | L80: ='Coal Price Inputs'!M18 -> 41.67792522 | M80: ='Coal Price Inputs'!N18 -> 42.7235077 | N80: ='Coal Price Inputs'!O18 -> 43.00200923 | O80: ='Coal Price Inputs'!P18 -> 45.31138153 | P80: ='Coal Price Inputs'!Q18 -> 46.52439705 | Q80: ='Coal Price Inputs'!R18 -> 48.56229618 | R80: ='Coal Price Inputs'!S18 -> 49.71156325 | S80: ='Coal Price Inputs'!T18 -> 51.21635393 | T80: ='Coal Price Inputs'!U18 -> 51.46990519 | U80: ='Coal Price Inputs'!V18 -> 50.04209849 | V80: ='Coal Price Inputs'!W18 -> 55.24931772 | W80: ='Coal Price Inputs'!X18 -> 57.6712114 | X80: ='Coal Price Inputs'!Y18 -> 60.339552 | Y80: ='Coal Price Inputs'!Z18 -> 62.65024415 | Z80: ='Coal Price Inputs'!AA18 -> 62.68847105 | AA80: ='Coal Price Inputs'!AB18 -> 64.54961084 | AB80: ='Coal Price Inputs'!AC18 -> 67.41135155 | AC80: ='Coal Price Inputs'!AD18 -> 69.76509015 | AD80: ='Coal Price Inputs'!AE18 -> 72.99875674 | AE80: ='Coal Price Inputs'!AF18 -> 75.89231709 | AF80: ='Coal Price Inputs'!AG18 -> 78.67750735 | AG80: ='Coal Price Inputs'!AH18 -> 81.2831854 | AH80: ='Coal Price Inputs'!AI18 -> 84.22430467 | AI80: ='Coal Price Inputs'!AJ18 -> 87.18191178 | AJ80: ='Coal Price Inputs'!AK18 -> 88.97811997 | AK80: ='Coal Price Inputs'!AL18 -> 91.93849321 | AL80: ='Coal Price Inputs'!AM18 -> 95.25966656 | AM80: ='Coal Price Inputs'!AN18 -> 97.74085263 | AN80: ='Coal Price Inputs'!AO18 -> 100.4368503 | AO80: ='Coal Price Inputs'!AP18 -> 103.1889301
A81: Crystal River 4&5 | B81: ='Coal Price Inputs'!B19 -> ILB | C81: ='Coal Price Inputs'!C19 -> Illinois | D81: ='Coal Price Inputs'!D19 -> Rail | E81: ='Coal Price Inputs'!E19 -> 11000 | F81: ='Coal Price Inputs'!F19 -> 6 | G81: ='Coal Price Inputs'!G19 -> 10 | H81: ='Coal Price Inputs'!J19 -> ILLB-IL-Rail-Central IL-11000-XH-6 | J81: ='Coal Price Inputs'!K19 -> 36.582897 | K81: ='Coal Price Inputs'!L19 -> 36.96710181 | L81: ='Coal Price Inputs'!M19 -> 41.67792522 | M81: ='Coal Price Inputs'!N19 -> 42.7235077 | N81: ='Coal Price Inputs'!O19 -> 43.00200923 | O81: ='Coal Price Inputs'!P19 -> 45.31138153 | P81: ='Coal Price Inputs'!Q19 -> 46.52439705 | Q81: ='Coal Price Inputs'!R19 -> 48.56229618 | R81: ='Coal Price Inputs'!S19 -> 49.71156325 | S81: ='Coal Price Inputs'!T19 -> 51.21635393 | T81: ='Coal Price Inputs'!U19 -> 51.46990519 | U81: ='Coal Price Inputs'!V19 -> 50.04209849 | V81: ='Coal Price Inputs'!W19 -> 55.24931772 | W81: ='Coal Price Inputs'!X19 -> 57.6712114 | X81: ='Coal Price Inputs'!Y19 -> 60.339552 | Y81: ='Coal Price Inputs'!Z19 -> 62.65024415 | Z81: ='Coal Price Inputs'!AA19 -> 62.68847105 | AA81: ='Coal Price Inputs'!AB19 -> 64.54961084 | AB81: ='Coal Price Inputs'!AC19 -> 67.41135155 | AC81: ='Coal Price Inputs'!AD19 -> 69.76509015 | AD81: ='Coal Price Inputs'!AE19 -> 72.99875674 | AE81: ='Coal Price Inputs'!AF19 -> 75.89231709 | AF81: ='Coal Price Inputs'!AG19 -> 78.67750735 | AG81: ='Coal Price Inputs'!AH19 -> 81.2831854 | AH81: ='Coal Price Inputs'!AI19 -> 84.22430467 | AI81: ='Coal Price Inputs'!AJ19 -> 87.18191178 | AJ81: ='Coal Price Inputs'!AK19 -> 88.97811997 | AK81: ='Coal Price Inputs'!AL19 -> 91.93849321 | AL81: ='Coal Price Inputs'!AM19 -> 95.25966656 | AM81: ='Coal Price Inputs'!AN19 -> 97.74085263 | AN81: ='Coal Price Inputs'!AO19 -> 100.4368503 | AO81: ='Coal Price Inputs'!AP19 -> 103.1889301
A82: Crystal River 4&5 | B82: ='Coal Price Inputs'!B18 -> ILB | C82: ='Coal Price Inputs'!C18 -> Illinois | D82: ='Coal Price Inputs'!D20 -> Barge | E82: ='Coal Price Inputs'!E20 -> 11800 | F82: ='Coal Price Inputs'!F20 -> 4.5 | G82: ='Coal Price Inputs'!G20 -> 10 | H82: ='Coal Price Inputs'!J20 -> ILLB-WKY-Barge-Green River-11800-XH-4.5 | J82: ='Coal Price Inputs'!K20 -> 41.15271796 | K82: ='Coal Price Inputs'!L20 -> 41.58167736 | L82: ='Coal Price Inputs'!M20 -> 46.78180609 | M82: ='Coal Price Inputs'!N20 -> 50.27329099 | N82: ='Coal Price Inputs'!O20 -> 51.18588337 | O82: ='Coal Price Inputs'!P20 -> 54.09651105 | P82: ='Coal Price Inputs'!Q20 -> 55.54471026 | Q82: ='Coal Price Inputs'!R20 -> 57.97772442 | R82: ='Coal Price Inputs'!S20 -> 59.34981542 | S82: ='Coal Price Inputs'!T20 -> 61.1463602 | T82: ='Coal Price Inputs'!U20 -> 61.44907086 | U82: ='Coal Price Inputs'!V20 -> 59.744436 | V82: ='Coal Price Inputs'!W20 -> 65.96124914 | W82: ='Coal Price Inputs'!X20 -> 68.85270806 | X82: ='Coal Price Inputs'!Y20 -> 72.0383959 | Y82: ='Coal Price Inputs'!Z20 -> 74.79709314 | Z82: ='Coal Price Inputs'!AA20 -> 74.8427316 | AA82: ='Coal Price Inputs'!AB20 -> 77.0647157 | AB82: ='Coal Price Inputs'!AC20 -> 80.48130074 | AC82: ='Coal Price Inputs'!AD20 -> 83.29139042 | AD82: ='Coal Price Inputs'!AE20 -> 87.15201164 | AE82: ='Coal Price Inputs'!AF20 -> 90.60658561 | AF82: ='Coal Price Inputs'!AG20 -> 93.93177833 | AG82: ='Coal Price Inputs'!AH20 -> 97.04265436 | AH82: ='Coal Price Inputs'!AI20 -> 100.5540082 | AI82: ='Coal Price Inputs'!AJ20 -> 104.0850465 | AJ82: ='Coal Price Inputs'!AK20 -> 106.2295098 | AK82: ='Coal Price Inputs'!AL20 -> 109.7638506 | AL82: ='Coal Price Inputs'!AM20 -> 113.7289447 | AM82: ='Coal Price Inputs'!AN20 -> 116.6911918 | AN82: ='Coal Price Inputs'!AO20 -> 119.909899 | AO82: ='Coal Price Inputs'!AP20 -> 123.1955617
A83: Crystal River 4&5 | B83: ='Coal Price Inputs'!B21 -> ILB | C83: ='Coal Price Inputs'!C21 -> Illinois | D83: ='Coal Price Inputs'!D21 -> Barge | E83: ='Coal Price Inputs'!E21 -> 11800 | F83: ='Coal Price Inputs'!F21 -> 4.5 | G83: ='Coal Price Inputs'!G21 -> 10 | H83: ='Coal Price Inputs'!J21 -> ILLB-WKY-Barge-OhioR-11800-XH-4.5 | J83: ='Coal Price Inputs'!K21 -> 41.15271796 | K83: ='Coal Price Inputs'!L21 -> 41.58167736 | L83: ='Coal Price Inputs'!M21 -> 46.78180609 | M83: ='Coal Price Inputs'!N21 -> 50.27329099 | N83: ='Coal Price Inputs'!O21 -> 51.18588337 | O83: ='Coal Price Inputs'!P21 -> 54.09651105 | P83: ='Coal Price Inputs'!Q21 -> 55.54471026 | Q83: ='Coal Price Inputs'!R21 -> 57.97772442 | R83: ='Coal Price Inputs'!S21 -> 59.34981542 | S83: ='Coal Price Inputs'!T21 -> 61.1463602 | T83: ='Coal Price Inputs'!U21 -> 61.44907086 | U83: ='Coal Price Inputs'!V21 -> 59.744436 | V83: ='Coal Price Inputs'!W21 -> 65.96124914 | W83: ='Coal Price Inputs'!X21 -> 68.85270806 | X83: ='Coal Price Inputs'!Y21 -> 72.0383959 | Y83: ='Coal Price Inputs'!Z21 -> 74.79709314 | Z83: ='Coal Price Inputs'!AA21 -> 74.8427316 | AA83: ='Coal Price Inputs'!AB21 -> 77.0647157 | AB83: ='Coal Price Inputs'!AC21 -> 80.48130074 | AC83: ='Coal Price Inputs'!AD21 -> 83.29139042 | AD83: ='Coal Price Inputs'!AE21 -> 87.15201164 | AE83: ='Coal Price Inputs'!AF21 -> 90.60658561 | AF83: ='Coal Price Inputs'!AG21 -> 93.93177833 | AG83: ='Coal Price Inputs'!AH21 -> 97.04265436 | AH83: ='Coal Price Inputs'!AI21 -> 100.5540082 | AI83: ='Coal Price Inputs'!AJ21 -> 104.0850465 | AJ83: ='Coal Price Inputs'!AK21 -> 106.2295098 | AK83: ='Coal Price Inputs'!AL21 -> 109.7638506 | AL83: ='Coal Price Inputs'!AM21 -> 113.7289447 | AM83: ='Coal Price Inputs'!AN21 -> 116.6911918 | AN83: ='Coal Price Inputs'!AO21 -> 119.909899 | AO83: ='Coal Price Inputs'!AP21 -> 123.1955617
A84: Crystal River 4&5 | B84: ='Coal Price Inputs'!B22 -> ILB | C84: ='Coal Price Inputs'!C22 -> Low Chlorine | D84: ='Coal Price Inputs'!D22 -> Barge | E84: ='Coal Price Inputs'!E22 -> 11500 | F84: ='Coal Price Inputs'!F22 -> 5.2 | G84: ='Coal Price Inputs'!G22 -> 10 | H84: ='Coal Price Inputs'!J22 -> ILLB-WKY-Barge-OhioR-11500-VH-5.2-LC-.8 | J84: ='Coal Price Inputs'!K22 -> 41.86385534 | K84: ='Coal Price Inputs'!L22 -> 43.10033392 | L84: ='Coal Price Inputs'!M22 -> 48.49038307 | M84: ='Coal Price Inputs'!N22 -> 52.10938487 | N84: ='Coal Price Inputs'!O22 -> 53.05530717 | O84: ='Coal Price Inputs'!P22 -> 56.07223753 | P84: ='Coal Price Inputs'!Q22 -> 57.57332825 | Q84: ='Coal Price Inputs'!R22 -> 60.09520157 | R84: ='Coal Price Inputs'!S22 -> 61.51740442 | S84: ='Coal Price Inputs'!T22 -> 63.37956306 | T84: ='Coal Price Inputs'!U22 -> 63.6933294 | U84: ='Coal Price Inputs'!V22 -> 61.92643743 | V84: ='Coal Price Inputs'!W22 -> 68.3703026 | W84: ='Coal Price Inputs'!X22 -> 71.36736412 | X84: ='Coal Price Inputs'!Y22 -> 74.66940045 | Y84: ='Coal Price Inputs'!Z22 -> 77.52885153 | Z84: ='Coal Price Inputs'!AA22 -> 77.57615681 | AA84: ='Coal Price Inputs'!AB22 -> 79.87929278 | AB84: ='Coal Price Inputs'!AC22 -> 83.4206592 | AC84: ='Coal Price Inputs'!AD22 -> 86.33337969 | AD84: ='Coal Price Inputs'!AE22 -> 90.33499949 | AE84: ='Coal Price Inputs'!AF22 -> 93.9157423 | AF84: ='Coal Price Inputs'!AG22 -> 97.36237854 | AG84: ='Coal Price Inputs'!AH22 -> 100.5868708 | AH84: ='Coal Price Inputs'!AI22 -> 104.2264671 | AI84: ='Coal Price Inputs'!AJ22 -> 107.8864669 | AJ84: ='Coal Price Inputs'!AK22 -> 110.1092509 | AK84: ='Coal Price Inputs'!AL22 -> 113.7726738 | AL84: ='Coal Price Inputs'!AM22 -> 117.882582 | AM84: ='Coal Price Inputs'!AN22 -> 120.9530171 | AN84: ='Coal Price Inputs'!AO22 -> 124.2892787 | AO84: ='Coal Price Inputs'!AP22 -> 127.6949412
A85: Crystal River 4&5 | B85: ='Coal Price Inputs'!B23 -> ILB | C85: ='Coal Price Inputs'!C23 -> Low Chlorine | D85: ='Coal Price Inputs'!D23 -> Rail | E85: ='Coal Price Inputs'!E23 -> 11500 | F85: ='Coal Price Inputs'!F23 -> 5.2 | G85: ='Coal Price Inputs'!G23 -> 10 | H85: ='Coal Price Inputs'!J23 -> ILLB-WKY-CSX-WKY-11500-VH-5.2-LC-.8 | J85: ='Coal Price Inputs'!K23 -> 41.86385534 | K85: ='Coal Price Inputs'!L23 -> 43.10033392 | L85: ='Coal Price Inputs'!M23 -> 48.49038307 | M85: ='Coal Price Inputs'!N23 -> 52.10938487 | N85: ='Coal Price Inputs'!O23 -> 53.05530717 | O85: ='Coal Price Inputs'!P23 -> 56.07223753 | P85: ='Coal Price Inputs'!Q23 -> 57.57332825 | Q85: ='Coal Price Inputs'!R23 -> 60.09520157 | R85: ='Coal Price Inputs'!S23 -> 61.51740442 | S85: ='Coal Price Inputs'!T23 -> 63.37956306 | T85: ='Coal Price Inputs'!U23 -> 63.6933294 | U85: ='Coal Price Inputs'!V23 -> 61.92643743 | V85: ='Coal Price Inputs'!W23 -> 68.3703026 | W85: ='Coal Price Inputs'!X23 -> 71.36736412 | X85: ='Coal Price Inputs'!Y23 -> 74.66940045 | Y85: ='Coal Price Inputs'!Z23 -> 77.52885153 | Z85: ='Coal Price Inputs'!AA23 -> 77.57615681 | AA85: ='Coal Price Inputs'!AB23 -> 79.87929278 | AB85: ='Coal Price Inputs'!AC23 -> 83.4206592 | AC85: ='Coal Price Inputs'!AD23 -> 86.33337969 | AD85: ='Coal Price Inputs'!AE23 -> 90.33499949 | AE85: ='Coal Price Inputs'!AF23 -> 93.9157423 | AF85: ='Coal Price Inputs'!AG23 -> 97.36237854 | AG85: ='Coal Price Inputs'!AH23 -> 100.5868708 | AH85: ='Coal Price Inputs'!AI23 -> 104.2264671 | AI85: ='Coal Price Inputs'!AJ23 -> 107.8864669 | AJ85: ='Coal Price Inputs'!AK23 -> 110.1092509 | AK85: ='Coal Price Inputs'!AL23 -> 113.7726738 | AL85: ='Coal Price Inputs'!AM23 -> 117.882582 | AM85: ='Coal Price Inputs'!AN23 -> 120.9530171 | AN85: ='Coal Price Inputs'!AO23 -> 124.2892787 | AO85: ='Coal Price Inputs'!AP23 -> 127.6949412
A86: Crystal River 4&5 | B86: ='Coal Price Inputs'!B24 -> PRB | C86: ='Coal Price Inputs'!C24 -> High-Btu Gillette | D86: ='Coal Price Inputs'!D24 -> Rail | E86: ='Coal Price Inputs'!E24 -> 8800 | F86: ='Coal Price Inputs'!F24 -> 0.8 | G86: ='Coal Price Inputs'!G24 -> 5 | H86: ='Coal Price Inputs'!J24 -> PRB-WY-BN/UP-Gillette-8800-CS-0.8 | J86: ='Coal Price Inputs'!K24 -> 12.20692511 | K86: ='Coal Price Inputs'!L24 -> 12.67998753 | L86: ='Coal Price Inputs'!M24 -> 13.24411838 | M86: ='Coal Price Inputs'!N24 -> 14.2028208 | N86: ='Coal Price Inputs'!O24 -> 14.19207961 | O86: ='Coal Price Inputs'!P24 -> 14.78285643 | P86: ='Coal Price Inputs'!Q24 -> 15.24182957 | Q86: ='Coal Price Inputs'!R24 -> 15.93483821 | R86: ='Coal Price Inputs'!S24 -> 16.54132097 | S86: ='Coal Price Inputs'!T24 -> 17.06000541 | T86: ='Coal Price Inputs'!U24 -> 17.71828279 | U86: ='Coal Price Inputs'!V24 -> 18.55376229 | V86: ='Coal Price Inputs'!W24 -> 19.13313408 | W86: ='Coal Price Inputs'!X24 -> 19.88143271 | X86: ='Coal Price Inputs'!Y24 -> 20.80866942 | Y86: ='Coal Price Inputs'!Z24 -> 21.71715381 | Z86: ='Coal Price Inputs'!AA24 -> 22.51107696 | AA86: ='Coal Price Inputs'!AB24 -> 23.01694099 | AB86: ='Coal Price Inputs'!AC24 -> 24.05891273 | AC86: ='Coal Price Inputs'!AD24 -> 25.13525909 | AD86: ='Coal Price Inputs'!AE24 -> 26.31469493 | AE86: ='Coal Price Inputs'!AF24 -> 27.62151344 | AF86: ='Coal Price Inputs'!AG24 -> 28.67365905 | AG86: ='Coal Price Inputs'!AH24 -> 29.72036626 | AH86: ='Coal Price Inputs'!AI24 -> 30.90939428 | AI86: ='Coal Price Inputs'!AJ24 -> 32.18310802 | AJ86: ='Coal Price Inputs'!AK24 -> 33.05783138 | AK86: ='Coal Price Inputs'!AL24 -> 34.41496763 | AL86: ='Coal Price Inputs'!AM24 -> 35.95923892 | AM86: ='Coal Price Inputs'!AN24 -> 37.24471605 | AN86: ='Coal Price Inputs'!AO24 -> 38.66326706 | AO86: ='Coal Price Inputs'!AP24 -> 40.16084491
A87: Crystal River 4&5 | B87: ='Coal Price Inputs'!B25 -> RM | C87: ='Coal Price Inputs'!C25 -> Rockies | D87: ='Coal Price Inputs'!D25 -> Rail | E87: ='Coal Price Inputs'!E25 -> 11700 | F87: ='Coal Price Inputs'!F25 -> 0.8 | G87: ='Coal Price Inputs'!G25 -> 8 | H87: ='Coal Price Inputs'!J25 -> Rockies-CO-UP-North Fork-11700-CS-.8 | J87: ='Coal Price Inputs'!K25 -> 32.54158965 | K87: ='Coal Price Inputs'!L25 -> 34.86039512 | L87: ='Coal Price Inputs'!M25 -> 37.76020528 | M87: ='Coal Price Inputs'!N25 -> 38.60396841 | N87: ='Coal Price Inputs'!O25 -> 39.77483223 | O87: ='Coal Price Inputs'!P25 -> 42.08388702 | P87: ='Coal Price Inputs'!Q25 -> 43.54312502 | Q87: ='Coal Price Inputs'!R25 -> 43.5402431 | R87: ='Coal Price Inputs'!S25 -> 45.06689584 | S87: ='Coal Price Inputs'!T25 -> 46.37957414 | T87: ='Coal Price Inputs'!U25 -> 48.08164778 | U87: ='Coal Price Inputs'!V25 -> 49.3895789 | V87: ='Coal Price Inputs'!W25 -> 50.86233149 | W87: ='Coal Price Inputs'!X25 -> 52.77545336 | X87: ='Coal Price Inputs'!Y25 -> 51.80712643 | Y87: ='Coal Price Inputs'!Z25 -> 53.75017711 | Z87: ='Coal Price Inputs'!AA25 -> 55.63144904 | AA87: ='Coal Price Inputs'!AB25 -> 57.96006566 | AB87: ='Coal Price Inputs'!AC25 -> 55.89598145 | AC87: ='Coal Price Inputs'!AD25 -> 58.31976744 | AD87: ='Coal Price Inputs'!AE25 -> 60.99048999 | AE87: ='Coal Price Inputs'!AF25 -> 63.98418356 | AF87: ='Coal Price Inputs'!AG25 -> 65.48669263 | AG87: ='Coal Price Inputs'!AH25 -> 67.70914737 | AH87: ='Coal Price Inputs'!AI25 -> 70.10783301 | AI87: ='Coal Price Inputs'!AJ25 -> 72.5140722 | AJ87: ='Coal Price Inputs'!AK25 -> 73.80290688 | AK87: ='Coal Price Inputs'!AL25 -> 76.20387731 | AL87: ='Coal Price Inputs'!AM25 -> 78.87600257 | AM87: ='Coal Price Inputs'!AN25 -> 80.84318905 | AN87: ='Coal Price Inputs'!AO25 -> 82.97840246 | AO87: ='Coal Price Inputs'!AP25 -> 85.18341333
A88: Crystal River 4&5 | B88: ='Coal Price Inputs'!B26 -> RM | C88: ='Coal Price Inputs'!C26 -> Rockies | D88: ='Coal Price Inputs'!D26 -> Barge | E88: ='Coal Price Inputs'!E26 -> 11700 | F88: ='Coal Price Inputs'!F26 -> 0.8 | G88: ='Coal Price Inputs'!G26 -> 8 | H88: ='Coal Price Inputs'!J26 -> Rockies-CO-UP-North Fork-11700-CS-.8 | J88: ='Coal Price Inputs'!K26 -> 32.54158965 | K88: ='Coal Price Inputs'!L26 -> 34.86039512 | L88: ='Coal Price Inputs'!M26 -> 37.76020528 | M88: ='Coal Price Inputs'!N26 -> 38.60396841 | N88: ='Coal Price Inputs'!O26 -> 39.77483223 | O88: ='Coal Price Inputs'!P26 -> 42.08388702 | P88: ='Coal Price Inputs'!Q26 -> 43.54312502 | Q88: ='Coal Price Inputs'!R26 -> 43.5402431 | R88: ='Coal Price Inputs'!S26 -> 45.06689584 | S88: ='Coal Price Inputs'!T26 -> 46.37957414 | T88: ='Coal Price Inputs'!U26 -> 48.08164778 | U88: ='Coal Price Inputs'!V26 -> 49.3895789 | V88: ='Coal Price Inputs'!W26 -> 50.86233149 | W88: ='Coal Price Inputs'!X26 -> 52.77545336 | X88: ='Coal Price Inputs'!Y26 -> 51.80712643 | Y88: ='Coal Price Inputs'!Z26 -> 53.75017711 | Z88: ='Coal Price Inputs'!AA26 -> 55.63144904 | AA88: ='Coal Price Inputs'!AB26 -> 57.96006566 | AB88: ='Coal Price Inputs'!AC26 -> 55.89598145 | AC88: ='Coal Price Inputs'!AD26 -> 58.31976744 | AD88: ='Coal Price Inputs'!AE26 -> 60.99048999 | AE88: ='Coal Price Inputs'!AF26 -> 63.98418356 | AF88: ='Coal Price Inputs'!AG26 -> 65.48669263 | AG88: ='Coal Price Inputs'!AH26 -> 67.70914737 | AH88: ='Coal Price Inputs'!AI26 -> 70.10783301 | AI88: ='Coal Price Inputs'!AJ26 -> 72.5140722 | AJ88: ='Coal Price Inputs'!AK26 -> 73.80290688 | AK88: ='Coal Price Inputs'!AL26 -> 76.20387731 | AL88: ='Coal Price Inputs'!AM26 -> 78.87600257 | AM88: ='Coal Price Inputs'!AN26 -> 80.84318905 | AN88: ='Coal Price Inputs'!AO26 -> 82.97840246 | AO88: ='Coal Price Inputs'!AP26 -> 85.18341333
A90: TRANSPORTATION RATES ($/TON)
A91: =A71 -> Station | B91: Basin | C91: Coal Type | D91: FOB Point | E91: Btu/lb | F91: #SO2/MMBtu | G91: %Ash | H91: Transportation | J91: =J3 -> 2019 | K91: 2020 | L91: 2021 | M91: 2022 | N91: 2023 | O91: 2024 | P91: 2025 | Q91: 2026 | R91: 2027 | S91: 2028 | T91: 2029 | U91: 2030 | V91: 2031 | W91: 2032 | X91: 2033 | Y91: 2034 | Z91: 2035 | AA91: 2036 | AB91: 2037 | AC91: 2038 | AD91: 2039 | AE91: 2040 | AF91: 2041 | AG91: 2042 | AH91: 2043 | AI91: 2044 | AJ91: 2045 | AK91: 2046 | AL91: 2047 | AM91: 2048 | AN91: 2049 | AO91: 2050
A92: =$A$14 -> Crystal River 4&5 | B92: =B72 -> NAPP | C92: Pittsburgh Seam | D92: Rail | E92: 13000 | F92: 4 | G92: 8 | H92: CSX NAPP Basin | J92: =IF(LEFT($H92,5)="Barge",VLOOKUP($A92&J$91,Barge_Rate_Master,MATCH($H92,'Barge Rate Inputs'!$A$4:$AD$4,0),FALSE),IF(LEFT($H92,3)="CSX",VLOOKUP($A92&J$91,CSX_Rate_Master,MATCH($H92,'CSX Rate Inputs'!$A$4:$Z$4,0),FALSE),"n/a")) -> 27.90974769 | K92: =IF(LEFT($H92,5)="Barge",VLOOKUP($A92&K$91,Barge_Rate_Master,MATCH($H92,'Barge Rate Inputs'!$A$4:$AD$4,0),FALSE),IF(LEFT($H92,3)="CSX",VLOOKUP($A92&K$91,CSX_Rate_Master,MATCH($H92,'CSX Rate Inputs'!$A$4:$Z$4,0),FALSE),"n/a")) -> 27.90974769 | L92: =IF(LEFT($H92,5)="Barge",VLOOKUP($A92&L$91,Barge_Rate_Master,MATCH($H92,'Barge Rate Inputs'!$A$4:$AD$4,0),FALSE),IF(LEFT($H92,3)="CSX",VLOOKUP($A92&L$91,CSX_Rate_Master,MATCH($H92,'CSX Rate Inputs'!$A$4:$Z$4,0),FALSE),"n/a")) -> 28.62596983 | M92: =IF(LEFT($H92,5)="Barge",VLOOKUP($A92&M$91,Barge_Rate_Master,MATCH($H92,'Barge Rate Inputs'!$A$4:$AD$4,0),FALSE),IF(LEFT($H92,3)="CSX",VLOOKUP($A92&M$91,CSX_Rate_Master,MATCH($H92,'CSX Rate Inputs'!$A$4:$Z$4,0),FALSE),"n/a")) -> 29.23326171 | N92: =IF(LEFT($H92,5)="Barge",VLOOKUP($A92&N$91,Barge_Rate_Master,MATCH($H92,'Barge Rate Inputs'!$A$4:$AD$4,0),FALSE),IF(LEFT($H92,3)="CSX",VLOOKUP($A92&N$91,CSX_Rate_Master,MATCH($H92,'CSX Rate Inputs'!$A$4:$Z$4,0),FALSE),"n/a")) -> 29.96132918 | O92: =IF(LEFT($H92,5)="Barge",VLOOKUP($A92&O$91,Barge_Rate_Master,MATCH($H92,'Barge Rate Inputs'!$A$4:$AD$4,0),FALSE),IF(LEFT($H92,3)="CSX",VLOOKUP($A92&O$91,CSX_Rate_Master,MATCH($H92,'CSX Rate Inputs'!$A$4:$Z$4,0),FALSE),"n/a")) -> 30.73114212 | P92: =IF(LEFT($H92,5)="Barge",VLOOKUP($A92&P$91,Barge_Rate_Master,MATCH($H92,'Barge Rate Inputs'!$A$4:$AD$4,0),FALSE),IF(LEFT($H92,3)="CSX",VLOOKUP($A92&P$91,CSX_Rate_Master,MATCH($H92,'CSX Rate Inputs'!$A$4:$Z$4,0),FALSE),"n/a")) -> 31.49014298 | Q92: =IF(LEFT($H92,5)="Barge",VLOOKUP($A92&Q$91,Barge_Rate_Master,MATCH($H92,'Barge Rate Inputs'!$A$4:$AD$4,0),FALSE),IF(LEFT($H92,3)="CSX",VLOOKUP($A92&Q$91,CSX_Rate_Master,MATCH($H92,'CSX Rate Inputs'!$A$4:$Z$4,0),FALSE),"n/a")) -> 32.27739655 | R92: =IF(LEFT($H92,5)="Barge",VLOOKUP($A92&R$91,Barge_Rate_Master,MATCH($H92,'Barge Rate Inputs'!$A$4:$AD$4,0),FALSE),IF(LEFT($H92,3)="CSX",VLOOKUP($A92&R$91,CSX_Rate_Master,MATCH($H92,'CSX Rate Inputs'!$A$4:$Z$4,0),FALSE),"n/a")) -> 32.92294448 | S92: =IF(LEFT($H92,5)="Barge",VLOOKUP($A92&S$91,Barge_Rate_Master,MATCH($H92,'Barge Rate Inputs'!$A$4:$AD$4,0),FALSE),IF(LEFT($H92,3)="CSX",VLOOKUP($A92&S$91,CSX_Rate_Master,MATCH($H92,'CSX Rate Inputs'!$A$4:$Z$4,0),FALSE),"n/a")) -> 33.58140337 | T92: =IF(LEFT($H92,5)="Barge",VLOOKUP($A92&T$91,Barge_Rate_Master,MATCH($H92,'Barge Rate Inputs'!$A$4:$AD$4,0),FALSE),IF(LEFT($H92,3)="CSX",VLOOKUP($A92&T$91,CSX_Rate_Master,MATCH($H92,'CSX Rate Inputs'!$A$4:$Z$4,0),FALSE),"n/a")) -> 34.25303144 | U92: =IF(LEFT($H92,5)="Barge",VLOOKUP($A92&U$91,Barge_Rate_Master,MATCH($H92,'Barge Rate Inputs'!$A$4:$AD$4,0),FALSE),IF(LEFT($H92,3)="CSX",VLOOKUP($A92&U$91,CSX_Rate_Master,MATCH($H92,'CSX Rate Inputs'!$A$4:$Z$4,0),FALSE),"n/a")) -> 34.93809207 | V92: =IF(LEFT($H92,5)="Barge",VLOOKUP($A92&V$91,Barge_Rate_Master,MATCH($H92,'Barge Rate Inputs'!$A$4:$AD$4,0),FALSE),IF(LEFT($H92,3)="CSX",VLOOKUP($A92&V$91,CSX_Rate_Master,MATCH($H92,'CSX Rate Inputs'!$A$4:$Z$4,0),FALSE),"n/a")) -> 35.63685391 | W92: =IF(LEFT($H92,5)="Barge",VLOOKUP($A92&W$91,Barge_Rate_Master,MATCH($H92,'Barge Rate Inputs'!$A$4:$AD$4,0),FALSE),IF(LEFT($H92,3)="CSX",VLOOKUP($A92&W$91,CSX_Rate_Master,MATCH($H92,'CSX Rate Inputs'!$A$4:$Z$4,0),FALSE),"n/a")) -> 36.34959099 | X92: =IF(LEFT($H92,5)="Barge",VLOOKUP($A92&X$91,Barge_Rate_Master,MATCH($H92,'Barge Rate Inputs'!$A$4:$AD$4,0),FALSE),IF(LEFT($H92,3)="CSX",VLOOKUP($A92&X$91,CSX_Rate_Master,MATCH($H92,'CSX Rate Inputs'!$A$4:$Z$4,0),FALSE),"n/a")) -> 37.07658281 | Y92: =IF(LEFT($H92,5)="Barge",VLOOKUP($A92&Y$91,Barge_Rate_Master,MATCH($H92,'Barge Rate Inputs'!$A$4:$AD$4,0),FALSE),IF(LEFT($H92,3)="CSX",VLOOKUP($A92&Y$91,CSX_Rate_Master,MATCH($H92,'CSX Rate Inputs'!$A$4:$Z$4,0),FALSE),"n/a")) -> 37.81811446 | Z92: =IF(LEFT($H92,5)="Barge",VLOOKUP($A92&Z$91,Barge_Rate_Master,MATCH($H92,'Barge Rate Inputs'!$A$4:$AD$4,0),FALSE),IF(LEFT($H92,3)="CSX",VLOOKUP($A92&Z$91,CSX_Rate_Master,MATCH($H92,'CSX Rate Inputs'!$A$4:$Z$4,0),FALSE),"n/a")) -> 38.57447675 | AA92: =IF(LEFT($H92,5)="Barge",VLOOKUP($A92&AA$91,Barge_Rate_Master,MATCH($H92,'Barge Rate Inputs'!$A$4:$AD$4,0),FALSE),IF(LEFT($H92,3)="CSX",VLOOKUP($A92&AA$91,CSX_Rate_Master,MATCH($H92,'CSX Rate Inputs'!$A$4:$Z$4,0),FALSE),"n/a")) -> 39.34596629 | AB92: =IF(LEFT($H92,5)="Barge",VLOOKUP($A92&AB$91,Barge_Rate_Master,MATCH($H92,'Barge Rate Inputs'!$A$4:$AD$4,0),FALSE),IF(LEFT($H92,3)="CSX",VLOOKUP($A92&AB$91,CSX_Rate_Master,MATCH($H92,'CSX Rate Inputs'!$A$4:$Z$4,0),FALSE),"n/a")) -> 40.13288561 | AC92: =IF(LEFT($H92,5)="Barge",VLOOKUP($A92&AC$91,Barge_Rate_Master,MATCH($H92,'Barge Rate Inputs'!$A$4:$AD$4,0),FALSE),IF(LEFT($H92,3)="CSX",VLOOKUP($A92&AC$91,CSX_Rate_Master,MATCH($H92,'CSX Rate Inputs'!$A$4:$Z$4,0),FALSE),"n/a")) -> 40.93554333 | AD92: =IF(LEFT($H92,5)="Barge",VLOOKUP($A92&AD$91,Barge_Rate_Master,MATCH($H92,'Barge Rate Inputs'!$A$4:$AD$4,0),FALSE),IF(LEFT($H92,3)="CSX",VLOOKUP($A92&AD$91,CSX_Rate_Master,MATCH($H92,'CSX Rate Inputs'!$A$4:$Z$4,0),FALSE),"n/a")) -> 41.75425419 | AE92: =IF(LEFT($H92,5)="Barge",VLOOKUP($A92&AE$91,Barge_Rate_Master,MATCH($H92,'Barge Rate Inputs'!$A$4:$AD$4,0),FALSE),IF(LEFT($H92,3)="CSX",VLOOKUP($A92&AE$91,CSX_Rate_Master,MATCH($H92,'CSX Rate Inputs'!$A$4:$Z$4,0),FALSE),"n/a")) -> 42.58933928 | AF92: =IF(LEFT($H92,5)="Barge",VLOOKUP($A92&AF$91,Barge_Rate_Master,MATCH($H92,'Barge Rate Inputs'!$A$4:$AD$4,0),FALSE),IF(LEFT($H92,3)="CSX",VLOOKUP($A92&AF$91,CSX_Rate_Master,MATCH($H92,'CSX Rate Inputs'!$A$4:$Z$4,0),FALSE),"n/a")) -> 43.44112606 | AG92: =IF(LEFT($H92,5)="Barge",VLOOKUP($A92&AG$91,Barge_Rate_Master,MATCH($H92,'Barge Rate Inputs'!$A$4:$AD$4,0),FALSE),IF(LEFT($H92,3)="CSX",VLOOKUP($A92&AG$91,CSX_Rate_Master,MATCH($H92,'CSX Rate Inputs'!$A$4:$Z$4,0),FALSE),"n/a")) -> 44.30994858 | AH92: =IF(LEFT($H92,5)="Barge",VLOOKUP($A92&AH$91,Barge_Rate_Master,MATCH($H92,'Barge Rate Inputs'!$A$4:$AD$4,0),FALSE),IF(LEFT($H92,3)="CSX",VLOOKUP($A92&AH$91,CSX_Rate_Master,MATCH($H92,'CSX Rate Inputs'!$A$4:$Z$4,0),FALSE),"n/a")) -> 45.19614755 | AI92: =IF(LEFT($H92,5)="Barge",VLOOKUP($A92&AI$91,Barge_Rate_Master,MATCH($H92,'Barge Rate Inputs'!$A$4:$AD$4,0),FALSE),IF(LEFT($H92,3)="CSX",VLOOKUP($A92&AI$91,CSX_Rate_Master,MATCH($H92,'CSX Rate Inputs'!$A$4:$Z$4,0),FALSE),"n/a")) -> 46.1000705 | AJ92: =IF(LEFT($H92,5)="Barge",VLOOKUP($A92&AJ$91,Barge_Rate_Master,MATCH($H92,'Barge Rate Inputs'!$A$4:$AD$4,0),FALSE),IF(LEFT($H92,3)="CSX",VLOOKUP($A92&AJ$91,CSX_Rate_Master,MATCH($H92,'CSX Rate Inputs'!$A$4:$Z$4,0),FALSE),"n/a")) -> 47.02207191 | AK92: =IF(LEFT($H92,5)="Barge",VLOOKUP($A92&AK$91,Barge_Rate_Master,MATCH($H92,'Barge Rate Inputs'!$A$4:$AD$4,0),FALSE),IF(LEFT($H92,3)="CSX",VLOOKUP($A92&AK$91,CSX_Rate_Master,MATCH($H92,'CSX Rate Inputs'!$A$4:$Z$4,0),FALSE),"n/a")) -> 47.96251335 | AL92: =IF(LEFT($H92,5)="Barge",VLOOKUP($A92&AL$91,Barge_Rate_Master,MATCH($H92,'Barge Rate Inputs'!$A$4:$AD$4,0),FALSE),IF(LEFT($H92,3)="CSX",VLOOKUP($A92&AL$91,CSX_Rate_Master,MATCH($H92,'CSX Rate Inputs'!$A$4:$Z$4,0),FALSE),"n/a")) -> 48.92176362 | AM92: =IF(LEFT($H92,5)="Barge",VLOOKUP($A92&AM$91,Barge_Rate_Master,MATCH($H92,'Barge Rate Inputs'!$A$4:$AD$4,0),FALSE),IF(LEFT($H92,3)="CSX",VLOOKUP($A92&AM$91,CSX_Rate_Master,MATCH($H92,'CSX Rate Inputs'!$A$4:$Z$4,0),FALSE),"n/a")) -> 49.90019889 | AN92: =IF(LEFT($H92,5)="Barge",VLOOKUP($A92&AN$91,Barge_Rate_Master,MATCH($H92,'Barge Rate Inputs'!$A$4:$AD$4,0),FALSE),IF(LEFT($H92,3)="CSX",VLOOKUP($A92&AN$91,CSX_Rate_Master,MATCH($H92,'CSX Rate Inputs'!$A$4:$Z$4,0),FALSE),"n/a")) -> 50.89820287 | AO92: =IF(LEFT($H92,5)="Barge",VLOOKUP($A92&AO$91,Barge_Rate_Master,MATCH($H92,'Barge Rate Inputs'!$A$4:$AD$4,0),FALSE),IF(LEFT($H92,3)="CSX",VLOOKUP($A92&AO$91,CSX_Rate_Master,MATCH($H92,'CSX Rate Inputs'!$A$4:$Z$4,0),FALSE),"n/a")) -> 51.91616693
A93: Crystal River 4&5 | B93: NAPP | C93: Pittsburgh Seam | D93: Barge | E93: 13000 | F93: 4 | G93: 8 | H93: Barge NAPP Pitt 8 | J93: =IF(LEFT($H93,5)="Barge",VLOOKUP($A93&J$91,Barge_Rate_Master,MATCH($H93,'Barge Rate Inputs'!$A$4:$AD$4,0),FALSE),IF(LEFT($H93,3)="CSX",VLOOKUP($A93&J$91,CSX_Rate_Master,MATCH($H93,'CSX Rate Inputs'!$A$4:$Z$4,0),FALSE),"n/a")) -> 22.29480604 | K93: =IF(LEFT($H93,5)="Barge",VLOOKUP($A93&K$91,Barge_Rate_Master,MATCH($H93,'Barge Rate Inputs'!$A$4:$AD$4,0),FALSE),IF(LEFT($H93,3)="CSX",VLOOKUP($A93&K$91,CSX_Rate_Master,MATCH($H93,'CSX Rate Inputs'!$A$4:$Z$4,0),FALSE),"n/a")) -> 22.57722894 | L93: =IF(LEFT($H93,5)="Barge",VLOOKUP($A93&L$91,Barge_Rate_Master,MATCH($H93,'Barge Rate Inputs'!$A$4:$AD$4,0),FALSE),IF(LEFT($H93,3)="CSX",VLOOKUP($A93&L$91,CSX_Rate_Master,MATCH($H93,'CSX Rate Inputs'!$A$4:$Z$4,0),FALSE),"n/a")) -> 22.76587448 | M93: =IF(LEFT($H93,5)="Barge",VLOOKUP($A93&M$91,Barge_Rate_Master,MATCH($H93,'Barge Rate Inputs'!$A$4:$AD$4,0),FALSE),IF(LEFT($H93,3)="CSX",VLOOKUP($A93&M$91,CSX_Rate_Master,MATCH($H93,'CSX Rate Inputs'!$A$4:$Z$4,0),FALSE),"n/a")) -> 23.24126719 | N93: =IF(LEFT($H93,5)="Barge",VLOOKUP($A93&N$91,Barge_Rate_Master,MATCH($H93,'Barge Rate Inputs'!$A$4:$AD$4,0),FALSE),IF(LEFT($H93,3)="CSX",VLOOKUP($A93&N$91,CSX_Rate_Master,MATCH($H93,'CSX Rate Inputs'!$A$4:$Z$4,0),FALSE),"n/a")) -> 26.18029292 | O93: =IF(LEFT($H93,5)="Barge",VLOOKUP($A93&O$91,Barge_Rate_Master,MATCH($H93,'Barge Rate Inputs'!$A$4:$AD$4,0),FALSE),IF(LEFT($H93,3)="CSX",VLOOKUP($A93&O$91,CSX_Rate_Master,MATCH($H93,'CSX Rate Inputs'!$A$4:$Z$4,0),FALSE),"n/a")) -> 26.73965902 | P93: =IF(LEFT($H93,5)="Barge",VLOOKUP($A93&P$91,Barge_Rate_Master,MATCH($H93,'Barge Rate Inputs'!$A$4:$AD$4,0),FALSE),IF(LEFT($H93,3)="CSX",VLOOKUP($A93&P$91,CSX_Rate_Master,MATCH($H93,'CSX Rate Inputs'!$A$4:$Z$4,0),FALSE),"n/a")) -> 33.19124836 | Q93: =IF(LEFT($H93,5)="Barge",VLOOKUP($A93&Q$91,Barge_Rate_Master,MATCH($H93,'Barge Rate Inputs'!$A$4:$AD$4,0),FALSE),IF(LEFT($H93,3)="CSX",VLOOKUP($A93&Q$91,CSX_Rate_Master,MATCH($H93,'CSX Rate Inputs'!$A$4:$Z$4,0),FALSE),"n/a")) -> 33.76638684 | R93: =IF(LEFT($H93,5)="Barge",VLOOKUP($A93&R$91,Barge_Rate_Master,MATCH($H93,'Barge Rate Inputs'!$A$4:$AD$4,0),FALSE),IF(LEFT($H93,3)="CSX",VLOOKUP($A93&R$91,CSX_Rate_Master,MATCH($H93,'CSX Rate Inputs'!$A$4:$Z$4,0),FALSE),"n/a")) -> 34.90601196 | S93: =IF(LEFT($H93,5)="Barge",VLOOKUP($A93&S$91,Barge_Rate_Master,MATCH($H93,'Barge Rate Inputs'!$A$4:$AD$4,0),FALSE),IF(LEFT($H93,3)="CSX",VLOOKUP($A93&S$91,CSX_Rate_Master,MATCH($H93,'CSX Rate Inputs'!$A$4:$Z$4,0),FALSE),"n/a")) -> 35.82158726 | T93: =IF(LEFT($H93,5)="Barge",VLOOKUP($A93&T$91,Barge_Rate_Master,MATCH($H93,'Barge Rate Inputs'!$A$4:$AD$4,0),FALSE),IF(LEFT($H93,3)="CSX",VLOOKUP($A93&T$91,CSX_Rate_Master,MATCH($H93,'CSX Rate Inputs'!$A$4:$Z$4,0),FALSE),"n/a")) -> 36.75836977 | U93: =IF(LEFT($H93,5)="Barge",VLOOKUP($A93&U$91,Barge_Rate_Master,MATCH($H93,'Barge Rate Inputs'!$A$4:$AD$4,0),FALSE),IF(LEFT($H93,3)="CSX",VLOOKUP($A93&U$91,CSX_Rate_Master,MATCH($H93,'CSX Rate Inputs'!$A$4:$Z$4,0),FALSE),"n/a")) -> 37.65643758 | V93: =IF(LEFT($H93,5)="Barge",VLOOKUP($A93&V$91,Barge_Rate_Master,MATCH($H93,'Barge Rate Inputs'!$A$4:$AD$4,0),FALSE),IF(LEFT($H93,3)="CSX",VLOOKUP($A93&V$91,CSX_Rate_Master,MATCH($H93,'CSX Rate Inputs'!$A$4:$Z$4,0),FALSE),"n/a")) -> 45.12137524 | W93: =IF(LEFT($H93,5)="Barge",VLOOKUP($A93&W$91,Barge_Rate_Master,MATCH($H93,'Barge Rate Inputs'!$A$4:$AD$4,0),FALSE),IF(LEFT($H93,3)="CSX",VLOOKUP($A93&W$91,CSX_Rate_Master,MATCH($H93,'CSX Rate Inputs'!$A$4:$Z$4,0),FALSE),"n/a")) -> 46.09549281 | X93: =IF(LEFT($H93,5)="Barge",VLOOKUP($A93&X$91,Barge_Rate_Master,MATCH($H93,'Barge Rate Inputs'!$A$4:$AD$4,0),FALSE),IF(LEFT($H93,3)="CSX",VLOOKUP($A93&X$91,CSX_Rate_Master,MATCH($H93,'CSX Rate Inputs'!$A$4:$Z$4,0),FALSE),"n/a")) -> 47.02572485 | Y93: =IF(LEFT($H93,5)="Barge",VLOOKUP($A93&Y$91,Barge_Rate_Master,MATCH($H93,'Barge Rate Inputs'!$A$4:$AD$4,0),FALSE),IF(LEFT($H93,3)="CSX",VLOOKUP($A93&Y$91,CSX_Rate_Master,MATCH($H93,'CSX Rate Inputs'!$A$4:$Z$4,0),FALSE),"n/a")) -> 47.97497524 | Z93: =IF(LEFT($H93,5)="Barge",VLOOKUP($A93&Z$91,Barge_Rate_Master,MATCH($H93,'Barge Rate Inputs'!$A$4:$AD$4,0),FALSE),IF(LEFT($H93,3)="CSX",VLOOKUP($A93&Z$91,CSX_Rate_Master,MATCH($H93,'CSX Rate Inputs'!$A$4:$Z$4,0),FALSE),"n/a")) -> 49.01606712 | AA93: =IF(LEFT($H93,5)="Barge",VLOOKUP($A93&AA$91,Barge_Rate_Master,MATCH($H93,'Barge Rate Inputs'!$A$4:$AD$4,0),FALSE),IF(LEFT($H93,3)="CSX",VLOOKUP($A93&AA$91,CSX_Rate_Master,MATCH($H93,'CSX Rate Inputs'!$A$4:$Z$4,0),FALSE),"n/a")) -> 49.99839397 | AB93: =IF(LEFT($H93,5)="Barge",VLOOKUP($A93&AB$91,Barge_Rate_Master,MATCH($H93,'Barge Rate Inputs'!$A$4:$AD$4,0),FALSE),IF(LEFT($H93,3)="CSX",VLOOKUP($A93&AB$91,CSX_Rate_Master,MATCH($H93,'CSX Rate Inputs'!$A$4:$Z$4,0),FALSE),"n/a")) -> 51.0144191 | AC93: =IF(LEFT($H93,5)="Barge",VLOOKUP($A93&AC$91,Barge_Rate_Master,MATCH($H93,'Barge Rate Inputs'!$A$4:$AD$4,0),FALSE),IF(LEFT($H93,3)="CSX",VLOOKUP($A93&AC$91,CSX_Rate_Master,MATCH($H93,'CSX Rate Inputs'!$A$4:$Z$4,0),FALSE),"n/a")) -> 52.13639778 | AD93: =IF(LEFT($H93,5)="Barge",VLOOKUP($A93&AD$91,Barge_Rate_Master,MATCH($H93,'Barge Rate Inputs'!$A$4:$AD$4,0),FALSE),IF(LEFT($H93,3)="CSX",VLOOKUP($A93&AD$91,CSX_Rate_Master,MATCH($H93,'CSX Rate Inputs'!$A$4:$Z$4,0),FALSE),"n/a")) -> 53.19654066 | AE93: =IF(LEFT($H93,5)="Barge",VLOOKUP($A93&AE$91,Barge_Rate_Master,MATCH($H93,'Barge Rate Inputs'!$A$4:$AD$4,0),FALSE),IF(LEFT($H93,3)="CSX",VLOOKUP($A93&AE$91,CSX_Rate_Master,MATCH($H93,'CSX Rate Inputs'!$A$4:$Z$4,0),FALSE),"n/a")) -> 54.27913182 | AF93: =IF(LEFT($H93,5)="Barge",VLOOKUP($A93&AF$91,Barge_Rate_Master,MATCH($H93,'Barge Rate Inputs'!$A$4:$AD$4,0),FALSE),IF(LEFT($H93,3)="CSX",VLOOKUP($A93&AF$91,CSX_Rate_Master,MATCH($H93,'CSX Rate Inputs'!$A$4:$Z$4,0),FALSE),"n/a")) -> 55.25479491 | AG93: =IF(LEFT($H93,5)="Barge",VLOOKUP($A93&AG$91,Barge_Rate_Master,MATCH($H93,'Barge Rate Inputs'!$A$4:$AD$4,0),FALSE),IF(LEFT($H93,3)="CSX",VLOOKUP($A93&AG$91,CSX_Rate_Master,MATCH($H93,'CSX Rate Inputs'!$A$4:$Z$4,0),FALSE),"n/a")) -> 56.39887226 | AH93: =IF(LEFT($H93,5)="Barge",VLOOKUP($A93&AH$91,Barge_Rate_Master,MATCH($H93,'Barge Rate Inputs'!$A$4:$AD$4,0),FALSE),IF(LEFT($H93,3)="CSX",VLOOKUP($A93&AH$91,CSX_Rate_Master,MATCH($H93,'CSX Rate Inputs'!$A$4:$Z$4,0),FALSE),"n/a")) -> 57.56997947 | AI93: =IF(LEFT($H93,5)="Barge",VLOOKUP($A93&AI$91,Barge_Rate_Master,MATCH($H93,'Barge Rate Inputs'!$A$4:$AD$4,0),FALSE),IF(LEFT($H93,3)="CSX",VLOOKUP($A93&AI$91,CSX_Rate_Master,MATCH($H93,'CSX Rate Inputs'!$A$4:$Z$4,0),FALSE),"n/a")) -> 58.63021989 | AJ93: =IF(LEFT($H93,5)="Barge",VLOOKUP($A93&AJ$91,Barge_Rate_Master,MATCH($H93,'Barge Rate Inputs'!$A$4:$AD$4,0),FALSE),IF(LEFT($H93,3)="CSX",VLOOKUP($A93&AJ$91,CSX_Rate_Master,MATCH($H93,'CSX Rate Inputs'!$A$4:$Z$4,0),FALSE),"n/a")) -> 59.87889313 | AK93: =IF(LEFT($H93,5)="Barge",VLOOKUP($A93&AK$91,Barge_Rate_Master,MATCH($H93,'Barge Rate Inputs'!$A$4:$AD$4,0),FALSE),IF(LEFT($H93,3)="CSX",VLOOKUP($A93&AK$91,CSX_Rate_Master,MATCH($H93,'CSX Rate Inputs'!$A$4:$Z$4,0),FALSE),"n/a")) -> 60.91210963 | AL93: =IF(LEFT($H93,5)="Barge",VLOOKUP($A93&AL$91,Barge_Rate_Master,MATCH($H93,'Barge Rate Inputs'!$A$4:$AD$4,0),FALSE),IF(LEFT($H93,3)="CSX",VLOOKUP($A93&AL$91,CSX_Rate_Master,MATCH($H93,'CSX Rate Inputs'!$A$4:$Z$4,0),FALSE),"n/a")) -> 62.20235621 | AM93: =IF(LEFT($H93,5)="Barge",VLOOKUP($A93&AM$91,Barge_Rate_Master,MATCH($H93,'Barge Rate Inputs'!$A$4:$AD$4,0),FALSE),IF(LEFT($H93,3)="CSX",VLOOKUP($A93&AM$91,CSX_Rate_Master,MATCH($H93,'CSX Rate Inputs'!$A$4:$Z$4,0),FALSE),"n/a")) -> 63.51655749 | AN93: =IF(LEFT($H93,5)="Barge",VLOOKUP($A93&AN$91,Barge_Rate_Master,MATCH($H93,'Barge Rate Inputs'!$A$4:$AD$4,0),FALSE),IF(LEFT($H93,3)="CSX",VLOOKUP($A93&AN$91,CSX_Rate_Master,MATCH($H93,'CSX Rate Inputs'!$A$4:$Z$4,0),FALSE),"n/a")) -> 64.60230158 | AO93: =IF(LEFT($H93,5)="Barge",VLOOKUP($A93&AO$91,Barge_Rate_Master,MATCH($H93,'Barge Rate Inputs'!$A$4:$AD$4,0),FALSE),IF(LEFT($H93,3)="CSX",VLOOKUP($A93&AO$91,CSX_Rate_Master,MATCH($H93,'CSX Rate Inputs'!$A$4:$Z$4,0),FALSE),"n/a")) -> 65.96514061
A94: Crystal River 4&5 | B94: CAPP | C94: Low-Sulfur | D94: Rail | E94: 12500 | F94: 1.6 | G94: 10 | H94: CSX CAPP Basin | J94: =IF(LEFT($H94,5)="Barge",VLOOKUP($A94&J$91,Barge_Rate_Master,MATCH($H94,'Barge Rate Inputs'!$A$4:$AD$4,0),FALSE),IF(LEFT($H94,3)="CSX",VLOOKUP($A94&J$91,CSX_Rate_Master,MATCH($H94,'CSX Rate Inputs'!$A$4:$Z$4,0),FALSE),"n/a")) -> 24.22951113 | K94: =IF(LEFT($H94,5)="Barge",VLOOKUP($A94&K$91,Barge_Rate_Master,MATCH($H94,'Barge Rate Inputs'!$A$4:$AD$4,0),FALSE),IF(LEFT($H94,3)="CSX",VLOOKUP($A94&K$91,CSX_Rate_Master,MATCH($H94,'CSX Rate Inputs'!$A$4:$Z$4,0),FALSE),"n/a")) -> 24.22951113 | L94: =IF(LEFT($H94,5)="Barge",VLOOKUP($A94&L$91,Barge_Rate_Master,MATCH($H94,'Barge Rate Inputs'!$A$4:$AD$4,0),FALSE),IF(LEFT($H94,3)="CSX",VLOOKUP($A94&L$91,CSX_Rate_Master,MATCH($H94,'CSX Rate Inputs'!$A$4:$Z$4,0),FALSE),"n/a")) -> 24.86151793 | M94: =IF(LEFT($H94,5)="Barge",VLOOKUP($A94&M$91,Barge_Rate_Master,MATCH($H94,'Barge Rate Inputs'!$A$4:$AD$4,0),FALSE),IF(LEFT($H94,3)="CSX",VLOOKUP($A94&M$91,CSX_Rate_Master,MATCH($H94,'CSX Rate Inputs'!$A$4:$Z$4,0),FALSE),"n/a")) -> 25.36718858 | N94: =IF(LEFT($H94,5)="Barge",VLOOKUP($A94&N$91,Barge_Rate_Master,MATCH($H94,'Barge Rate Inputs'!$A$4:$AD$4,0),FALSE),IF(LEFT($H94,3)="CSX",VLOOKUP($A94&N$91,CSX_Rate_Master,MATCH($H94,'CSX Rate Inputs'!$A$4:$Z$4,0),FALSE),"n/a")) -> 26.00408145 | O94: =IF(LEFT($H94,5)="Barge",VLOOKUP($A94&O$91,Barge_Rate_Master,MATCH($H94,'Barge Rate Inputs'!$A$4:$AD$4,0),FALSE),IF(LEFT($H94,3)="CSX",VLOOKUP($A94&O$91,CSX_Rate_Master,MATCH($H94,'CSX Rate Inputs'!$A$4:$Z$4,0),FALSE),"n/a")) -> 26.68344627 | P94: =IF(LEFT($H94,5)="Barge",VLOOKUP($A94&P$91,Barge_Rate_Master,MATCH($H94,'Barge Rate Inputs'!$A$4:$AD$4,0),FALSE),IF(LEFT($H94,3)="CSX",VLOOKUP($A94&P$91,CSX_Rate_Master,MATCH($H94,'CSX Rate Inputs'!$A$4:$Z$4,0),FALSE),"n/a")) -> 27.34622429 | Q94: =IF(LEFT($H94,5)="Barge",VLOOKUP($A94&Q$91,Barge_Rate_Master,MATCH($H94,'Barge Rate Inputs'!$A$4:$AD$4,0),FALSE),IF(LEFT($H94,3)="CSX",VLOOKUP($A94&Q$91,CSX_Rate_Master,MATCH($H94,'CSX Rate Inputs'!$A$4:$Z$4,0),FALSE),"n/a")) -> 28.02987989 | R94: =IF(LEFT($H94,5)="Barge",VLOOKUP($A94&R$91,Barge_Rate_Master,MATCH($H94,'Barge Rate Inputs'!$A$4:$AD$4,0),FALSE),IF(LEFT($H94,3)="CSX",VLOOKUP($A94&R$91,CSX_Rate_Master,MATCH($H94,'CSX Rate Inputs'!$A$4:$Z$4,0),FALSE),"n/a")) -> 28.59047749 | S94: =IF(LEFT($H94,5)="Barge",VLOOKUP($A94&S$91,Barge_Rate_Master,MATCH($H94,'Barge Rate Inputs'!$A$4:$AD$4,0),FALSE),IF(LEFT($H94,3)="CSX",VLOOKUP($A94&S$91,CSX_Rate_Master,MATCH($H94,'CSX Rate Inputs'!$A$4:$Z$4,0),FALSE),"n/a")) -> 29.16228704 | T94: =IF(LEFT($H94,5)="Barge",VLOOKUP($A94&T$91,Barge_Rate_Master,MATCH($H94,'Barge Rate Inputs'!$A$4:$AD$4,0),FALSE),IF(LEFT($H94,3)="CSX",VLOOKUP($A94&T$91,CSX_Rate_Master,MATCH($H94,'CSX Rate Inputs'!$A$4:$Z$4,0),FALSE),"n/a")) -> 29.74553278 | U94: =IF(LEFT($H94,5)="Barge",VLOOKUP($A94&U$91,Barge_Rate_Master,MATCH($H94,'Barge Rate Inputs'!$A$4:$AD$4,0),FALSE),IF(LEFT($H94,3)="CSX",VLOOKUP($A94&U$91,CSX_Rate_Master,MATCH($H94,'CSX Rate Inputs'!$A$4:$Z$4,0),FALSE),"n/a")) -> 30.34044344 | V94: =IF(LEFT($H94,5)="Barge",VLOOKUP($A94&V$91,Barge_Rate_Master,MATCH($H94,'Barge Rate Inputs'!$A$4:$AD$4,0),FALSE),IF(LEFT($H94,3)="CSX",VLOOKUP($A94&V$91,CSX_Rate_Master,MATCH($H94,'CSX Rate Inputs'!$A$4:$Z$4,0),FALSE),"n/a")) -> 30.94725231 | W94: =IF(LEFT($H94,5)="Barge",VLOOKUP($A94&W$91,Barge_Rate_Master,MATCH($H94,'Barge Rate Inputs'!$A$4:$AD$4,0),FALSE),IF(LEFT($H94,3)="CSX",VLOOKUP($A94&W$91,CSX_Rate_Master,MATCH($H94,'CSX Rate Inputs'!$A$4:$Z$4,0),FALSE),"n/a")) -> 31.56619735 | X94: =IF(LEFT($H94,5)="Barge",VLOOKUP($A94&X$91,Barge_Rate_Master,MATCH($H94,'Barge Rate Inputs'!$A$4:$AD$4,0),FALSE),IF(LEFT($H94,3)="CSX",VLOOKUP($A94&X$91,CSX_Rate_Master,MATCH($H94,'CSX Rate Inputs'!$A$4:$Z$4,0),FALSE),"n/a")) -> 32.1975213 | Y94: =IF(LEFT($H94,5)="Barge",VLOOKUP($A94&Y$91,Barge_Rate_Master,MATCH($H94,'Barge Rate Inputs'!$A$4:$AD$4,0),FALSE),IF(LEFT($H94,3)="CSX",VLOOKUP($A94&Y$91,CSX_Rate_Master,MATCH($H94,'CSX Rate Inputs'!$A$4:$Z$4,0),FALSE),"n/a")) -> 32.84147173 | Z94: =IF(LEFT($H94,5)="Barge",VLOOKUP($A94&Z$91,Barge_Rate_Master,MATCH($H94,'Barge Rate Inputs'!$A$4:$AD$4,0),FALSE),IF(LEFT($H94,3)="CSX",VLOOKUP($A94&Z$91,CSX_Rate_Master,MATCH($H94,'CSX Rate Inputs'!$A$4:$Z$4,0),FALSE),"n/a")) -> 33.49830116 | AA94: =IF(LEFT($H94,5)="Barge",VLOOKUP($A94&AA$91,Barge_Rate_Master,MATCH($H94,'Barge Rate Inputs'!$A$4:$AD$4,0),FALSE),IF(LEFT($H94,3)="CSX",VLOOKUP($A94&AA$91,CSX_Rate_Master,MATCH($H94,'CSX Rate Inputs'!$A$4:$Z$4,0),FALSE),"n/a")) -> 34.16826718 | AB94: =IF(LEFT($H94,5)="Barge",VLOOKUP($A94&AB$91,Barge_Rate_Master,MATCH($H94,'Barge Rate Inputs'!$A$4:$AD$4,0),FALSE),IF(LEFT($H94,3)="CSX",VLOOKUP($A94&AB$91,CSX_Rate_Master,MATCH($H94,'CSX Rate Inputs'!$A$4:$Z$4,0),FALSE),"n/a")) -> 34.85163253 | AC94: =IF(LEFT($H94,5)="Barge",VLOOKUP($A94&AC$91,Barge_Rate_Master,MATCH($H94,'Barge Rate Inputs'!$A$4:$AD$4,0),FALSE),IF(LEFT($H94,3)="CSX",VLOOKUP($A94&AC$91,CSX_Rate_Master,MATCH($H94,'CSX Rate Inputs'!$A$4:$Z$4,0),FALSE),"n/a")) -> 35.54866518 | AD94: =IF(LEFT($H94,5)="Barge",VLOOKUP($A94&AD$91,Barge_Rate_Master,MATCH($H94,'Barge Rate Inputs'!$A$4:$AD$4,0),FALSE),IF(LEFT($H94,3)="CSX",VLOOKUP($A94&AD$91,CSX_Rate_Master,MATCH($H94,'CSX Rate Inputs'!$A$4:$Z$4,0),FALSE),"n/a")) -> 36.25963848 | AE94: =IF(LEFT($H94,5)="Barge",VLOOKUP($A94&AE$91,Barge_Rate_Master,MATCH($H94,'Barge Rate Inputs'!$A$4:$AD$4,0),FALSE),IF(LEFT($H94,3)="CSX",VLOOKUP($A94&AE$91,CSX_Rate_Master,MATCH($H94,'CSX Rate Inputs'!$A$4:$Z$4,0),FALSE),"n/a")) -> 36.98483125 | AF94: =IF(LEFT($H94,5)="Barge",VLOOKUP($A94&AF$91,Barge_Rate_Master,MATCH($H94,'Barge Rate Inputs'!$A$4:$AD$4,0),FALSE),IF(LEFT($H94,3)="CSX",VLOOKUP($A94&AF$91,CSX_Rate_Master,MATCH($H94,'CSX Rate Inputs'!$A$4:$Z$4,0),FALSE),"n/a")) -> 37.72452788 | AG94: =IF(LEFT($H94,5)="Barge",VLOOKUP($A94&AG$91,Barge_Rate_Master,MATCH($H94,'Barge Rate Inputs'!$A$4:$AD$4,0),FALSE),IF(LEFT($H94,3)="CSX",VLOOKUP($A94&AG$91,CSX_Rate_Master,MATCH($H94,'CSX Rate Inputs'!$A$4:$Z$4,0),FALSE),"n/a")) -> 38.47901843 | AH94: =IF(LEFT($H94,5)="Barge",VLOOKUP($A94&AH$91,Barge_Rate_Master,MATCH($H94,'Barge Rate Inputs'!$A$4:$AD$4,0),FALSE),IF(LEFT($H94,3)="CSX",VLOOKUP($A94&AH$91,CSX_Rate_Master,MATCH($H94,'CSX Rate Inputs'!$A$4:$Z$4,0),FALSE),"n/a")) -> 39.2485988 | AI94: =IF(LEFT($H94,5)="Barge",VLOOKUP($A94&AI$91,Barge_Rate_Master,MATCH($H94,'Barge Rate Inputs'!$A$4:$AD$4,0),FALSE),IF(LEFT($H94,3)="CSX",VLOOKUP($A94&AI$91,CSX_Rate_Master,MATCH($H94,'CSX Rate Inputs'!$A$4:$Z$4,0),FALSE),"n/a")) -> 40.03357078 | AJ94: =IF(LEFT($H94,5)="Barge",VLOOKUP($A94&AJ$91,Barge_Rate_Master,MATCH($H94,'Barge Rate Inputs'!$A$4:$AD$4,0),FALSE),IF(LEFT($H94,3)="CSX",VLOOKUP($A94&AJ$91,CSX_Rate_Master,MATCH($H94,'CSX Rate Inputs'!$A$4:$Z$4,0),FALSE),"n/a")) -> 40.83424219 | AK94: =IF(LEFT($H94,5)="Barge",VLOOKUP($A94&AK$91,Barge_Rate_Master,MATCH($H94,'Barge Rate Inputs'!$A$4:$AD$4,0),FALSE),IF(LEFT($H94,3)="CSX",VLOOKUP($A94&AK$91,CSX_Rate_Master,MATCH($H94,'CSX Rate Inputs'!$A$4:$Z$4,0),FALSE),"n/a")) -> 41.65092704 | AL94: =IF(LEFT($H94,5)="Barge",VLOOKUP($A94&AL$91,Barge_Rate_Master,MATCH($H94,'Barge Rate Inputs'!$A$4:$AD$4,0),FALSE),IF(LEFT($H94,3)="CSX",VLOOKUP($A94&AL$91,CSX_Rate_Master,MATCH($H94,'CSX Rate Inputs'!$A$4:$Z$4,0),FALSE),"n/a")) -> 42.48394558 | AM94: =IF(LEFT($H94,5)="Barge",VLOOKUP($A94&AM$91,Barge_Rate_Master,MATCH($H94,'Barge Rate Inputs'!$A$4:$AD$4,0),FALSE),IF(LEFT($H94,3)="CSX",VLOOKUP($A94&AM$91,CSX_Rate_Master,MATCH($H94,'CSX Rate Inputs'!$A$4:$Z$4,0),FALSE),"n/a")) -> 43.33362449 | AN94: =IF(LEFT($H94,5)="Barge",VLOOKUP($A94&AN$91,Barge_Rate_Master,MATCH($H94,'Barge Rate Inputs'!$A$4:$AD$4,0),FALSE),IF(LEFT($H94,3)="CSX",VLOOKUP($A94&AN$91,CSX_Rate_Master,MATCH($H94,'CSX Rate Inputs'!$A$4:$Z$4,0),FALSE),"n/a")) -> 44.20029698 | AO94: =IF(LEFT($H94,5)="Barge",VLOOKUP($A94&AO$91,Barge_Rate_Master,MATCH($H94,'Barge Rate Inputs'!$A$4:$AD$4,0),FALSE),IF(LEFT($H94,3)="CSX",VLOOKUP($A94&AO$91,CSX_Rate_Master,MATCH($H94,'CSX Rate Inputs'!$A$4:$Z$4,0),FALSE),"n/a")) -> 45.08430292
A95: Crystal River 4&5 | B95: =B75 -> CAPP | C95: Low-Sulfur | D95: Barge | E95: 12500 | F95: 1.67 | G95: =G75 -> 10 | H95: Barge CAPP Basin | J95: =IF(LEFT($H95,5)="Barge",VLOOKUP($A95&J$91,Barge_Rate_Master,MATCH($H95,'Barge Rate Inputs'!$A$4:$AD$4,0),FALSE),IF(LEFT($H95,3)="CSX",VLOOKUP($A95&J$91,CSX_Rate_Master,MATCH($H95,'CSX Rate Inputs'!$A$4:$Z$4,0),FALSE),"n/a")) -> 17.67310614 | K95: =IF(LEFT($H95,5)="Barge",VLOOKUP($A95&K$91,Barge_Rate_Master,MATCH($H95,'Barge Rate Inputs'!$A$4:$AD$4,0),FALSE),IF(LEFT($H95,3)="CSX",VLOOKUP($A95&K$91,CSX_Rate_Master,MATCH($H95,'CSX Rate Inputs'!$A$4:$Z$4,0),FALSE),"n/a")) -> 17.8969836 | L95: =IF(LEFT($H95,5)="Barge",VLOOKUP($A95&L$91,Barge_Rate_Master,MATCH($H95,'Barge Rate Inputs'!$A$4:$AD$4,0),FALSE),IF(LEFT($H95,3)="CSX",VLOOKUP($A95&L$91,CSX_Rate_Master,MATCH($H95,'CSX Rate Inputs'!$A$4:$Z$4,0),FALSE),"n/a")) -> 18.04652994 | M95: =IF(LEFT($H95,5)="Barge",VLOOKUP($A95&M$91,Barge_Rate_Master,MATCH($H95,'Barge Rate Inputs'!$A$4:$AD$4,0),FALSE),IF(LEFT($H95,3)="CSX",VLOOKUP($A95&M$91,CSX_Rate_Master,MATCH($H95,'CSX Rate Inputs'!$A$4:$Z$4,0),FALSE),"n/a")) -> 18.42337375 | N95: =IF(LEFT($H95,5)="Barge",VLOOKUP($A95&N$91,Barge_Rate_Master,MATCH($H95,'Barge Rate Inputs'!$A$4:$AD$4,0),FALSE),IF(LEFT($H95,3)="CSX",VLOOKUP($A95&N$91,CSX_Rate_Master,MATCH($H95,'CSX Rate Inputs'!$A$4:$Z$4,0),FALSE),"n/a")) -> 21.25875297 | O95: =IF(LEFT($H95,5)="Barge",VLOOKUP($A95&O$91,Barge_Rate_Master,MATCH($H95,'Barge Rate Inputs'!$A$4:$AD$4,0),FALSE),IF(LEFT($H95,3)="CSX",VLOOKUP($A95&O$91,CSX_Rate_Master,MATCH($H95,'CSX Rate Inputs'!$A$4:$Z$4,0),FALSE),"n/a")) -> 21.71227437 | P95: =IF(LEFT($H95,5)="Barge",VLOOKUP($A95&P$91,Barge_Rate_Master,MATCH($H95,'Barge Rate Inputs'!$A$4:$AD$4,0),FALSE),IF(LEFT($H95,3)="CSX",VLOOKUP($A95&P$91,CSX_Rate_Master,MATCH($H95,'CSX Rate Inputs'!$A$4:$Z$4,0),FALSE),"n/a")) -> 28.05588572 | Q95: =IF(LEFT($H95,5)="Barge",VLOOKUP($A95&Q$91,Barge_Rate_Master,MATCH($H95,'Barge Rate Inputs'!$A$4:$AD$4,0),FALSE),IF(LEFT($H95,3)="CSX",VLOOKUP($A95&Q$91,CSX_Rate_Master,MATCH($H95,'CSX Rate Inputs'!$A$4:$Z$4,0),FALSE),"n/a")) -> 28.50908912 | R95: =IF(LEFT($H95,5)="Barge",VLOOKUP($A95&R$91,Barge_Rate_Master,MATCH($H95,'Barge Rate Inputs'!$A$4:$AD$4,0),FALSE),IF(LEFT($H95,3)="CSX",VLOOKUP($A95&R$91,CSX_Rate_Master,MATCH($H95,'CSX Rate Inputs'!$A$4:$Z$4,0),FALSE),"n/a")) -> 29.50748835 | S95: =IF(LEFT($H95,5)="Barge",VLOOKUP($A95&S$91,Barge_Rate_Master,MATCH($H95,'Barge Rate Inputs'!$A$4:$AD$4,0),FALSE),IF(LEFT($H95,3)="CSX",VLOOKUP($A95&S$91,CSX_Rate_Master,MATCH($H95,'CSX Rate Inputs'!$A$4:$Z$4,0),FALSE),"n/a")) -> 30.27000924 | T95: =IF(LEFT($H95,5)="Barge",VLOOKUP($A95&T$91,Barge_Rate_Master,MATCH($H95,'Barge Rate Inputs'!$A$4:$AD$4,0),FALSE),IF(LEFT($H95,3)="CSX",VLOOKUP($A95&T$91,CSX_Rate_Master,MATCH($H95,'CSX Rate Inputs'!$A$4:$Z$4,0),FALSE),"n/a")) -> 31.05007592 | U95: =IF(LEFT($H95,5)="Barge",VLOOKUP($A95&U$91,Barge_Rate_Master,MATCH($H95,'Barge Rate Inputs'!$A$4:$AD$4,0),FALSE),IF(LEFT($H95,3)="CSX",VLOOKUP($A95&U$91,CSX_Rate_Master,MATCH($H95,'CSX Rate Inputs'!$A$4:$Z$4,0),FALSE),"n/a")) -> 31.80020448 | V95: =IF(LEFT($H95,5)="Barge",VLOOKUP($A95&V$91,Barge_Rate_Master,MATCH($H95,'Barge Rate Inputs'!$A$4:$AD$4,0),FALSE),IF(LEFT($H95,3)="CSX",VLOOKUP($A95&V$91,CSX_Rate_Master,MATCH($H95,'CSX Rate Inputs'!$A$4:$Z$4,0),FALSE),"n/a")) -> 39.14194398 | W95: =IF(LEFT($H95,5)="Barge",VLOOKUP($A95&W$91,Barge_Rate_Master,MATCH($H95,'Barge Rate Inputs'!$A$4:$AD$4,0),FALSE),IF(LEFT($H95,3)="CSX",VLOOKUP($A95&W$91,CSX_Rate_Master,MATCH($H95,'CSX Rate Inputs'!$A$4:$Z$4,0),FALSE),"n/a")) -> 39.99192251 | X95: =IF(LEFT($H95,5)="Barge",VLOOKUP($A95&X$91,Barge_Rate_Master,MATCH($H95,'Barge Rate Inputs'!$A$4:$AD$4,0),FALSE),IF(LEFT($H95,3)="CSX",VLOOKUP($A95&X$91,CSX_Rate_Master,MATCH($H95,'CSX Rate Inputs'!$A$4:$Z$4,0),FALSE),"n/a")) -> 40.79304617 | Y95: =IF(LEFT($H95,5)="Barge",VLOOKUP($A95&Y$91,Barge_Rate_Master,MATCH($H95,'Barge Rate Inputs'!$A$4:$AD$4,0),FALSE),IF(LEFT($H95,3)="CSX",VLOOKUP($A95&Y$91,CSX_Rate_Master,MATCH($H95,'CSX Rate Inputs'!$A$4:$Z$4,0),FALSE),"n/a")) -> 41.61052023 | Z95: =IF(LEFT($H95,5)="Barge",VLOOKUP($A95&Z$91,Barge_Rate_Master,MATCH($H95,'Barge Rate Inputs'!$A$4:$AD$4,0),FALSE),IF(LEFT($H95,3)="CSX",VLOOKUP($A95&Z$91,CSX_Rate_Master,MATCH($H95,'CSX Rate Inputs'!$A$4:$Z$4,0),FALSE),"n/a")) -> 42.51835082 | AA95: =IF(LEFT($H95,5)="Barge",VLOOKUP($A95&AA$91,Barge_Rate_Master,MATCH($H95,'Barge Rate Inputs'!$A$4:$AD$4,0),FALSE),IF(LEFT($H95,3)="CSX",VLOOKUP($A95&AA$91,CSX_Rate_Master,MATCH($H95,'CSX Rate Inputs'!$A$4:$Z$4,0),FALSE),"n/a")) -> 43.36467087 | AB95: =IF(LEFT($H95,5)="Barge",VLOOKUP($A95&AB$91,Barge_Rate_Master,MATCH($H95,'Barge Rate Inputs'!$A$4:$AD$4,0),FALSE),IF(LEFT($H95,3)="CSX",VLOOKUP($A95&AB$91,CSX_Rate_Master,MATCH($H95,'CSX Rate Inputs'!$A$4:$Z$4,0),FALSE),"n/a")) -> 44.23905578 | AC95: =IF(LEFT($H95,5)="Barge",VLOOKUP($A95&AC$91,Barge_Rate_Master,MATCH($H95,'Barge Rate Inputs'!$A$4:$AD$4,0),FALSE),IF(LEFT($H95,3)="CSX",VLOOKUP($A95&AC$91,CSX_Rate_Master,MATCH($H95,'CSX Rate Inputs'!$A$4:$Z$4,0),FALSE),"n/a")) -> 45.21605805 | AD95: =IF(LEFT($H95,5)="Barge",VLOOKUP($A95&AD$91,Barge_Rate_Master,MATCH($H95,'Barge Rate Inputs'!$A$4:$AD$4,0),FALSE),IF(LEFT($H95,3)="CSX",VLOOKUP($A95&AD$91,CSX_Rate_Master,MATCH($H95,'CSX Rate Inputs'!$A$4:$Z$4,0),FALSE),"n/a")) -> 46.12820189 | AE95: =IF(LEFT($H95,5)="Barge",VLOOKUP($A95&AE$91,Barge_Rate_Master,MATCH($H95,'Barge Rate Inputs'!$A$4:$AD$4,0),FALSE),IF(LEFT($H95,3)="CSX",VLOOKUP($A95&AE$91,CSX_Rate_Master,MATCH($H95,'CSX Rate Inputs'!$A$4:$Z$4,0),FALSE),"n/a")) -> 47.05957581 | AF95: =IF(LEFT($H95,5)="Barge",VLOOKUP($A95&AF$91,Barge_Rate_Master,MATCH($H95,'Barge Rate Inputs'!$A$4:$AD$4,0),FALSE),IF(LEFT($H95,3)="CSX",VLOOKUP($A95&AF$91,CSX_Rate_Master,MATCH($H95,'CSX Rate Inputs'!$A$4:$Z$4,0),FALSE),"n/a")) -> 47.92596157 | AG95: =IF(LEFT($H95,5)="Barge",VLOOKUP($A95&AG$91,Barge_Rate_Master,MATCH($H95,'Barge Rate Inputs'!$A$4:$AD$4,0),FALSE),IF(LEFT($H95,3)="CSX",VLOOKUP($A95&AG$91,CSX_Rate_Master,MATCH($H95,'CSX Rate Inputs'!$A$4:$Z$4,0),FALSE),"n/a")) -> 48.90903259 | AH95: =IF(LEFT($H95,5)="Barge",VLOOKUP($A95&AH$91,Barge_Rate_Master,MATCH($H95,'Barge Rate Inputs'!$A$4:$AD$4,0),FALSE),IF(LEFT($H95,3)="CSX",VLOOKUP($A95&AH$91,CSX_Rate_Master,MATCH($H95,'CSX Rate Inputs'!$A$4:$Z$4,0),FALSE),"n/a")) -> 49.91505329 | AI95: =IF(LEFT($H95,5)="Barge",VLOOKUP($A95&AI$91,Barge_Rate_Master,MATCH($H95,'Barge Rate Inputs'!$A$4:$AD$4,0),FALSE),IF(LEFT($H95,3)="CSX",VLOOKUP($A95&AI$91,CSX_Rate_Master,MATCH($H95,'CSX Rate Inputs'!$A$4:$Z$4,0),FALSE),"n/a")) -> 50.85417385 | AJ95: =IF(LEFT($H95,5)="Barge",VLOOKUP($A95&AJ$91,Barge_Rate_Master,MATCH($H95,'Barge Rate Inputs'!$A$4:$AD$4,0),FALSE),IF(LEFT($H95,3)="CSX",VLOOKUP($A95&AJ$91,CSX_Rate_Master,MATCH($H95,'CSX Rate Inputs'!$A$4:$Z$4,0),FALSE),"n/a")) -> 51.93155517 | AK95: =IF(LEFT($H95,5)="Barge",VLOOKUP($A95&AK$91,Barge_Rate_Master,MATCH($H95,'Barge Rate Inputs'!$A$4:$AD$4,0),FALSE),IF(LEFT($H95,3)="CSX",VLOOKUP($A95&AK$91,CSX_Rate_Master,MATCH($H95,'CSX Rate Inputs'!$A$4:$Z$4,0),FALSE),"n/a")) -> 52.83990117 | AL95: =IF(LEFT($H95,5)="Barge",VLOOKUP($A95&AL$91,Barge_Rate_Master,MATCH($H95,'Barge Rate Inputs'!$A$4:$AD$4,0),FALSE),IF(LEFT($H95,3)="CSX",VLOOKUP($A95&AL$91,CSX_Rate_Master,MATCH($H95,'CSX Rate Inputs'!$A$4:$Z$4,0),FALSE),"n/a")) -> 53.95377526 | AM95: =IF(LEFT($H95,5)="Barge",VLOOKUP($A95&AM$91,Barge_Rate_Master,MATCH($H95,'Barge Rate Inputs'!$A$4:$AD$4,0),FALSE),IF(LEFT($H95,3)="CSX",VLOOKUP($A95&AM$91,CSX_Rate_Master,MATCH($H95,'CSX Rate Inputs'!$A$4:$Z$4,0),FALSE),"n/a")) -> 55.08846019 | AN95: =IF(LEFT($H95,5)="Barge",VLOOKUP($A95&AN$91,Barge_Rate_Master,MATCH($H95,'Barge Rate Inputs'!$A$4:$AD$4,0),FALSE),IF(LEFT($H95,3)="CSX",VLOOKUP($A95&AN$91,CSX_Rate_Master,MATCH($H95,'CSX Rate Inputs'!$A$4:$Z$4,0),FALSE),"n/a")) -> 56.0439119 | AO95: =IF(LEFT($H95,5)="Barge",VLOOKUP($A95&AO$91,Barge_Rate_Master,MATCH($H95,'Barge Rate Inputs'!$A$4:$AD$4,0),FALSE),IF(LEFT($H95,3)="CSX",VLOOKUP($A95&AO$91,CSX_Rate_Master,MATCH($H95,'CSX Rate Inputs'!$A$4:$Z$4,0),FALSE),"n/a")) -> 57.22090595
A96: Crystal River 4&5 | B96: ILB | C96: Illinois | D96: Rail | E96: 11500 | F96: =F76 -> 5 | G96: =G76 -> 10 | H96: CSX CN Galatia | J96: =IF(LEFT($H96,5)="Barge",VLOOKUP($A96&J$91,Barge_Rate_Master,MATCH($H96,'Barge Rate Inputs'!$A$4:$AD$4,0),FALSE),IF(LEFT($H96,3)="CSX",VLOOKUP($A96&J$91,CSX_Rate_Master,MATCH($H96,'CSX Rate Inputs'!$A$4:$Z$4,0),FALSE),"n/a")) -> 23.00770298 | K96: =IF(LEFT($H96,5)="Barge",VLOOKUP($A96&K$91,Barge_Rate_Master,MATCH($H96,'Barge Rate Inputs'!$A$4:$AD$4,0),FALSE),IF(LEFT($H96,3)="CSX",VLOOKUP($A96&K$91,CSX_Rate_Master,MATCH($H96,'CSX Rate Inputs'!$A$4:$Z$4,0),FALSE),"n/a")) -> 23.00770298 | L96: =IF(LEFT($H96,5)="Barge",VLOOKUP($A96&L$91,Barge_Rate_Master,MATCH($H96,'Barge Rate Inputs'!$A$4:$AD$4,0),FALSE),IF(LEFT($H96,3)="CSX",VLOOKUP($A96&L$91,CSX_Rate_Master,MATCH($H96,'CSX Rate Inputs'!$A$4:$Z$4,0),FALSE),"n/a")) -> 23.59764723 | M96: =IF(LEFT($H96,5)="Barge",VLOOKUP($A96&M$91,Barge_Rate_Master,MATCH($H96,'Barge Rate Inputs'!$A$4:$AD$4,0),FALSE),IF(LEFT($H96,3)="CSX",VLOOKUP($A96&M$91,CSX_Rate_Master,MATCH($H96,'CSX Rate Inputs'!$A$4:$Z$4,0),FALSE),"n/a")) -> 24.09928854 | N96: =IF(LEFT($H96,5)="Barge",VLOOKUP($A96&N$91,Barge_Rate_Master,MATCH($H96,'Barge Rate Inputs'!$A$4:$AD$4,0),FALSE),IF(LEFT($H96,3)="CSX",VLOOKUP($A96&N$91,CSX_Rate_Master,MATCH($H96,'CSX Rate Inputs'!$A$4:$Z$4,0),FALSE),"n/a")) -> 24.69925158 | O96: =IF(LEFT($H96,5)="Barge",VLOOKUP($A96&O$91,Barge_Rate_Master,MATCH($H96,'Barge Rate Inputs'!$A$4:$AD$4,0),FALSE),IF(LEFT($H96,3)="CSX",VLOOKUP($A96&O$91,CSX_Rate_Master,MATCH($H96,'CSX Rate Inputs'!$A$4:$Z$4,0),FALSE),"n/a")) -> 25.33333476 | P96: =IF(LEFT($H96,5)="Barge",VLOOKUP($A96&P$91,Barge_Rate_Master,MATCH($H96,'Barge Rate Inputs'!$A$4:$AD$4,0),FALSE),IF(LEFT($H96,3)="CSX",VLOOKUP($A96&P$91,CSX_Rate_Master,MATCH($H96,'CSX Rate Inputs'!$A$4:$Z$4,0),FALSE),"n/a")) -> 25.95884368 | Q96: =IF(LEFT($H96,5)="Barge",VLOOKUP($A96&Q$91,Barge_Rate_Master,MATCH($H96,'Barge Rate Inputs'!$A$4:$AD$4,0),FALSE),IF(LEFT($H96,3)="CSX",VLOOKUP($A96&Q$91,CSX_Rate_Master,MATCH($H96,'CSX Rate Inputs'!$A$4:$Z$4,0),FALSE),"n/a")) -> 26.60781477 | R96: =IF(LEFT($H96,5)="Barge",VLOOKUP($A96&R$91,Barge_Rate_Master,MATCH($H96,'Barge Rate Inputs'!$A$4:$AD$4,0),FALSE),IF(LEFT($H96,3)="CSX",VLOOKUP($A96&R$91,CSX_Rate_Master,MATCH($H96,'CSX Rate Inputs'!$A$4:$Z$4,0),FALSE),"n/a")) -> 27.13997106 | S96: =IF(LEFT($H96,5)="Barge",VLOOKUP($A96&S$91,Barge_Rate_Master,MATCH($H96,'Barge Rate Inputs'!$A$4:$AD$4,0),FALSE),IF(LEFT($H96,3)="CSX",VLOOKUP($A96&S$91,CSX_Rate_Master,MATCH($H96,'CSX Rate Inputs'!$A$4:$Z$4,0),FALSE),"n/a")) -> 27.68277048 | T96: =IF(LEFT($H96,5)="Barge",VLOOKUP($A96&T$91,Barge_Rate_Master,MATCH($H96,'Barge Rate Inputs'!$A$4:$AD$4,0),FALSE),IF(LEFT($H96,3)="CSX",VLOOKUP($A96&T$91,CSX_Rate_Master,MATCH($H96,'CSX Rate Inputs'!$A$4:$Z$4,0),FALSE),"n/a")) -> 28.23642589 | U96: =IF(LEFT($H96,5)="Barge",VLOOKUP($A96&U$91,Barge_Rate_Master,MATCH($H96,'Barge Rate Inputs'!$A$4:$AD$4,0),FALSE),IF(LEFT($H96,3)="CSX",VLOOKUP($A96&U$91,CSX_Rate_Master,MATCH($H96,'CSX Rate Inputs'!$A$4:$Z$4,0),FALSE),"n/a")) -> 28.80115441 | V96: =IF(LEFT($H96,5)="Barge",VLOOKUP($A96&V$91,Barge_Rate_Master,MATCH($H96,'Barge Rate Inputs'!$A$4:$AD$4,0),FALSE),IF(LEFT($H96,3)="CSX",VLOOKUP($A96&V$91,CSX_Rate_Master,MATCH($H96,'CSX Rate Inputs'!$A$4:$Z$4,0),FALSE),"n/a")) -> 29.3771775 | W96: =IF(LEFT($H96,5)="Barge",VLOOKUP($A96&W$91,Barge_Rate_Master,MATCH($H96,'Barge Rate Inputs'!$A$4:$AD$4,0),FALSE),IF(LEFT($H96,3)="CSX",VLOOKUP($A96&W$91,CSX_Rate_Master,MATCH($H96,'CSX Rate Inputs'!$A$4:$Z$4,0),FALSE),"n/a")) -> 29.96472105 | X96: =IF(LEFT($H96,5)="Barge",VLOOKUP($A96&X$91,Barge_Rate_Master,MATCH($H96,'Barge Rate Inputs'!$A$4:$AD$4,0),FALSE),IF(LEFT($H96,3)="CSX",VLOOKUP($A96&X$91,CSX_Rate_Master,MATCH($H96,'CSX Rate Inputs'!$A$4:$Z$4,0),FALSE),"n/a")) -> 30.56401547 | Y96: =IF(LEFT($H96,5)="Barge",VLOOKUP($A96&Y$91,Barge_Rate_Master,MATCH($H96,'Barge Rate Inputs'!$A$4:$AD$4,0),FALSE),IF(LEFT($H96,3)="CSX",VLOOKUP($A96&Y$91,CSX_Rate_Master,MATCH($H96,'CSX Rate Inputs'!$A$4:$Z$4,0),FALSE),"n/a")) -> 31.17529578 | Z96: =IF(LEFT($H96,5)="Barge",VLOOKUP($A96&Z$91,Barge_Rate_Master,MATCH($H96,'Barge Rate Inputs'!$A$4:$AD$4,0),FALSE),IF(LEFT($H96,3)="CSX",VLOOKUP($A96&Z$91,CSX_Rate_Master,MATCH($H96,'CSX Rate Inputs'!$A$4:$Z$4,0),FALSE),"n/a")) -> 31.7988017 | AA96: =IF(LEFT($H96,5)="Barge",VLOOKUP($A96&AA$91,Barge_Rate_Master,MATCH($H96,'Barge Rate Inputs'!$A$4:$AD$4,0),FALSE),IF(LEFT($H96,3)="CSX",VLOOKUP($A96&AA$91,CSX_Rate_Master,MATCH($H96,'CSX Rate Inputs'!$A$4:$Z$4,0),FALSE),"n/a")) -> 32.43477773 | AB96: =IF(LEFT($H96,5)="Barge",VLOOKUP($A96&AB$91,Barge_Rate_Master,MATCH($H96,'Barge Rate Inputs'!$A$4:$AD$4,0),FALSE),IF(LEFT($H96,3)="CSX",VLOOKUP($A96&AB$91,CSX_Rate_Master,MATCH($H96,'CSX Rate Inputs'!$A$4:$Z$4,0),FALSE),"n/a")) -> 33.08347329 | AC96: =IF(LEFT($H96,5)="Barge",VLOOKUP($A96&AC$91,Barge_Rate_Master,MATCH($H96,'Barge Rate Inputs'!$A$4:$AD$4,0),FALSE),IF(LEFT($H96,3)="CSX",VLOOKUP($A96&AC$91,CSX_Rate_Master,MATCH($H96,'CSX Rate Inputs'!$A$4:$Z$4,0),FALSE),"n/a")) -> 33.74514275 | AD96: =IF(LEFT($H96,5)="Barge",VLOOKUP($A96&AD$91,Barge_Rate_Master,MATCH($H96,'Barge Rate Inputs'!$A$4:$AD$4,0),FALSE),IF(LEFT($H96,3)="CSX",VLOOKUP($A96&AD$91,CSX_Rate_Master,MATCH($H96,'CSX Rate Inputs'!$A$4:$Z$4,0),FALSE),"n/a")) -> 34.42004561 | AE96: =IF(LEFT($H96,5)="Barge",VLOOKUP($A96&AE$91,Barge_Rate_Master,MATCH($H96,'Barge Rate Inputs'!$A$4:$AD$4,0),FALSE),IF(LEFT($H96,3)="CSX",VLOOKUP($A96&AE$91,CSX_Rate_Master,MATCH($H96,'CSX Rate Inputs'!$A$4:$Z$4,0),FALSE),"n/a")) -> 35.10844652 | AF96: =IF(LEFT($H96,5)="Barge",VLOOKUP($A96&AF$91,Barge_Rate_Master,MATCH($H96,'Barge Rate Inputs'!$A$4:$AD$4,0),FALSE),IF(LEFT($H96,3)="CSX",VLOOKUP($A96&AF$91,CSX_Rate_Master,MATCH($H96,'CSX Rate Inputs'!$A$4:$Z$4,0),FALSE),"n/a")) -> 35.81061545 | AG96: =IF(LEFT($H96,5)="Barge",VLOOKUP($A96&AG$91,Barge_Rate_Master,MATCH($H96,'Barge Rate Inputs'!$A$4:$AD$4,0),FALSE),IF(LEFT($H96,3)="CSX",VLOOKUP($A96&AG$91,CSX_Rate_Master,MATCH($H96,'CSX Rate Inputs'!$A$4:$Z$4,0),FALSE),"n/a")) -> 36.52682776 | AH96: =IF(LEFT($H96,5)="Barge",VLOOKUP($A96&AH$91,Barge_Rate_Master,MATCH($H96,'Barge Rate Inputs'!$A$4:$AD$4,0),FALSE),IF(LEFT($H96,3)="CSX",VLOOKUP($A96&AH$91,CSX_Rate_Master,MATCH($H96,'CSX Rate Inputs'!$A$4:$Z$4,0),FALSE),"n/a")) -> 37.25736431 | AI96: =IF(LEFT($H96,5)="Barge",VLOOKUP($A96&AI$91,Barge_Rate_Master,MATCH($H96,'Barge Rate Inputs'!$A$4:$AD$4,0),FALSE),IF(LEFT($H96,3)="CSX",VLOOKUP($A96&AI$91,CSX_Rate_Master,MATCH($H96,'CSX Rate Inputs'!$A$4:$Z$4,0),FALSE),"n/a")) -> 38.0025116 | AJ96: =IF(LEFT($H96,5)="Barge",VLOOKUP($A96&AJ$91,Barge_Rate_Master,MATCH($H96,'Barge Rate Inputs'!$A$4:$AD$4,0),FALSE),IF(LEFT($H96,3)="CSX",VLOOKUP($A96&AJ$91,CSX_Rate_Master,MATCH($H96,'CSX Rate Inputs'!$A$4:$Z$4,0),FALSE),"n/a")) -> 38.76256183 | AK96: =IF(LEFT($H96,5)="Barge",VLOOKUP($A96&AK$91,Barge_Rate_Master,MATCH($H96,'Barge Rate Inputs'!$A$4:$AD$4,0),FALSE),IF(LEFT($H96,3)="CSX",VLOOKUP($A96&AK$91,CSX_Rate_Master,MATCH($H96,'CSX Rate Inputs'!$A$4:$Z$4,0),FALSE),"n/a")) -> 39.53781307 | AL96: =IF(LEFT($H96,5)="Barge",VLOOKUP($A96&AL$91,Barge_Rate_Master,MATCH($H96,'Barge Rate Inputs'!$A$4:$AD$4,0),FALSE),IF(LEFT($H96,3)="CSX",VLOOKUP($A96&AL$91,CSX_Rate_Master,MATCH($H96,'CSX Rate Inputs'!$A$4:$Z$4,0),FALSE),"n/a")) -> 40.32856933 | AM96: =IF(LEFT($H96,5)="Barge",VLOOKUP($A96&AM$91,Barge_Rate_Master,MATCH($H96,'Barge Rate Inputs'!$A$4:$AD$4,0),FALSE),IF(LEFT($H96,3)="CSX",VLOOKUP($A96&AM$91,CSX_Rate_Master,MATCH($H96,'CSX Rate Inputs'!$A$4:$Z$4,0),FALSE),"n/a")) -> 41.13514072 | AN96: =IF(LEFT($H96,5)="Barge",VLOOKUP($A96&AN$91,Barge_Rate_Master,MATCH($H96,'Barge Rate Inputs'!$A$4:$AD$4,0),FALSE),IF(LEFT($H96,3)="CSX",VLOOKUP($A96&AN$91,CSX_Rate_Master,MATCH($H96,'CSX Rate Inputs'!$A$4:$Z$4,0),FALSE),"n/a")) -> 41.95784353 | AO96: =IF(LEFT($H96,5)="Barge",VLOOKUP($A96&AO$91,Barge_Rate_Master,MATCH($H96,'Barge Rate Inputs'!$A$4:$AD$4,0),FALSE),IF(LEFT($H96,3)="CSX",VLOOKUP($A96&AO$91,CSX_Rate_Master,MATCH($H96,'CSX Rate Inputs'!$A$4:$Z$4,0),FALSE),"n/a")) -> 42.7970004
A97: Crystal River 4&5 | B97: ILB | C97: Illinois | D97: Barge | E97: 11500 | F97: =F77 -> 5 | G97: =G77 -> 10 | H97: Barge ILB OH River | J97: =IF(LEFT($H97,5)="Barge",VLOOKUP($A97&J$91,Barge_Rate_Master,MATCH($H97,'Barge Rate Inputs'!$A$4:$AD$4,0),FALSE),IF(LEFT($H97,3)="CSX",VLOOKUP($A97&J$91,CSX_Rate_Master,MATCH($H97,'CSX Rate Inputs'!$A$4:$Z$4,0),FALSE),"n/a")) -> 12.82875179 | K97: =IF(LEFT($H97,5)="Barge",VLOOKUP($A97&K$91,Barge_Rate_Master,MATCH($H97,'Barge Rate Inputs'!$A$4:$AD$4,0),FALSE),IF(LEFT($H97,3)="CSX",VLOOKUP($A97&K$91,CSX_Rate_Master,MATCH($H97,'CSX Rate Inputs'!$A$4:$Z$4,0),FALSE),"n/a")) -> 12.9909917 | L97: =IF(LEFT($H97,5)="Barge",VLOOKUP($A97&L$91,Barge_Rate_Master,MATCH($H97,'Barge Rate Inputs'!$A$4:$AD$4,0),FALSE),IF(LEFT($H97,3)="CSX",VLOOKUP($A97&L$91,CSX_Rate_Master,MATCH($H97,'CSX Rate Inputs'!$A$4:$Z$4,0),FALSE),"n/a")) -> 13.09674292 | M97: =IF(LEFT($H97,5)="Barge",VLOOKUP($A97&M$91,Barge_Rate_Master,MATCH($H97,'Barge Rate Inputs'!$A$4:$AD$4,0),FALSE),IF(LEFT($H97,3)="CSX",VLOOKUP($A97&M$91,CSX_Rate_Master,MATCH($H97,'CSX Rate Inputs'!$A$4:$Z$4,0),FALSE),"n/a")) -> 13.37040349 | N97: =IF(LEFT($H97,5)="Barge",VLOOKUP($A97&N$91,Barge_Rate_Master,MATCH($H97,'Barge Rate Inputs'!$A$4:$AD$4,0),FALSE),IF(LEFT($H97,3)="CSX",VLOOKUP($A97&N$91,CSX_Rate_Master,MATCH($H97,'CSX Rate Inputs'!$A$4:$Z$4,0),FALSE),"n/a")) -> 16.09741677 | O97: =IF(LEFT($H97,5)="Barge",VLOOKUP($A97&O$91,Barge_Rate_Master,MATCH($H97,'Barge Rate Inputs'!$A$4:$AD$4,0),FALSE),IF(LEFT($H97,3)="CSX",VLOOKUP($A97&O$91,CSX_Rate_Master,MATCH($H97,'CSX Rate Inputs'!$A$4:$Z$4,0),FALSE),"n/a")) -> 16.44027921 | P97: =IF(LEFT($H97,5)="Barge",VLOOKUP($A97&P$91,Barge_Rate_Master,MATCH($H97,'Barge Rate Inputs'!$A$4:$AD$4,0),FALSE),IF(LEFT($H97,3)="CSX",VLOOKUP($A97&P$91,CSX_Rate_Master,MATCH($H97,'CSX Rate Inputs'!$A$4:$Z$4,0),FALSE),"n/a")) -> 22.67100133 | Q97: =IF(LEFT($H97,5)="Barge",VLOOKUP($A97&Q$91,Barge_Rate_Master,MATCH($H97,'Barge Rate Inputs'!$A$4:$AD$4,0),FALSE),IF(LEFT($H97,3)="CSX",VLOOKUP($A97&Q$91,CSX_Rate_Master,MATCH($H97,'CSX Rate Inputs'!$A$4:$Z$4,0),FALSE),"n/a")) -> 22.99666427 | R97: =IF(LEFT($H97,5)="Barge",VLOOKUP($A97&R$91,Barge_Rate_Master,MATCH($H97,'Barge Rate Inputs'!$A$4:$AD$4,0),FALSE),IF(LEFT($H97,3)="CSX",VLOOKUP($A97&R$91,CSX_Rate_Master,MATCH($H97,'CSX Rate Inputs'!$A$4:$Z$4,0),FALSE),"n/a")) -> 23.84883114 | S97: =IF(LEFT($H97,5)="Barge",VLOOKUP($A97&S$91,Barge_Rate_Master,MATCH($H97,'Barge Rate Inputs'!$A$4:$AD$4,0),FALSE),IF(LEFT($H97,3)="CSX",VLOOKUP($A97&S$91,CSX_Rate_Master,MATCH($H97,'CSX Rate Inputs'!$A$4:$Z$4,0),FALSE),"n/a")) -> 24.45321501 | T97: =IF(LEFT($H97,5)="Barge",VLOOKUP($A97&T$91,Barge_Rate_Master,MATCH($H97,'Barge Rate Inputs'!$A$4:$AD$4,0),FALSE),IF(LEFT($H97,3)="CSX",VLOOKUP($A97&T$91,CSX_Rate_Master,MATCH($H97,'CSX Rate Inputs'!$A$4:$Z$4,0),FALSE),"n/a")) -> 25.07138315 | U97: =IF(LEFT($H97,5)="Barge",VLOOKUP($A97&U$91,Barge_Rate_Master,MATCH($H97,'Barge Rate Inputs'!$A$4:$AD$4,0),FALSE),IF(LEFT($H97,3)="CSX",VLOOKUP($A97&U$91,CSX_Rate_Master,MATCH($H97,'CSX Rate Inputs'!$A$4:$Z$4,0),FALSE),"n/a")) -> 25.66825441 | V97: =IF(LEFT($H97,5)="Barge",VLOOKUP($A97&V$91,Barge_Rate_Master,MATCH($H97,'Barge Rate Inputs'!$A$4:$AD$4,0),FALSE),IF(LEFT($H97,3)="CSX",VLOOKUP($A97&V$91,CSX_Rate_Master,MATCH($H97,'CSX Rate Inputs'!$A$4:$Z$4,0),FALSE),"n/a")) -> 32.88129759 | W97: =IF(LEFT($H97,5)="Barge",VLOOKUP($A97&W$91,Barge_Rate_Master,MATCH($H97,'Barge Rate Inputs'!$A$4:$AD$4,0),FALSE),IF(LEFT($H97,3)="CSX",VLOOKUP($A97&W$91,CSX_Rate_Master,MATCH($H97,'CSX Rate Inputs'!$A$4:$Z$4,0),FALSE),"n/a")) -> 33.60152489 | X97: =IF(LEFT($H97,5)="Barge",VLOOKUP($A97&X$91,Barge_Rate_Master,MATCH($H97,'Barge Rate Inputs'!$A$4:$AD$4,0),FALSE),IF(LEFT($H97,3)="CSX",VLOOKUP($A97&X$91,CSX_Rate_Master,MATCH($H97,'CSX Rate Inputs'!$A$4:$Z$4,0),FALSE),"n/a")) -> 34.26782236 | Y97: =IF(LEFT($H97,5)="Barge",VLOOKUP($A97&Y$91,Barge_Rate_Master,MATCH($H97,'Barge Rate Inputs'!$A$4:$AD$4,0),FALSE),IF(LEFT($H97,3)="CSX",VLOOKUP($A97&Y$91,CSX_Rate_Master,MATCH($H97,'CSX Rate Inputs'!$A$4:$Z$4,0),FALSE),"n/a")) -> 34.94768817 | Z97: =IF(LEFT($H97,5)="Barge",VLOOKUP($A97&Z$91,Barge_Rate_Master,MATCH($H97,'Barge Rate Inputs'!$A$4:$AD$4,0),FALSE),IF(LEFT($H97,3)="CSX",VLOOKUP($A97&Z$91,CSX_Rate_Master,MATCH($H97,'CSX Rate Inputs'!$A$4:$Z$4,0),FALSE),"n/a")) -> 35.71630583 | AA97: =IF(LEFT($H97,5)="Barge",VLOOKUP($A97&AA$91,Barge_Rate_Master,MATCH($H97,'Barge Rate Inputs'!$A$4:$AD$4,0),FALSE),IF(LEFT($H97,3)="CSX",VLOOKUP($A97&AA$91,CSX_Rate_Master,MATCH($H97,'CSX Rate Inputs'!$A$4:$Z$4,0),FALSE),"n/a")) -> 36.42054861 | AB97: =IF(LEFT($H97,5)="Barge",VLOOKUP($A97&AB$91,Barge_Rate_Master,MATCH($H97,'Barge Rate Inputs'!$A$4:$AD$4,0),FALSE),IF(LEFT($H97,3)="CSX",VLOOKUP($A97&AB$91,CSX_Rate_Master,MATCH($H97,'CSX Rate Inputs'!$A$4:$Z$4,0),FALSE),"n/a")) -> 37.14710919 | AC97: =IF(LEFT($H97,5)="Barge",VLOOKUP($A97&AC$91,Barge_Rate_Master,MATCH($H97,'Barge Rate Inputs'!$A$4:$AD$4,0),FALSE),IF(LEFT($H97,3)="CSX",VLOOKUP($A97&AC$91,CSX_Rate_Master,MATCH($H97,'CSX Rate Inputs'!$A$4:$Z$4,0),FALSE),"n/a")) -> 37.97282861 | AD97: =IF(LEFT($H97,5)="Barge",VLOOKUP($A97&AD$91,Barge_Rate_Master,MATCH($H97,'Barge Rate Inputs'!$A$4:$AD$4,0),FALSE),IF(LEFT($H97,3)="CSX",VLOOKUP($A97&AD$91,CSX_Rate_Master,MATCH($H97,'CSX Rate Inputs'!$A$4:$Z$4,0),FALSE),"n/a")) -> 38.73054114 | AE97: =IF(LEFT($H97,5)="Barge",VLOOKUP($A97&AE$91,Barge_Rate_Master,MATCH($H97,'Barge Rate Inputs'!$A$4:$AD$4,0),FALSE),IF(LEFT($H97,3)="CSX",VLOOKUP($A97&AE$91,CSX_Rate_Master,MATCH($H97,'CSX Rate Inputs'!$A$4:$Z$4,0),FALSE),"n/a")) -> 39.50413762 | AF97: =IF(LEFT($H97,5)="Barge",VLOOKUP($A97&AF$91,Barge_Rate_Master,MATCH($H97,'Barge Rate Inputs'!$A$4:$AD$4,0),FALSE),IF(LEFT($H97,3)="CSX",VLOOKUP($A97&AF$91,CSX_Rate_Master,MATCH($H97,'CSX Rate Inputs'!$A$4:$Z$4,0),FALSE),"n/a")) -> 40.25443491 | AG97: =IF(LEFT($H97,5)="Barge",VLOOKUP($A97&AG$91,Barge_Rate_Master,MATCH($H97,'Barge Rate Inputs'!$A$4:$AD$4,0),FALSE),IF(LEFT($H97,3)="CSX",VLOOKUP($A97&AG$91,CSX_Rate_Master,MATCH($H97,'CSX Rate Inputs'!$A$4:$Z$4,0),FALSE),"n/a")) -> 41.06968415 | AH97: =IF(LEFT($H97,5)="Barge",VLOOKUP($A97&AH$91,Barge_Rate_Master,MATCH($H97,'Barge Rate Inputs'!$A$4:$AD$4,0),FALSE),IF(LEFT($H97,3)="CSX",VLOOKUP($A97&AH$91,CSX_Rate_Master,MATCH($H97,'CSX Rate Inputs'!$A$4:$Z$4,0),FALSE),"n/a")) -> 41.90366888 | AI97: =IF(LEFT($H97,5)="Barge",VLOOKUP($A97&AI$91,Barge_Rate_Master,MATCH($H97,'Barge Rate Inputs'!$A$4:$AD$4,0),FALSE),IF(LEFT($H97,3)="CSX",VLOOKUP($A97&AI$91,CSX_Rate_Master,MATCH($H97,'CSX Rate Inputs'!$A$4:$Z$4,0),FALSE),"n/a")) -> 42.71445526 | AJ97: =IF(LEFT($H97,5)="Barge",VLOOKUP($A97&AJ$91,Barge_Rate_Master,MATCH($H97,'Barge Rate Inputs'!$A$4:$AD$4,0),FALSE),IF(LEFT($H97,3)="CSX",VLOOKUP($A97&AJ$91,CSX_Rate_Master,MATCH($H97,'CSX Rate Inputs'!$A$4:$Z$4,0),FALSE),"n/a")) -> 43.61331321 | AK97: =IF(LEFT($H97,5)="Barge",VLOOKUP($A97&AK$91,Barge_Rate_Master,MATCH($H97,'Barge Rate Inputs'!$A$4:$AD$4,0),FALSE),IF(LEFT($H97,3)="CSX",VLOOKUP($A97&AK$91,CSX_Rate_Master,MATCH($H97,'CSX Rate Inputs'!$A$4:$Z$4,0),FALSE),"n/a")) -> 44.3892799 | AL97: =IF(LEFT($H97,5)="Barge",VLOOKUP($A97&AL$91,Barge_Rate_Master,MATCH($H97,'Barge Rate Inputs'!$A$4:$AD$4,0),FALSE),IF(LEFT($H97,3)="CSX",VLOOKUP($A97&AL$91,CSX_Rate_Master,MATCH($H97,'CSX Rate Inputs'!$A$4:$Z$4,0),FALSE),"n/a")) -> 45.31925298 | AM97: =IF(LEFT($H97,5)="Barge",VLOOKUP($A97&AM$91,Barge_Rate_Master,MATCH($H97,'Barge Rate Inputs'!$A$4:$AD$4,0),FALSE),IF(LEFT($H97,3)="CSX",VLOOKUP($A97&AM$91,CSX_Rate_Master,MATCH($H97,'CSX Rate Inputs'!$A$4:$Z$4,0),FALSE),"n/a")) -> 46.26674147 | AN97: =IF(LEFT($H97,5)="Barge",VLOOKUP($A97&AN$91,Barge_Rate_Master,MATCH($H97,'Barge Rate Inputs'!$A$4:$AD$4,0),FALSE),IF(LEFT($H97,3)="CSX",VLOOKUP($A97&AN$91,CSX_Rate_Master,MATCH($H97,'CSX Rate Inputs'!$A$4:$Z$4,0),FALSE),"n/a")) -> 47.08392646 | AO97: =IF(LEFT($H97,5)="Barge",VLOOKUP($A97&AO$91,Barge_Rate_Master,MATCH($H97,'Barge Rate Inputs'!$A$4:$AD$4,0),FALSE),IF(LEFT($H97,3)="CSX",VLOOKUP($A97&AO$91,CSX_Rate_Master,MATCH($H97,'CSX Rate Inputs'!$A$4:$Z$4,0),FALSE),"n/a")) -> 48.06708271
A98: Crystal River 4&5 | B98: ILB | C98: Illinois | D98: Rail | E98: 11500 | F98: =F78 -> 5 | G98: =G78 -> 10 | H98: CSX Sullivan | J98: =IF(LEFT($H98,5)="Barge",VLOOKUP($A98&J$91,Barge_Rate_Master,MATCH($H98,'Barge Rate Inputs'!$A$4:$AD$4,0),FALSE),IF(LEFT($H98,3)="CSX",VLOOKUP($A98&J$91,CSX_Rate_Master,MATCH($H98,'CSX Rate Inputs'!$A$4:$Z$4,0),FALSE),"n/a")) -> 20.4 | K98: =IF(LEFT($H98,5)="Barge",VLOOKUP($A98&K$91,Barge_Rate_Master,MATCH($H98,'Barge Rate Inputs'!$A$4:$AD$4,0),FALSE),IF(LEFT($H98,3)="CSX",VLOOKUP($A98&K$91,CSX_Rate_Master,MATCH($H98,'CSX Rate Inputs'!$A$4:$Z$4,0),FALSE),"n/a")) -> 21.88221269 | L98: =IF(LEFT($H98,5)="Barge",VLOOKUP($A98&L$91,Barge_Rate_Master,MATCH($H98,'Barge Rate Inputs'!$A$4:$AD$4,0),FALSE),IF(LEFT($H98,3)="CSX",VLOOKUP($A98&L$91,CSX_Rate_Master,MATCH($H98,'CSX Rate Inputs'!$A$4:$Z$4,0),FALSE),"n/a")) -> 22.42918469 | M98: =IF(LEFT($H98,5)="Barge",VLOOKUP($A98&M$91,Barge_Rate_Master,MATCH($H98,'Barge Rate Inputs'!$A$4:$AD$4,0),FALSE),IF(LEFT($H98,3)="CSX",VLOOKUP($A98&M$91,CSX_Rate_Master,MATCH($H98,'CSX Rate Inputs'!$A$4:$Z$4,0),FALSE),"n/a")) -> 22.93601506 | N98: =IF(LEFT($H98,5)="Barge",VLOOKUP($A98&N$91,Barge_Rate_Master,MATCH($H98,'Barge Rate Inputs'!$A$4:$AD$4,0),FALSE),IF(LEFT($H98,3)="CSX",VLOOKUP($A98&N$91,CSX_Rate_Master,MATCH($H98,'CSX Rate Inputs'!$A$4:$Z$4,0),FALSE),"n/a")) -> 23.49996397 | O98: =IF(LEFT($H98,5)="Barge",VLOOKUP($A98&O$91,Barge_Rate_Master,MATCH($H98,'Barge Rate Inputs'!$A$4:$AD$4,0),FALSE),IF(LEFT($H98,3)="CSX",VLOOKUP($A98&O$91,CSX_Rate_Master,MATCH($H98,'CSX Rate Inputs'!$A$4:$Z$4,0),FALSE),"n/a")) -> 24.08776506 | P98: =IF(LEFT($H98,5)="Barge",VLOOKUP($A98&P$91,Barge_Rate_Master,MATCH($H98,'Barge Rate Inputs'!$A$4:$AD$4,0),FALSE),IF(LEFT($H98,3)="CSX",VLOOKUP($A98&P$91,CSX_Rate_Master,MATCH($H98,'CSX Rate Inputs'!$A$4:$Z$4,0),FALSE),"n/a")) -> 24.67734781 | Q98: =IF(LEFT($H98,5)="Barge",VLOOKUP($A98&Q$91,Barge_Rate_Master,MATCH($H98,'Barge Rate Inputs'!$A$4:$AD$4,0),FALSE),IF(LEFT($H98,3)="CSX",VLOOKUP($A98&Q$91,CSX_Rate_Master,MATCH($H98,'CSX Rate Inputs'!$A$4:$Z$4,0),FALSE),"n/a")) -> 25.29428151 | R98: =IF(LEFT($H98,5)="Barge",VLOOKUP($A98&R$91,Barge_Rate_Master,MATCH($H98,'Barge Rate Inputs'!$A$4:$AD$4,0),FALSE),IF(LEFT($H98,3)="CSX",VLOOKUP($A98&R$91,CSX_Rate_Master,MATCH($H98,'CSX Rate Inputs'!$A$4:$Z$4,0),FALSE),"n/a")) -> 25.80016714 | S98: =IF(LEFT($H98,5)="Barge",VLOOKUP($A98&S$91,Barge_Rate_Master,MATCH($H98,'Barge Rate Inputs'!$A$4:$AD$4,0),FALSE),IF(LEFT($H98,3)="CSX",VLOOKUP($A98&S$91,CSX_Rate_Master,MATCH($H98,'CSX Rate Inputs'!$A$4:$Z$4,0),FALSE),"n/a")) -> 26.31617048 | T98: =IF(LEFT($H98,5)="Barge",VLOOKUP($A98&T$91,Barge_Rate_Master,MATCH($H98,'Barge Rate Inputs'!$A$4:$AD$4,0),FALSE),IF(LEFT($H98,3)="CSX",VLOOKUP($A98&T$91,CSX_Rate_Master,MATCH($H98,'CSX Rate Inputs'!$A$4:$Z$4,0),FALSE),"n/a")) -> 26.84249389 | U98: =IF(LEFT($H98,5)="Barge",VLOOKUP($A98&U$91,Barge_Rate_Master,MATCH($H98,'Barge Rate Inputs'!$A$4:$AD$4,0),FALSE),IF(LEFT($H98,3)="CSX",VLOOKUP($A98&U$91,CSX_Rate_Master,MATCH($H98,'CSX Rate Inputs'!$A$4:$Z$4,0),FALSE),"n/a")) -> 27.37934377 | V98: =IF(LEFT($H98,5)="Barge",VLOOKUP($A98&V$91,Barge_Rate_Master,MATCH($H98,'Barge Rate Inputs'!$A$4:$AD$4,0),FALSE),IF(LEFT($H98,3)="CSX",VLOOKUP($A98&V$91,CSX_Rate_Master,MATCH($H98,'CSX Rate Inputs'!$A$4:$Z$4,0),FALSE),"n/a")) -> 27.92693064 | W98: =IF(LEFT($H98,5)="Barge",VLOOKUP($A98&W$91,Barge_Rate_Master,MATCH($H98,'Barge Rate Inputs'!$A$4:$AD$4,0),FALSE),IF(LEFT($H98,3)="CSX",VLOOKUP($A98&W$91,CSX_Rate_Master,MATCH($H98,'CSX Rate Inputs'!$A$4:$Z$4,0),FALSE),"n/a")) -> 28.48546925 | X98: =IF(LEFT($H98,5)="Barge",VLOOKUP($A98&X$91,Barge_Rate_Master,MATCH($H98,'Barge Rate Inputs'!$A$4:$AD$4,0),FALSE),IF(LEFT($H98,3)="CSX",VLOOKUP($A98&X$91,CSX_Rate_Master,MATCH($H98,'CSX Rate Inputs'!$A$4:$Z$4,0),FALSE),"n/a")) -> 29.05517864 | Y98: =IF(LEFT($H98,5)="Barge",VLOOKUP($A98&Y$91,Barge_Rate_Master,MATCH($H98,'Barge Rate Inputs'!$A$4:$AD$4,0),FALSE),IF(LEFT($H98,3)="CSX",VLOOKUP($A98&Y$91,CSX_Rate_Master,MATCH($H98,'CSX Rate Inputs'!$A$4:$Z$4,0),FALSE),"n/a")) -> 29.63628221 | Z98: =IF(LEFT($H98,5)="Barge",VLOOKUP($A98&Z$91,Barge_Rate_Master,MATCH($H98,'Barge Rate Inputs'!$A$4:$AD$4,0),FALSE),IF(LEFT($H98,3)="CSX",VLOOKUP($A98&Z$91,CSX_Rate_Master,MATCH($H98,'CSX Rate Inputs'!$A$4:$Z$4,0),FALSE),"n/a")) -> 30.22900786 | AA98: =IF(LEFT($H98,5)="Barge",VLOOKUP($A98&AA$91,Barge_Rate_Master,MATCH($H98,'Barge Rate Inputs'!$A$4:$AD$4,0),FALSE),IF(LEFT($H98,3)="CSX",VLOOKUP($A98&AA$91,CSX_Rate_Master,MATCH($H98,'CSX Rate Inputs'!$A$4:$Z$4,0),FALSE),"n/a")) -> 30.83358801 | AB98: =IF(LEFT($H98,5)="Barge",VLOOKUP($A98&AB$91,Barge_Rate_Master,MATCH($H98,'Barge Rate Inputs'!$A$4:$AD$4,0),FALSE),IF(LEFT($H98,3)="CSX",VLOOKUP($A98&AB$91,CSX_Rate_Master,MATCH($H98,'CSX Rate Inputs'!$A$4:$Z$4,0),FALSE),"n/a")) -> 31.45025977 | AC98: =IF(LEFT($H98,5)="Barge",VLOOKUP($A98&AC$91,Barge_Rate_Master,MATCH($H98,'Barge Rate Inputs'!$A$4:$AD$4,0),FALSE),IF(LEFT($H98,3)="CSX",VLOOKUP($A98&AC$91,CSX_Rate_Master,MATCH($H98,'CSX Rate Inputs'!$A$4:$Z$4,0),FALSE),"n/a")) -> 32.07926497 | AD98: =IF(LEFT($H98,5)="Barge",VLOOKUP($A98&AD$91,Barge_Rate_Master,MATCH($H98,'Barge Rate Inputs'!$A$4:$AD$4,0),FALSE),IF(LEFT($H98,3)="CSX",VLOOKUP($A98&AD$91,CSX_Rate_Master,MATCH($H98,'CSX Rate Inputs'!$A$4:$Z$4,0),FALSE),"n/a")) -> 32.72085027 | AE98: =IF(LEFT($H98,5)="Barge",VLOOKUP($A98&AE$91,Barge_Rate_Master,MATCH($H98,'Barge Rate Inputs'!$A$4:$AD$4,0),FALSE),IF(LEFT($H98,3)="CSX",VLOOKUP($A98&AE$91,CSX_Rate_Master,MATCH($H98,'CSX Rate Inputs'!$A$4:$Z$4,0),FALSE),"n/a")) -> 33.37526727 | AF98: =IF(LEFT($H98,5)="Barge",VLOOKUP($A98&AF$91,Barge_Rate_Master,MATCH($H98,'Barge Rate Inputs'!$A$4:$AD$4,0),FALSE),IF(LEFT($H98,3)="CSX",VLOOKUP($A98&AF$91,CSX_Rate_Master,MATCH($H98,'CSX Rate Inputs'!$A$4:$Z$4,0),FALSE),"n/a")) -> 34.04277262 | AG98: =IF(LEFT($H98,5)="Barge",VLOOKUP($A98&AG$91,Barge_Rate_Master,MATCH($H98,'Barge Rate Inputs'!$A$4:$AD$4,0),FALSE),IF(LEFT($H98,3)="CSX",VLOOKUP($A98&AG$91,CSX_Rate_Master,MATCH($H98,'CSX Rate Inputs'!$A$4:$Z$4,0),FALSE),"n/a")) -> 34.72362807 | AH98: =IF(LEFT($H98,5)="Barge",VLOOKUP($A98&AH$91,Barge_Rate_Master,MATCH($H98,'Barge Rate Inputs'!$A$4:$AD$4,0),FALSE),IF(LEFT($H98,3)="CSX",VLOOKUP($A98&AH$91,CSX_Rate_Master,MATCH($H98,'CSX Rate Inputs'!$A$4:$Z$4,0),FALSE),"n/a")) -> 35.41810063 | AI98: =IF(LEFT($H98,5)="Barge",VLOOKUP($A98&AI$91,Barge_Rate_Master,MATCH($H98,'Barge Rate Inputs'!$A$4:$AD$4,0),FALSE),IF(LEFT($H98,3)="CSX",VLOOKUP($A98&AI$91,CSX_Rate_Master,MATCH($H98,'CSX Rate Inputs'!$A$4:$Z$4,0),FALSE),"n/a")) -> 36.12646265 | AJ98: =IF(LEFT($H98,5)="Barge",VLOOKUP($A98&AJ$91,Barge_Rate_Master,MATCH($H98,'Barge Rate Inputs'!$A$4:$AD$4,0),FALSE),IF(LEFT($H98,3)="CSX",VLOOKUP($A98&AJ$91,CSX_Rate_Master,MATCH($H98,'CSX Rate Inputs'!$A$4:$Z$4,0),FALSE),"n/a")) -> 36.8489919 | AK98: =IF(LEFT($H98,5)="Barge",VLOOKUP($A98&AK$91,Barge_Rate_Master,MATCH($H98,'Barge Rate Inputs'!$A$4:$AD$4,0),FALSE),IF(LEFT($H98,3)="CSX",VLOOKUP($A98&AK$91,CSX_Rate_Master,MATCH($H98,'CSX Rate Inputs'!$A$4:$Z$4,0),FALSE),"n/a")) -> 37.58597174 | AL98: =IF(LEFT($H98,5)="Barge",VLOOKUP($A98&AL$91,Barge_Rate_Master,MATCH($H98,'Barge Rate Inputs'!$A$4:$AD$4,0),FALSE),IF(LEFT($H98,3)="CSX",VLOOKUP($A98&AL$91,CSX_Rate_Master,MATCH($H98,'CSX Rate Inputs'!$A$4:$Z$4,0),FALSE),"n/a")) -> 38.33769117 | AM98: =IF(LEFT($H98,5)="Barge",VLOOKUP($A98&AM$91,Barge_Rate_Master,MATCH($H98,'Barge Rate Inputs'!$A$4:$AD$4,0),FALSE),IF(LEFT($H98,3)="CSX",VLOOKUP($A98&AM$91,CSX_Rate_Master,MATCH($H98,'CSX Rate Inputs'!$A$4:$Z$4,0),FALSE),"n/a")) -> 39.104445 | AN98: =IF(LEFT($H98,5)="Barge",VLOOKUP($A98&AN$91,Barge_Rate_Master,MATCH($H98,'Barge Rate Inputs'!$A$4:$AD$4,0),FALSE),IF(LEFT($H98,3)="CSX",VLOOKUP($A98&AN$91,CSX_Rate_Master,MATCH($H98,'CSX Rate Inputs'!$A$4:$Z$4,0),FALSE),"n/a")) -> 39.8865339 | AO98: =IF(LEFT($H98,5)="Barge",VLOOKUP($A98&AO$91,Barge_Rate_Master,MATCH($H98,'Barge Rate Inputs'!$A$4:$AD$4,0),FALSE),IF(LEFT($H98,3)="CSX",VLOOKUP($A98&AO$91,CSX_Rate_Master,MATCH($H98,'CSX Rate Inputs'!$A$4:$Z$4,0),FALSE),"n/a")) -> 40.68426457
A99: Crystal River 4&5 | B99: =B79 -> ILB | C99: Illinois | D99: Barge | E99: 11000 | F99: 6 | G99: 10 | H99: Barge ILB OH River | J99: =IF(LEFT($H99,5)="Barge",VLOOKUP($A99&J$91,Barge_Rate_Master,MATCH($H99,'Barge Rate Inputs'!$A$4:$AD$4,0),FALSE),IF(LEFT($H99,3)="CSX",VLOOKUP($A99&J$91,CSX_Rate_Master,MATCH($H99,'CSX Rate Inputs'!$A$4:$Z$4,0),FALSE),"n/a")) -> 12.82875179 | K99: =IF(LEFT($H99,5)="Barge",VLOOKUP($A99&K$91,Barge_Rate_Master,MATCH($H99,'Barge Rate Inputs'!$A$4:$AD$4,0),FALSE),IF(LEFT($H99,3)="CSX",VLOOKUP($A99&K$91,CSX_Rate_Master,MATCH($H99,'CSX Rate Inputs'!$A$4:$Z$4,0),FALSE),"n/a")) -> 12.9909917 | L99: =IF(LEFT($H99,5)="Barge",VLOOKUP($A99&L$91,Barge_Rate_Master,MATCH($H99,'Barge Rate Inputs'!$A$4:$AD$4,0),FALSE),IF(LEFT($H99,3)="CSX",VLOOKUP($A99&L$91,CSX_Rate_Master,MATCH($H99,'CSX Rate Inputs'!$A$4:$Z$4,0),FALSE),"n/a")) -> 13.09674292 | M99: =IF(LEFT($H99,5)="Barge",VLOOKUP($A99&M$91,Barge_Rate_Master,MATCH($H99,'Barge Rate Inputs'!$A$4:$AD$4,0),FALSE),IF(LEFT($H99,3)="CSX",VLOOKUP($A99&M$91,CSX_Rate_Master,MATCH($H99,'CSX Rate Inputs'!$A$4:$Z$4,0),FALSE),"n/a")) -> 13.37040349 | N99: =IF(LEFT($H99,5)="Barge",VLOOKUP($A99&N$91,Barge_Rate_Master,MATCH($H99,'Barge Rate Inputs'!$A$4:$AD$4,0),FALSE),IF(LEFT($H99,3)="CSX",VLOOKUP($A99&N$91,CSX_Rate_Master,MATCH($H99,'CSX Rate Inputs'!$A$4:$Z$4,0),FALSE),"n/a")) -> 16.09741677 | O99: =IF(LEFT($H99,5)="Barge",VLOOKUP($A99&O$91,Barge_Rate_Master,MATCH($H99,'Barge Rate Inputs'!$A$4:$AD$4,0),FALSE),IF(LEFT($H99,3)="CSX",VLOOKUP($A99&O$91,CSX_Rate_Master,MATCH($H99,'CSX Rate Inputs'!$A$4:$Z$4,0),FALSE),"n/a")) -> 16.44027921 | P99: =IF(LEFT($H99,5)="Barge",VLOOKUP($A99&P$91,Barge_Rate_Master,MATCH($H99,'Barge Rate Inputs'!$A$4:$AD$4,0),FALSE),IF(LEFT($H99,3)="CSX",VLOOKUP($A99&P$91,CSX_Rate_Master,MATCH($H99,'CSX Rate Inputs'!$A$4:$Z$4,0),FALSE),"n/a")) -> 22.67100133 | Q99: =IF(LEFT($H99,5)="Barge",VLOOKUP($A99&Q$91,Barge_Rate_Master,MATCH($H99,'Barge Rate Inputs'!$A$4:$AD$4,0),FALSE),IF(LEFT($H99,3)="CSX",VLOOKUP($A99&Q$91,CSX_Rate_Master,MATCH($H99,'CSX Rate Inputs'!$A$4:$Z$4,0),FALSE),"n/a")) -> 22.99666427 | R99: =IF(LEFT($H99,5)="Barge",VLOOKUP($A99&R$91,Barge_Rate_Master,MATCH($H99,'Barge Rate Inputs'!$A$4:$AD$4,0),FALSE),IF(LEFT($H99,3)="CSX",VLOOKUP($A99&R$91,CSX_Rate_Master,MATCH($H99,'CSX Rate Inputs'!$A$4:$Z$4,0),FALSE),"n/a")) -> 23.84883114 | S99: =IF(LEFT($H99,5)="Barge",VLOOKUP($A99&S$91,Barge_Rate_Master,MATCH($H99,'Barge Rate Inputs'!$A$4:$AD$4,0),FALSE),IF(LEFT($H99,3)="CSX",VLOOKUP($A99&S$91,CSX_Rate_Master,MATCH($H99,'CSX Rate Inputs'!$A$4:$Z$4,0),FALSE),"n/a")) -> 24.45321501 | T99: =IF(LEFT($H99,5)="Barge",VLOOKUP($A99&T$91,Barge_Rate_Master,MATCH($H99,'Barge Rate Inputs'!$A$4:$AD$4,0),FALSE),IF(LEFT($H99,3)="CSX",VLOOKUP($A99&T$91,CSX_Rate_Master,MATCH($H99,'CSX Rate Inputs'!$A$4:$Z$4,0),FALSE),"n/a")) -> 25.07138315 | U99: =IF(LEFT($H99,5)="Barge",VLOOKUP($A99&U$91,Barge_Rate_Master,MATCH($H99,'Barge Rate Inputs'!$A$4:$AD$4,0),FALSE),IF(LEFT($H99,3)="CSX",VLOOKUP($A99&U$91,CSX_Rate_Master,MATCH($H99,'CSX Rate Inputs'!$A$4:$Z$4,0),FALSE),"n/a")) -> 25.66825441 | V99: =IF(LEFT($H99,5)="Barge",VLOOKUP($A99&V$91,Barge_Rate_Master,MATCH($H99,'Barge Rate Inputs'!$A$4:$AD$4,0),FALSE),IF(LEFT($H99,3)="CSX",VLOOKUP($A99&V$91,CSX_Rate_Master,MATCH($H99,'CSX Rate Inputs'!$A$4:$Z$4,0),FALSE),"n/a")) -> 32.88129759 | W99: =IF(LEFT($H99,5)="Barge",VLOOKUP($A99&W$91,Barge_Rate_Master,MATCH($H99,'Barge Rate Inputs'!$A$4:$AD$4,0),FALSE),IF(LEFT($H99,3)="CSX",VLOOKUP($A99&W$91,CSX_Rate_Master,MATCH($H99,'CSX Rate Inputs'!$A$4:$Z$4,0),FALSE),"n/a")) -> 33.60152489 | X99: =IF(LEFT($H99,5)="Barge",VLOOKUP($A99&X$91,Barge_Rate_Master,MATCH($H99,'Barge Rate Inputs'!$A$4:$AD$4,0),FALSE),IF(LEFT($H99,3)="CSX",VLOOKUP($A99&X$91,CSX_Rate_Master,MATCH($H99,'CSX Rate Inputs'!$A$4:$Z$4,0),FALSE),"n/a")) -> 34.26782236 | Y99: =IF(LEFT($H99,5)="Barge",VLOOKUP($A99&Y$91,Barge_Rate_Master,MATCH($H99,'Barge Rate Inputs'!$A$4:$AD$4,0),FALSE),IF(LEFT($H99,3)="CSX",VLOOKUP($A99&Y$91,CSX_Rate_Master,MATCH($H99,'CSX Rate Inputs'!$A$4:$Z$4,0),FALSE),"n/a")) -> 34.94768817 | Z99: =IF(LEFT($H99,5)="Barge",VLOOKUP($A99&Z$91,Barge_Rate_Master,MATCH($H99,'Barge Rate Inputs'!$A$4:$AD$4,0),FALSE),IF(LEFT($H99,3)="CSX",VLOOKUP($A99&Z$91,CSX_Rate_Master,MATCH($H99,'CSX Rate Inputs'!$A$4:$Z$4,0),FALSE),"n/a")) -> 35.71630583 | AA99: =IF(LEFT($H99,5)="Barge",VLOOKUP($A99&AA$91,Barge_Rate_Master,MATCH($H99,'Barge Rate Inputs'!$A$4:$AD$4,0),FALSE),IF(LEFT($H99,3)="CSX",VLOOKUP($A99&AA$91,CSX_Rate_Master,MATCH($H99,'CSX Rate Inputs'!$A$4:$Z$4,0),FALSE),"n/a")) -> 36.42054861 | AB99: =IF(LEFT($H99,5)="Barge",VLOOKUP($A99&AB$91,Barge_Rate_Master,MATCH($H99,'Barge Rate Inputs'!$A$4:$AD$4,0),FALSE),IF(LEFT($H99,3)="CSX",VLOOKUP($A99&AB$91,CSX_Rate_Master,MATCH($H99,'CSX Rate Inputs'!$A$4:$Z$4,0),FALSE),"n/a")) -> 37.14710919 | AC99: =IF(LEFT($H99,5)="Barge",VLOOKUP($A99&AC$91,Barge_Rate_Master,MATCH($H99,'Barge Rate Inputs'!$A$4:$AD$4,0),FALSE),IF(LEFT($H99,3)="CSX",VLOOKUP($A99&AC$91,CSX_Rate_Master,MATCH($H99,'CSX Rate Inputs'!$A$4:$Z$4,0),FALSE),"n/a")) -> 37.97282861 | AD99: =IF(LEFT($H99,5)="Barge",VLOOKUP($A99&AD$91,Barge_Rate_Master,MATCH($H99,'Barge Rate Inputs'!$A$4:$AD$4,0),FALSE),IF(LEFT($H99,3)="CSX",VLOOKUP($A99&AD$91,CSX_Rate_Master,MATCH($H99,'CSX Rate Inputs'!$A$4:$Z$4,0),FALSE),"n/a")) -> 38.73054114 | AE99: =IF(LEFT($H99,5)="Barge",VLOOKUP($A99&AE$91,Barge_Rate_Master,MATCH($H99,'Barge Rate Inputs'!$A$4:$AD$4,0),FALSE),IF(LEFT($H99,3)="CSX",VLOOKUP($A99&AE$91,CSX_Rate_Master,MATCH($H99,'CSX Rate Inputs'!$A$4:$Z$4,0),FALSE),"n/a")) -> 39.50413762 | AF99: =IF(LEFT($H99,5)="Barge",VLOOKUP($A99&AF$91,Barge_Rate_Master,MATCH($H99,'Barge Rate Inputs'!$A$4:$AD$4,0),FALSE),IF(LEFT($H99,3)="CSX",VLOOKUP($A99&AF$91,CSX_Rate_Master,MATCH($H99,'CSX Rate Inputs'!$A$4:$Z$4,0),FALSE),"n/a")) -> 40.25443491 | AG99: =IF(LEFT($H99,5)="Barge",VLOOKUP($A99&AG$91,Barge_Rate_Master,MATCH($H99,'Barge Rate Inputs'!$A$4:$AD$4,0),FALSE),IF(LEFT($H99,3)="CSX",VLOOKUP($A99&AG$91,CSX_Rate_Master,MATCH($H99,'CSX Rate Inputs'!$A$4:$Z$4,0),FALSE),"n/a")) -> 41.06968415 | AH99: =IF(LEFT($H99,5)="Barge",VLOOKUP($A99&AH$91,Barge_Rate_Master,MATCH($H99,'Barge Rate Inputs'!$A$4:$AD$4,0),FALSE),IF(LEFT($H99,3)="CSX",VLOOKUP($A99&AH$91,CSX_Rate_Master,MATCH($H99,'CSX Rate Inputs'!$A$4:$Z$4,0),FALSE),"n/a")) -> 41.90366888 | AI99: =IF(LEFT($H99,5)="Barge",VLOOKUP($A99&AI$91,Barge_Rate_Master,MATCH($H99,'Barge Rate Inputs'!$A$4:$AD$4,0),FALSE),IF(LEFT($H99,3)="CSX",VLOOKUP($A99&AI$91,CSX_Rate_Master,MATCH($H99,'CSX Rate Inputs'!$A$4:$Z$4,0),FALSE),"n/a")) -> 42.71445526 | AJ99: =IF(LEFT($H99,5)="Barge",VLOOKUP($A99&AJ$91,Barge_Rate_Master,MATCH($H99,'Barge Rate Inputs'!$A$4:$AD$4,0),FALSE),IF(LEFT($H99,3)="CSX",VLOOKUP($A99&AJ$91,CSX_Rate_Master,MATCH($H99,'CSX Rate Inputs'!$A$4:$Z$4,0),FALSE),"n/a")) -> 43.61331321 | AK99: =IF(LEFT($H99,5)="Barge",VLOOKUP($A99&AK$91,Barge_Rate_Master,MATCH($H99,'Barge Rate Inputs'!$A$4:$AD$4,0),FALSE),IF(LEFT($H99,3)="CSX",VLOOKUP($A99&AK$91,CSX_Rate_Master,MATCH($H99,'CSX Rate Inputs'!$A$4:$Z$4,0),FALSE),"n/a")) -> 44.3892799 | AL99: =IF(LEFT($H99,5)="Barge",VLOOKUP($A99&AL$91,Barge_Rate_Master,MATCH($H99,'Barge Rate Inputs'!$A$4:$AD$4,0),FALSE),IF(LEFT($H99,3)="CSX",VLOOKUP($A99&AL$91,CSX_Rate_Master,MATCH($H99,'CSX Rate Inputs'!$A$4:$Z$4,0),FALSE),"n/a")) -> 45.31925298 | AM99: =IF(LEFT($H99,5)="Barge",VLOOKUP($A99&AM$91,Barge_Rate_Master,MATCH($H99,'Barge Rate Inputs'!$A$4:$AD$4,0),FALSE),IF(LEFT($H99,3)="CSX",VLOOKUP($A99&AM$91,CSX_Rate_Master,MATCH($H99,'CSX Rate Inputs'!$A$4:$Z$4,0),FALSE),"n/a")) -> 46.26674147 | AN99: =IF(LEFT($H99,5)="Barge",VLOOKUP($A99&AN$91,Barge_Rate_Master,MATCH($H99,'Barge Rate Inputs'!$A$4:$AD$4,0),FALSE),IF(LEFT($H99,3)="CSX",VLOOKUP($A99&AN$91,CSX_Rate_Master,MATCH($H99,'CSX Rate Inputs'!$A$4:$Z$4,0),FALSE),"n/a")) -> 47.08392646 | AO99: =IF(LEFT($H99,5)="Barge",VLOOKUP($A99&AO$91,Barge_Rate_Master,MATCH($H99,'Barge Rate Inputs'!$A$4:$AD$4,0),FALSE),IF(LEFT($H99,3)="CSX",VLOOKUP($A99&AO$91,CSX_Rate_Master,MATCH($H99,'CSX Rate Inputs'!$A$4:$Z$4,0),FALSE),"n/a")) -> 48.06708271
A100: Crystal River 4&5 | B100: =B80 -> ILB | C100: Illinois | D100: Rail | E100: 11000 | F100: 6 | G100: 10 | H100: CSX Sullivan | J100: =IF(LEFT($H100,5)="Barge",VLOOKUP($A100&J$91,Barge_Rate_Master,MATCH($H100,'Barge Rate Inputs'!$A$4:$AD$4,0),FALSE),IF(LEFT($H100,3)="CSX",VLOOKUP($A100&J$91,CSX_Rate_Master,MATCH($H100,'CSX Rate Inputs'!$A$4:$Z$4,0),FALSE),"n/a")) -> 20.4 | K100: =IF(LEFT($H100,5)="Barge",VLOOKUP($A100&K$91,Barge_Rate_Master,MATCH($H100,'Barge Rate Inputs'!$A$4:$AD$4,0),FALSE),IF(LEFT($H100,3)="CSX",VLOOKUP($A100&K$91,CSX_Rate_Master,MATCH($H100,'CSX Rate Inputs'!$A$4:$Z$4,0),FALSE),"n/a")) -> 21.88221269 | L100: =IF(LEFT($H100,5)="Barge",VLOOKUP($A100&L$91,Barge_Rate_Master,MATCH($H100,'Barge Rate Inputs'!$A$4:$AD$4,0),FALSE),IF(LEFT($H100,3)="CSX",VLOOKUP($A100&L$91,CSX_Rate_Master,MATCH($H100,'CSX Rate Inputs'!$A$4:$Z$4,0),FALSE),"n/a")) -> 22.42918469 | M100: =IF(LEFT($H100,5)="Barge",VLOOKUP($A100&M$91,Barge_Rate_Master,MATCH($H100,'Barge Rate Inputs'!$A$4:$AD$4,0),FALSE),IF(LEFT($H100,3)="CSX",VLOOKUP($A100&M$91,CSX_Rate_Master,MATCH($H100,'CSX Rate Inputs'!$A$4:$Z$4,0),FALSE),"n/a")) -> 22.93601506 | N100: =IF(LEFT($H100,5)="Barge",VLOOKUP($A100&N$91,Barge_Rate_Master,MATCH($H100,'Barge Rate Inputs'!$A$4:$AD$4,0),FALSE),IF(LEFT($H100,3)="CSX",VLOOKUP($A100&N$91,CSX_Rate_Master,MATCH($H100,'CSX Rate Inputs'!$A$4:$Z$4,0),FALSE),"n/a")) -> 23.49996397 | O100: =IF(LEFT($H100,5)="Barge",VLOOKUP($A100&O$91,Barge_Rate_Master,MATCH($H100,'Barge Rate Inputs'!$A$4:$AD$4,0),FALSE),IF(LEFT($H100,3)="CSX",VLOOKUP($A100&O$91,CSX_Rate_Master,MATCH($H100,'CSX Rate Inputs'!$A$4:$Z$4,0),FALSE),"n/a")) -> 24.08776506 | P100: =IF(LEFT($H100,5)="Barge",VLOOKUP($A100&P$91,Barge_Rate_Master,MATCH($H100,'Barge Rate Inputs'!$A$4:$AD$4,0),FALSE),IF(LEFT($H100,3)="CSX",VLOOKUP($A100&P$91,CSX_Rate_Master,MATCH($H100,'CSX Rate Inputs'!$A$4:$Z$4,0),FALSE),"n/a")) -> 24.67734781 | Q100: =IF(LEFT($H100,5)="Barge",VLOOKUP($A100&Q$91,Barge_Rate_Master,MATCH($H100,'Barge Rate Inputs'!$A$4:$AD$4,0),FALSE),IF(LEFT($H100,3)="CSX",VLOOKUP($A100&Q$91,CSX_Rate_Master,MATCH($H100,'CSX Rate Inputs'!$A$4:$Z$4,0),FALSE),"n/a")) -> 25.29428151 | R100: =IF(LEFT($H100,5)="Barge",VLOOKUP($A100&R$91,Barge_Rate_Master,MATCH($H100,'Barge Rate Inputs'!$A$4:$AD$4,0),FALSE),IF(LEFT($H100,3)="CSX",VLOOKUP($A100&R$91,CSX_Rate_Master,MATCH($H100,'CSX Rate Inputs'!$A$4:$Z$4,0),FALSE),"n/a")) -> 25.80016714 | S100: =IF(LEFT($H100,5)="Barge",VLOOKUP($A100&S$91,Barge_Rate_Master,MATCH($H100,'Barge Rate Inputs'!$A$4:$AD$4,0),FALSE),IF(LEFT($H100,3)="CSX",VLOOKUP($A100&S$91,CSX_Rate_Master,MATCH($H100,'CSX Rate Inputs'!$A$4:$Z$4,0),FALSE),"n/a")) -> 26.31617048 | T100: =IF(LEFT($H100,5)="Barge",VLOOKUP($A100&T$91,Barge_Rate_Master,MATCH($H100,'Barge Rate Inputs'!$A$4:$AD$4,0),FALSE),IF(LEFT($H100,3)="CSX",VLOOKUP($A100&T$91,CSX_Rate_Master,MATCH($H100,'CSX Rate Inputs'!$A$4:$Z$4,0),FALSE),"n/a")) -> 26.84249389 | U100: =IF(LEFT($H100,5)="Barge",VLOOKUP($A100&U$91,Barge_Rate_Master,MATCH($H100,'Barge Rate Inputs'!$A$4:$AD$4,0),FALSE),IF(LEFT($H100,3)="CSX",VLOOKUP($A100&U$91,CSX_Rate_Master,MATCH($H100,'CSX Rate Inputs'!$A$4:$Z$4,0),FALSE),"n/a")) -> 27.37934377 | V100: =IF(LEFT($H100,5)="Barge",VLOOKUP($A100&V$91,Barge_Rate_Master,MATCH($H100,'Barge Rate Inputs'!$A$4:$AD$4,0),FALSE),IF(LEFT($H100,3)="CSX",VLOOKUP($A100&V$91,CSX_Rate_Master,MATCH($H100,'CSX Rate Inputs'!$A$4:$Z$4,0),FALSE),"n/a")) -> 27.92693064 | W100: =IF(LEFT($H100,5)="Barge",VLOOKUP($A100&W$91,Barge_Rate_Master,MATCH($H100,'Barge Rate Inputs'!$A$4:$AD$4,0),FALSE),IF(LEFT($H100,3)="CSX",VLOOKUP($A100&W$91,CSX_Rate_Master,MATCH($H100,'CSX Rate Inputs'!$A$4:$Z$4,0),FALSE),"n/a")) -> 28.48546925 | X100: =IF(LEFT($H100,5)="Barge",VLOOKUP($A100&X$91,Barge_Rate_Master,MATCH($H100,'Barge Rate Inputs'!$A$4:$AD$4,0),FALSE),IF(LEFT($H100,3)="CSX",VLOOKUP($A100&X$91,CSX_Rate_Master,MATCH($H100,'CSX Rate Inputs'!$A$4:$Z$4,0),FALSE),"n/a")) -> 29.05517864 | Y100: =IF(LEFT($H100,5)="Barge",VLOOKUP($A100&Y$91,Barge_Rate_Master,MATCH($H100,'Barge Rate Inputs'!$A$4:$AD$4,0),FALSE),IF(LEFT($H100,3)="CSX",VLOOKUP($A100&Y$91,CSX_Rate_Master,MATCH($H100,'CSX Rate Inputs'!$A$4:$Z$4,0),FALSE),"n/a")) -> 29.63628221 | Z100: =IF(LEFT($H100,5)="Barge",VLOOKUP($A100&Z$91,Barge_Rate_Master,MATCH($H100,'Barge Rate Inputs'!$A$4:$AD$4,0),FALSE),IF(LEFT($H100,3)="CSX",VLOOKUP($A100&Z$91,CSX_Rate_Master,MATCH($H100,'CSX Rate Inputs'!$A$4:$Z$4,0),FALSE),"n/a")) -> 30.22900786 | AA100: =IF(LEFT($H100,5)="Barge",VLOOKUP($A100&AA$91,Barge_Rate_Master,MATCH($H100,'Barge Rate Inputs'!$A$4:$AD$4,0),FALSE),IF(LEFT($H100,3)="CSX",VLOOKUP($A100&AA$91,CSX_Rate_Master,MATCH($H100,'CSX Rate Inputs'!$A$4:$Z$4,0),FALSE),"n/a")) -> 30.83358801 | AB100: =IF(LEFT($H100,5)="Barge",VLOOKUP($A100&AB$91,Barge_Rate_Master,MATCH($H100,'Barge Rate Inputs'!$A$4:$AD$4,0),FALSE),IF(LEFT($H100,3)="CSX",VLOOKUP($A100&AB$91,CSX_Rate_Master,MATCH($H100,'CSX Rate Inputs'!$A$4:$Z$4,0),FALSE),"n/a")) -> 31.45025977 | AC100: =IF(LEFT($H100,5)="Barge",VLOOKUP($A100&AC$91,Barge_Rate_Master,MATCH($H100,'Barge Rate Inputs'!$A$4:$AD$4,0),FALSE),IF(LEFT($H100,3)="CSX",VLOOKUP($A100&AC$91,CSX_Rate_Master,MATCH($H100,'CSX Rate Inputs'!$A$4:$Z$4,0),FALSE),"n/a")) -> 32.07926497 | AD100: =IF(LEFT($H100,5)="Barge",VLOOKUP($A100&AD$91,Barge_Rate_Master,MATCH($H100,'Barge Rate Inputs'!$A$4:$AD$4,0),FALSE),IF(LEFT($H100,3)="CSX",VLOOKUP($A100&AD$91,CSX_Rate_Master,MATCH($H100,'CSX Rate Inputs'!$A$4:$Z$4,0),FALSE),"n/a")) -> 32.72085027 | AE100: =IF(LEFT($H100,5)="Barge",VLOOKUP($A100&AE$91,Barge_Rate_Master,MATCH($H100,'Barge Rate Inputs'!$A$4:$AD$4,0),FALSE),IF(LEFT($H100,3)="CSX",VLOOKUP($A100&AE$91,CSX_Rate_Master,MATCH($H100,'CSX Rate Inputs'!$A$4:$Z$4,0),FALSE),"n/a")) -> 33.37526727 | AF100: =IF(LEFT($H100,5)="Barge",VLOOKUP($A100&AF$91,Barge_Rate_Master,MATCH($H100,'Barge Rate Inputs'!$A$4:$AD$4,0),FALSE),IF(LEFT($H100,3)="CSX",VLOOKUP($A100&AF$91,CSX_Rate_Master,MATCH($H100,'CSX Rate Inputs'!$A$4:$Z$4,0),FALSE),"n/a")) -> 34.04277262 | AG100: =IF(LEFT($H100,5)="Barge",VLOOKUP($A100&AG$91,Barge_Rate_Master,MATCH($H100,'Barge Rate Inputs'!$A$4:$AD$4,0),FALSE),IF(LEFT($H100,3)="CSX",VLOOKUP($A100&AG$91,CSX_Rate_Master,MATCH($H100,'CSX Rate Inputs'!$A$4:$Z$4,0),FALSE),"n/a")) -> 34.72362807 | AH100: =IF(LEFT($H100,5)="Barge",VLOOKUP($A100&AH$91,Barge_Rate_Master,MATCH($H100,'Barge Rate Inputs'!$A$4:$AD$4,0),FALSE),IF(LEFT($H100,3)="CSX",VLOOKUP($A100&AH$91,CSX_Rate_Master,MATCH($H100,'CSX Rate Inputs'!$A$4:$Z$4,0),FALSE),"n/a")) -> 35.41810063 | AI100: =IF(LEFT($H100,5)="Barge",VLOOKUP($A100&AI$91,Barge_Rate_Master,MATCH($H100,'Barge Rate Inputs'!$A$4:$AD$4,0),FALSE),IF(LEFT($H100,3)="CSX",VLOOKUP($A100&AI$91,CSX_Rate_Master,MATCH($H100,'CSX Rate Inputs'!$A$4:$Z$4,0),FALSE),"n/a")) -> 36.12646265 | AJ100: =IF(LEFT($H100,5)="Barge",VLOOKUP($A100&AJ$91,Barge_Rate_Master,MATCH($H100,'Barge Rate Inputs'!$A$4:$AD$4,0),FALSE),IF(LEFT($H100,3)="CSX",VLOOKUP($A100&AJ$91,CSX_Rate_Master,MATCH($H100,'CSX Rate Inputs'!$A$4:$Z$4,0),FALSE),"n/a")) -> 36.8489919 | AK100: =IF(LEFT($H100,5)="Barge",VLOOKUP($A100&AK$91,Barge_Rate_Master,MATCH($H100,'Barge Rate Inputs'!$A$4:$AD$4,0),FALSE),IF(LEFT($H100,3)="CSX",VLOOKUP($A100&AK$91,CSX_Rate_Master,MATCH($H100,'CSX Rate Inputs'!$A$4:$Z$4,0),FALSE),"n/a")) -> 37.58597174 | AL100: =IF(LEFT($H100,5)="Barge",VLOOKUP($A100&AL$91,Barge_Rate_Master,MATCH($H100,'Barge Rate Inputs'!$A$4:$AD$4,0),FALSE),IF(LEFT($H100,3)="CSX",VLOOKUP($A100&AL$91,CSX_Rate_Master,MATCH($H100,'CSX Rate Inputs'!$A$4:$Z$4,0),FALSE),"n/a")) -> 38.33769117 | AM100: =IF(LEFT($H100,5)="Barge",VLOOKUP($A100&AM$91,Barge_Rate_Master,MATCH($H100,'Barge Rate Inputs'!$A$4:$AD$4,0),FALSE),IF(LEFT($H100,3)="CSX",VLOOKUP($A100&AM$91,CSX_Rate_Master,MATCH($H100,'CSX Rate Inputs'!$A$4:$Z$4,0),FALSE),"n/a")) -> 39.104445 | AN100: =IF(LEFT($H100,5)="Barge",VLOOKUP($A100&AN$91,Barge_Rate_Master,MATCH($H100,'Barge Rate Inputs'!$A$4:$AD$4,0),FALSE),IF(LEFT($H100,3)="CSX",VLOOKUP($A100&AN$91,CSX_Rate_Master,MATCH($H100,'CSX Rate Inputs'!$A$4:$Z$4,0),FALSE),"n/a")) -> 39.8865339 | AO100: =IF(LEFT($H100,5)="Barge",VLOOKUP($A100&AO$91,Barge_Rate_Master,MATCH($H100,'Barge Rate Inputs'!$A$4:$AD$4,0),FALSE),IF(LEFT($H100,3)="CSX",VLOOKUP($A100&AO$91,CSX_Rate_Master,MATCH($H100,'CSX Rate Inputs'!$A$4:$Z$4,0),FALSE),"n/a")) -> 40.68426457
A101: Crystal River 4&5 | B101: =B82 -> ILB | C101: Illinois | D101: =D82 -> Barge | E101: 11800 | F101: 4.5 | G101: 10 | H101: Barge ILB OH River | J101: =IF(LEFT($H101,5)="Barge",VLOOKUP($A101&J$91,Barge_Rate_Master,MATCH($H101,'Barge Rate Inputs'!$A$4:$AD$4,0),FALSE),IF(LEFT($H101,3)="CSX",VLOOKUP($A101&J$91,CSX_Rate_Master,MATCH($H101,'CSX Rate Inputs'!$A$4:$Z$4,0),FALSE),"n/a")) -> 12.82875179 | K101: =IF(LEFT($H101,5)="Barge",VLOOKUP($A101&K$91,Barge_Rate_Master,MATCH($H101,'Barge Rate Inputs'!$A$4:$AD$4,0),FALSE),IF(LEFT($H101,3)="CSX",VLOOKUP($A101&K$91,CSX_Rate_Master,MATCH($H101,'CSX Rate Inputs'!$A$4:$Z$4,0),FALSE),"n/a")) -> 12.9909917 | L101: =IF(LEFT($H101,5)="Barge",VLOOKUP($A101&L$91,Barge_Rate_Master,MATCH($H101,'Barge Rate Inputs'!$A$4:$AD$4,0),FALSE),IF(LEFT($H101,3)="CSX",VLOOKUP($A101&L$91,CSX_Rate_Master,MATCH($H101,'CSX Rate Inputs'!$A$4:$Z$4,0),FALSE),"n/a")) -> 13.09674292 | M101: =IF(LEFT($H101,5)="Barge",VLOOKUP($A101&M$91,Barge_Rate_Master,MATCH($H101,'Barge Rate Inputs'!$A$4:$AD$4,0),FALSE),IF(LEFT($H101,3)="CSX",VLOOKUP($A101&M$91,CSX_Rate_Master,MATCH($H101,'CSX Rate Inputs'!$A$4:$Z$4,0),FALSE),"n/a")) -> 13.37040349 | N101: =IF(LEFT($H101,5)="Barge",VLOOKUP($A101&N$91,Barge_Rate_Master,MATCH($H101,'Barge Rate Inputs'!$A$4:$AD$4,0),FALSE),IF(LEFT($H101,3)="CSX",VLOOKUP($A101&N$91,CSX_Rate_Master,MATCH($H101,'CSX Rate Inputs'!$A$4:$Z$4,0),FALSE),"n/a")) -> 16.09741677 | O101: =IF(LEFT($H101,5)="Barge",VLOOKUP($A101&O$91,Barge_Rate_Master,MATCH($H101,'Barge Rate Inputs'!$A$4:$AD$4,0),FALSE),IF(LEFT($H101,3)="CSX",VLOOKUP($A101&O$91,CSX_Rate_Master,MATCH($H101,'CSX Rate Inputs'!$A$4:$Z$4,0),FALSE),"n/a")) -> 16.44027921 | P101: =IF(LEFT($H101,5)="Barge",VLOOKUP($A101&P$91,Barge_Rate_Master,MATCH($H101,'Barge Rate Inputs'!$A$4:$AD$4,0),FALSE),IF(LEFT($H101,3)="CSX",VLOOKUP($A101&P$91,CSX_Rate_Master,MATCH($H101,'CSX Rate Inputs'!$A$4:$Z$4,0),FALSE),"n/a")) -> 22.67100133 | Q101: =IF(LEFT($H101,5)="Barge",VLOOKUP($A101&Q$91,Barge_Rate_Master,MATCH($H101,'Barge Rate Inputs'!$A$4:$AD$4,0),FALSE),IF(LEFT($H101,3)="CSX",VLOOKUP($A101&Q$91,CSX_Rate_Master,MATCH($H101,'CSX Rate Inputs'!$A$4:$Z$4,0),FALSE),"n/a")) -> 22.99666427 | R101: =IF(LEFT($H101,5)="Barge",VLOOKUP($A101&R$91,Barge_Rate_Master,MATCH($H101,'Barge Rate Inputs'!$A$4:$AD$4,0),FALSE),IF(LEFT($H101,3)="CSX",VLOOKUP($A101&R$91,CSX_Rate_Master,MATCH($H101,'CSX Rate Inputs'!$A$4:$Z$4,0),FALSE),"n/a")) -> 23.84883114 | S101: =IF(LEFT($H101,5)="Barge",VLOOKUP($A101&S$91,Barge_Rate_Master,MATCH($H101,'Barge Rate Inputs'!$A$4:$AD$4,0),FALSE),IF(LEFT($H101,3)="CSX",VLOOKUP($A101&S$91,CSX_Rate_Master,MATCH($H101,'CSX Rate Inputs'!$A$4:$Z$4,0),FALSE),"n/a")) -> 24.45321501 | T101: =IF(LEFT($H101,5)="Barge",VLOOKUP($A101&T$91,Barge_Rate_Master,MATCH($H101,'Barge Rate Inputs'!$A$4:$AD$4,0),FALSE),IF(LEFT($H101,3)="CSX",VLOOKUP($A101&T$91,CSX_Rate_Master,MATCH($H101,'CSX Rate Inputs'!$A$4:$Z$4,0),FALSE),"n/a")) -> 25.07138315 | U101: =IF(LEFT($H101,5)="Barge",VLOOKUP($A101&U$91,Barge_Rate_Master,MATCH($H101,'Barge Rate Inputs'!$A$4:$AD$4,0),FALSE),IF(LEFT($H101,3)="CSX",VLOOKUP($A101&U$91,CSX_Rate_Master,MATCH($H101,'CSX Rate Inputs'!$A$4:$Z$4,0),FALSE),"n/a")) -> 25.66825441 | V101: =IF(LEFT($H101,5)="Barge",VLOOKUP($A101&V$91,Barge_Rate_Master,MATCH($H101,'Barge Rate Inputs'!$A$4:$AD$4,0),FALSE),IF(LEFT($H101,3)="CSX",VLOOKUP($A101&V$91,CSX_Rate_Master,MATCH($H101,'CSX Rate Inputs'!$A$4:$Z$4,0),FALSE),"n/a")) -> 32.88129759 | W101: =IF(LEFT($H101,5)="Barge",VLOOKUP($A101&W$91,Barge_Rate_Master,MATCH($H101,'Barge Rate Inputs'!$A$4:$AD$4,0),FALSE),IF(LEFT($H101,3)="CSX",VLOOKUP($A101&W$91,CSX_Rate_Master,MATCH($H101,'CSX Rate Inputs'!$A$4:$Z$4,0),FALSE),"n/a")) -> 33.60152489 | X101: =IF(LEFT($H101,5)="Barge",VLOOKUP($A101&X$91,Barge_Rate_Master,MATCH($H101,'Barge Rate Inputs'!$A$4:$AD$4,0),FALSE),IF(LEFT($H101,3)="CSX",VLOOKUP($A101&X$91,CSX_Rate_Master,MATCH($H101,'CSX Rate Inputs'!$A$4:$Z$4,0),FALSE),"n/a")) -> 34.26782236 | Y101: =IF(LEFT($H101,5)="Barge",VLOOKUP($A101&Y$91,Barge_Rate_Master,MATCH($H101,'Barge Rate Inputs'!$A$4:$AD$4,0),FALSE),IF(LEFT($H101,3)="CSX",VLOOKUP($A101&Y$91,CSX_Rate_Master,MATCH($H101,'CSX Rate Inputs'!$A$4:$Z$4,0),FALSE),"n/a")) -> 34.94768817 | Z101: =IF(LEFT($H101,5)="Barge",VLOOKUP($A101&Z$91,Barge_Rate_Master,MATCH($H101,'Barge Rate Inputs'!$A$4:$AD$4,0),FALSE),IF(LEFT($H101,3)="CSX",VLOOKUP($A101&Z$91,CSX_Rate_Master,MATCH($H101,'CSX Rate Inputs'!$A$4:$Z$4,0),FALSE),"n/a")) -> 35.71630583 | AA101: =IF(LEFT($H101,5)="Barge",VLOOKUP($A101&AA$91,Barge_Rate_Master,MATCH($H101,'Barge Rate Inputs'!$A$4:$AD$4,0),FALSE),IF(LEFT($H101,3)="CSX",VLOOKUP($A101&AA$91,CSX_Rate_Master,MATCH($H101,'CSX Rate Inputs'!$A$4:$Z$4,0),FALSE),"n/a")) -> 36.42054861 | AB101: =IF(LEFT($H101,5)="Barge",VLOOKUP($A101&AB$91,Barge_Rate_Master,MATCH($H101,'Barge Rate Inputs'!$A$4:$AD$4,0),FALSE),IF(LEFT($H101,3)="CSX",VLOOKUP($A101&AB$91,CSX_Rate_Master,MATCH($H101,'CSX Rate Inputs'!$A$4:$Z$4,0),FALSE),"n/a")) -> 37.14710919 | AC101: =IF(LEFT($H101,5)="Barge",VLOOKUP($A101&AC$91,Barge_Rate_Master,MATCH($H101,'Barge Rate Inputs'!$A$4:$AD$4,0),FALSE),IF(LEFT($H101,3)="CSX",VLOOKUP($A101&AC$91,CSX_Rate_Master,MATCH($H101,'CSX Rate Inputs'!$A$4:$Z$4,0),FALSE),"n/a")) -> 37.97282861 | AD101: =IF(LEFT($H101,5)="Barge",VLOOKUP($A101&AD$91,Barge_Rate_Master,MATCH($H101,'Barge Rate Inputs'!$A$4:$AD$4,0),FALSE),IF(LEFT($H101,3)="CSX",VLOOKUP($A101&AD$91,CSX_Rate_Master,MATCH($H101,'CSX Rate Inputs'!$A$4:$Z$4,0),FALSE),"n/a")) -> 38.73054114 | AE101: =IF(LEFT($H101,5)="Barge",VLOOKUP($A101&AE$91,Barge_Rate_Master,MATCH($H101,'Barge Rate Inputs'!$A$4:$AD$4,0),FALSE),IF(LEFT($H101,3)="CSX",VLOOKUP($A101&AE$91,CSX_Rate_Master,MATCH($H101,'CSX Rate Inputs'!$A$4:$Z$4,0),FALSE),"n/a")) -> 39.50413762 | AF101: =IF(LEFT($H101,5)="Barge",VLOOKUP($A101&AF$91,Barge_Rate_Master,MATCH($H101,'Barge Rate Inputs'!$A$4:$AD$4,0),FALSE),IF(LEFT($H101,3)="CSX",VLOOKUP($A101&AF$91,CSX_Rate_Master,MATCH($H101,'CSX Rate Inputs'!$A$4:$Z$4,0),FALSE),"n/a")) -> 40.25443491 | AG101: =IF(LEFT($H101,5)="Barge",VLOOKUP($A101&AG$91,Barge_Rate_Master,MATCH($H101,'Barge Rate Inputs'!$A$4:$AD$4,0),FALSE),IF(LEFT($H101,3)="CSX",VLOOKUP($A101&AG$91,CSX_Rate_Master,MATCH($H101,'CSX Rate Inputs'!$A$4:$Z$4,0),FALSE),"n/a")) -> 41.06968415 | AH101: =IF(LEFT($H101,5)="Barge",VLOOKUP($A101&AH$91,Barge_Rate_Master,MATCH($H101,'Barge Rate Inputs'!$A$4:$AD$4,0),FALSE),IF(LEFT($H101,3)="CSX",VLOOKUP($A101&AH$91,CSX_Rate_Master,MATCH($H101,'CSX Rate Inputs'!$A$4:$Z$4,0),FALSE),"n/a")) -> 41.90366888 | AI101: =IF(LEFT($H101,5)="Barge",VLOOKUP($A101&AI$91,Barge_Rate_Master,MATCH($H101,'Barge Rate Inputs'!$A$4:$AD$4,0),FALSE),IF(LEFT($H101,3)="CSX",VLOOKUP($A101&AI$91,CSX_Rate_Master,MATCH($H101,'CSX Rate Inputs'!$A$4:$Z$4,0),FALSE),"n/a")) -> 42.71445526 | AJ101: =IF(LEFT($H101,5)="Barge",VLOOKUP($A101&AJ$91,Barge_Rate_Master,MATCH($H101,'Barge Rate Inputs'!$A$4:$AD$4,0),FALSE),IF(LEFT($H101,3)="CSX",VLOOKUP($A101&AJ$91,CSX_Rate_Master,MATCH($H101,'CSX Rate Inputs'!$A$4:$Z$4,0),FALSE),"n/a")) -> 43.61331321 | AK101: =IF(LEFT($H101,5)="Barge",VLOOKUP($A101&AK$91,Barge_Rate_Master,MATCH($H101,'Barge Rate Inputs'!$A$4:$AD$4,0),FALSE),IF(LEFT($H101,3)="CSX",VLOOKUP($A101&AK$91,CSX_Rate_Master,MATCH($H101,'CSX Rate Inputs'!$A$4:$Z$4,0),FALSE),"n/a")) -> 44.3892799 | AL101: =IF(LEFT($H101,5)="Barge",VLOOKUP($A101&AL$91,Barge_Rate_Master,MATCH($H101,'Barge Rate Inputs'!$A$4:$AD$4,0),FALSE),IF(LEFT($H101,3)="CSX",VLOOKUP($A101&AL$91,CSX_Rate_Master,MATCH($H101,'CSX Rate Inputs'!$A$4:$Z$4,0),FALSE),"n/a")) -> 45.31925298 | AM101: =IF(LEFT($H101,5)="Barge",VLOOKUP($A101&AM$91,Barge_Rate_Master,MATCH($H101,'Barge Rate Inputs'!$A$4:$AD$4,0),FALSE),IF(LEFT($H101,3)="CSX",VLOOKUP($A101&AM$91,CSX_Rate_Master,MATCH($H101,'CSX Rate Inputs'!$A$4:$Z$4,0),FALSE),"n/a")) -> 46.26674147 | AN101: =IF(LEFT($H101,5)="Barge",VLOOKUP($A101&AN$91,Barge_Rate_Master,MATCH($H101,'Barge Rate Inputs'!$A$4:$AD$4,0),FALSE),IF(LEFT($H101,3)="CSX",VLOOKUP($A101&AN$91,CSX_Rate_Master,MATCH($H101,'CSX Rate Inputs'!$A$4:$Z$4,0),FALSE),"n/a")) -> 47.08392646 | AO101: =IF(LEFT($H101,5)="Barge",VLOOKUP($A101&AO$91,Barge_Rate_Master,MATCH($H101,'Barge Rate Inputs'!$A$4:$AD$4,0),FALSE),IF(LEFT($H101,3)="CSX",VLOOKUP($A101&AO$91,CSX_Rate_Master,MATCH($H101,'CSX Rate Inputs'!$A$4:$Z$4,0),FALSE),"n/a")) -> 48.06708271
A102: Crystal River 4&5 | B102: =B83 -> ILB | C102: Illinois | D102: =D83 -> Barge | E102: 11800 | F102: 4.5 | G102: =G83 -> 10 | H102: Barge ILB Green River | J102: =IF(LEFT($H102,5)="Barge",VLOOKUP($A102&J$91,Barge_Rate_Master,MATCH($H102,'Barge Rate Inputs'!$A$4:$AD$4,0),FALSE),IF(LEFT($H102,3)="CSX",VLOOKUP($A102&J$91,CSX_Rate_Master,MATCH($H102,'CSX Rate Inputs'!$A$4:$Z$4,0),FALSE),"n/a")) -> 20.46216769 | K102: =IF(LEFT($H102,5)="Barge",VLOOKUP($A102&K$91,Barge_Rate_Master,MATCH($H102,'Barge Rate Inputs'!$A$4:$AD$4,0),FALSE),IF(LEFT($H102,3)="CSX",VLOOKUP($A102&K$91,CSX_Rate_Master,MATCH($H102,'CSX Rate Inputs'!$A$4:$Z$4,0),FALSE),"n/a")) -> 20.72137425 | L102: =IF(LEFT($H102,5)="Barge",VLOOKUP($A102&L$91,Barge_Rate_Master,MATCH($H102,'Barge Rate Inputs'!$A$4:$AD$4,0),FALSE),IF(LEFT($H102,3)="CSX",VLOOKUP($A102&L$91,CSX_Rate_Master,MATCH($H102,'CSX Rate Inputs'!$A$4:$Z$4,0),FALSE),"n/a")) -> 20.21979384 | M102: =IF(LEFT($H102,5)="Barge",VLOOKUP($A102&M$91,Barge_Rate_Master,MATCH($H102,'Barge Rate Inputs'!$A$4:$AD$4,0),FALSE),IF(LEFT($H102,3)="CSX",VLOOKUP($A102&M$91,CSX_Rate_Master,MATCH($H102,'CSX Rate Inputs'!$A$4:$Z$4,0),FALSE),"n/a")) -> 20.15384389 | N102: =IF(LEFT($H102,5)="Barge",VLOOKUP($A102&N$91,Barge_Rate_Master,MATCH($H102,'Barge Rate Inputs'!$A$4:$AD$4,0),FALSE),IF(LEFT($H102,3)="CSX",VLOOKUP($A102&N$91,CSX_Rate_Master,MATCH($H102,'CSX Rate Inputs'!$A$4:$Z$4,0),FALSE),"n/a")) -> 23.02645988 | O102: =IF(LEFT($H102,5)="Barge",VLOOKUP($A102&O$91,Barge_Rate_Master,MATCH($H102,'Barge Rate Inputs'!$A$4:$AD$4,0),FALSE),IF(LEFT($H102,3)="CSX",VLOOKUP($A102&O$91,CSX_Rate_Master,MATCH($H102,'CSX Rate Inputs'!$A$4:$Z$4,0),FALSE),"n/a")) -> 23.51800792 | P102: =IF(LEFT($H102,5)="Barge",VLOOKUP($A102&P$91,Barge_Rate_Master,MATCH($H102,'Barge Rate Inputs'!$A$4:$AD$4,0),FALSE),IF(LEFT($H102,3)="CSX",VLOOKUP($A102&P$91,CSX_Rate_Master,MATCH($H102,'CSX Rate Inputs'!$A$4:$Z$4,0),FALSE),"n/a")) -> 29.90041233 | Q102: =IF(LEFT($H102,5)="Barge",VLOOKUP($A102&Q$91,Barge_Rate_Master,MATCH($H102,'Barge Rate Inputs'!$A$4:$AD$4,0),FALSE),IF(LEFT($H102,3)="CSX",VLOOKUP($A102&Q$91,CSX_Rate_Master,MATCH($H102,'CSX Rate Inputs'!$A$4:$Z$4,0),FALSE),"n/a")) -> 30.39742149 | R102: =IF(LEFT($H102,5)="Barge",VLOOKUP($A102&R$91,Barge_Rate_Master,MATCH($H102,'Barge Rate Inputs'!$A$4:$AD$4,0),FALSE),IF(LEFT($H102,3)="CSX",VLOOKUP($A102&R$91,CSX_Rate_Master,MATCH($H102,'CSX Rate Inputs'!$A$4:$Z$4,0),FALSE),"n/a")) -> 31.44659836 | S102: =IF(LEFT($H102,5)="Barge",VLOOKUP($A102&S$91,Barge_Rate_Master,MATCH($H102,'Barge Rate Inputs'!$A$4:$AD$4,0),FALSE),IF(LEFT($H102,3)="CSX",VLOOKUP($A102&S$91,CSX_Rate_Master,MATCH($H102,'CSX Rate Inputs'!$A$4:$Z$4,0),FALSE),"n/a")) -> 32.26415943 | T102: =IF(LEFT($H102,5)="Barge",VLOOKUP($A102&T$91,Barge_Rate_Master,MATCH($H102,'Barge Rate Inputs'!$A$4:$AD$4,0),FALSE),IF(LEFT($H102,3)="CSX",VLOOKUP($A102&T$91,CSX_Rate_Master,MATCH($H102,'CSX Rate Inputs'!$A$4:$Z$4,0),FALSE),"n/a")) -> 33.10058359 | U102: =IF(LEFT($H102,5)="Barge",VLOOKUP($A102&U$91,Barge_Rate_Master,MATCH($H102,'Barge Rate Inputs'!$A$4:$AD$4,0),FALSE),IF(LEFT($H102,3)="CSX",VLOOKUP($A102&U$91,CSX_Rate_Master,MATCH($H102,'CSX Rate Inputs'!$A$4:$Z$4,0),FALSE),"n/a")) -> 33.90390152 | V102: =IF(LEFT($H102,5)="Barge",VLOOKUP($A102&V$91,Barge_Rate_Master,MATCH($H102,'Barge Rate Inputs'!$A$4:$AD$4,0),FALSE),IF(LEFT($H102,3)="CSX",VLOOKUP($A102&V$91,CSX_Rate_Master,MATCH($H102,'CSX Rate Inputs'!$A$4:$Z$4,0),FALSE),"n/a")) -> 41.28990516 | W102: =IF(LEFT($H102,5)="Barge",VLOOKUP($A102&W$91,Barge_Rate_Master,MATCH($H102,'Barge Rate Inputs'!$A$4:$AD$4,0),FALSE),IF(LEFT($H102,3)="CSX",VLOOKUP($A102&W$91,CSX_Rate_Master,MATCH($H102,'CSX Rate Inputs'!$A$4:$Z$4,0),FALSE),"n/a")) -> 42.18448386 | X102: =IF(LEFT($H102,5)="Barge",VLOOKUP($A102&X$91,Barge_Rate_Master,MATCH($H102,'Barge Rate Inputs'!$A$4:$AD$4,0),FALSE),IF(LEFT($H102,3)="CSX",VLOOKUP($A102&X$91,CSX_Rate_Master,MATCH($H102,'CSX Rate Inputs'!$A$4:$Z$4,0),FALSE),"n/a")) -> 43.0319964 | Y102: =IF(LEFT($H102,5)="Barge",VLOOKUP($A102&Y$91,Barge_Rate_Master,MATCH($H102,'Barge Rate Inputs'!$A$4:$AD$4,0),FALSE),IF(LEFT($H102,3)="CSX",VLOOKUP($A102&Y$91,CSX_Rate_Master,MATCH($H102,'CSX Rate Inputs'!$A$4:$Z$4,0),FALSE),"n/a")) -> 43.89681804 | Z102: =IF(LEFT($H102,5)="Barge",VLOOKUP($A102&Z$91,Barge_Rate_Master,MATCH($H102,'Barge Rate Inputs'!$A$4:$AD$4,0),FALSE),IF(LEFT($H102,3)="CSX",VLOOKUP($A102&Z$91,CSX_Rate_Master,MATCH($H102,'CSX Rate Inputs'!$A$4:$Z$4,0),FALSE),"n/a")) -> 44.85252825 | AA102: =IF(LEFT($H102,5)="Barge",VLOOKUP($A102&AA$91,Barge_Rate_Master,MATCH($H102,'Barge Rate Inputs'!$A$4:$AD$4,0),FALSE),IF(LEFT($H102,3)="CSX",VLOOKUP($A102&AA$91,CSX_Rate_Master,MATCH($H102,'CSX Rate Inputs'!$A$4:$Z$4,0),FALSE),"n/a")) -> 45.74771447 | AB102: =IF(LEFT($H102,5)="Barge",VLOOKUP($A102&AB$91,Barge_Rate_Master,MATCH($H102,'Barge Rate Inputs'!$A$4:$AD$4,0),FALSE),IF(LEFT($H102,3)="CSX",VLOOKUP($A102&AB$91,CSX_Rate_Master,MATCH($H102,'CSX Rate Inputs'!$A$4:$Z$4,0),FALSE),"n/a")) -> 46.67299345 | AC102: =IF(LEFT($H102,5)="Barge",VLOOKUP($A102&AC$91,Barge_Rate_Master,MATCH($H102,'Barge Rate Inputs'!$A$4:$AD$4,0),FALSE),IF(LEFT($H102,3)="CSX",VLOOKUP($A102&AC$91,CSX_Rate_Master,MATCH($H102,'CSX Rate Inputs'!$A$4:$Z$4,0),FALSE),"n/a")) -> 47.7020892 | AD102: =IF(LEFT($H102,5)="Barge",VLOOKUP($A102&AD$91,Barge_Rate_Master,MATCH($H102,'Barge Rate Inputs'!$A$4:$AD$4,0),FALSE),IF(LEFT($H102,3)="CSX",VLOOKUP($A102&AD$91,CSX_Rate_Master,MATCH($H102,'CSX Rate Inputs'!$A$4:$Z$4,0),FALSE),"n/a")) -> 48.66741277 | AE102: =IF(LEFT($H102,5)="Barge",VLOOKUP($A102&AE$91,Barge_Rate_Master,MATCH($H102,'Barge Rate Inputs'!$A$4:$AD$4,0),FALSE),IF(LEFT($H102,3)="CSX",VLOOKUP($A102&AE$91,CSX_Rate_Master,MATCH($H102,'CSX Rate Inputs'!$A$4:$Z$4,0),FALSE),"n/a")) -> 49.65312315 | AF102: =IF(LEFT($H102,5)="Barge",VLOOKUP($A102&AF$91,Barge_Rate_Master,MATCH($H102,'Barge Rate Inputs'!$A$4:$AD$4,0),FALSE),IF(LEFT($H102,3)="CSX",VLOOKUP($A102&AF$91,CSX_Rate_Master,MATCH($H102,'CSX Rate Inputs'!$A$4:$Z$4,0),FALSE),"n/a")) -> 50.55871726 | AG102: =IF(LEFT($H102,5)="Barge",VLOOKUP($A102&AG$91,Barge_Rate_Master,MATCH($H102,'Barge Rate Inputs'!$A$4:$AD$4,0),FALSE),IF(LEFT($H102,3)="CSX",VLOOKUP($A102&AG$91,CSX_Rate_Master,MATCH($H102,'CSX Rate Inputs'!$A$4:$Z$4,0),FALSE),"n/a")) -> 51.59964696 | AH102: =IF(LEFT($H102,5)="Barge",VLOOKUP($A102&AH$91,Barge_Rate_Master,MATCH($H102,'Barge Rate Inputs'!$A$4:$AD$4,0),FALSE),IF(LEFT($H102,3)="CSX",VLOOKUP($A102&AH$91,CSX_Rate_Master,MATCH($H102,'CSX Rate Inputs'!$A$4:$Z$4,0),FALSE),"n/a")) -> 52.66499366 | AI102: =IF(LEFT($H102,5)="Barge",VLOOKUP($A102&AI$91,Barge_Rate_Master,MATCH($H102,'Barge Rate Inputs'!$A$4:$AD$4,0),FALSE),IF(LEFT($H102,3)="CSX",VLOOKUP($A102&AI$91,CSX_Rate_Master,MATCH($H102,'CSX Rate Inputs'!$A$4:$Z$4,0),FALSE),"n/a")) -> 53.64758101 | AJ102: =IF(LEFT($H102,5)="Barge",VLOOKUP($A102&AJ$91,Barge_Rate_Master,MATCH($H102,'Barge Rate Inputs'!$A$4:$AD$4,0),FALSE),IF(LEFT($H102,3)="CSX",VLOOKUP($A102&AJ$91,CSX_Rate_Master,MATCH($H102,'CSX Rate Inputs'!$A$4:$Z$4,0),FALSE),"n/a")) -> 54.78651775 | AK102: =IF(LEFT($H102,5)="Barge",VLOOKUP($A102&AK$91,Barge_Rate_Master,MATCH($H102,'Barge Rate Inputs'!$A$4:$AD$4,0),FALSE),IF(LEFT($H102,3)="CSX",VLOOKUP($A102&AK$91,CSX_Rate_Master,MATCH($H102,'CSX Rate Inputs'!$A$4:$Z$4,0),FALSE),"n/a")) -> 55.73967456 | AL102: =IF(LEFT($H102,5)="Barge",VLOOKUP($A102&AL$91,Barge_Rate_Master,MATCH($H102,'Barge Rate Inputs'!$A$4:$AD$4,0),FALSE),IF(LEFT($H102,3)="CSX",VLOOKUP($A102&AL$91,CSX_Rate_Master,MATCH($H102,'CSX Rate Inputs'!$A$4:$Z$4,0),FALSE),"n/a")) -> 56.91692751 | AM102: =IF(LEFT($H102,5)="Barge",VLOOKUP($A102&AM$91,Barge_Rate_Master,MATCH($H102,'Barge Rate Inputs'!$A$4:$AD$4,0),FALSE),IF(LEFT($H102,3)="CSX",VLOOKUP($A102&AM$91,CSX_Rate_Master,MATCH($H102,'CSX Rate Inputs'!$A$4:$Z$4,0),FALSE),"n/a")) -> 58.11612055 | AN102: =IF(LEFT($H102,5)="Barge",VLOOKUP($A102&AN$91,Barge_Rate_Master,MATCH($H102,'Barge Rate Inputs'!$A$4:$AD$4,0),FALSE),IF(LEFT($H102,3)="CSX",VLOOKUP($A102&AN$91,CSX_Rate_Master,MATCH($H102,'CSX Rate Inputs'!$A$4:$Z$4,0),FALSE),"n/a")) -> 59.11832485 | AO102: =IF(LEFT($H102,5)="Barge",VLOOKUP($A102&AO$91,Barge_Rate_Master,MATCH($H102,'Barge Rate Inputs'!$A$4:$AD$4,0),FALSE),IF(LEFT($H102,3)="CSX",VLOOKUP($A102&AO$91,CSX_Rate_Master,MATCH($H102,'CSX Rate Inputs'!$A$4:$Z$4,0),FALSE),"n/a")) -> 60.36209999
A103: Crystal River 4&5 | B103: ILB | C103: Low Chlorine | D103: Barge | E103: 11500 | F103: 5.2 | G103: =G84 -> 10 | H103: Barge ILB OH River | J103: =IF(LEFT($H103,5)="Barge",VLOOKUP($A103&J$91,Barge_Rate_Master,MATCH($H103,'Barge Rate Inputs'!$A$4:$AD$4,0),FALSE),IF(LEFT($H103,3)="CSX",VLOOKUP($A103&J$91,CSX_Rate_Master,MATCH($H103,'CSX Rate Inputs'!$A$4:$Z$4,0),FALSE),"n/a")) -> 12.82875179 | K103: =IF(LEFT($H103,5)="Barge",VLOOKUP($A103&K$91,Barge_Rate_Master,MATCH($H103,'Barge Rate Inputs'!$A$4:$AD$4,0),FALSE),IF(LEFT($H103,3)="CSX",VLOOKUP($A103&K$91,CSX_Rate_Master,MATCH($H103,'CSX Rate Inputs'!$A$4:$Z$4,0),FALSE),"n/a")) -> 12.9909917 | L103: =IF(LEFT($H103,5)="Barge",VLOOKUP($A103&L$91,Barge_Rate_Master,MATCH($H103,'Barge Rate Inputs'!$A$4:$AD$4,0),FALSE),IF(LEFT($H103,3)="CSX",VLOOKUP($A103&L$91,CSX_Rate_Master,MATCH($H103,'CSX Rate Inputs'!$A$4:$Z$4,0),FALSE),"n/a")) -> 13.09674292 | M103: =IF(LEFT($H103,5)="Barge",VLOOKUP($A103&M$91,Barge_Rate_Master,MATCH($H103,'Barge Rate Inputs'!$A$4:$AD$4,0),FALSE),IF(LEFT($H103,3)="CSX",VLOOKUP($A103&M$91,CSX_Rate_Master,MATCH($H103,'CSX Rate Inputs'!$A$4:$Z$4,0),FALSE),"n/a")) -> 13.37040349 | N103: =IF(LEFT($H103,5)="Barge",VLOOKUP($A103&N$91,Barge_Rate_Master,MATCH($H103,'Barge Rate Inputs'!$A$4:$AD$4,0),FALSE),IF(LEFT($H103,3)="CSX",VLOOKUP($A103&N$91,CSX_Rate_Master,MATCH($H103,'CSX Rate Inputs'!$A$4:$Z$4,0),FALSE),"n/a")) -> 16.09741677 | O103: =IF(LEFT($H103,5)="Barge",VLOOKUP($A103&O$91,Barge_Rate_Master,MATCH($H103,'Barge Rate Inputs'!$A$4:$AD$4,0),FALSE),IF(LEFT($H103,3)="CSX",VLOOKUP($A103&O$91,CSX_Rate_Master,MATCH($H103,'CSX Rate Inputs'!$A$4:$Z$4,0),FALSE),"n/a")) -> 16.44027921 | P103: =IF(LEFT($H103,5)="Barge",VLOOKUP($A103&P$91,Barge_Rate_Master,MATCH($H103,'Barge Rate Inputs'!$A$4:$AD$4,0),FALSE),IF(LEFT($H103,3)="CSX",VLOOKUP($A103&P$91,CSX_Rate_Master,MATCH($H103,'CSX Rate Inputs'!$A$4:$Z$4,0),FALSE),"n/a")) -> 22.67100133 | Q103: =IF(LEFT($H103,5)="Barge",VLOOKUP($A103&Q$91,Barge_Rate_Master,MATCH($H103,'Barge Rate Inputs'!$A$4:$AD$4,0),FALSE),IF(LEFT($H103,3)="CSX",VLOOKUP($A103&Q$91,CSX_Rate_Master,MATCH($H103,'CSX Rate Inputs'!$A$4:$Z$4,0),FALSE),"n/a")) -> 22.99666427 | R103: =IF(LEFT($H103,5)="Barge",VLOOKUP($A103&R$91,Barge_Rate_Master,MATCH($H103,'Barge Rate Inputs'!$A$4:$AD$4,0),FALSE),IF(LEFT($H103,3)="CSX",VLOOKUP($A103&R$91,CSX_Rate_Master,MATCH($H103,'CSX Rate Inputs'!$A$4:$Z$4,0),FALSE),"n/a")) -> 23.84883114 | S103: =IF(LEFT($H103,5)="Barge",VLOOKUP($A103&S$91,Barge_Rate_Master,MATCH($H103,'Barge Rate Inputs'!$A$4:$AD$4,0),FALSE),IF(LEFT($H103,3)="CSX",VLOOKUP($A103&S$91,CSX_Rate_Master,MATCH($H103,'CSX Rate Inputs'!$A$4:$Z$4,0),FALSE),"n/a")) -> 24.45321501 | T103: =IF(LEFT($H103,5)="Barge",VLOOKUP($A103&T$91,Barge_Rate_Master,MATCH($H103,'Barge Rate Inputs'!$A$4:$AD$4,0),FALSE),IF(LEFT($H103,3)="CSX",VLOOKUP($A103&T$91,CSX_Rate_Master,MATCH($H103,'CSX Rate Inputs'!$A$4:$Z$4,0),FALSE),"n/a")) -> 25.07138315 | U103: =IF(LEFT($H103,5)="Barge",VLOOKUP($A103&U$91,Barge_Rate_Master,MATCH($H103,'Barge Rate Inputs'!$A$4:$AD$4,0),FALSE),IF(LEFT($H103,3)="CSX",VLOOKUP($A103&U$91,CSX_Rate_Master,MATCH($H103,'CSX Rate Inputs'!$A$4:$Z$4,0),FALSE),"n/a")) -> 25.66825441 | V103: =IF(LEFT($H103,5)="Barge",VLOOKUP($A103&V$91,Barge_Rate_Master,MATCH($H103,'Barge Rate Inputs'!$A$4:$AD$4,0),FALSE),IF(LEFT($H103,3)="CSX",VLOOKUP($A103&V$91,CSX_Rate_Master,MATCH($H103,'CSX Rate Inputs'!$A$4:$Z$4,0),FALSE),"n/a")) -> 32.88129759 | W103: =IF(LEFT($H103,5)="Barge",VLOOKUP($A103&W$91,Barge_Rate_Master,MATCH($H103,'Barge Rate Inputs'!$A$4:$AD$4,0),FALSE),IF(LEFT($H103,3)="CSX",VLOOKUP($A103&W$91,CSX_Rate_Master,MATCH($H103,'CSX Rate Inputs'!$A$4:$Z$4,0),FALSE),"n/a")) -> 33.60152489 | X103: =IF(LEFT($H103,5)="Barge",VLOOKUP($A103&X$91,Barge_Rate_Master,MATCH($H103,'Barge Rate Inputs'!$A$4:$AD$4,0),FALSE),IF(LEFT($H103,3)="CSX",VLOOKUP($A103&X$91,CSX_Rate_Master,MATCH($H103,'CSX Rate Inputs'!$A$4:$Z$4,0),FALSE),"n/a")) -> 34.26782236 | Y103: =IF(LEFT($H103,5)="Barge",VLOOKUP($A103&Y$91,Barge_Rate_Master,MATCH($H103,'Barge Rate Inputs'!$A$4:$AD$4,0),FALSE),IF(LEFT($H103,3)="CSX",VLOOKUP($A103&Y$91,CSX_Rate_Master,MATCH($H103,'CSX Rate Inputs'!$A$4:$Z$4,0),FALSE),"n/a")) -> 34.94768817 | Z103: =IF(LEFT($H103,5)="Barge",VLOOKUP($A103&Z$91,Barge_Rate_Master,MATCH($H103,'Barge Rate Inputs'!$A$4:$AD$4,0),FALSE),IF(LEFT($H103,3)="CSX",VLOOKUP($A103&Z$91,CSX_Rate_Master,MATCH($H103,'CSX Rate Inputs'!$A$4:$Z$4,0),FALSE),"n/a")) -> 35.71630583 | AA103: =IF(LEFT($H103,5)="Barge",VLOOKUP($A103&AA$91,Barge_Rate_Master,MATCH($H103,'Barge Rate Inputs'!$A$4:$AD$4,0),FALSE),IF(LEFT($H103,3)="CSX",VLOOKUP($A103&AA$91,CSX_Rate_Master,MATCH($H103,'CSX Rate Inputs'!$A$4:$Z$4,0),FALSE),"n/a")) -> 36.42054861 | AB103: =IF(LEFT($H103,5)="Barge",VLOOKUP($A103&AB$91,Barge_Rate_Master,MATCH($H103,'Barge Rate Inputs'!$A$4:$AD$4,0),FALSE),IF(LEFT($H103,3)="CSX",VLOOKUP($A103&AB$91,CSX_Rate_Master,MATCH($H103,'CSX Rate Inputs'!$A$4:$Z$4,0),FALSE),"n/a")) -> 37.14710919 | AC103: =IF(LEFT($H103,5)="Barge",VLOOKUP($A103&AC$91,Barge_Rate_Master,MATCH($H103,'Barge Rate Inputs'!$A$4:$AD$4,0),FALSE),IF(LEFT($H103,3)="CSX",VLOOKUP($A103&AC$91,CSX_Rate_Master,MATCH($H103,'CSX Rate Inputs'!$A$4:$Z$4,0),FALSE),"n/a")) -> 37.97282861 | AD103: =IF(LEFT($H103,5)="Barge",VLOOKUP($A103&AD$91,Barge_Rate_Master,MATCH($H103,'Barge Rate Inputs'!$A$4:$AD$4,0),FALSE),IF(LEFT($H103,3)="CSX",VLOOKUP($A103&AD$91,CSX_Rate_Master,MATCH($H103,'CSX Rate Inputs'!$A$4:$Z$4,0),FALSE),"n/a")) -> 38.73054114 | AE103: =IF(LEFT($H103,5)="Barge",VLOOKUP($A103&AE$91,Barge_Rate_Master,MATCH($H103,'Barge Rate Inputs'!$A$4:$AD$4,0),FALSE),IF(LEFT($H103,3)="CSX",VLOOKUP($A103&AE$91,CSX_Rate_Master,MATCH($H103,'CSX Rate Inputs'!$A$4:$Z$4,0),FALSE),"n/a")) -> 39.50413762 | AF103: =IF(LEFT($H103,5)="Barge",VLOOKUP($A103&AF$91,Barge_Rate_Master,MATCH($H103,'Barge Rate Inputs'!$A$4:$AD$4,0),FALSE),IF(LEFT($H103,3)="CSX",VLOOKUP($A103&AF$91,CSX_Rate_Master,MATCH($H103,'CSX Rate Inputs'!$A$4:$Z$4,0),FALSE),"n/a")) -> 40.25443491 | AG103: =IF(LEFT($H103,5)="Barge",VLOOKUP($A103&AG$91,Barge_Rate_Master,MATCH($H103,'Barge Rate Inputs'!$A$4:$AD$4,0),FALSE),IF(LEFT($H103,3)="CSX",VLOOKUP($A103&AG$91,CSX_Rate_Master,MATCH($H103,'CSX Rate Inputs'!$A$4:$Z$4,0),FALSE),"n/a")) -> 41.06968415 | AH103: =IF(LEFT($H103,5)="Barge",VLOOKUP($A103&AH$91,Barge_Rate_Master,MATCH($H103,'Barge Rate Inputs'!$A$4:$AD$4,0),FALSE),IF(LEFT($H103,3)="CSX",VLOOKUP($A103&AH$91,CSX_Rate_Master,MATCH($H103,'CSX Rate Inputs'!$A$4:$Z$4,0),FALSE),"n/a")) -> 41.90366888 | AI103: =IF(LEFT($H103,5)="Barge",VLOOKUP($A103&AI$91,Barge_Rate_Master,MATCH($H103,'Barge Rate Inputs'!$A$4:$AD$4,0),FALSE),IF(LEFT($H103,3)="CSX",VLOOKUP($A103&AI$91,CSX_Rate_Master,MATCH($H103,'CSX Rate Inputs'!$A$4:$Z$4,0),FALSE),"n/a")) -> 42.71445526 | AJ103: =IF(LEFT($H103,5)="Barge",VLOOKUP($A103&AJ$91,Barge_Rate_Master,MATCH($H103,'Barge Rate Inputs'!$A$4:$AD$4,0),FALSE),IF(LEFT($H103,3)="CSX",VLOOKUP($A103&AJ$91,CSX_Rate_Master,MATCH($H103,'CSX Rate Inputs'!$A$4:$Z$4,0),FALSE),"n/a")) -> 43.61331321 | AK103: =IF(LEFT($H103,5)="Barge",VLOOKUP($A103&AK$91,Barge_Rate_Master,MATCH($H103,'Barge Rate Inputs'!$A$4:$AD$4,0),FALSE),IF(LEFT($H103,3)="CSX",VLOOKUP($A103&AK$91,CSX_Rate_Master,MATCH($H103,'CSX Rate Inputs'!$A$4:$Z$4,0),FALSE),"n/a")) -> 44.3892799 | AL103: =IF(LEFT($H103,5)="Barge",VLOOKUP($A103&AL$91,Barge_Rate_Master,MATCH($H103,'Barge Rate Inputs'!$A$4:$AD$4,0),FALSE),IF(LEFT($H103,3)="CSX",VLOOKUP($A103&AL$91,CSX_Rate_Master,MATCH($H103,'CSX Rate Inputs'!$A$4:$Z$4,0),FALSE),"n/a")) -> 45.31925298 | AM103: =IF(LEFT($H103,5)="Barge",VLOOKUP($A103&AM$91,Barge_Rate_Master,MATCH($H103,'Barge Rate Inputs'!$A$4:$AD$4,0),FALSE),IF(LEFT($H103,3)="CSX",VLOOKUP($A103&AM$91,CSX_Rate_Master,MATCH($H103,'CSX Rate Inputs'!$A$4:$Z$4,0),FALSE),"n/a")) -> 46.26674147 | AN103: =IF(LEFT($H103,5)="Barge",VLOOKUP($A103&AN$91,Barge_Rate_Master,MATCH($H103,'Barge Rate Inputs'!$A$4:$AD$4,0),FALSE),IF(LEFT($H103,3)="CSX",VLOOKUP($A103&AN$91,CSX_Rate_Master,MATCH($H103,'CSX Rate Inputs'!$A$4:$Z$4,0),FALSE),"n/a")) -> 47.08392646 | AO103: =IF(LEFT($H103,5)="Barge",VLOOKUP($A103&AO$91,Barge_Rate_Master,MATCH($H103,'Barge Rate Inputs'!$A$4:$AD$4,0),FALSE),IF(LEFT($H103,3)="CSX",VLOOKUP($A103&AO$91,CSX_Rate_Master,MATCH($H103,'CSX Rate Inputs'!$A$4:$Z$4,0),FALSE),"n/a")) -> 48.06708271
A104: Crystal River 4&5 | B104: ILB | C104: Low Chlorine | D104: Rail | E104: 11500 | F104: 5.2 | G104: =G85 -> 10 | H104: CSX Western KY | J104: =IF(LEFT($H104,5)="Barge",VLOOKUP($A104&J$91,Barge_Rate_Master,MATCH($H104,'Barge Rate Inputs'!$A$4:$AD$4,0),FALSE),IF(LEFT($H104,3)="CSX",VLOOKUP($A104&J$91,CSX_Rate_Master,MATCH($H104,'CSX Rate Inputs'!$A$4:$Z$4,0),FALSE),"n/a")) -> 17.78 | K104: =IF(LEFT($H104,5)="Barge",VLOOKUP($A104&K$91,Barge_Rate_Master,MATCH($H104,'Barge Rate Inputs'!$A$4:$AD$4,0),FALSE),IF(LEFT($H104,3)="CSX",VLOOKUP($A104&K$91,CSX_Rate_Master,MATCH($H104,'CSX Rate Inputs'!$A$4:$Z$4,0),FALSE),"n/a")) -> 17.94066104 | L104: =IF(LEFT($H104,5)="Barge",VLOOKUP($A104&L$91,Barge_Rate_Master,MATCH($H104,'Barge Rate Inputs'!$A$4:$AD$4,0),FALSE),IF(LEFT($H104,3)="CSX",VLOOKUP($A104&L$91,CSX_Rate_Master,MATCH($H104,'CSX Rate Inputs'!$A$4:$Z$4,0),FALSE),"n/a")) -> 18.37512761 | M104: =IF(LEFT($H104,5)="Barge",VLOOKUP($A104&M$91,Barge_Rate_Master,MATCH($H104,'Barge Rate Inputs'!$A$4:$AD$4,0),FALSE),IF(LEFT($H104,3)="CSX",VLOOKUP($A104&M$91,CSX_Rate_Master,MATCH($H104,'CSX Rate Inputs'!$A$4:$Z$4,0),FALSE),"n/a")) -> 18.8201156 | N104: =IF(LEFT($H104,5)="Barge",VLOOKUP($A104&N$91,Barge_Rate_Master,MATCH($H104,'Barge Rate Inputs'!$A$4:$AD$4,0),FALSE),IF(LEFT($H104,3)="CSX",VLOOKUP($A104&N$91,CSX_Rate_Master,MATCH($H104,'CSX Rate Inputs'!$A$4:$Z$4,0),FALSE),"n/a")) -> 19.27587981 | O104: =IF(LEFT($H104,5)="Barge",VLOOKUP($A104&O$91,Barge_Rate_Master,MATCH($H104,'Barge Rate Inputs'!$A$4:$AD$4,0),FALSE),IF(LEFT($H104,3)="CSX",VLOOKUP($A104&O$91,CSX_Rate_Master,MATCH($H104,'CSX Rate Inputs'!$A$4:$Z$4,0),FALSE),"n/a")) -> 19.74268119 | P104: =IF(LEFT($H104,5)="Barge",VLOOKUP($A104&P$91,Barge_Rate_Master,MATCH($H104,'Barge Rate Inputs'!$A$4:$AD$4,0),FALSE),IF(LEFT($H104,3)="CSX",VLOOKUP($A104&P$91,CSX_Rate_Master,MATCH($H104,'CSX Rate Inputs'!$A$4:$Z$4,0),FALSE),"n/a")) -> 20.22078704 | Q104: =IF(LEFT($H104,5)="Barge",VLOOKUP($A104&Q$91,Barge_Rate_Master,MATCH($H104,'Barge Rate Inputs'!$A$4:$AD$4,0),FALSE),IF(LEFT($H104,3)="CSX",VLOOKUP($A104&Q$91,CSX_Rate_Master,MATCH($H104,'CSX Rate Inputs'!$A$4:$Z$4,0),FALSE),"n/a")) -> 20.72630672 | R104: =IF(LEFT($H104,5)="Barge",VLOOKUP($A104&R$91,Barge_Rate_Master,MATCH($H104,'Barge Rate Inputs'!$A$4:$AD$4,0),FALSE),IF(LEFT($H104,3)="CSX",VLOOKUP($A104&R$91,CSX_Rate_Master,MATCH($H104,'CSX Rate Inputs'!$A$4:$Z$4,0),FALSE),"n/a")) -> 21.14083285 | S104: =IF(LEFT($H104,5)="Barge",VLOOKUP($A104&S$91,Barge_Rate_Master,MATCH($H104,'Barge Rate Inputs'!$A$4:$AD$4,0),FALSE),IF(LEFT($H104,3)="CSX",VLOOKUP($A104&S$91,CSX_Rate_Master,MATCH($H104,'CSX Rate Inputs'!$A$4:$Z$4,0),FALSE),"n/a")) -> 21.56364951 | T104: =IF(LEFT($H104,5)="Barge",VLOOKUP($A104&T$91,Barge_Rate_Master,MATCH($H104,'Barge Rate Inputs'!$A$4:$AD$4,0),FALSE),IF(LEFT($H104,3)="CSX",VLOOKUP($A104&T$91,CSX_Rate_Master,MATCH($H104,'CSX Rate Inputs'!$A$4:$Z$4,0),FALSE),"n/a")) -> 21.9949225 | U104: =IF(LEFT($H104,5)="Barge",VLOOKUP($A104&U$91,Barge_Rate_Master,MATCH($H104,'Barge Rate Inputs'!$A$4:$AD$4,0),FALSE),IF(LEFT($H104,3)="CSX",VLOOKUP($A104&U$91,CSX_Rate_Master,MATCH($H104,'CSX Rate Inputs'!$A$4:$Z$4,0),FALSE),"n/a")) -> 22.43482095 | V104: =IF(LEFT($H104,5)="Barge",VLOOKUP($A104&V$91,Barge_Rate_Master,MATCH($H104,'Barge Rate Inputs'!$A$4:$AD$4,0),FALSE),IF(LEFT($H104,3)="CSX",VLOOKUP($A104&V$91,CSX_Rate_Master,MATCH($H104,'CSX Rate Inputs'!$A$4:$Z$4,0),FALSE),"n/a")) -> 22.88351737 | W104: =IF(LEFT($H104,5)="Barge",VLOOKUP($A104&W$91,Barge_Rate_Master,MATCH($H104,'Barge Rate Inputs'!$A$4:$AD$4,0),FALSE),IF(LEFT($H104,3)="CSX",VLOOKUP($A104&W$91,CSX_Rate_Master,MATCH($H104,'CSX Rate Inputs'!$A$4:$Z$4,0),FALSE),"n/a")) -> 23.34118772 | X104: =IF(LEFT($H104,5)="Barge",VLOOKUP($A104&X$91,Barge_Rate_Master,MATCH($H104,'Barge Rate Inputs'!$A$4:$AD$4,0),FALSE),IF(LEFT($H104,3)="CSX",VLOOKUP($A104&X$91,CSX_Rate_Master,MATCH($H104,'CSX Rate Inputs'!$A$4:$Z$4,0),FALSE),"n/a")) -> 23.80801147 | Y104: =IF(LEFT($H104,5)="Barge",VLOOKUP($A104&Y$91,Barge_Rate_Master,MATCH($H104,'Barge Rate Inputs'!$A$4:$AD$4,0),FALSE),IF(LEFT($H104,3)="CSX",VLOOKUP($A104&Y$91,CSX_Rate_Master,MATCH($H104,'CSX Rate Inputs'!$A$4:$Z$4,0),FALSE),"n/a")) -> 24.2841717 | Z104: =IF(LEFT($H104,5)="Barge",VLOOKUP($A104&Z$91,Barge_Rate_Master,MATCH($H104,'Barge Rate Inputs'!$A$4:$AD$4,0),FALSE),IF(LEFT($H104,3)="CSX",VLOOKUP($A104&Z$91,CSX_Rate_Master,MATCH($H104,'CSX Rate Inputs'!$A$4:$Z$4,0),FALSE),"n/a")) -> 24.76985513 | AA104: =IF(LEFT($H104,5)="Barge",VLOOKUP($A104&AA$91,Barge_Rate_Master,MATCH($H104,'Barge Rate Inputs'!$A$4:$AD$4,0),FALSE),IF(LEFT($H104,3)="CSX",VLOOKUP($A104&AA$91,CSX_Rate_Master,MATCH($H104,'CSX Rate Inputs'!$A$4:$Z$4,0),FALSE),"n/a")) -> 25.26525224 | AB104: =IF(LEFT($H104,5)="Barge",VLOOKUP($A104&AB$91,Barge_Rate_Master,MATCH($H104,'Barge Rate Inputs'!$A$4:$AD$4,0),FALSE),IF(LEFT($H104,3)="CSX",VLOOKUP($A104&AB$91,CSX_Rate_Master,MATCH($H104,'CSX Rate Inputs'!$A$4:$Z$4,0),FALSE),"n/a")) -> 25.77055728 | AC104: =IF(LEFT($H104,5)="Barge",VLOOKUP($A104&AC$91,Barge_Rate_Master,MATCH($H104,'Barge Rate Inputs'!$A$4:$AD$4,0),FALSE),IF(LEFT($H104,3)="CSX",VLOOKUP($A104&AC$91,CSX_Rate_Master,MATCH($H104,'CSX Rate Inputs'!$A$4:$Z$4,0),FALSE),"n/a")) -> 26.28596843 | AD104: =IF(LEFT($H104,5)="Barge",VLOOKUP($A104&AD$91,Barge_Rate_Master,MATCH($H104,'Barge Rate Inputs'!$A$4:$AD$4,0),FALSE),IF(LEFT($H104,3)="CSX",VLOOKUP($A104&AD$91,CSX_Rate_Master,MATCH($H104,'CSX Rate Inputs'!$A$4:$Z$4,0),FALSE),"n/a")) -> 26.8116878 | AE104: =IF(LEFT($H104,5)="Barge",VLOOKUP($A104&AE$91,Barge_Rate_Master,MATCH($H104,'Barge Rate Inputs'!$A$4:$AD$4,0),FALSE),IF(LEFT($H104,3)="CSX",VLOOKUP($A104&AE$91,CSX_Rate_Master,MATCH($H104,'CSX Rate Inputs'!$A$4:$Z$4,0),FALSE),"n/a")) -> 27.34792155 | AF104: =IF(LEFT($H104,5)="Barge",VLOOKUP($A104&AF$91,Barge_Rate_Master,MATCH($H104,'Barge Rate Inputs'!$A$4:$AD$4,0),FALSE),IF(LEFT($H104,3)="CSX",VLOOKUP($A104&AF$91,CSX_Rate_Master,MATCH($H104,'CSX Rate Inputs'!$A$4:$Z$4,0),FALSE),"n/a")) -> 27.89487998 | AG104: =IF(LEFT($H104,5)="Barge",VLOOKUP($A104&AG$91,Barge_Rate_Master,MATCH($H104,'Barge Rate Inputs'!$A$4:$AD$4,0),FALSE),IF(LEFT($H104,3)="CSX",VLOOKUP($A104&AG$91,CSX_Rate_Master,MATCH($H104,'CSX Rate Inputs'!$A$4:$Z$4,0),FALSE),"n/a")) -> 28.45277758 | AH104: =IF(LEFT($H104,5)="Barge",VLOOKUP($A104&AH$91,Barge_Rate_Master,MATCH($H104,'Barge Rate Inputs'!$A$4:$AD$4,0),FALSE),IF(LEFT($H104,3)="CSX",VLOOKUP($A104&AH$91,CSX_Rate_Master,MATCH($H104,'CSX Rate Inputs'!$A$4:$Z$4,0),FALSE),"n/a")) -> 29.02183313 | AI104: =IF(LEFT($H104,5)="Barge",VLOOKUP($A104&AI$91,Barge_Rate_Master,MATCH($H104,'Barge Rate Inputs'!$A$4:$AD$4,0),FALSE),IF(LEFT($H104,3)="CSX",VLOOKUP($A104&AI$91,CSX_Rate_Master,MATCH($H104,'CSX Rate Inputs'!$A$4:$Z$4,0),FALSE),"n/a")) -> 29.6022698 | AJ104: =IF(LEFT($H104,5)="Barge",VLOOKUP($A104&AJ$91,Barge_Rate_Master,MATCH($H104,'Barge Rate Inputs'!$A$4:$AD$4,0),FALSE),IF(LEFT($H104,3)="CSX",VLOOKUP($A104&AJ$91,CSX_Rate_Master,MATCH($H104,'CSX Rate Inputs'!$A$4:$Z$4,0),FALSE),"n/a")) -> 30.19431519 | AK104: =IF(LEFT($H104,5)="Barge",VLOOKUP($A104&AK$91,Barge_Rate_Master,MATCH($H104,'Barge Rate Inputs'!$A$4:$AD$4,0),FALSE),IF(LEFT($H104,3)="CSX",VLOOKUP($A104&AK$91,CSX_Rate_Master,MATCH($H104,'CSX Rate Inputs'!$A$4:$Z$4,0),FALSE),"n/a")) -> 30.7982015 | AL104: =IF(LEFT($H104,5)="Barge",VLOOKUP($A104&AL$91,Barge_Rate_Master,MATCH($H104,'Barge Rate Inputs'!$A$4:$AD$4,0),FALSE),IF(LEFT($H104,3)="CSX",VLOOKUP($A104&AL$91,CSX_Rate_Master,MATCH($H104,'CSX Rate Inputs'!$A$4:$Z$4,0),FALSE),"n/a")) -> 31.41416553 | AM104: =IF(LEFT($H104,5)="Barge",VLOOKUP($A104&AM$91,Barge_Rate_Master,MATCH($H104,'Barge Rate Inputs'!$A$4:$AD$4,0),FALSE),IF(LEFT($H104,3)="CSX",VLOOKUP($A104&AM$91,CSX_Rate_Master,MATCH($H104,'CSX Rate Inputs'!$A$4:$Z$4,0),FALSE),"n/a")) -> 32.04244884 | AN104: =IF(LEFT($H104,5)="Barge",VLOOKUP($A104&AN$91,Barge_Rate_Master,MATCH($H104,'Barge Rate Inputs'!$A$4:$AD$4,0),FALSE),IF(LEFT($H104,3)="CSX",VLOOKUP($A104&AN$91,CSX_Rate_Master,MATCH($H104,'CSX Rate Inputs'!$A$4:$Z$4,0),FALSE),"n/a")) -> 32.68329781 | AO104: =IF(LEFT($H104,5)="Barge",VLOOKUP($A104&AO$91,Barge_Rate_Master,MATCH($H104,'Barge Rate Inputs'!$A$4:$AD$4,0),FALSE),IF(LEFT($H104,3)="CSX",VLOOKUP($A104&AO$91,CSX_Rate_Master,MATCH($H104,'CSX Rate Inputs'!$A$4:$Z$4,0),FALSE),"n/a")) -> 33.33696377
A105: Crystal River 4&5 | B105: =B86 -> PRB | C105: High-Btu Gillette | D105: Rail | E105: 8800 | F105: 0.8 | G105: 5 | H105: CSX PRB | J105: =IF(LEFT($H105,5)="Barge",VLOOKUP($A105&J$91,Barge_Rate_Master,MATCH($H105,'Barge Rate Inputs'!$A$4:$AD$4,0),FALSE),IF(LEFT($H105,3)="CSX",VLOOKUP($A105&J$91,CSX_Rate_Master,MATCH($H105,'CSX Rate Inputs'!$A$4:$Z$4,0),FALSE),"n/a")) -> 41.98 | K105: =IF(LEFT($H105,5)="Barge",VLOOKUP($A105&K$91,Barge_Rate_Master,MATCH($H105,'Barge Rate Inputs'!$A$4:$AD$4,0),FALSE),IF(LEFT($H105,3)="CSX",VLOOKUP($A105&K$91,CSX_Rate_Master,MATCH($H105,'CSX Rate Inputs'!$A$4:$Z$4,0),FALSE),"n/a")) -> 42.35933355 | L105: =IF(LEFT($H105,5)="Barge",VLOOKUP($A105&L$91,Barge_Rate_Master,MATCH($H105,'Barge Rate Inputs'!$A$4:$AD$4,0),FALSE),IF(LEFT($H105,3)="CSX",VLOOKUP($A105&L$91,CSX_Rate_Master,MATCH($H105,'CSX Rate Inputs'!$A$4:$Z$4,0),FALSE),"n/a")) -> 43.38514382 | M105: =IF(LEFT($H105,5)="Barge",VLOOKUP($A105&M$91,Barge_Rate_Master,MATCH($H105,'Barge Rate Inputs'!$A$4:$AD$4,0),FALSE),IF(LEFT($H105,3)="CSX",VLOOKUP($A105&M$91,CSX_Rate_Master,MATCH($H105,'CSX Rate Inputs'!$A$4:$Z$4,0),FALSE),"n/a")) -> 44.43579601 | N105: =IF(LEFT($H105,5)="Barge",VLOOKUP($A105&N$91,Barge_Rate_Master,MATCH($H105,'Barge Rate Inputs'!$A$4:$AD$4,0),FALSE),IF(LEFT($H105,3)="CSX",VLOOKUP($A105&N$91,CSX_Rate_Master,MATCH($H105,'CSX Rate Inputs'!$A$4:$Z$4,0),FALSE),"n/a")) -> 45.51189169 | O105: =IF(LEFT($H105,5)="Barge",VLOOKUP($A105&O$91,Barge_Rate_Master,MATCH($H105,'Barge Rate Inputs'!$A$4:$AD$4,0),FALSE),IF(LEFT($H105,3)="CSX",VLOOKUP($A105&O$91,CSX_Rate_Master,MATCH($H105,'CSX Rate Inputs'!$A$4:$Z$4,0),FALSE),"n/a")) -> 46.61404704 | P105: =IF(LEFT($H105,5)="Barge",VLOOKUP($A105&P$91,Barge_Rate_Master,MATCH($H105,'Barge Rate Inputs'!$A$4:$AD$4,0),FALSE),IF(LEFT($H105,3)="CSX",VLOOKUP($A105&P$91,CSX_Rate_Master,MATCH($H105,'CSX Rate Inputs'!$A$4:$Z$4,0),FALSE),"n/a")) -> 47.74289314 | Q105: =IF(LEFT($H105,5)="Barge",VLOOKUP($A105&Q$91,Barge_Rate_Master,MATCH($H105,'Barge Rate Inputs'!$A$4:$AD$4,0),FALSE),IF(LEFT($H105,3)="CSX",VLOOKUP($A105&Q$91,CSX_Rate_Master,MATCH($H105,'CSX Rate Inputs'!$A$4:$Z$4,0),FALSE),"n/a")) -> 48.93646547 | R105: =IF(LEFT($H105,5)="Barge",VLOOKUP($A105&R$91,Barge_Rate_Master,MATCH($H105,'Barge Rate Inputs'!$A$4:$AD$4,0),FALSE),IF(LEFT($H105,3)="CSX",VLOOKUP($A105&R$91,CSX_Rate_Master,MATCH($H105,'CSX Rate Inputs'!$A$4:$Z$4,0),FALSE),"n/a")) -> 49.91519478 | S105: =IF(LEFT($H105,5)="Barge",VLOOKUP($A105&S$91,Barge_Rate_Master,MATCH($H105,'Barge Rate Inputs'!$A$4:$AD$4,0),FALSE),IF(LEFT($H105,3)="CSX",VLOOKUP($A105&S$91,CSX_Rate_Master,MATCH($H105,'CSX Rate Inputs'!$A$4:$Z$4,0),FALSE),"n/a")) -> 50.91349867 | T105: =IF(LEFT($H105,5)="Barge",VLOOKUP($A105&T$91,Barge_Rate_Master,MATCH($H105,'Barge Rate Inputs'!$A$4:$AD$4,0),FALSE),IF(LEFT($H105,3)="CSX",VLOOKUP($A105&T$91,CSX_Rate_Master,MATCH($H105,'CSX Rate Inputs'!$A$4:$Z$4,0),FALSE),"n/a")) -> 51.93176865 | U105: =IF(LEFT($H105,5)="Barge",VLOOKUP($A105&U$91,Barge_Rate_Master,MATCH($H105,'Barge Rate Inputs'!$A$4:$AD$4,0),FALSE),IF(LEFT($H105,3)="CSX",VLOOKUP($A105&U$91,CSX_Rate_Master,MATCH($H105,'CSX Rate Inputs'!$A$4:$Z$4,0),FALSE),"n/a")) -> 52.97040402 | V105: =IF(LEFT($H105,5)="Barge",VLOOKUP($A105&V$91,Barge_Rate_Master,MATCH($H105,'Barge Rate Inputs'!$A$4:$AD$4,0),FALSE),IF(LEFT($H105,3)="CSX",VLOOKUP($A105&V$91,CSX_Rate_Master,MATCH($H105,'CSX Rate Inputs'!$A$4:$Z$4,0),FALSE),"n/a")) -> 54.0298121 | W105: =IF(LEFT($H105,5)="Barge",VLOOKUP($A105&W$91,Barge_Rate_Master,MATCH($H105,'Barge Rate Inputs'!$A$4:$AD$4,0),FALSE),IF(LEFT($H105,3)="CSX",VLOOKUP($A105&W$91,CSX_Rate_Master,MATCH($H105,'CSX Rate Inputs'!$A$4:$Z$4,0),FALSE),"n/a")) -> 55.11040834 | X105: =IF(LEFT($H105,5)="Barge",VLOOKUP($A105&X$91,Barge_Rate_Master,MATCH($H105,'Barge Rate Inputs'!$A$4:$AD$4,0),FALSE),IF(LEFT($H105,3)="CSX",VLOOKUP($A105&X$91,CSX_Rate_Master,MATCH($H105,'CSX Rate Inputs'!$A$4:$Z$4,0),FALSE),"n/a")) -> 56.21261651 | Y105: =IF(LEFT($H105,5)="Barge",VLOOKUP($A105&Y$91,Barge_Rate_Master,MATCH($H105,'Barge Rate Inputs'!$A$4:$AD$4,0),FALSE),IF(LEFT($H105,3)="CSX",VLOOKUP($A105&Y$91,CSX_Rate_Master,MATCH($H105,'CSX Rate Inputs'!$A$4:$Z$4,0),FALSE),"n/a")) -> 57.33686884 | Z105: =IF(LEFT($H105,5)="Barge",VLOOKUP($A105&Z$91,Barge_Rate_Master,MATCH($H105,'Barge Rate Inputs'!$A$4:$AD$4,0),FALSE),IF(LEFT($H105,3)="CSX",VLOOKUP($A105&Z$91,CSX_Rate_Master,MATCH($H105,'CSX Rate Inputs'!$A$4:$Z$4,0),FALSE),"n/a")) -> 58.48360622 | AA105: =IF(LEFT($H105,5)="Barge",VLOOKUP($A105&AA$91,Barge_Rate_Master,MATCH($H105,'Barge Rate Inputs'!$A$4:$AD$4,0),FALSE),IF(LEFT($H105,3)="CSX",VLOOKUP($A105&AA$91,CSX_Rate_Master,MATCH($H105,'CSX Rate Inputs'!$A$4:$Z$4,0),FALSE),"n/a")) -> 59.65327834 | AB105: =IF(LEFT($H105,5)="Barge",VLOOKUP($A105&AB$91,Barge_Rate_Master,MATCH($H105,'Barge Rate Inputs'!$A$4:$AD$4,0),FALSE),IF(LEFT($H105,3)="CSX",VLOOKUP($A105&AB$91,CSX_Rate_Master,MATCH($H105,'CSX Rate Inputs'!$A$4:$Z$4,0),FALSE),"n/a")) -> 60.84634391 | AC105: =IF(LEFT($H105,5)="Barge",VLOOKUP($A105&AC$91,Barge_Rate_Master,MATCH($H105,'Barge Rate Inputs'!$A$4:$AD$4,0),FALSE),IF(LEFT($H105,3)="CSX",VLOOKUP($A105&AC$91,CSX_Rate_Master,MATCH($H105,'CSX Rate Inputs'!$A$4:$Z$4,0),FALSE),"n/a")) -> 62.06327079 | AD105: =IF(LEFT($H105,5)="Barge",VLOOKUP($A105&AD$91,Barge_Rate_Master,MATCH($H105,'Barge Rate Inputs'!$A$4:$AD$4,0),FALSE),IF(LEFT($H105,3)="CSX",VLOOKUP($A105&AD$91,CSX_Rate_Master,MATCH($H105,'CSX Rate Inputs'!$A$4:$Z$4,0),FALSE),"n/a")) -> 63.3045362 | AE105: =IF(LEFT($H105,5)="Barge",VLOOKUP($A105&AE$91,Barge_Rate_Master,MATCH($H105,'Barge Rate Inputs'!$A$4:$AD$4,0),FALSE),IF(LEFT($H105,3)="CSX",VLOOKUP($A105&AE$91,CSX_Rate_Master,MATCH($H105,'CSX Rate Inputs'!$A$4:$Z$4,0),FALSE),"n/a")) -> 64.57062693 | AF105: =IF(LEFT($H105,5)="Barge",VLOOKUP($A105&AF$91,Barge_Rate_Master,MATCH($H105,'Barge Rate Inputs'!$A$4:$AD$4,0),FALSE),IF(LEFT($H105,3)="CSX",VLOOKUP($A105&AF$91,CSX_Rate_Master,MATCH($H105,'CSX Rate Inputs'!$A$4:$Z$4,0),FALSE),"n/a")) -> 65.86203946 | AG105: =IF(LEFT($H105,5)="Barge",VLOOKUP($A105&AG$91,Barge_Rate_Master,MATCH($H105,'Barge Rate Inputs'!$A$4:$AD$4,0),FALSE),IF(LEFT($H105,3)="CSX",VLOOKUP($A105&AG$91,CSX_Rate_Master,MATCH($H105,'CSX Rate Inputs'!$A$4:$Z$4,0),FALSE),"n/a")) -> 67.17928025 | AH105: =IF(LEFT($H105,5)="Barge",VLOOKUP($A105&AH$91,Barge_Rate_Master,MATCH($H105,'Barge Rate Inputs'!$A$4:$AD$4,0),FALSE),IF(LEFT($H105,3)="CSX",VLOOKUP($A105&AH$91,CSX_Rate_Master,MATCH($H105,'CSX Rate Inputs'!$A$4:$Z$4,0),FALSE),"n/a")) -> 68.52286586 | AI105: =IF(LEFT($H105,5)="Barge",VLOOKUP($A105&AI$91,Barge_Rate_Master,MATCH($H105,'Barge Rate Inputs'!$A$4:$AD$4,0),FALSE),IF(LEFT($H105,3)="CSX",VLOOKUP($A105&AI$91,CSX_Rate_Master,MATCH($H105,'CSX Rate Inputs'!$A$4:$Z$4,0),FALSE),"n/a")) -> 69.89332317 | AJ105: =IF(LEFT($H105,5)="Barge",VLOOKUP($A105&AJ$91,Barge_Rate_Master,MATCH($H105,'Barge Rate Inputs'!$A$4:$AD$4,0),FALSE),IF(LEFT($H105,3)="CSX",VLOOKUP($A105&AJ$91,CSX_Rate_Master,MATCH($H105,'CSX Rate Inputs'!$A$4:$Z$4,0),FALSE),"n/a")) -> 71.29118964 | AK105: =IF(LEFT($H105,5)="Barge",VLOOKUP($A105&AK$91,Barge_Rate_Master,MATCH($H105,'Barge Rate Inputs'!$A$4:$AD$4,0),FALSE),IF(LEFT($H105,3)="CSX",VLOOKUP($A105&AK$91,CSX_Rate_Master,MATCH($H105,'CSX Rate Inputs'!$A$4:$Z$4,0),FALSE),"n/a")) -> 72.71701343 | AL105: =IF(LEFT($H105,5)="Barge",VLOOKUP($A105&AL$91,Barge_Rate_Master,MATCH($H105,'Barge Rate Inputs'!$A$4:$AD$4,0),FALSE),IF(LEFT($H105,3)="CSX",VLOOKUP($A105&AL$91,CSX_Rate_Master,MATCH($H105,'CSX Rate Inputs'!$A$4:$Z$4,0),FALSE),"n/a")) -> 74.1713537 | AM105: =IF(LEFT($H105,5)="Barge",VLOOKUP($A105&AM$91,Barge_Rate_Master,MATCH($H105,'Barge Rate Inputs'!$A$4:$AD$4,0),FALSE),IF(LEFT($H105,3)="CSX",VLOOKUP($A105&AM$91,CSX_Rate_Master,MATCH($H105,'CSX Rate Inputs'!$A$4:$Z$4,0),FALSE),"n/a")) -> 75.65478077 | AN105: =IF(LEFT($H105,5)="Barge",VLOOKUP($A105&AN$91,Barge_Rate_Master,MATCH($H105,'Barge Rate Inputs'!$A$4:$AD$4,0),FALSE),IF(LEFT($H105,3)="CSX",VLOOKUP($A105&AN$91,CSX_Rate_Master,MATCH($H105,'CSX Rate Inputs'!$A$4:$Z$4,0),FALSE),"n/a")) -> 77.16787639 | AO105: =IF(LEFT($H105,5)="Barge",VLOOKUP($A105&AO$91,Barge_Rate_Master,MATCH($H105,'Barge Rate Inputs'!$A$4:$AD$4,0),FALSE),IF(LEFT($H105,3)="CSX",VLOOKUP($A105&AO$91,CSX_Rate_Master,MATCH($H105,'CSX Rate Inputs'!$A$4:$Z$4,0),FALSE),"n/a")) -> 78.71123392
A106: Crystal River 4&5 | B106: =B87 -> RM | C106: Rockies | D106: Rail | E106: 11700 | F106: 0.8 | G106: 8 | H106: CSX UP | J106: =IF(LEFT($H106,5)="Barge",VLOOKUP($A106&J$91,Barge_Rate_Master,MATCH($H106,'Barge Rate Inputs'!$A$4:$AD$4,0),FALSE),IF(LEFT($H106,3)="CSX",VLOOKUP($A106&J$91,CSX_Rate_Master,MATCH($H106,'CSX Rate Inputs'!$A$4:$Z$4,0),FALSE),"n/a")) -> 58.88 | K106: =IF(LEFT($H106,5)="Barge",VLOOKUP($A106&K$91,Barge_Rate_Master,MATCH($H106,'Barge Rate Inputs'!$A$4:$AD$4,0),FALSE),IF(LEFT($H106,3)="CSX",VLOOKUP($A106&K$91,CSX_Rate_Master,MATCH($H106,'CSX Rate Inputs'!$A$4:$Z$4,0),FALSE),"n/a")) -> 59.41204286 | L106: =IF(LEFT($H106,5)="Barge",VLOOKUP($A106&L$91,Barge_Rate_Master,MATCH($H106,'Barge Rate Inputs'!$A$4:$AD$4,0),FALSE),IF(LEFT($H106,3)="CSX",VLOOKUP($A106&L$91,CSX_Rate_Master,MATCH($H106,'CSX Rate Inputs'!$A$4:$Z$4,0),FALSE),"n/a")) -> 60.8508163 | M106: =IF(LEFT($H106,5)="Barge",VLOOKUP($A106&M$91,Barge_Rate_Master,MATCH($H106,'Barge Rate Inputs'!$A$4:$AD$4,0),FALSE),IF(LEFT($H106,3)="CSX",VLOOKUP($A106&M$91,CSX_Rate_Master,MATCH($H106,'CSX Rate Inputs'!$A$4:$Z$4,0),FALSE),"n/a")) -> 62.32443232 | N106: =IF(LEFT($H106,5)="Barge",VLOOKUP($A106&N$91,Barge_Rate_Master,MATCH($H106,'Barge Rate Inputs'!$A$4:$AD$4,0),FALSE),IF(LEFT($H106,3)="CSX",VLOOKUP($A106&N$91,CSX_Rate_Master,MATCH($H106,'CSX Rate Inputs'!$A$4:$Z$4,0),FALSE),"n/a")) -> 63.8337347 | O106: =IF(LEFT($H106,5)="Barge",VLOOKUP($A106&O$91,Barge_Rate_Master,MATCH($H106,'Barge Rate Inputs'!$A$4:$AD$4,0),FALSE),IF(LEFT($H106,3)="CSX",VLOOKUP($A106&O$91,CSX_Rate_Master,MATCH($H106,'CSX Rate Inputs'!$A$4:$Z$4,0),FALSE),"n/a")) -> 65.37958766 | P106: =IF(LEFT($H106,5)="Barge",VLOOKUP($A106&P$91,Barge_Rate_Master,MATCH($H106,'Barge Rate Inputs'!$A$4:$AD$4,0),FALSE),IF(LEFT($H106,3)="CSX",VLOOKUP($A106&P$91,CSX_Rate_Master,MATCH($H106,'CSX Rate Inputs'!$A$4:$Z$4,0),FALSE),"n/a")) -> 66.96287632 | Q106: =IF(LEFT($H106,5)="Barge",VLOOKUP($A106&Q$91,Barge_Rate_Master,MATCH($H106,'Barge Rate Inputs'!$A$4:$AD$4,0),FALSE),IF(LEFT($H106,3)="CSX",VLOOKUP($A106&Q$91,CSX_Rate_Master,MATCH($H106,'CSX Rate Inputs'!$A$4:$Z$4,0),FALSE),"n/a")) -> 68.63694823 | R106: =IF(LEFT($H106,5)="Barge",VLOOKUP($A106&R$91,Barge_Rate_Master,MATCH($H106,'Barge Rate Inputs'!$A$4:$AD$4,0),FALSE),IF(LEFT($H106,3)="CSX",VLOOKUP($A106&R$91,CSX_Rate_Master,MATCH($H106,'CSX Rate Inputs'!$A$4:$Z$4,0),FALSE),"n/a")) -> 70.0096872 | S106: =IF(LEFT($H106,5)="Barge",VLOOKUP($A106&S$91,Barge_Rate_Master,MATCH($H106,'Barge Rate Inputs'!$A$4:$AD$4,0),FALSE),IF(LEFT($H106,3)="CSX",VLOOKUP($A106&S$91,CSX_Rate_Master,MATCH($H106,'CSX Rate Inputs'!$A$4:$Z$4,0),FALSE),"n/a")) -> 71.40988094 | T106: =IF(LEFT($H106,5)="Barge",VLOOKUP($A106&T$91,Barge_Rate_Master,MATCH($H106,'Barge Rate Inputs'!$A$4:$AD$4,0),FALSE),IF(LEFT($H106,3)="CSX",VLOOKUP($A106&T$91,CSX_Rate_Master,MATCH($H106,'CSX Rate Inputs'!$A$4:$Z$4,0),FALSE),"n/a")) -> 72.83807856 | U106: =IF(LEFT($H106,5)="Barge",VLOOKUP($A106&U$91,Barge_Rate_Master,MATCH($H106,'Barge Rate Inputs'!$A$4:$AD$4,0),FALSE),IF(LEFT($H106,3)="CSX",VLOOKUP($A106&U$91,CSX_Rate_Master,MATCH($H106,'CSX Rate Inputs'!$A$4:$Z$4,0),FALSE),"n/a")) -> 74.29484013 | V106: =IF(LEFT($H106,5)="Barge",VLOOKUP($A106&V$91,Barge_Rate_Master,MATCH($H106,'Barge Rate Inputs'!$A$4:$AD$4,0),FALSE),IF(LEFT($H106,3)="CSX",VLOOKUP($A106&V$91,CSX_Rate_Master,MATCH($H106,'CSX Rate Inputs'!$A$4:$Z$4,0),FALSE),"n/a")) -> 75.78073693 | W106: =IF(LEFT($H106,5)="Barge",VLOOKUP($A106&W$91,Barge_Rate_Master,MATCH($H106,'Barge Rate Inputs'!$A$4:$AD$4,0),FALSE),IF(LEFT($H106,3)="CSX",VLOOKUP($A106&W$91,CSX_Rate_Master,MATCH($H106,'CSX Rate Inputs'!$A$4:$Z$4,0),FALSE),"n/a")) -> 77.29635167 | X106: =IF(LEFT($H106,5)="Barge",VLOOKUP($A106&X$91,Barge_Rate_Master,MATCH($H106,'Barge Rate Inputs'!$A$4:$AD$4,0),FALSE),IF(LEFT($H106,3)="CSX",VLOOKUP($A106&X$91,CSX_Rate_Master,MATCH($H106,'CSX Rate Inputs'!$A$4:$Z$4,0),FALSE),"n/a")) -> 78.84227871 | Y106: =IF(LEFT($H106,5)="Barge",VLOOKUP($A106&Y$91,Barge_Rate_Master,MATCH($H106,'Barge Rate Inputs'!$A$4:$AD$4,0),FALSE),IF(LEFT($H106,3)="CSX",VLOOKUP($A106&Y$91,CSX_Rate_Master,MATCH($H106,'CSX Rate Inputs'!$A$4:$Z$4,0),FALSE),"n/a")) -> 80.41912428 | Z106: =IF(LEFT($H106,5)="Barge",VLOOKUP($A106&Z$91,Barge_Rate_Master,MATCH($H106,'Barge Rate Inputs'!$A$4:$AD$4,0),FALSE),IF(LEFT($H106,3)="CSX",VLOOKUP($A106&Z$91,CSX_Rate_Master,MATCH($H106,'CSX Rate Inputs'!$A$4:$Z$4,0),FALSE),"n/a")) -> 82.02750677 | AA106: =IF(LEFT($H106,5)="Barge",VLOOKUP($A106&AA$91,Barge_Rate_Master,MATCH($H106,'Barge Rate Inputs'!$A$4:$AD$4,0),FALSE),IF(LEFT($H106,3)="CSX",VLOOKUP($A106&AA$91,CSX_Rate_Master,MATCH($H106,'CSX Rate Inputs'!$A$4:$Z$4,0),FALSE),"n/a")) -> 83.6680569 | AB106: =IF(LEFT($H106,5)="Barge",VLOOKUP($A106&AB$91,Barge_Rate_Master,MATCH($H106,'Barge Rate Inputs'!$A$4:$AD$4,0),FALSE),IF(LEFT($H106,3)="CSX",VLOOKUP($A106&AB$91,CSX_Rate_Master,MATCH($H106,'CSX Rate Inputs'!$A$4:$Z$4,0),FALSE),"n/a")) -> 85.34141804 | AC106: =IF(LEFT($H106,5)="Barge",VLOOKUP($A106&AC$91,Barge_Rate_Master,MATCH($H106,'Barge Rate Inputs'!$A$4:$AD$4,0),FALSE),IF(LEFT($H106,3)="CSX",VLOOKUP($A106&AC$91,CSX_Rate_Master,MATCH($H106,'CSX Rate Inputs'!$A$4:$Z$4,0),FALSE),"n/a")) -> 87.0482464 | AD106: =IF(LEFT($H106,5)="Barge",VLOOKUP($A106&AD$91,Barge_Rate_Master,MATCH($H106,'Barge Rate Inputs'!$A$4:$AD$4,0),FALSE),IF(LEFT($H106,3)="CSX",VLOOKUP($A106&AD$91,CSX_Rate_Master,MATCH($H106,'CSX Rate Inputs'!$A$4:$Z$4,0),FALSE),"n/a")) -> 88.78921133 | AE106: =IF(LEFT($H106,5)="Barge",VLOOKUP($A106&AE$91,Barge_Rate_Master,MATCH($H106,'Barge Rate Inputs'!$A$4:$AD$4,0),FALSE),IF(LEFT($H106,3)="CSX",VLOOKUP($A106&AE$91,CSX_Rate_Master,MATCH($H106,'CSX Rate Inputs'!$A$4:$Z$4,0),FALSE),"n/a")) -> 90.56499555 | AF106: =IF(LEFT($H106,5)="Barge",VLOOKUP($A106&AF$91,Barge_Rate_Master,MATCH($H106,'Barge Rate Inputs'!$A$4:$AD$4,0),FALSE),IF(LEFT($H106,3)="CSX",VLOOKUP($A106&AF$91,CSX_Rate_Master,MATCH($H106,'CSX Rate Inputs'!$A$4:$Z$4,0),FALSE),"n/a")) -> 92.37629546 | AG106: =IF(LEFT($H106,5)="Barge",VLOOKUP($A106&AG$91,Barge_Rate_Master,MATCH($H106,'Barge Rate Inputs'!$A$4:$AD$4,0),FALSE),IF(LEFT($H106,3)="CSX",VLOOKUP($A106&AG$91,CSX_Rate_Master,MATCH($H106,'CSX Rate Inputs'!$A$4:$Z$4,0),FALSE),"n/a")) -> 94.22382137 | AH106: =IF(LEFT($H106,5)="Barge",VLOOKUP($A106&AH$91,Barge_Rate_Master,MATCH($H106,'Barge Rate Inputs'!$A$4:$AD$4,0),FALSE),IF(LEFT($H106,3)="CSX",VLOOKUP($A106&AH$91,CSX_Rate_Master,MATCH($H106,'CSX Rate Inputs'!$A$4:$Z$4,0),FALSE),"n/a")) -> 96.1082978 | AI106: =IF(LEFT($H106,5)="Barge",VLOOKUP($A106&AI$91,Barge_Rate_Master,MATCH($H106,'Barge Rate Inputs'!$A$4:$AD$4,0),FALSE),IF(LEFT($H106,3)="CSX",VLOOKUP($A106&AI$91,CSX_Rate_Master,MATCH($H106,'CSX Rate Inputs'!$A$4:$Z$4,0),FALSE),"n/a")) -> 98.03046376 | AJ106: =IF(LEFT($H106,5)="Barge",VLOOKUP($A106&AJ$91,Barge_Rate_Master,MATCH($H106,'Barge Rate Inputs'!$A$4:$AD$4,0),FALSE),IF(LEFT($H106,3)="CSX",VLOOKUP($A106&AJ$91,CSX_Rate_Master,MATCH($H106,'CSX Rate Inputs'!$A$4:$Z$4,0),FALSE),"n/a")) -> 99.99107303 | AK106: =IF(LEFT($H106,5)="Barge",VLOOKUP($A106&AK$91,Barge_Rate_Master,MATCH($H106,'Barge Rate Inputs'!$A$4:$AD$4,0),FALSE),IF(LEFT($H106,3)="CSX",VLOOKUP($A106&AK$91,CSX_Rate_Master,MATCH($H106,'CSX Rate Inputs'!$A$4:$Z$4,0),FALSE),"n/a")) -> 101.9908945 | AL106: =IF(LEFT($H106,5)="Barge",VLOOKUP($A106&AL$91,Barge_Rate_Master,MATCH($H106,'Barge Rate Inputs'!$A$4:$AD$4,0),FALSE),IF(LEFT($H106,3)="CSX",VLOOKUP($A106&AL$91,CSX_Rate_Master,MATCH($H106,'CSX Rate Inputs'!$A$4:$Z$4,0),FALSE),"n/a")) -> 104.0307124 | AM106: =IF(LEFT($H106,5)="Barge",VLOOKUP($A106&AM$91,Barge_Rate_Master,MATCH($H106,'Barge Rate Inputs'!$A$4:$AD$4,0),FALSE),IF(LEFT($H106,3)="CSX",VLOOKUP($A106&AM$91,CSX_Rate_Master,MATCH($H106,'CSX Rate Inputs'!$A$4:$Z$4,0),FALSE),"n/a")) -> 106.1113266 | AN106: =IF(LEFT($H106,5)="Barge",VLOOKUP($A106&AN$91,Barge_Rate_Master,MATCH($H106,'Barge Rate Inputs'!$A$4:$AD$4,0),FALSE),IF(LEFT($H106,3)="CSX",VLOOKUP($A106&AN$91,CSX_Rate_Master,MATCH($H106,'CSX Rate Inputs'!$A$4:$Z$4,0),FALSE),"n/a")) -> 108.2335532 | AO106: =IF(LEFT($H106,5)="Barge",VLOOKUP($A106&AO$91,Barge_Rate_Master,MATCH($H106,'Barge Rate Inputs'!$A$4:$AD$4,0),FALSE),IF(LEFT($H106,3)="CSX",VLOOKUP($A106&AO$91,CSX_Rate_Master,MATCH($H106,'CSX Rate Inputs'!$A$4:$Z$4,0),FALSE),"n/a")) -> 110.3982242
A107: Crystal River 4&5 | B107: =B87 -> RM | C107: Rockies | D107: =D88 -> Barge | E107: 11700 | F107: 0.8 | G107: 8 | H107: Barge UP RM to Convent | J107: =IF(LEFT($H107,5)="Barge",VLOOKUP($A107&J$91,Barge_Rate_Master,MATCH($H107,'Barge Rate Inputs'!$A$4:$AD$4,0),FALSE),IF(LEFT($H107,3)="CSX",VLOOKUP($A107&J$91,CSX_Rate_Master,MATCH($H107,'CSX Rate Inputs'!$A$4:$Z$4,0),FALSE),"n/a")) -> 51.92328913 | K107: =IF(LEFT($H107,5)="Barge",VLOOKUP($A107&K$91,Barge_Rate_Master,MATCH($H107,'Barge Rate Inputs'!$A$4:$AD$4,0),FALSE),IF(LEFT($H107,3)="CSX",VLOOKUP($A107&K$91,CSX_Rate_Master,MATCH($H107,'CSX Rate Inputs'!$A$4:$Z$4,0),FALSE),"n/a")) -> 53.45981014 | L107: =IF(LEFT($H107,5)="Barge",VLOOKUP($A107&L$91,Barge_Rate_Master,MATCH($H107,'Barge Rate Inputs'!$A$4:$AD$4,0),FALSE),IF(LEFT($H107,3)="CSX",VLOOKUP($A107&L$91,CSX_Rate_Master,MATCH($H107,'CSX Rate Inputs'!$A$4:$Z$4,0),FALSE),"n/a")) -> 54.55796588 | M107: =IF(LEFT($H107,5)="Barge",VLOOKUP($A107&M$91,Barge_Rate_Master,MATCH($H107,'Barge Rate Inputs'!$A$4:$AD$4,0),FALSE),IF(LEFT($H107,3)="CSX",VLOOKUP($A107&M$91,CSX_Rate_Master,MATCH($H107,'CSX Rate Inputs'!$A$4:$Z$4,0),FALSE),"n/a")) -> 55.47901494 | N107: =IF(LEFT($H107,5)="Barge",VLOOKUP($A107&N$91,Barge_Rate_Master,MATCH($H107,'Barge Rate Inputs'!$A$4:$AD$4,0),FALSE),IF(LEFT($H107,3)="CSX",VLOOKUP($A107&N$91,CSX_Rate_Master,MATCH($H107,'CSX Rate Inputs'!$A$4:$Z$4,0),FALSE),"n/a")) -> 56.56719559 | O107: =IF(LEFT($H107,5)="Barge",VLOOKUP($A107&O$91,Barge_Rate_Master,MATCH($H107,'Barge Rate Inputs'!$A$4:$AD$4,0),FALSE),IF(LEFT($H107,3)="CSX",VLOOKUP($A107&O$91,CSX_Rate_Master,MATCH($H107,'CSX Rate Inputs'!$A$4:$Z$4,0),FALSE),"n/a")) -> 57.74102217 | P107: =IF(LEFT($H107,5)="Barge",VLOOKUP($A107&P$91,Barge_Rate_Master,MATCH($H107,'Barge Rate Inputs'!$A$4:$AD$4,0),FALSE),IF(LEFT($H107,3)="CSX",VLOOKUP($A107&P$91,CSX_Rate_Master,MATCH($H107,'CSX Rate Inputs'!$A$4:$Z$4,0),FALSE),"n/a")) -> 64.82714054 | Q107: =IF(LEFT($H107,5)="Barge",VLOOKUP($A107&Q$91,Barge_Rate_Master,MATCH($H107,'Barge Rate Inputs'!$A$4:$AD$4,0),FALSE),IF(LEFT($H107,3)="CSX",VLOOKUP($A107&Q$91,CSX_Rate_Master,MATCH($H107,'CSX Rate Inputs'!$A$4:$Z$4,0),FALSE),"n/a")) -> 66.03082146 | R107: =IF(LEFT($H107,5)="Barge",VLOOKUP($A107&R$91,Barge_Rate_Master,MATCH($H107,'Barge Rate Inputs'!$A$4:$AD$4,0),FALSE),IF(LEFT($H107,3)="CSX",VLOOKUP($A107&R$91,CSX_Rate_Master,MATCH($H107,'CSX Rate Inputs'!$A$4:$Z$4,0),FALSE),"n/a")) -> 67.64313752 | S107: =IF(LEFT($H107,5)="Barge",VLOOKUP($A107&S$91,Barge_Rate_Master,MATCH($H107,'Barge Rate Inputs'!$A$4:$AD$4,0),FALSE),IF(LEFT($H107,3)="CSX",VLOOKUP($A107&S$91,CSX_Rate_Master,MATCH($H107,'CSX Rate Inputs'!$A$4:$Z$4,0),FALSE),"n/a")) -> 68.99681627 | T107: =IF(LEFT($H107,5)="Barge",VLOOKUP($A107&T$91,Barge_Rate_Master,MATCH($H107,'Barge Rate Inputs'!$A$4:$AD$4,0),FALSE),IF(LEFT($H107,3)="CSX",VLOOKUP($A107&T$91,CSX_Rate_Master,MATCH($H107,'CSX Rate Inputs'!$A$4:$Z$4,0),FALSE),"n/a")) -> 70.3765486 | U107: =IF(LEFT($H107,5)="Barge",VLOOKUP($A107&U$91,Barge_Rate_Master,MATCH($H107,'Barge Rate Inputs'!$A$4:$AD$4,0),FALSE),IF(LEFT($H107,3)="CSX",VLOOKUP($A107&U$91,CSX_Rate_Master,MATCH($H107,'CSX Rate Inputs'!$A$4:$Z$4,0),FALSE),"n/a")) -> 71.78244757 | V107: =IF(LEFT($H107,5)="Barge",VLOOKUP($A107&V$91,Barge_Rate_Master,MATCH($H107,'Barge Rate Inputs'!$A$4:$AD$4,0),FALSE),IF(LEFT($H107,3)="CSX",VLOOKUP($A107&V$91,CSX_Rate_Master,MATCH($H107,'CSX Rate Inputs'!$A$4:$Z$4,0),FALSE),"n/a")) -> 79.8971429 | W107: =IF(LEFT($H107,5)="Barge",VLOOKUP($A107&W$91,Barge_Rate_Master,MATCH($H107,'Barge Rate Inputs'!$A$4:$AD$4,0),FALSE),IF(LEFT($H107,3)="CSX",VLOOKUP($A107&W$91,CSX_Rate_Master,MATCH($H107,'CSX Rate Inputs'!$A$4:$Z$4,0),FALSE),"n/a")) -> 81.54931564 | X107: =IF(LEFT($H107,5)="Barge",VLOOKUP($A107&X$91,Barge_Rate_Master,MATCH($H107,'Barge Rate Inputs'!$A$4:$AD$4,0),FALSE),IF(LEFT($H107,3)="CSX",VLOOKUP($A107&X$91,CSX_Rate_Master,MATCH($H107,'CSX Rate Inputs'!$A$4:$Z$4,0),FALSE),"n/a")) -> 83.15631442 | Y107: =IF(LEFT($H107,5)="Barge",VLOOKUP($A107&Y$91,Barge_Rate_Master,MATCH($H107,'Barge Rate Inputs'!$A$4:$AD$4,0),FALSE),IF(LEFT($H107,3)="CSX",VLOOKUP($A107&Y$91,CSX_Rate_Master,MATCH($H107,'CSX Rate Inputs'!$A$4:$Z$4,0),FALSE),"n/a")) -> 84.79218918 | Z107: =IF(LEFT($H107,5)="Barge",VLOOKUP($A107&Z$91,Barge_Rate_Master,MATCH($H107,'Barge Rate Inputs'!$A$4:$AD$4,0),FALSE),IF(LEFT($H107,3)="CSX",VLOOKUP($A107&Z$91,CSX_Rate_Master,MATCH($H107,'CSX Rate Inputs'!$A$4:$Z$4,0),FALSE),"n/a")) -> 86.54571545 | AA107: =IF(LEFT($H107,5)="Barge",VLOOKUP($A107&AA$91,Barge_Rate_Master,MATCH($H107,'Barge Rate Inputs'!$A$4:$AD$4,0),FALSE),IF(LEFT($H107,3)="CSX",VLOOKUP($A107&AA$91,CSX_Rate_Master,MATCH($H107,'CSX Rate Inputs'!$A$4:$Z$4,0),FALSE),"n/a")) -> 88.2500541 | AB107: =IF(LEFT($H107,5)="Barge",VLOOKUP($A107&AB$91,Barge_Rate_Master,MATCH($H107,'Barge Rate Inputs'!$A$4:$AD$4,0),FALSE),IF(LEFT($H107,3)="CSX",VLOOKUP($A107&AB$91,CSX_Rate_Master,MATCH($H107,'CSX Rate Inputs'!$A$4:$Z$4,0),FALSE),"n/a")) -> 89.98378753 | AC107: =IF(LEFT($H107,5)="Barge",VLOOKUP($A107&AC$91,Barge_Rate_Master,MATCH($H107,'Barge Rate Inputs'!$A$4:$AD$4,0),FALSE),IF(LEFT($H107,3)="CSX",VLOOKUP($A107&AC$91,CSX_Rate_Master,MATCH($H107,'CSX Rate Inputs'!$A$4:$Z$4,0),FALSE),"n/a")) -> 91.84050072 | AD107: =IF(LEFT($H107,5)="Barge",VLOOKUP($A107&AD$91,Barge_Rate_Master,MATCH($H107,'Barge Rate Inputs'!$A$4:$AD$4,0),FALSE),IF(LEFT($H107,3)="CSX",VLOOKUP($A107&AD$91,CSX_Rate_Master,MATCH($H107,'CSX Rate Inputs'!$A$4:$Z$4,0),FALSE),"n/a")) -> 93.64376698 | AE107: =IF(LEFT($H107,5)="Barge",VLOOKUP($A107&AE$91,Barge_Rate_Master,MATCH($H107,'Barge Rate Inputs'!$A$4:$AD$4,0),FALSE),IF(LEFT($H107,3)="CSX",VLOOKUP($A107&AE$91,CSX_Rate_Master,MATCH($H107,'CSX Rate Inputs'!$A$4:$Z$4,0),FALSE),"n/a")) -> 95.48717857 | AF107: =IF(LEFT($H107,5)="Barge",VLOOKUP($A107&AF$91,Barge_Rate_Master,MATCH($H107,'Barge Rate Inputs'!$A$4:$AD$4,0),FALSE),IF(LEFT($H107,3)="CSX",VLOOKUP($A107&AF$91,CSX_Rate_Master,MATCH($H107,'CSX Rate Inputs'!$A$4:$Z$4,0),FALSE),"n/a")) -> 97.4592243 | AG107: =IF(LEFT($H107,5)="Barge",VLOOKUP($A107&AG$91,Barge_Rate_Master,MATCH($H107,'Barge Rate Inputs'!$A$4:$AD$4,0),FALSE),IF(LEFT($H107,3)="CSX",VLOOKUP($A107&AG$91,CSX_Rate_Master,MATCH($H107,'CSX Rate Inputs'!$A$4:$Z$4,0),FALSE),"n/a")) -> 99.37330307 | AH107: =IF(LEFT($H107,5)="Barge",VLOOKUP($A107&AH$91,Barge_Rate_Master,MATCH($H107,'Barge Rate Inputs'!$A$4:$AD$4,0),FALSE),IF(LEFT($H107,3)="CSX",VLOOKUP($A107&AH$91,CSX_Rate_Master,MATCH($H107,'CSX Rate Inputs'!$A$4:$Z$4,0),FALSE),"n/a")) -> 101.3281114 | AI107: =IF(LEFT($H107,5)="Barge",VLOOKUP($A107&AI$91,Barge_Rate_Master,MATCH($H107,'Barge Rate Inputs'!$A$4:$AD$4,0),FALSE),IF(LEFT($H107,3)="CSX",VLOOKUP($A107&AI$91,CSX_Rate_Master,MATCH($H107,'CSX Rate Inputs'!$A$4:$Z$4,0),FALSE),"n/a")) -> 103.4175544 | AJ107: =IF(LEFT($H107,5)="Barge",VLOOKUP($A107&AJ$91,Barge_Rate_Master,MATCH($H107,'Barge Rate Inputs'!$A$4:$AD$4,0),FALSE),IF(LEFT($H107,3)="CSX",VLOOKUP($A107&AJ$91,CSX_Rate_Master,MATCH($H107,'CSX Rate Inputs'!$A$4:$Z$4,0),FALSE),"n/a")) -> 105.4869255 | AK107: =IF(LEFT($H107,5)="Barge",VLOOKUP($A107&AK$91,Barge_Rate_Master,MATCH($H107,'Barge Rate Inputs'!$A$4:$AD$4,0),FALSE),IF(LEFT($H107,3)="CSX",VLOOKUP($A107&AK$91,CSX_Rate_Master,MATCH($H107,'CSX Rate Inputs'!$A$4:$Z$4,0),FALSE),"n/a")) -> 107.598296 | AL107: =IF(LEFT($H107,5)="Barge",VLOOKUP($A107&AL$91,Barge_Rate_Master,MATCH($H107,'Barge Rate Inputs'!$A$4:$AD$4,0),FALSE),IF(LEFT($H107,3)="CSX",VLOOKUP($A107&AL$91,CSX_Rate_Master,MATCH($H107,'CSX Rate Inputs'!$A$4:$Z$4,0),FALSE),"n/a")) -> 109.7518939 | AM107: =IF(LEFT($H107,5)="Barge",VLOOKUP($A107&AM$91,Barge_Rate_Master,MATCH($H107,'Barge Rate Inputs'!$A$4:$AD$4,0),FALSE),IF(LEFT($H107,3)="CSX",VLOOKUP($A107&AM$91,CSX_Rate_Master,MATCH($H107,'CSX Rate Inputs'!$A$4:$Z$4,0),FALSE),"n/a")) -> 111.9479518 | AN107: =IF(LEFT($H107,5)="Barge",VLOOKUP($A107&AN$91,Barge_Rate_Master,MATCH($H107,'Barge Rate Inputs'!$A$4:$AD$4,0),FALSE),IF(LEFT($H107,3)="CSX",VLOOKUP($A107&AN$91,CSX_Rate_Master,MATCH($H107,'CSX Rate Inputs'!$A$4:$Z$4,0),FALSE),"n/a")) -> 114.1867068 | AO107: =IF(LEFT($H107,5)="Barge",VLOOKUP($A107&AO$91,Barge_Rate_Master,MATCH($H107,'Barge Rate Inputs'!$A$4:$AD$4,0),FALSE),IF(LEFT($H107,3)="CSX",VLOOKUP($A107&AO$91,CSX_Rate_Master,MATCH($H107,'CSX Rate Inputs'!$A$4:$Z$4,0),FALSE),"n/a")) -> 116.4684009

Sheet Coal Price Inputs
E1: =Assumptions!$A$1 -> Florida- Fall 2019 IRP Refresh Update - Coal | F1: =Assumptions!$B$2 -> No Carbon | K1: * Internal escalation rate of 2.5% applied starting in 2041 due to escalation rate error in HIS supplied market update (per email from Mike Quinto received 4/25/19)
C2: Duke Internal High Commodity Fundamental Price Forecast* | K2: Updated: | L2: 2019-11-06 | M2: Michael Quinto
C3: Source File: | D3: Base, Low High Commodity Coal Curves_FL | H3: Source Tab: | I3: Fundamentals - Ratio Method
C4: From: | D4: Michael Quinto
H6: Avg Hg | I6: Chlorine
B7: Basin | C7: Coal Type | D7: FOB Point | E7: Btu/lb | F7: #SO2/MMBtu | G7: %Ash | H7: ppm (dry) | I7: % AR | J7: INDEX | K7: 2019 | L7: =K7+1 -> 2020 | M7: =L7+1 -> 2021 | N7: 2022 | O7: 2023 | P7: 2024 | Q7: 2025 | R7: 2026 | S7: 2027 | T7: 2028 | U7: 2029 | V7: 2030 | W7: 2031 | X7: 2032 | Y7: 2033 | Z7: 2034 | AA7: 2035 | AB7: 2036 | AC7: 2037 | AD7: 2038 | AE7: 2039 | AF7: 2040 | AG7: 2041 | AH7: 2042 | AI7: =AH7+1 -> 2043 | AJ7: =AI7+1 -> 2044 | AK7: =AJ7+1 -> 2045 | AL7: =AK7+1 -> 2046 | AM7: =AL7+1 -> 2047 | AN7: =AM7+1 -> 2048 | AO7: =AN7+1 -> 2049 | AP7: =AO7+1 -> 2050
J8: Inflator 2018 = 1.0>>> | K8: 1 | L8: 1.020031642 | M8: 1.047125925 | N8: 1.07305955 | O8: 1.095487429 | P8: 1.116839505 | Q8: 1.138684996 | R8: 1.161442557 | S8: 1.184403047 | T8: 1.207417296 | U8: 1.231114817 | V8: 1.25572786 | W8: 1.281380642 | X8: 1.307483527 | Y8: 1.333820513 | Z8: 1.36040346 | AA8: 1.387702685 | AB8: 1.415904285 | AC8: 1.44433974 | AD8: 1.472836292 | AE8: 1.501515389 | AF8: 1.530730123 | AG8: 2.5 | AH8: 2.5 | AI8: 2.5 | AJ8: 2.5 | AK8: 2.5 | AL8: 2.5 | AM8: 2.5 | AN8: 2.5 | AO8: 2.5 | AP8: 2.5
B10: NAPP | C10: Pittsburgh Seam | D10: Rail | E10: 13000 | F10: 4 | G10: 8 | H10: 0.122 | I10: 0.001 | J10: NAPP-Pitt-CSX/NS-MGA-13000-HS-4.0 | K10: 46.00180822 | L10: 47.14861964 | M10: 55.78182349 | N10: 55.78166655 | O10: 57.87683844 | P10: 58.40468334 | Q10: 60.04010569 | R10: 63.35946284 | S10: 65.18961046 | T10: 66.68816234 | U10: 68.72337812 | V10: 70.15640438 | W10: 71.82365576 | X10: 75.40665356 | Y10: 76.98280429 | Z10: 79.77798047 | AA10: 82.10082149 | AB10: 79.74630039 | AC10: 81.27304301 | AD10: 83.9671388 | AE10: 86.9568675 | AF10: 90.34091831 | AG10: 92.94335303 | AH10: 95.61948179 | AI10: 98.61439208 | AJ10: 101.7174665 | AK10: 103.3877744 | AL10: 106.4672645 | AM10: 109.9601604 | AN10: 112.4980572 | AO10: 115.28224 | AP10: 118.1470421
B11: NAPP | C11: Pittsburgh Seam | D11: Barge | E11: 13000 | F11: 4 | G11: 8 | H11: 0.122 | I11: 0.001 | J11: NAPP-Pitt-Barge-MonR-13000-HS-4.0 | K11: 46.00180822 | L11: 47.14861964 | M11: 55.78182349 | N11: 55.78166655 | O11: 57.87683844 | P11: 58.40468334 | Q11: 60.04010569 | R11: 63.35946284 | S11: 65.18961046 | T11: 66.68816234 | U11: 68.72337812 | V11: 70.15640438 | W11: 71.82365576 | X11: 75.40665356 | Y11: 76.98280429 | Z11: 79.77798047 | AA11: 82.10082149 | AB11: 79.74630039 | AC11: 81.27304301 | AD11: 83.9671388 | AE11: 86.9568675 | AF11: 90.34091831 | AG11: 92.94335303 | AH11: 95.61948179 | AI11: 98.61439208 | AJ11: 101.7174665 | AK11: 103.3877744 | AL11: 106.4672645 | AM11: 109.9601604 | AN11: 112.4980572 | AO11: 115.28224 | AP11: 118.1470421
B12: CAPP | C12: Low-Sulfur | D12: Rail | E12: 12500 | F12: 1.6 | G12: 10 | H12: 0.11 | I12: 0.001 | J12: CAPP-EKY-CSX-Big Sandy-12500-LS-1.6 | K12: 57.39354739 | L12: 49.41971213 | M12: 63.51299967 | N12: 68.92928878 | O12: 69.02653854 | P12: 72.8152086 | Q12: 75.34431042 | R12: 78.76485402 | S12: 81.71697606 | T12: 84.12313209 | U12: 85.97214599 | V12: 88.48079655 | W12: 91.82933791 | X12: 91.31597895 | Y12: 95.64730005 | Z12: 99.07954233 | AA12: 102.7738071 | AB12: 107.3080229 | AC12: 112.1209399 | AD12: 117.2480185 | AE12: 116.4798658 | AF12: 121.4198085 | AG12: 124.8874201 | AH12: 127.8008413 | AI12: 130.6525058 | AJ12: 134.4641974 | AK12: 136.2166266 | AL12: 139.719622 | AM12: 143.7731715 | AN12: 146.7008748 | AO12: 149.9197333 | AP12: 153.2429737
B13: CAPP | C13: Low-Sulfur | D13: Barge | E13: 12500 | F13: 1.6 | G13: 10 | H13: 0.11 | I13: 0.001 | J13: CAPP-EKY-Barge-BSR-12000-LS-1.6 | K13: 57.39354739 | L13: 49.41971213 | M13: 63.51299967 | N13: 68.92928878 | O13: 69.02653854 | P13: 72.8152086 | Q13: 75.34431042 | R13: 78.76485402 | S13: 81.71697606 | T13: 84.12313209 | U13: 85.97214599 | V13: 88.48079655 | W13: 91.82933791 | X13: 91.31597895 | Y13: 95.64730005 | Z13: 99.07954233 | AA13: 102.7738071 | AB13: 107.3080229 | AC13: 112.1209399 | AD13: 117.2480185 | AE13: 116.4798658 | AF13: 121.4198085 | AG13: 124.8874201 | AH13: 127.8008413 | AI13: 130.6525058 | AJ13: 134.4641974 | AK13: 136.2166266 | AL13: 139.719622 | AM13: 143.7731715 | AN13: 146.7008748 | AO13: 149.9197333 | AP13: 153.2429737
B14: ILB | C14: Illinois | D14: Rail | E14: 11500 | F14: 5 | G14: 10 | H14: 0.102 | I14: 0.003 | J14: ILLB-IL-Rail-South IL-11500-VH-5 | K14: 40.03303311 | L14: 40.59577438 | M14: 45.76900991 | N14: 46.91722624 | O14: 47.22306536 | P14: 49.7591245 | Q14: 51.09120903 | R14: 53.32914734 | S14: 54.5912259 | T14: 56.2437261 | U14: 56.52216582 | V14: 54.95420632 | W14: 60.67256363 | X14: 63.33218921 | Y14: 66.26245281 | Z14: 68.79996136 | AA14: 68.8419406 | AB14: 70.88576896 | AC14: 74.02841673 | AD14: 76.61319715 | AE14: 80.16427888 | AF14: 83.34186969 | AG14: 86.40045286 | AH14: 89.26190298 | AI14: 92.49172108 | AJ14: 95.73964545 | AK14: 97.71216856 | AL14: 100.9631306 | AM14: 104.6103087 | AN14: 107.3350468 | AO14: 110.2956822 | AP14: 113.3179049
B15: ILB | C15: Illinois | D15: Barge | E15: 11500 | F15: 5 | G15: 10 | H15: 0.102 | I15: 0.0015 | J15: ILLB-IL-Barge-OhioR-11500-XH-5 | K15: 40.03303311 | L15: 40.59577438 | M15: 45.76900991 | N15: 46.91722624 | O15: 47.22306536 | P15: 49.7591245 | Q15: 51.09120903 | R15: 53.32914734 | S15: 54.5912259 | T15: 56.2437261 | U15: 56.52216582 | V15: 59.06168341 | W15: 60.67256363 | X15: 63.33218921 | Y15: 66.26245281 | Z15: 68.79996136 | AA15: 68.8419406 | AB15: 70.88576896 | AC15: 74.02841673 | AD15: 76.61319715 | AE15: 80.16427888 | AF15: 83.34186969 | AG15: 86.40045286 | AH15: 89.26190298 | AI15: 92.49172108 | AJ15: 95.73964545 | AK15: 97.71216856 | AL15: 100.9631306 | AM15: 104.6103087 | AN15: 107.3350468 | AO15: 110.2956822 | AP15: 113.3179049
B16: ILB | C16: Illinois | D16: Rail | E16: 11500 | F16: 5 | G16: 10 | H16: 0.102 | I16: 0.0012 | J16: ILLB-IN-Rail-Sullivan-11500-VH-5 | K16: 40.03303311 | L16: 40.59577438 | M16: 45.76900991 | N16: 46.91722624 | O16: 47.22306536 | P16: 49.7591245 | Q16: 51.09120903 | R16: 53.32914734 | S16: 54.5912259 | T16: 56.2437261 | U16: 56.52216582 | V16: 54.95420632 | W16: 60.67256363 | X16: 63.33218921 | Y16: 66.26245281 | Z16: 68.79996136 | AA16: 68.8419406 | AB16: 70.88576896 | AC16: 74.02841673 | AD16: 76.61319715 | AE16: 80.16427888 | AF16: 83.34186969 | AG16: 86.40045286 | AH16: 89.26190298 | AI16: 92.49172108 | AJ16: 95.73964545 | AK16: 97.71216856 | AL16: 100.9631306 | AM16: 104.6103087 | AN16: 107.3350468 | AO16: 110.2956822 | AP16: 113.3179049
B17: ILB | C17: Illinois | D17: Barge | E17: 11000 | F17: 6 | G17: 10 | H17: 0.102 | I17: 0.001 | J17: ILLB-WKY-Barge-OhioR-11000-XH-6 | K17: 36.582897 | L17: 36.96710181 | M17: 41.67792522 | N17: 42.7235077 | O17: 43.00200923 | P17: 45.31138153 | Q17: 46.52439705 | R17: 48.56229618 | S17: 49.71156325 | T17: 51.21635393 | U17: 51.46990519 | V17: 53.78242679 | W17: 55.24931772 | X17: 57.6712114 | Y17: 60.339552 | Z17: 62.65024415 | AA17: 62.68847105 | AB17: 64.54961084 | AC17: 67.41135155 | AD17: 69.76509015 | AE17: 72.99875674 | AF17: 75.89231709 | AG17: 78.67750735 | AH17: 81.2831854 | AI17: 84.22430467 | AJ17: 87.18191178 | AK17: 88.97811997 | AL17: 91.93849321 | AM17: 95.25966656 | AN17: 97.74085263 | AO17: 100.4368503 | AP17: 103.1889301
B18: ILB | C18: Illinois | D18: Rail | E18: 11000 | F18: 6 | G18: 10 | H18: 0.102 | I18: 0.0015 | J18: ILLB-IN-Rail-Sullivan-11000-XH-6 | K18: 36.582897 | L18: 36.96710181 | M18: 41.67792522 | N18: 42.7235077 | O18: 43.00200923 | P18: 45.31138153 | Q18: 46.52439705 | R18: 48.56229618 | S18: 49.71156325 | T18: 51.21635393 | U18: 51.46990519 | V18: 50.04209849 | W18: 55.24931772 | X18: 57.6712114 | Y18: 60.339552 | Z18: 62.65024415 | AA18: 62.68847105 | AB18: 64.54961084 | AC18: 67.41135155 | AD18: 69.76509015 | AE18: 72.99875674 | AF18: 75.89231709 | AG18: 78.67750735 | AH18: 81.2831854 | AI18: 84.22430467 | AJ18: 87.18191178 | AK18: 88.97811997 | AL18: 91.93849321 | AM18: 95.25966656 | AN18: 97.74085263 | AO18: 100.4368503 | AP18: 103.1889301
B19: ILB | C19: Illinois | D19: Rail | E19: 11000 | F19: 6 | G19: 10 | H19: 0.102 | I19: 0.0015 | J19: ILLB-IL-Rail-Central IL-11000-XH-6 | K19: 36.582897 | L19: 36.96710181 | M19: 41.67792522 | N19: 42.7235077 | O19: 43.00200923 | P19: 45.31138153 | Q19: 46.52439705 | R19: 48.56229618 | S19: 49.71156325 | T19: 51.21635393 | U19: 51.46990519 | V19: 50.04209849 | W19: 55.24931772 | X19: 57.6712114 | Y19: 60.339552 | Z19: 62.65024415 | AA19: 62.68847105 | AB19: 64.54961084 | AC19: 67.41135155 | AD19: 69.76509015 | AE19: 72.99875674 | AF19: 75.89231709 | AG19: 78.67750735 | AH19: 81.2831854 | AI19: 84.22430467 | AJ19: 87.18191178 | AK19: 88.97811997 | AL19: 91.93849321 | AM19: 95.25966656 | AN19: 97.74085263 | AO19: 100.4368503 | AP19: 103.1889301
B20: ILB | C20: Illinois | D20: Barge | E20: 11800 | F20: 4.5 | G20: 10 | H20: 0.102 | I20: 0.002 | J20: ILLB-WKY-Barge-Green River-11800-XH-4.5 | K20: 41.15271796 | L20: 41.58167736 | M20: 46.78180609 | N20: 50.27329099 | O20: 51.18588337 | P20: 54.09651105 | Q20: 55.54471026 | R20: 57.97772442 | S20: 59.34981542 | T20: 61.1463602 | U20: 61.44907086 | V20: 59.744436 | W20: 65.96124914 | X20: 68.85270806 | Y20: 72.0383959 | Z20: 74.79709314 | AA20: 74.8427316 | AB20: 77.0647157 | AC20: 80.48130074 | AD20: 83.29139042 | AE20: 87.15201164 | AF20: 90.60658561 | AG20: 93.93177833 | AH20: 97.04265436 | AI20: 100.5540082 | AJ20: 104.0850465 | AK20: 106.2295098 | AL20: 109.7638506 | AM20: 113.7289447 | AN20: 116.6911918 | AO20: 119.909899 | AP20: 123.1955617
B21: ILB | C21: Illinois | D21: Barge | E21: 11800 | F21: 4.5 | G21: 10 | H21: 0.102 | I21: 0.002 | J21: ILLB-WKY-Barge-OhioR-11800-XH-4.5 | K21: 41.15271796 | L21: 41.58167736 | M21: 46.78180609 | N21: 50.27329099 | O21: 51.18588337 | P21: 54.09651105 | Q21: 55.54471026 | R21: 57.97772442 | S21: 59.34981542 | T21: 61.1463602 | U21: 61.44907086 | V21: 59.744436 | W21: 65.96124914 | X21: 68.85270806 | Y21: 72.0383959 | Z21: 74.79709314 | AA21: 74.8427316 | AB21: 77.0647157 | AC21: 80.48130074 | AD21: 83.29139042 | AE21: 87.15201164 | AF21: 90.60658561 | AG21: 93.93177833 | AH21: 97.04265436 | AI21: 100.5540082 | AJ21: 104.0850465 | AK21: 106.2295098 | AL21: 109.7638506 | AM21: 113.7289447 | AN21: 116.6911918 | AO21: 119.909899 | AP21: 123.1955617
B22: ILB | C22: Low Chlorine | D22: Barge | E22: 11500 | F22: 5.2 | G22: 10 | H22: 0.102 | I22: 0.0008 | J22: ILLB-WKY-Barge-OhioR-11500-VH-5.2-LC-.8 | K22: 41.86385534 | L22: 43.10033392 | M22: 48.49038307 | N22: 52.10938487 | O22: 53.05530717 | P22: 56.07223753 | Q22: 57.57332825 | R22: 60.09520157 | S22: 61.51740442 | T22: 63.37956306 | U22: 63.6933294 | V22: 61.92643743 | W22: 68.3703026 | X22: 71.36736412 | Y22: 74.66940045 | Z22: 77.52885153 | AA22: 77.57615681 | AB22: 79.87929278 | AC22: 83.4206592 | AD22: 86.33337969 | AE22: 90.33499949 | AF22: 93.9157423 | AG22: 97.36237854 | AH22: 100.5868708 | AI22: 104.2264671 | AJ22: 107.8864669 | AK22: 110.1092509 | AL22: 113.7726738 | AM22: 117.882582 | AN22: 120.9530171 | AO22: 124.2892787 | AP22: 127.6949412
B23: ILB | C23: Low Chlorine | D23: Rail | E23: 11500 | F23: 5.2 | G23: 10 | H23: 0.102 | I23: 0.0008 | J23: ILLB-WKY-CSX-WKY-11500-VH-5.2-LC-.8 | K23: 41.86385534 | L23: 43.10033392 | M23: 48.49038307 | N23: 52.10938487 | O23: 53.05530717 | P23: 56.07223753 | Q23: 57.57332825 | R23: 60.09520157 | S23: 61.51740442 | T23: 63.37956306 | U23: 63.6933294 | V23: 61.92643743 | W23: 68.3703026 | X23: 71.36736412 | Y23: 74.66940045 | Z23: 77.52885153 | AA23: 77.57615681 | AB23: 79.87929278 | AC23: 83.4206592 | AD23: 86.33337969 | AE23: 90.33499949 | AF23: 93.9157423 | AG23: 97.36237854 | AH23: 100.5868708 | AI23: 104.2264671 | AJ23: 107.8864669 | AK23: 110.1092509 | AL23: 113.7726738 | AM23: 117.882582 | AN23: 120.9530171 | AO23: 124.2892787 | AP23: 127.6949412
B24: PRB | C24: High-Btu Gillette | D24: Rail | E24: 8800 | F24: 0.8 | G24: 5 | H24: 0.06 | I24: 0.0001 | J24: PRB-WY-BN/UP-Gillette-8800-CS-0.8 | K24: 12.20692511 | L24: 12.67998753 | M24: 13.24411838 | N24: 14.2028208 | O24: 14.19207961 | P24: 14.78285643 | Q24: 15.24182957 | R24: 15.93483821 | S24: 16.54132097 | T24: 17.06000541 | U24: 17.71828279 | V24: 18.55376229 | W24: 19.13313408 | X24: 19.88143271 | Y24: 20.80866942 | Z24: 21.71715381 | AA24: 22.51107696 | AB24: 23.01694099 | AC24: 24.05891273 | AD24: 25.13525909 | AE24: 26.31469493 | AF24: 27.62151344 | AG24: 28.67365905 | AH24: 29.72036626 | AI24: 30.90939428 | AJ24: 32.18310802 | AK24: 33.05783138 | AL24: 34.41496763 | AM24: 35.95923892 | AN24: 37.24471605 | AO24: 38.66326706 | AP24: 40.16084491
B25: RM | C25: Rockies | D25: Rail | E25: 11700 | F25: 0.8 | G25: 8 | H25: 0.04 | I25: 0.0002 | J25: Rockies-CO-UP-North Fork-11700-CS-.8 | K25: 32.54158965 | L25: 34.86039512 | M25: 37.76020528 | N25: 38.60396841 | O25: 39.77483223 | P25: 42.08388702 | Q25: 43.54312502 | R25: 43.5402431 | S25: 45.06689584 | T25: 46.37957414 | U25: 48.08164778 | V25: 49.3895789 | W25: 50.86233149 | X25: 52.77545336 | Y25: 51.80712643 | Z25: 53.75017711 | AA25: 55.63144904 | AB25: 57.96006566 | AC25: 55.89598145 | AD25: 58.31976744 | AE25: 60.99048999 | AF25: 63.98418356 | AG25: 65.48669263 | AH25: 67.70914737 | AI25: 70.10783301 | AJ25: 72.5140722 | AK25: 73.80290688 | AL25: 76.20387731 | AM25: 78.87600257 | AN25: 80.84318905 | AO25: 82.97840246 | AP25: 85.18341333
B26: RM | C26: Rockies | D26: Barge | E26: 11700 | F26: 0.8 | G26: 8 | H26: 0.04 | I26: 0.0002 | J26: Rockies-CO-UP-North Fork-11700-CS-.8 | K26: 32.54158965 | L26: 34.86039512 | M26: 37.76020528 | N26: 38.60396841 | O26: 39.77483223 | P26: 42.08388702 | Q26: 43.54312502 | R26: 43.5402431 | S26: 45.06689584 | T26: 46.37957414 | U26: 48.08164778 | V26: 49.3895789 | W26: 50.86233149 | X26: 52.77545336 | Y26: 51.80712643 | Z26: 53.75017711 | AA26: 55.63144904 | AB26: 57.96006566 | AC26: 55.89598145 | AD26: 58.31976744 | AE26: 60.99048999 | AF26: 63.98418356 | AG26: 65.48669263 | AH26: 67.70914737 | AI26: 70.10783301 | AJ26: 72.5140722 | AK26: 73.80290688 | AL26: 76.20387731 | AM26: 78.87600257 | AN26: 80.84318905 | AO26: 82.97840246 | AP26: 85.18341333
A28: Price Forecast Received from Andrew James via e-mail on 9/17/19 (Nominal $/ton) **
A30: Reviewed transportation delivery locations with Shawn Shultz, Manager Coal Transportation 10/2018
A32: With ILB Curve Updates from NEW ILB file received 10/4

Sheet CSX Rate Inputs
A1: CSX Rate Master | C1: Updated: | D1: 2019-10-02 | E1: tw | G1: Post 2026 escalation: | H1: 0.02 | J1: Source: | K1: \\cltpsmf02\fuelpur\PLANNING\IRP Refresh Files\2019 Fall IRP Refresh\Supporting Files\DEF Florida CSX Conventional Rail Rate Scenario_100219.xlsm
D3: CAPP | I3: NAPP | M3: ILB | S3: Energy, CO | T3: ConJunction, WY
A4: Key | B4: Station | C4: Year | D4: Typo, KY | E4: Resource, KY | F4: Phillips, WV | G4: Bull Creek 2, WV | H4: Hutchinson, WV | I4: Harrison Co, WV | J4: Bailey Mine, PA | K4: Marion Co, WV | L4: Monongalia Co, WV | M4: Evansville, IN | N4: White Oak, IL | O4: Oaktown,lN | P4: Carlisle, IN | Q4: BearRun,lN | R4: Cardinal 9, KY | S4: CSX UP | T4: CSX PRB | U4: CSX CAPP Basin | V4: CSX NAPP Basin | W4: CSX ILB Basin | X4: CSX CN Galatia | Y4: CSX Sullivan | Z4: CSX Western KY
A5: Crystal River 4&5 2019 | B5: Crystal River 4&5 | C5: 2019 | D5: 23.50696652 | E5: 20.12669574 | F5: 27.81665623 | G5: 24.57113367 | H5: 25.1261035 | I5: 28.50637428 | J5: 29.54657122 | K5: 26.08813185 | L5: 27.49791342 | M5: 21.29234169 | N5: 23.00770298 | O5: 21.31163261 | P5: 20.9649003 | Q5: 22.8344859 | R5: 17.78 | S5: 58.88 | T5: 41.98 | U5: =AVERAGE(D5:H5) -> 24.22951113 | V5: =AVERAGE(I5:L5) -> 27.90974769 | W5: =AVERAGE(M5:R5) -> 21.19851058 | X5: =N5 -> 23.00770298 | Y5: 20.4 | Z5: =R5 -> 17.78
A6: Crystal River 4&5 2020 | B6: Crystal River 4&5 | C6: 2020 | D6: 23.50696652 | E6: 20.12669574 | F6: 27.81665623 | G6: 24.57113367 | H6: 25.1261035 | I6: 28.50637428 | J6: 29.54657122 | K6: 26.08813185 | L6: 27.49791342 | M6: 21.29234169 | N6: 23.00770298 | O6: 21.31163261 | P6: 20.9649003 | Q6: 22.8344859 | R6: 17.94066104 | S6: 59.41204286 | T6: 42.35933355 | U6: =AVERAGE(D6:H6) -> 24.22951113 | V6: =AVERAGE(I6:L6) -> 27.90974769 | W6: 21.22528742 | X6: =N6 -> 23.00770298 | Y6: =AVERAGE(M6:Q6) -> 21.88221269 | Z6: 17.94066104
A7: Crystal River 4&5 2021 | B7: Crystal River 4&5 | C7: 2021 | D7: 24.11025815 | E7: 20.6481278 | F7: 28.5656951 | G7: 25.20754957 | H7: 25.77595903 | I7: 29.23808938 | J7: 30.32311042 | K7: 26.74608303 | L7: 28.19659649 | M7: 21.84074526 | N7: 23.59764723 | O7: 21.84086954 | P7: 21.47919586 | Q7: 23.38746557 | R7: 18.37512761 | S7: 60.8508163 | T7: 43.38514382 | U7: 24.86151793 | V7: 28.62596983 | W7: 21.75350851 | X7: 23.59764723 | Y7: 22.42918469 | Z7: 18.37512761
A8: Crystal River 4&5 2022 | B8: Crystal River 4&5 | C8: 2022 | D8: 24.62163558 | E8: 21.07566329 | F8: 29.09680439 | G8: 25.72983255 | H8: 26.3120071 | I8: 29.85797939 | J8: 30.92744423 | K8: 27.33801329 | L8: 28.80960993 | M8: 22.29983991 | N8: 24.09928854 | O8: 22.34179923 | P8: 21.98531095 | Q8: 23.95383667 | R8: 18.8201156 | S8: 62.32443232 | T8: 44.43579601 | U8: 25.36718858 | V8: 29.23326171 | W8: 22.25003182 | X8: 24.09928854 | Y8: 22.93601506 | Z8: 18.8201156
A9: Crystal River 4&5 2023 | B9: Crystal River 4&5 | C9: 2023 | D9: 25.23487543 | E9: 21.60303081 | F9: 29.83906958 | G9: 26.37357922 | H9: 26.96985222 | I9: 30.60169684 | J9: 31.70685904 | K9: 28.01311865 | L9: 29.5236422 | M9: 22.85622595 | N9: 24.69925158 | O9: 22.88940311 | P9: 22.52101571 | Q9: 24.53392351 | R9: 19.27587981 | S9: 63.8337347 | T9: 45.51189169 | U9: 26.00408145 | V9: 29.96132918 | W9: 22.79594994 | X9: 24.69925158 | Y9: 23.49996397 | Z9: 19.27587981
A10: Crystal River 4&5 2024 | B10: Crystal River 4&5 | C10: 2024 | D10: 25.88330828 | E10: 22.16351176 | F10: 30.64439077 | G10: 27.05765383 | H10: 27.66836669 | I10: 31.3881632 | J10: 32.54162501 | K10: 28.72022329 | L10: 30.27455699 | M10: 23.44567682 | N10: 25.33333476 | O10: 23.45812139 | P10: 23.07363412 | Q10: 25.12805823 | R10: 19.74268119 | S10: 65.37958766 | T10: 46.61404704 | U10: 26.68344627 | V10: 30.73114212 | W10: 23.36358442 | X10: 25.33333476 | Y10: 24.08776506 | Z10: 19.74268119
A11: Crystal River 4&5 2025 | B11: Crystal River 4&5 | C11: 2025 | D11: 26.52259663 | E11: 22.7127183 | F11: 31.41414951 | G11: 27.72807729 | H11: 28.3535797 | I11: 32.16345802 | J11: 33.35205174 | K11: 29.42533532 | L11: 31.01972682 | M11: 24.02547259 | N11: 25.95884368 | O11: 24.03101983 | P11: 23.63482193 | Q11: 25.73658103 | R11: 20.22078704 | S11: 66.96287632 | T11: 47.74289314 | U11: 27.34622429 | V11: 31.49014298 | W11: 23.93458768 | X11: 25.95884368 | Y11: 24.67734781 | Z11: 20.22078704
A12: Crystal River 4&5 2026 | B12: Crystal River 4&5 | C12: 2026 | D12: 27.18566154 | E12: 23.28053626 | F12: 32.19950325 | G12: 28.42127922 | H12: 29.06241919 | I12: 32.96754447 | J12: 34.18585304 | K12: 30.1609687 | L12: 31.79521999 | M12: 24.6261094 | N12: 26.60781477 | O12: 24.63179533 | P12: 24.22569247 | Q12: 26.37999556 | R12: 20.72630672 | S12: 68.63694823 | T12: 48.93646547 | U12: 28.02987989 | V12: 32.27739655 | W12: 24.53295237 | X12: 26.60781477 | Y12: 25.29428151 | Z12: 20.72630672
A13: Crystal River 4&5 2027 | B13: Crystal River 4&5 | C13: =C12+1 -> 2027 | D13: =D12*(1+$H$1) -> 27.72937477 | E13: 23.74614699 | F13: 32.84349332 | G13: 28.9897048 | H13: 29.64366757 | I13: 33.62689536 | J13: 34.8695701 | K13: 30.76418807 | L13: 32.43112439 | M13: 25.11863159 | N13: 27.13997106 | O13: 25.12443124 | P13: 24.71020632 | Q13: =Q12*(1+$H$1) -> 26.90759547 | R13: 21.14083285 | S13: =S12*(1+$H$1) -> 70.0096872 | T13: 49.91519478 | U13: =AVERAGE(D13:H13) -> 28.59047749 | V13: =AVERAGE(I13:L13) -> 32.92294448 | W13: 25.02361142 | X13: 27.13997106 | Y13: 25.80016714 | Z13: 21.14083285
A14: Crystal River 4&5 2028 | B14: Crystal River 4&5 | C14: 2028 | D14: 28.28396227 | E14: 24.22106993 | F14: 33.50036318 | G14: 29.5694989 | H14: 30.23654093 | I14: 34.29943327 | J14: 35.5669615 | K14: 31.37947184 | L14: 33.07974688 | M14: 25.62100422 | N14: 27.68277048 | O14: 25.62691986 | P14: 25.20441045 | Q14: 27.44574738 | R14: 21.56364951 | S14: 71.40988094 | T14: 50.91349867 | U14: =AVERAGE(D14:H14) -> 29.16228704 | V14: =AVERAGE(I14:L14) -> 33.58140337 | W14: 25.52408365 | X14: 27.68277048 | Y14: 26.31617048 | Z14: 21.56364951
A15: Crystal River 4&5 2029 | B15: Crystal River 4&5 | C15: 2029 | D15: 28.84964151 | E15: 24.70549132 | F15: 34.17037045 | G15: 30.16088888 | H15: 30.84127174 | I15: 34.98542193 | J15: 36.27830073 | K15: 32.00706127 | L15: 33.74134182 | M15: 26.13342431 | N15: 28.23642589 | O15: 26.13945826 | P15: 25.70849866 | Q15: 27.99466233 | R15: 21.9949225 | S15: 72.83807856 | T15: 51.93176865 | U15: 29.74553278 | V15: 34.25303144 | W15: 26.03456532 | X15: 28.23642589 | Y15: 26.84249389 | Z15: 21.9949225
A16: Crystal River 4&5 2030 | B16: Crystal River 4&5 | C16: 2030 | D16: =D15*(1+$H$1) -> 29.42663434 | E16: 25.19960115 | F16: 34.85377786 | G16: 30.76410666 | H16: 31.45809718 | I16: 35.68513037 | J16: 37.00386674 | K16: 32.6472025 | L16: 34.41616865 | M16: 26.65609279 | N16: 28.80115441 | O16: 26.66224742 | P16: 26.22266863 | Q16: 28.55455557 | R16: =R15*(1+$H$1) -> 22.43482095 | S16: 74.29484013 | T16: 52.97040402 | U16: 30.34044344 | V16: 34.93809207 | W16: 26.55525663 | X16: 28.80115441 | Y16: 27.37934377 | Z16: 22.43482095
A17: Crystal River 4&5 2031 | B17: Crystal River 4&5 | C17: 2031 | D17: 30.01516703 | E17: 25.70359317 | F17: 35.55085341 | G17: 31.37938879 | H17: 32.08725912 | I17: 36.39883298 | J17: 37.74394408 | K17: 33.30014655 | L17: 35.10449203 | M17: 27.18921465 | N17: 29.3771775 | O17: 27.19549237 | P17: 26.74712201 | Q17: 29.12564668 | R17: 22.88351737 | S17: 75.78073693 | T17: 54.0298121 | U17: 30.94725231 | V17: 35.63685391 | W17: 27.08636176 | X17: 29.3771775 | Y17: 27.92693064 | Z17: 22.88351737
A18: Crystal River 4&5 2032 | B18: Crystal River 4&5 | C18: 2032 | D18: 30.61547037 | E18: 26.21766504 | F18: 36.26187048 | G18: 32.00697656 | H18: 32.72900431 | I18: 37.12680964 | J18: 38.49882296 | K18: 33.96614948 | L18: 35.80658187 | M18: 27.73299894 | N18: 29.96472105 | O18: 27.73940222 | P18: 27.28206445 | Q18: 29.70815962 | R18: 23.34118772 | S18: 77.29635167 | T18: 55.11040834 | U18: 31.56619735 | V18: 36.34959099 | W18: 27.628089 | X18: 29.96472105 | Y18: 28.48546925 | Z18: 23.34118772
A19: Crystal River 4&5 2033 | B19: Crystal River 4&5 | C19: 2033 | D19: 31.22777978 | E19: 26.74201834 | F19: 36.98710789 | G19: 32.6471161 | H19: 33.38358439 | I19: 37.86934583 | J19: 39.26879942 | K19: 34.64547247 | L19: 36.52271351 | M19: 28.28765892 | N19: 30.56401547 | O19: 28.29419026 | P19: =P18*(1+$H$1) -> 27.82770573 | Q19: 30.30232281 | R19: 23.80801147 | S19: 78.84227871 | T19: 56.21261651 | U19: 32.1975213 | V19: 37.07658281 | W19: 28.18065078 | X19: 30.56401547 | Y19: 29.05517864 | Z19: 23.80801147
A20: Crystal River 4&5 2034 | B20: Crystal River 4&5 | C20: 2034 | D20: 31.85233537 | E20: 27.2768587 | F20: 37.72685005 | G20: 33.30005842 | H20: 34.05125608 | I20: 38.62673275 | J20: 40.05417541 | K20: 35.33838192 | L20: 37.25316778 | M20: 28.8534121 | N20: 31.17529578 | O20: 28.86007407 | P20: 28.38425985 | Q20: 30.90836927 | R20: 24.2841717 | S20: 80.41912428 | T20: 57.33686884 | U20: 32.84147173 | V20: 37.81811446 | W20: 28.74426379 | X20: 31.17529578 | Y20: 29.63628221 | Z20: 24.2841717
A21: Crystal River 4&5 2035 | B21: Crystal River 4&5 | C21: 2035 | D21: 32.48938208 | E21: 27.82239588 | F21: 38.48138705 | G21: 33.96605959 | H21: 34.7322812 | I21: 39.3992674 | J21: 40.85525892 | K21: 36.04514956 | L21: 37.99823113 | M21: 29.43048034 | N21: 31.7988017 | O21: 29.43727555 | P21: 28.95194505 | Q21: 31.52653665 | R21: 24.76985513 | S21: 82.02750677 | T21: 58.48360622 | U21: 33.49830116 | V21: 38.57447675 | W21: 29.31914907 | X21: 31.7988017 | Y21: 30.22900786 | Z21: 24.76985513
A22: Crystal River 4&5 2036 | B22: Crystal River 4&5 | C22: 2036 | D22: 33.13916972 | E22: 28.3788438 | F22: 39.25101479 | G22: 34.64538078 | H22: 35.42692683 | I22: 40.18725275 | J22: 41.67236409 | K22: 36.76605255 | L22: 38.75819575 | M22: 30.01908995 | N22: 32.43477773 | O22: 30.02602106 | P22: 29.53098395 | Q22: 32.15706739 | R22: 25.26525224 | S22: 83.6680569 | T22: 59.65327834 | U22: 34.16826718 | V22: 39.34596629 | W22: 29.90553205 | X22: 32.43477773 | Y22: 30.83358801 | Z22: 25.26525224
A23: Crystal River 4&5 2037 | B23: Crystal River 4&5 | C23: 2037 | D23: 33.80195312 | E23: 28.94642067 | F23: 40.03603509 | G23: 35.33828839 | H23: 36.13546536 | I23: 40.99099781 | J23: 42.50581138 | K23: 37.5013736 | L23: 39.53335967 | M23: 30.61947175 | N23: 33.08347329 | O23: 30.62654148 | P23: 30.12160363 | Q23: 32.80020873 | R23: 25.77055728 | S23: 85.34141804 | T23: 60.84634391 | U23: 34.85163253 | V23: 40.13288561 | W23: 30.50364269 | X23: 33.08347329 | Y23: 31.45025977 | Z23: 25.77055728
A24: Crystal River 4&5 2038 | B24: Crystal River 4&5 | C24: 2038 | D24: 34.47799218 | E24: 29.52534909 | F24: 40.83675579 | G24: 36.04505416 | H24: 36.85817467 | I24: 41.81081776 | J24: 43.3559276 | K24: 38.25140107 | L24: 40.32402686 | M24: 31.23186118 | N24: 33.74514275 | O24: 31.23907231 | P24: 30.7240357 | Q24: 33.45621291 | R24: 26.28596843 | S24: 87.0482464 | T24: 62.06327079 | U24: 35.54866518 | V24: 40.93554333 | W24: 31.11371555 | X24: 33.74514275 | Y24: 32.07926497 | Z24: 26.28596843
A25: Crystal River 4&5 2039 | B25: Crystal River 4&5 | C25: 2039 | D25: 35.16755202 | E25: 30.11585607 | F25: 41.65349091 | G25: 36.76595524 | H25: 37.59533816 | I25: 42.64703412 | J25: 44.22304616 | K25: 39.01642909 | L25: 41.1305074 | M25: 31.8564984 | N25: 34.42004561 | O25: 31.86385376 | P25: 31.33851641 | Q25: 34.12533717 | R25: 26.8116878 | S25: 88.78921133 | T25: 63.3045362 | U25: 36.25963848 | V25: 41.75425419 | W25: 31.73598986 | X25: 34.42004561 | Y25: 32.72085027 | Z25: 26.8116878
A26: Crystal River 4&5 2040 | B26: Crystal River 4&5 | C26: 2040 | D26: 35.87090306 | E26: 30.71817319 | F26: 42.48656072 | G26: 37.50127435 | H26: 38.34724493 | I26: 43.4999748 | J26: 45.10750708 | K26: 39.79675767 | L26: 41.95311755 | M26: 32.49362837 | N26: 35.10844652 | O26: 32.50113083 | P26: 31.96528674 | Q26: 34.80784391 | R26: 27.34792155 | S26: 90.56499555 | T26: 64.57062693 | U26: 36.98483125 | V26: 42.58933928 | W26: 32.37070965 | X26: 35.10844652 | Y26: 33.37526727 | Z26: 27.34792155
A27: Crystal River 4&5 2041 | B27: Crystal River 4&5 | C27: 2041 | D27: 36.58832113 | E27: 31.33253665 | F27: 43.33629194 | G27: 38.25129984 | H27: 39.11418982 | I27: 44.3699743 | J27: 46.00965722 | K27: 40.59269283 | L27: 42.7921799 | M27: 33.14350094 | N27: 35.81061545 | O27: 33.15115345 | P27: 32.60459248 | Q27: 35.50400079 | R27: 27.89487998 | S27: 92.37629546 | T27: 65.86203946 | U27: 37.72452788 | V27: 43.44112606 | W27: 33.01812385 | X27: 35.81061545 | Y27: 34.04277262 | Z27: 27.89487998
A28: Crystal River 4&5 2042 | B28: Crystal River 4&5 | C28: 2042 | D28: 37.32008755 | E28: 31.95918739 | F28: 44.20301778 | G28: 39.01632583 | H28: 39.89647362 | I28: 45.25737378 | J28: 46.92985036 | K28: 41.40454668 | L28: 43.6480235 | M28: 33.80637096 | N28: 36.52682776 | O28: 33.81417652 | P28: 33.25668432 | Q28: 36.2140808 | R28: 28.45277758 | S28: 94.22382137 | T28: 67.17928025 | U28: 38.47901843 | V28: 44.30994858 | W28: 33.67848632 | X28: 36.52682776 | Y28: 34.72362807 | Z28: 28.45277758
A29: Crystal River 4&5 2043 | B29: Crystal River 4&5 | C29: 2043 | D29: 38.0664893 | E29: 32.59837113 | F29: 45.08707813 | G29: 39.79665235 | H29: 40.69440309 | I29: 46.16252126 | J29: 47.86844737 | K29: 42.23263762 | L29: 44.52098397 | M29: 34.48249838 | N29: 37.25736431 | O29: 34.49046005 | P29: 33.92181801 | Q29: 36.93836242 | R29: 29.02183313 | S29: =S28*(1+$H$1) -> 96.1082978 | T29: =T28*(1+$H$1) -> 68.52286586 | U29: 39.2485988 | V29: 45.19614755 | W29: 34.35205605 | X29: 37.25736431 | Y29: 35.41810063 | Z29: 29.02183313
A30: Crystal River 4&5 2044 | B30: Crystal River 4&5 | C30: 2044 | D30: 38.82781909 | E30: 33.25033856 | F30: 45.98881969 | G30: 40.5925854 | H30: 41.50829116 | I30: 47.08577168 | J30: 48.82581632 | K30: 43.07729037 | L30: 45.41140365 | M30: 35.17214835 | N30: 38.0025116 | O30: 35.18026925 | P30: 34.60025437 | Q30: 37.67712967 | R30: 29.6022698 | S30: 98.03046376 | T30: 69.89332317 | U30: 40.03357078 | V30: 46.1000705 | W30: 35.03909717 | X30: 38.0025116 | Y30: 36.12646265 | Z30: 29.6022698
A31: Crystal River 4&5 2045 | B31: Crystal River 4&5 | C31: 2045 | D31: 39.60437547 | E31: 33.91534533 | F31: 46.90859609 | G31: 41.4044371 | H31: 42.33845698 | I31: 48.02748712 | J31: 49.80233265 | K31: 43.93883618 | L31: 46.31963172 | M31: 35.87559131 | N31: 38.76256183 | O31: 35.88387463 | P31: 35.29225946 | Q31: 38.43067226 | R31: 30.19431519 | S31: 99.99107303 | T31: 71.29118964 | U31: 40.83424219 | V31: 47.02207191 | W31: 35.73987911 | X31: 38.76256183 | Y31: 36.8489919 | Z31: 30.19431519
A32: Crystal River 4&5 2046 | B32: Crystal River 4&5 | C32: 2046 | D32: 40.39646298 | E32: 34.59365223 | F32: 47.84676801 | G32: 42.23252585 | H32: 43.18522612 | I32: 48.98803686 | J32: 50.7983793 | K32: 44.8176129 | L32: 47.24602435 | M32: 36.59310314 | N32: 39.53781307 | O32: 36.60155213 | P32: 35.99810465 | Q32: 39.19928571 | R32: 30.7982015 | S32: 101.9908945 | T32: 72.71701343 | U32: 41.65092704 | V32: 47.96251335 | W32: 36.4546767 | X32: 39.53781307 | Y32: 37.58597174 | Z32: 30.7982015
A33: Crystal River 4&5 2047 | B33: Crystal River 4&5 | C33: 2047 | D33: 41.20439224 | E33: 35.28552528 | F33: 48.80370337 | G33: 43.07717636 | H33: 44.04893064 | I33: 49.9677976 | J33: 51.81434688 | K33: 45.71396516 | L33: 48.19094484 | M33: 37.3249652 | N33: 40.32856933 | O33: 37.33358317 | P33: 36.71806674 | Q33: 39.98327142 | R33: 31.41416553 | S33: 104.0307124 | T33: 74.1713537 | U33: 42.48394558 | V33: 48.92176362 | W33: 37.18377023 | X33: 40.32856933 | Y33: 38.33769117 | Z33: 31.41416553
A34: Crystal River 4&5 2048 | B34: Crystal River 4&5 | C34: 2048 | D34: 42.02848008 | E34: 35.99123578 | F34: 49.77977744 | G34: 43.93871989 | H34: 44.92990925 | I34: 50.96715355 | J34: 52.85063382 | K34: 46.62824446 | L34: 49.15476374 | M34: 38.07146451 | N34: 41.13514072 | O34: 38.08025483 | P34: 37.45242808 | Q34: 40.78293685 | R34: 32.04244884 | S34: 106.1113266 | T34: 75.65478077 | U34: 43.33362449 | V34: 49.90019889 | W34: 37.92744564 | X34: 41.13514072 | Y34: 39.104445 | Z34: 32.04244884
A35: Crystal River 4&5 2049 | B35: Crystal River 4&5 | C35: 2049 | D35: 42.86904968 | E35: 36.7110605 | F35: 50.77537299 | G35: 44.81749429 | H35: 45.82850744 | I35: 51.98649662 | J35: 53.9076465 | K35: 47.56080935 | L35: 50.13785901 | M35: 38.8328938 | N35: 41.95784353 | O35: 38.84185993 | P35: 38.20147664 | Q35: 41.59859559 | R35: 32.68329781 | S35: 108.2335532 | T35: 77.16787639 | U35: 44.20029698 | V35: 50.89820287 | W35: 38.68599455 | X35: 41.95784353 | Y35: 39.8865339 | Z35: 32.68329781
A36: Crystal River 4&5 2050 | B36: Crystal River 4&5 | C36: 2050 | D36: 43.72643068 | E36: 37.44528171 | F36: 51.79088045 | G36: 45.71384417 | H36: 46.74507759 | I36: 53.02622655 | J36: 54.98579943 | K36: 48.51202554 | L36: 51.14061619 | M36: 39.60955167 | N36: 42.7970004 | O36: 39.61869713 | P36: 38.96550617 | Q36: 42.4305675 | R36: 33.33696377 | S36: 110.3982242 | T36: 78.71123392 | U36: 45.08430292 | V36: 51.91616693 | W36: 39.45971444 | X36: 42.7970004 | Y36: 40.68426457 | Z36: 33.33696377
A38: Misc Rates
A40: 5 Year Escalation Rate | B40: 0.02
B42: Base Rail Rates ($/ton) | J42: Total Rate ($/ton)
B43: Cora | C43: Cook | D43: Calvert City | E43: Houston | F43: Crystal River | J43: Cora | K43: Cook | L43: Calvert City | M43: Houston | N43: Crystal River
A44: Twenty Mile | B44: 29 | C44: 30.75 | D44: 32 | E44: 34.25 | F44: 58.25 | I44: Twenty Mile | J44: 30.92 | K44: 32.86 | L44: 34.16 | M44: 36.65 | N44: 62.87
A45: West Elk | B45: 30.5 | C45: 32.25 | D45: 33.5 | E45: 35.75 | F45: 59.25 | I45: West Elk | J45: 32.58 | K45: 34.49 | L45: 35.82 | M45: 38.31 | N45: 64.09
A46: Bowie | B46: 30.5 | C46: 32.25 | D46: 33.5 | E46: 35.75 | F46: 59.25 | I46: Bowie | J46: 32.58 | K46: 34.49 | L46: 35.82 | M46: 38.31 | N46: 64.09
B49: Mileage
B50: Cora | C50: Cook | D50: Calvert City | E50: Houston | F50: Crystal River
A51: Twenty Mile | B51: 1203 | C51: 1321 | D51: 1349 | E51: 1500 | F51: 2100
A52: West Elk | B52: 1300 | C52: 1400 | D52: 1450 | E52: 1600 | F52: 2200
A53: Bowie | B53: 1300 | C53: 1400 | D53: 1450 | E53: 1600 | F53: 2200
B55: UP | C55: 0.16 | D55: $/ton-mile | F55: HDF Price
B56: CSX | C56: 0.22 | D56: $/ton-mile | F56: 2.858 | G56: $/gallon

Sheet Barge Rate Inputs
A1: Barge Rate Master | C1: Updated: | D1: 2019-10-02 | E1: tw | G1: Post 2024 escalation: | H1: 0.02 | I1: Source: | J1: \\cltpsmf02\FuelPUR\Planning\IRP Refresh Files\Fall 2019 IRP Refresh\Supporting Files\Fall 2019 FLORIDA BARGE FOF_Working File_Fixed Costs Removed through 2024
A4: Key | B4: Station2 | C4: Year | D4: Barge CAPP Basin | E4: Barge NAPP Pitt 8 | F4: Barge NAPP OH MP100 | G4: Barge ILB Green River | H4: Barge ILB OH River | I4: Barge UP RM to Convent | J4: Mt Vernon | K4: Calvert City
A5: =B5&C5 -> Crystal River 4&5 2019 | B5: Crystal River 4&5 | C5: =Start_Year -> 2019 | D5: 17.67310614 | E5: 22.29480604 | F5: 18.66724309 | G5: 20.46216769 | H5: 12.82875179 | I5: 51.92328913 | J5: 12.20497011 | K5: 13.55392388
A6: Crystal River 4&5 2020 | B6: Crystal River 4&5 | C6: =C5+1 -> 2020 | D6: 17.8969836 | E6: 22.57722894 | F6: 18.90371568 | G6: 20.72137425 | H6: 12.9909917 | I6: 53.45981014 | J6: 12.35957991 | K6: 13.72562231
A7: Crystal River 4&5 2021 | B7: Crystal River 4&5 | C7: =C6+1 -> 2021 | D7: 18.04652994 | E7: 22.76587448 | F7: 19.06169188 | G7: 20.21979384 | H7: 13.09674292 | I7: 54.55796588 | J7: 12.46286628 | K7: 13.84032845
A8: Crystal River 4&5 2022 | B8: Crystal River 4&5 | C8: 2022 | D8: 18.42337375 | E8: 23.24126719 | F8: 19.45973296 | G8: 20.15384389 | H8: 13.37040349 | I8: 55.47901494 | J8: 12.72311256 | K8: 14.12933827
A9: Crystal River 4&5 2023 | B9: Crystal River 4&5 | C9: 2023 | D9: 21.25875297 | E9: 26.18029292 | F9: 22.31740486 | G9: 23.02645988 | H9: 16.09741677 | I9: 56.56719559 | J9: 17.87490744 | K9: 19.31138411
A10: Crystal River 4&5 2024 | B10: Crystal River 4&5 | C10: 2024 | D10: 21.71227437 | E10: 26.73965902 | F10: 22.79369168 | G10: 23.51800792 | H10: 16.44027921 | I10: 57.74102217 | J10: 18.2519802 | K10: 19.7193494
A11: Crystal River 4&5 2025 | B11: Crystal River 4&5 | C11: 2025 | D11: 28.05588572 | E11: 33.19124836 | F11: 29.1605273 | G11: 29.90041233 | H11: 22.67100133 | I11: 64.82714054 | J11: 30.39855145 | K11: 31.89743581
A12: Crystal River 4&5 2026 | B12: Crystal River 4&5 | C12: 2026 | D12: 28.50908912 | E12: 33.76638684 | F12: 29.63995731 | G12: 30.39742149 | H12: 22.99666427 | I12: 66.03082146 | J12: 30.69442214 | K12: 32.22889544
A13: Crystal River 4&5 2027 | B13: Crystal River 4&5 | C13: 2027 | D13: 29.50748835 | E13: 34.90601196 | F13: 30.66872203 | G13: 31.44659836 | H13: 23.84883114 | I13: 67.64313752 | J13: 31.9841119 | K13: 33.55980041
A14: Crystal River 4&5 2028 | B14: Crystal River 4&5 | C14: 2028 | D14: 30.27000924 | E14: 35.82158726 | F14: 31.46414932 | G14: 32.26415943 | H14: 24.45321501 | I14: 68.99681627 | J14: 32.74282448 | K14: 34.36317928
A15: Crystal River 4&5 2029 | B15: Crystal River 4&5 | C15: 2029 | D15: 31.05007592 | E15: 36.75836977 | F15: 32.27790944 | G15: 33.10058359 | H15: 25.07138315 | I15: 70.3765486 | J15: 33.51829636 | K15: 35.18438593
A16: Crystal River 4&5 2030 | B16: Crystal River 4&5 | C16: 2030 | D16: 31.80020448 | E16: 37.65643758 | F16: 33.05984746 | G16: 33.90390152 | H16: 25.66825441 | I16: 71.78244757 | J16: 34.27783055 | K16: 35.98709476
A17: Crystal River 4&5 2031 | B17: Crystal River 4&5 | C17: 2031 | D17: 39.14194398 | E17: 45.12137524 | F17: 40.42808409 | G17: 41.28990516 | H17: 32.88129759 | I17: 79.8971429 | J17: 48.34445113 | K17: 50.08967247
A18: Crystal River 4&5 2032 | B18: Crystal River 4&5 | C18: 2032 | D18: 39.99192251 | E18: 46.09549281 | F18: 41.30476262 | G18: 42.18448386 | H18: 33.60152489 | I18: 81.54931564 | J18: 49.4228379 | K18: 51.20429117
A19: Crystal River 4&5 2033 | B19: Crystal River 4&5 | C19: 2033 | D19: 40.79304617 | E19: 47.02572485 | F19: 42.13365426 | G19: 43.0319964 | H19: 34.26782236 | I19: 83.15631442 | J19: 50.37863457 | K19: 52.19776984
A20: Crystal River 4&5 2034 | B20: Crystal River 4&5 | C20: 2034 | D20: 41.61052023 | E20: 47.97497524 | F20: 42.97947009 | G20: 43.89681804 | H20: 34.94768817 | I20: 84.79218918 | J20: 51.35377364 | K20: 53.21136956
A21: Crystal River 4&5 2035 | B21: Crystal River 4&5 | C21: 2035 | D21: 42.51835082 | E21: 49.01606712 | F21: 43.9159622 | G21: 44.85252825 | H21: 35.71630583 | I21: 86.54571545 | J21: 52.50218982 | K21: 54.39867995
A22: Crystal River 4&5 2036 | B22: Crystal River 4&5 | C22: 2036 | D22: 43.36467087 | E22: 49.99839397 | F22: 44.79153424 | G22: 45.74771447 | H22: 36.42054861 | I22: 88.2500541 | J22: 53.51383804 | K22: 55.45002369
A23: Crystal River 4&5 2037 | B23: Crystal River 4&5 | C23: 2037 | D23: 44.23905578 | E23: 51.0144191 | F23: 45.6963818 | G23: 46.67299345 | H23: 37.14710919 | I23: 89.98378753 | J23: 54.55341084 | K23: 56.53093583
A24: Crystal River 4&5 2038 | B24: Crystal River 4&5 | C24: 2038 | D24: 45.21605805 | E24: 52.13639778 | F24: 46.70456408 | G24: 47.7020892 | H24: 37.97282861 | I24: 91.84050072 | J24: 55.78151431 | K24: 57.80135226
A25: Crystal River 4&5 2039 | B25: Crystal River 4&5 | C25: 2039 | D25: 46.12820189 | E25: 53.19654066 | F25: 47.64853796 | G25: 48.66741277 | H25: 38.73054114 | I25: 93.64376698 | J25: 56.86476649 | K25: 58.92779959
A26: Crystal River 4&5 2040 | B26: Crystal River 4&5 | C26: 2040 | D26: 47.05957581 | E26: 54.27913182 | F26: 48.61243398 | G26: 49.65312315 | H26: 39.50413762 | I26: 95.48717857 | J26: 57.97036544 | K26: 60.07753292
A27: Crystal River 4&5 2041 | B27: Crystal River 4&5 | C27: 2041 | D27: 47.92596157 | E27: 55.25479491 | F27: 49.50233626 | G27: 50.55871726 | H27: 40.25443491 | I27: 97.4592243 | J27: 59.15595783 | K27: 61.29502476
A28: Crystal River 4&5 2042 | B28: Crystal River 4&5 | C28: 2042 | D28: 48.90903259 | E28: 56.39887226 | F28: 50.52003352 | G28: 51.59964696 | H28: 41.06968415 | I28: 99.37330307 | J28: 60.31593868 | K28: 62.50199658
A29: =B29&C29 -> Crystal River 4&5 2043 | B29: Crystal River 4&5 | C29: 2043 | D29: 49.91505329 | E29: 57.56997947 | F29: 51.56155769 | G29: 52.66499366 | H29: 41.90366888 | I29: 101.3281114 | J29: 61.50138985 | K29: 63.73562944
A30: =B30&C30 -> Crystal River 4&5 2044 | B30: Crystal River 4&5 | C30: 2044 | D30: 50.85417385 | E30: 58.63021989 | F30: 52.52674096 | G30: 53.64758101 | H30: 42.71445526 | I30: 103.4175544 | J30: 62.77315724 | K30: 65.04275236
A31: Crystal River 4&5 2045 | B31: Crystal River 4&5 | C31: 2045 | D31: 51.93155517 | E31: 59.87889313 | F31: 53.64096043 | G31: 54.78651775 | H31: 43.61331321 | I31: 105.4869255 | J31: 64.07025888 | K31: 66.38984683
A32: Crystal River 4&5 2046 | B32: Crystal River 4&5 | C32: 2046 | D32: 52.83990117 | E32: 60.91210963 | F32: 54.5761767 | G32: 55.73967456 | H32: 44.3892799 | I32: 107.598296 | J32: 65.26169609 | K32: 67.61773459
A33: Crystal River 4&5 2047 | B33: Crystal River 4&5 | C33: 2047 | D33: 53.95377526 | E33: 62.20235621 | F33: 55.72798213 | G33: 56.91692751 | H33: 45.31925298 | I33: 109.7518939 | J33: 66.6063437 | K33: 69.01385808
A34: Crystal River 4&5 2048 | B34: Crystal River 4&5 | C34: 2048 | D34: 55.08846019 | E34: 63.51655749 | F34: 56.90127467 | G34: 58.11612055 | H34: 46.26674147 | I34: 111.9479518 | J34: 67.97687149 | K34: 70.43677935
A35: Crystal River 4&5 2049 | B35: Crystal River 4&5 | C35: 2049 | D35: 56.0439119 | E35: 64.60230158 | F35: 57.88476432 | G35: 59.11832485 | H35: 47.08392646 | I35: 114.1867068 | J35: 69.23536984 | K35: 71.73331131
A36: Crystal River 4&5 2050 | B36: Crystal River 4&5 | C36: 2050 | D36: 57.22090595 | E36: 65.96514061 | F36: 59.10172733 | G36: 60.36209999 | H36: 48.06708271 | I36: 116.4684009 | J36: 70.65882784 | K36: 73.21100997

Sheet Transportation Rate assumptions
A2: Rail Assumptions
A3: 1) CSX CAPP, NAPP, ILB and Western PRB/RM rates updated based on CSX indicitive bid received 8/2019
A4: 2) CSX West Kentucky equals CSX indicitive bid received 8/2019 for Cardinal 9, KY
A5: 3) CSX Galatia rate equals CSX indicitive bid received 8/2019 for White Oak
A6: 4) CSX Sullivan rate equals average CSX indicitive bid for ILB excluding Cardinal 9, KY received 8/2019
A7: 9) CSX UP (RM) equals CSX indicitive bid received 8/2019 including BSNF piece
A8: 10) CSX PRB equals CSX indicitive bid received 8/2019 including BSNF piece
A9: 11) Delivery of ILB 11,000 6# would typically be out of Central IL. ILB 11,000 6# transportation selection of CSX Sullivan based off of Peabody Bear Run 2017 Fall Term RFP offer. However, Station can not currently do a rail direct move as there is no on-site blending capabilities which would be needed to meet SO2 constraints
A12: Barge Assumptions
A13: 12) Barge UP RM to Convent rate is the current UP agreement through 9/18 escalated at 5% (with Fuel Surcharge calculations based on COB 9/12/19 WTI fuel pricing), plus the current rates for the Convent Terminal fees which expired 12/31/18 escalated at 2% and Gulf Barge rates through 12/18 escalating 2% annually starting Jan 2025 through 2050.
A15: 13) Delivery of 11,800 4.5# coals would typically be off the Green River. Currently have a contract delivering off the Ohio.
A16: 14) ILB 11,000 6# transportation selection of OH River based off of Peabody bids going through Cora Terminal
A17: 15) Fixed cross-gulf costs excluded from transportation rates through FOF study period, Fees for one cross-gulf barge added 1/1/25. Second cross-gulf barge added 1/1/31. Variable cost to mid-stream coal from the river to the gulf is included starting 1/1/23 and is based off the current AT rate escalated at 2%. Mirrors current FOF assumptions.
A19: Current FOF Gulf Barge assumptions: Margo Dale terminated 12/31/20, Winna Wilson assumed in-service through 12/31/23

Sheet Coal Fall 2017 Price Inputs (hidden)
E1: Florida- 2017 IRP Fall Refresh Update - Coal - | F1: No Carbon | K1: Updated: | L1: 2017-10-10 | M1: Tiffany Weir
C2: CERA Fundamental Price Forecast
C3: Source File: | D3: Coal_Gas_Forecast_Fall_2017_IHS_CERA_092617 | H3: Source Tab: | I3: Coal Sep 2017
C4: From: | D4: Jeff Lamb via e-mail on 9/28/2017 at 9:06 a.m
H6: Avg Hg | I6: Chlorine
B7: Basin | C7: Coal Type | D7: FOB Point | E7: Btu/lb | F7: #SO2/MMBtu | G7: %Ash | H7: ppm (dry) | I7: % AR | J7: INDEX | K7: 2017 | L7: 2018 | M7: 2019 | N7: 2020 | O7: 2021 | P7: 2022 | Q7: 2023 | R7: 2024 | S7: 2025 | T7: 2026 | U7: 2027 | V7: 2028 | W7: 2029 | X7: 2030 | Y7: 2031 | Z7: 2032 | AA7: 2033 | AB7: 2034 | AC7: 2035 | AD7: 2036 | AE7: 2037 | AF7: 2038 | AG7: 2039 | AH7: 2040
J8: Inflator 2017 = 1.0>>> | K8: 1 | L8: 1.020031642 | M8: 1.047125925 | N8: 1.07305955 | O8: 1.095487429 | P8: 1.116839505 | Q8: 1.138684996 | R8: 1.161442557 | S8: 1.184403047 | T8: 1.207417296 | U8: 1.231114817 | V8: 1.25572786 | W8: 1.281380642 | X8: 1.307483527 | Y8: 1.333820513 | Z8: 1.36040346 | AA8: 1.387702685 | AB8: 1.415904285 | AC8: 1.44433974 | AD8: 1.472836292 | AE8: 1.501515389 | AF8: 1.530730123 | AG8: 1.560793991 | AH8: 1.591332078
B10: NAPP | C10: Pittsburgh Seam | D10: Rail | E10: 13000 | F10: 4 | G10: 8 | H10: 0.122 | I10: 0.001 | J10: NAPP-Pitt-CSX/NS-MGA-13000-HS-4.0 - Fall 2017 | K10: 46.55652991 | L10: 48.73289453 | M10: 47.17971888 | N10: 48.12792696 | O10: 48.33413739 | P10: 49.57895911 | Q10: 50.86572152 | R10: 53.17167283 | S10: 53.54883841 | T10: 54.94308045 | U10: 56.3858246 | V10: 57.83440704 | W10: 59.32648204 | X10: 60.87445475 | Y10: 62.48094381 | Z10: 64.13220223 | AA10: 65.83547255 | AB10: 67.5170963 | AC10: 69.37570423 | AD10: 71.21939201 | AE10: 72.01074916 | AF10: 73.92723617 | AG10: 75.89846101 | AH10: 77.91433485
B11: NAPP | C11: Pittsburgh Seam | D11: Barge | E11: 13000 | F11: 4 | G11: 8 | H11: 0.122 | I11: 0.001 | J11: NAPP-Pitt-Barge-MonR-13000-HS-4.0 - Fall 2017 | K11: 46.55652991 | L11: 48.73289453 | M11: 47.17971888 | N11: 48.12792696 | O11: 48.33413739 | P11: 49.57895911 | Q11: 50.86572152 | R11: 53.17167283 | S11: 53.54883841 | T11: 54.94308045 | U11: 56.3858246 | V11: 57.83440704 | W11: 59.32648204 | X11: 60.87445475 | Y11: 62.48094381 | Z11: 64.13220223 | AA11: 65.83547255 | AB11: 67.5170963 | AC11: 69.37570423 | AD11: 71.21939201 | AE11: 72.01074916 | AF11: 73.92723617 | AG11: 75.89846101 | AH11: 77.91433485
B12: CAPP | C12: Low-Sulfur | D12: Rail | E12: 12500 | F12: 1.6 | G12: 10 | H12: 0.11 | I12: 0.001 | J12: CAPP-EKY-CSX-Big Sandy-12500-LS-1.6 - Fall 2017 | K12: 55.55719647 | L12: 57.1093065 | M12: 55.61869692 | N12: 56.72251476 | O12: 60.06140222 | P12: 61.24013201 | Q12: 63.25431526 | R12: 65.21319003 | S12: 67.13093067 | T12: 69.22148799 | U12: 71.39259592 | V12: 73.45061789 | W12: 75.14003117 | X12: 77.48420313 | Y12: 79.21989721 | Z12: 79.2847716 | AA12: 73.31494644 | AB12: 75.63772926 | AC12: 78.02802118 | AD12: 80.50016349 | AE12: 83.04438806 | AF12: 85.6786751 | AG12: 88.40087301 | AH12: 88.4093329
B13: CAPP | C13: Low-Sulfur | D13: Barge | E13: 12500 | F13: 1.6 | G13: 10 | H13: 0.11 | I13: 0.001 | J13: CAPP-EKY-Barge-BSR-12000-LS-1.6 - Fall 2017 | K13: 55.55719647 | L13: 57.1093065 | M13: 55.61869692 | N13: 56.72251476 | O13: 60.06140222 | P13: 61.24013201 | Q13: 63.25431526 | R13: 65.21319003 | S13: 67.13093067 | T13: 69.22148799 | U13: 71.39259592 | V13: 73.45061789 | W13: 75.14003117 | X13: 77.48420313 | Y13: 79.21989721 | Z13: 79.2847716 | AA13: 73.31494644 | AB13: 75.63772926 | AC13: 78.02802118 | AD13: 80.50016349 | AE13: 83.04438806 | AF13: 85.6786751 | AG13: 88.40087301 | AH13: 88.4093329
B14: ILB | C14: Illinois | D14: Rail | E14: 11500 | F14: 5 | G14: 10 | H14: 0.102 | I14: 0.003 | J14: ILLB-IL-Rail-South IL-11500-VH-5 - Fall 2017 | K14: 34.01593648 | L14: 35.79807945 | M14: 36.92153706 | N14: 36.18523491 | O14: 37.29600754 | P14: 38.44687879 | Q14: 39.64096381 | R14: 40.86857466 | S14: 42.14826233 | T14: 43.46082208 | U14: 44.82395568 | V14: 44.65017883 | W14: 46.02998396 | X14: 47.46599877 | Y14: 48.96101727 | Z14: 50.50499318 | AA14: 52.10428404 | AB14: 53.47408876 | AC14: 51.2792105 | AD14: 52.20274411 | AE14: 53.3434579 | AF14: 55.03558886 | AG14: 56.78418925 | AH14: 58.58239719
B15: ILB | C15: Illinois | D15: Barge | E15: 11500 | F15: 5 | G15: 10 | H15: 0.102 | I15: 0.0015 | J15: ILLB-IL-Barge-OhioR-11500-XH-5 - Fall 2017 | K15: 34.01593648 | L15: 35.79807945 | M15: 36.92153706 | N15: 36.18523491 | O15: 37.29600754 | P15: 38.44687879 | Q15: 39.64096381 | R15: 40.86857466 | S15: 42.14826233 | T15: 43.46082208 | U15: 44.82395568 | V15: 44.65017883 | W15: 46.02998396 | X15: 47.46599877 | Y15: 48.96101727 | Z15: 50.50499318 | AA15: 52.10428404 | AB15: 53.47408876 | AC15: 51.2792105 | AD15: 52.20274411 | AE15: 53.3434579 | AF15: 55.03558886 | AG15: 56.78418925 | AH15: 58.58239719
B16: ILB | C16: Illinois | D16: Rail | E16: 11500 | F16: 5 | G16: 10 | H16: 0.102 | I16: 0.0012 | J16: ILLB-IN-Rail-Sullivan-11500-VH-5 - Fall 2017 | K16: 34.01593648 | L16: 35.79807945 | M16: 36.92153706 | N16: 36.18523491 | O16: 37.29600754 | P16: 38.44687879 | Q16: 39.64096381 | R16: 40.86857466 | S16: 42.14826233 | T16: 43.46082208 | U16: 44.82395568 | V16: 44.65017883 | W16: 46.02998396 | X16: 47.46599877 | Y16: 48.96101727 | Z16: 50.50499318 | AA16: 52.10428404 | AB16: 53.47408876 | AC16: 51.2792105 | AD16: 52.20274411 | AE16: 53.3434579 | AF16: 55.03558886 | AG16: 56.78418925 | AH16: 58.58239719
B17: ILB | C17: Illinois | D17: Barge | E17: 11000 | F17: 6 | G17: 10 | H17: 0.102 | I17: 0.001 | J17: ILLB-WKY-Barge-OhioR-11000-XH-6 - Fall 2017 | K17: 31.12678583 | L17: 32.87660028 | M17: 33.90837258 | N17: 33.23216 | O17: 34.25228255 | P17: 35.30923125 | Q17: 36.40586707 | R17: 37.53329267 | S17: 38.7085451 | T17: 39.91398693 | U17: 41.16587527 | V17: 41.00628034 | W17: 42.27347966 | X17: 43.59230139 | Y17: 44.96531151 | Z17: 46.38328364 | AA17: 47.85205646 | AB17: 49.1100715 | AC17: 47.09431712 | AD17: 47.94248121 | AE17: 48.99010142 | AF17: 50.54413767 | AG17: 52.15003488 | AH17: 53.80149118
B18: ILB | C18: Illinois | D18: Rail | E18: 11000 | F18: 6 | G18: 10 | H18: 0.102 | I18: 0.0015 | J18: ILLB-IL-Rail-Central IL-11000-XH-6 - Fall 2017 | K18: 31.12678583 | L18: 32.87660028 | M18: 33.90837258 | N18: 33.23216 | O18: 34.25228255 | P18: 35.30923125 | Q18: 36.40586707 | R18: 37.53329267 | S18: 38.7085451 | T18: 39.91398693 | U18: 41.16587527 | V18: 41.00628034 | W18: 42.27347966 | X18: 43.59230139 | Y18: 44.96531151 | Z18: 46.38328364 | AA18: 47.85205646 | AB18: 49.1100715 | AC18: 47.09431712 | AD18: 47.94248121 | AE18: 48.99010142 | AF18: 50.54413767 | AG18: 52.15003488 | AH18: 53.80149118
B19: ILB | C19: Illinois | D19: Barge | E19: 11800 | F19: 4.5 | G19: 10 | H19: 0.102 | I19: 0.002 | J19: ILLB-WKY-Barge-OhioR-11800-XH-4.5 - Fall 2017 | K19: 35.4627287 | L19: 37.3911798 | M19: 39.02522023 | N19: 38.70939074 | O19: 40.3790608 | P19: 42.12732541 | Q19: 43.9377734 | R19: 45.43429869 | S19: 46.85694952 | T19: 48.31614481 | U19: 49.83156392 | V19: 49.6383732 | W19: 51.17232635 | X19: 52.76876876 | Y19: 54.43080658 | Z19: 56.14727121 | AA19: 57.92523041 | AB19: 59.44806592 | AC19: 57.00798194 | AD19: 58.03469017 | AE19: 59.30284135 | AF19: 61.18401249 | AG19: 63.12796168 | AH19: 65.12706044
B20: ILB | C20: Illinois | D20: Barge | E20: 11500 | F20: 5.2 | G20: 10 | H20: 0.102 | I20: 0.0008 | J20: ILLB-WKY-Barge-Green River-11500-VH-5.2-LC-.8 - Fall 2017 | K20: 34.80513233 | L20: 37.02173493 | M20: 38.63963016 | N20: 38.32692123 | O20: 39.98009406 | P20: 41.71108488 | Q20: 43.50364468 | R20: 44.98538349 | S20: 46.39397777 | T20: 47.83875544 | U20: 49.33920139 | V20: 49.1479195 | W20: 50.66671637 | X20: 52.24738508 | Y20: 53.89300107 | Z20: 55.59250612 | AA20: 57.35289813 | AB20: 58.86068721 | AC20: 56.44471256 | AD20: 57.46127636 | AE20: 58.71689753 | AF20: 60.57948169 | AG20: 62.50422362 | AH20: 64.48357022
B21: ILB | C21: Illinois | D21: Rail | E21: 11500 | F21: 5.2 | G21: 10 | H21: 0.102 | I21: 0.0008 | J21: ILLB-WKY-CSX-WKY-11500-VH-5.2-LC-.8 - Fall 2017 | K21: 34.80513233 | L21: 37.02173493 | M21: 38.63963016 | N21: 38.32692123 | O21: 39.98009406 | P21: 41.71108488 | Q21: 43.50364468 | R21: 44.98538349 | S21: 46.39397777 | T21: 47.83875544 | U21: 49.33920139 | V21: 49.1479195 | W21: 50.66671637 | X21: 52.24738508 | Y21: 53.89300107 | Z21: 55.59250612 | AA21: 57.35289813 | AB21: 58.86068721 | AC21: 56.44471256 | AD21: 57.46127636 | AE21: 58.71689753 | AF21: 60.57948169 | AG21: 62.50422362 | AH21: 64.48357022
B22: PRB | C22: High-Btu Gillette | D22: Rail | E22: 8800 | F22: 0.8 | G22: 5 | H22: 0.06 | I22: 0.0001 | J22: PRB-WY-BN/UP-Gillette-8800-CS-0.8 - Fall 2017 | K22: 11.59903333 | L22: 11.64082265 | M22: 12.11113342 | N22: 13.58059244 | O22: 14.20535709 | P22: 14.65123655 | Q22: 15.33062598 | R22: 16.04012197 | S22: 16.53908108 | T22: 17.20993653 | U22: 18.01332992 | V22: 18.84378576 | W22: 19.71461365 | X22: 20.63158352 | Y22: 21.59746918 | Z22: 22.60941048 | AA22: 23.6717762 | AB22: 24.78445072 | AC22: 25.94740323 | AD22: 27.16705498 | AE22: 28.44189836 | AF22: 29.77991986 | AG22: 30.55689188 | AH22: 31.98068613
B23: RM | C23: Rockies | D23: Rail | E23: 11700 | F23: 0.8 | G23: 8 | H23: 0.04 | I23: 0.0002 | J23: Rockies-CO-UP-North Fork-11700-CS-.8 - Fall 2017 | K23: 30.72924151 | L23: 32.31095464 | M23: 32.99349917 | N23: 33.63615198 | O23: 35.70813675 | P23: 36.92366326 | Q23: 38.06151888 | R23: 39.36301817 | S23: 40.67671007 | T23: 42.05504721 | U23: 43.51274402 | V23: 44.99706128 | W23: 46.53798639 | X23: 46.41133972 | Y23: 48.02750963 | Z23: 49.70291739 | AA23: 51.44445721 | AB23: 52.3258471 | AC23: 54.15673372 | AD23: 56.05730246 | AE23: 58.02146002 | AF23: 60.06248503 | AG23: 62.17967555 | AH23: 64.36630066
B24: RM | C24: Rockies | D24: Barge | E24: 11700 | F24: 0.8 | G24: 8 | H24: 0.04 | I24: 0.0002 | J24: Rockies-CO-UP-North Fork-11700-CS-.8 - Fall 2017 | K24: 30.72924151 | L24: 32.31095464 | M24: 32.99349917 | N24: 33.63615198 | O24: 35.70813675 | P24: 36.92366326 | Q24: 38.06151888 | R24: 39.36301817 | S24: 40.67671007 | T24: 42.05504721 | U24: 43.51274402 | V24: 44.99706128 | W24: 46.53798639 | X24: 46.41133972 | Y24: 48.02750963 | Z24: 49.70291739 | AA24: 51.44445721 | AB24: 52.3258471 | AC24: 54.15673372 | AD24: 56.05730246 | AE24: 58.02146002 | AF24: 60.06248503 | AG24: 62.17967555 | AH24: 64.36630066

Sheet Coal Fall 2018 Price Inputs (hidden)
E1: =Assumptions!$A$1 -> Florida- Fall 2019 IRP Refresh Update - Coal | F1: =Assumptions!$B$2 -> No Carbon | K1: Updated: | L1: 2018-09-21 | M1: Tiffany Weir
C2: CERA Fundamental Price Forecast
C3: Source File: | D3: Coal_Gas_Forecast_Fall_2018_IHS_09102018 | H3: Source Tab: | I3: Coal Fall 2018
C4: From: | D4: Jeff Lamb via e-mail from Andrew James on 9/14/2018 at 1:23 p.m
H6: Avg Hg | I6: Chlorine
B7: Basin | C7: Coal Type | D7: FOB Point | E7: Btu/lb | F7: #SO2/MMBtu | G7: %Ash | H7: ppm (dry) | I7: % AR | J7: INDEX | K7: 2018 | L7: =K7+1 -> 2019 | M7: =L7+1 -> 2020 | N7: 2021 | O7: 2022 | P7: 2023 | Q7: 2024 | R7: 2025 | S7: 2026 | T7: 2027 | U7: 2028 | V7: 2029 | W7: 2030 | X7: 2031 | Y7: 2032 | Z7: 2033 | AA7: 2034 | AB7: 2035 | AC7: 2036 | AD7: 2037 | AE7: 2038 | AF7: 2039 | AG7: 2040 | AH7: 2041
J8: Inflator 2018 = 1.0>>> | K8: 1 | L8: 1.020031642 | M8: 1.047125925 | N8: 1.07305955 | O8: 1.095487429 | P8: 1.116839505 | Q8: 1.138684996 | R8: 1.161442557 | S8: 1.184403047 | T8: 1.207417296 | U8: 1.231114817 | V8: 1.25572786 | W8: 1.281380642 | X8: 1.307483527 | Y8: 1.333820513 | Z8: 1.36040346 | AA8: 1.387702685 | AB8: 1.415904285 | AC8: 1.44433974 | AD8: 1.472836292 | AE8: 1.501515389 | AF8: 1.530730123 | AG8: 1.560793991
B10: NAPP | C10: Pittsburgh Seam | D10: Rail | E10: 13000 | F10: 4 | G10: 8 | H10: 0.122 | I10: 0.001 | J10: NAPP-Pitt-CSX/NS-MGA-13000-HS-4.0 - Fall 18 | K10: 53.55084064 | L10: 50.76124406 | M10: 52.1845197 | N10: 52.75037481 | O10: 52.14734016 | P10: 53.60628024 | Q10: 56.0886756 | R10: 56.62665735 | S10: 58.1988759 | T10: 59.80619287 | U10: 61.46986972 | V10: 63.20984843 | W10: 65.02332058 | X10: 66.93900579 | Y10: 68.91064169 | Z10: 70.95625501 | AA10: 73.01061054 | AB10: 75.2507249 | AC10: 77.49790223 | AD10: 78.72086464 | AE10: 81.11227289 | AF10: 83.60432393 | AG10: 86.18171422
B11: NAPP | C11: Pittsburgh Seam | D11: Barge | E11: 13000 | F11: 4 | G11: 8 | H11: 0.122 | I11: 0.001 | J11: NAPP-Pitt-Barge-MonR-13000-HS-4.0 - Fall 18 | K11: 55.11278425 | L11: 55.26696524 | M11: 53.96192471 | N11: 52.75037481 | O11: 52.14734016 | P11: 53.60628024 | Q11: 56.0886756 | R11: 56.62665735 | S11: 58.1988759 | T11: 59.80619287 | U11: 61.46986972 | V11: 63.20984843 | W11: 65.02332058 | X11: 66.93900579 | Y11: 68.91064169 | Z11: 70.95625501 | AA11: 73.01061054 | AB11: 75.2507249 | AC11: 77.49790223 | AD11: 78.72086464 | AE11: 81.11227289 | AF11: 83.60432393 | AG11: 86.18171422
B12: CAPP | C12: Low-Sulfur | D12: Rail | E12: 12500 | F12: 1.6 | G12: 10 | H12: 0.11 | I12: 0.001 | J12: CAPP-EKY-CSX-Big Sandy-12500-LS-1.6 - Fall 18 | K12: 62.30638917 | L12: 61.48149728 | M12: 60.33813108 | N12: 60.06140222 | O12: 62.24013201 | P12: 63.25431526 | Q12: 65.21319003 | R12: 67.13093067 | S12: 69.22148799 | T12: 71.39259592 | U12: 73.45061789 | V12: 75.14003117 | W12: 77.48420313 | X12: 79.21989721 | Y12: 79.2847716 | Z12: 81.64568591 | AA12: 84.15490554 | AB12: 86.73347589 | AC12: 89.39860648 | AD12: 92.14086438 | AE12: 94.97959031 | AF12: 97.91318213 | AG12: 98.13796267
B13: CAPP | C13: Low-Sulfur | D13: Barge | E13: 12500 | F13: 1.6 | G13: 10 | H13: 0.11 | I13: 0.001 | J13: CAPP-EKY-Barge-BSR-12000-LS-1.6 - Fall 18 | K13: 62.30638917 | L13: 61.48149728 | M13: 60.33813108 | N13: 60.06140222 | O13: 62.24013201 | P13: 63.25431526 | Q13: 65.21319003 | R13: 67.13093067 | S13: 69.22148799 | T13: 71.39259592 | U13: 73.45061789 | V13: 75.14003117 | W13: 77.48420313 | X13: 79.21989721 | Y13: 79.2847716 | Z13: 81.64568591 | AA13: 84.15490554 | AB13: 86.73347589 | AC13: 89.39860648 | AD13: 92.14086438 | AE13: 94.97959031 | AF13: 97.91318213 | AG13: 98.13796267
B14: ILB | C14: Illinois | D14: Rail | E14: 11500 | F14: 5 | G14: 10 | H14: 0.102 | I14: 0.003 | J14: ILLB-IL-Rail-South IL-11500-VH-5 - Fall 18 | K14: 39.46284369 | L14: 38.32636541 | M14: 37.27266589 | N14: 38.01323107 | O14: 38.44687879 | P14: 39.64096381 | Q14: 40.86857466 | R14: 42.14826233 | S14: 43.46082208 | T14: 44.82395568 | U14: 44.65017883 | V14: 45.02998396 | W14: 46.46599877 | X14: 47.96101727 | Y14: 49.50499318 | Z14: 51.10428404 | AA14: 52.47408876 | AB14: 52.2792105 | AC14: 53.20274411 | AD14: 54.3434579 | AE14: 56.03558886 | AF14: 57.78418925 | AG14: 59.58239719
B15: ILB | C15: Illinois | D15: Barge | E15: 11500 | F15: 5 | G15: 10 | H15: 0.102 | I15: 0.0015 | J15: ILLB-IL-Barge-OhioR-11500-XH-5 - Fall 18 | K15: 39.46284369 | L15: 38.32636541 | M15: 37.27266589 | N15: 38.01323107 | O15: 38.44687879 | P15: 39.64096381 | Q15: 40.86857466 | R15: 42.14826233 | S15: 43.46082208 | T15: 44.82395568 | U15: 44.65017883 | V15: 45.02998396 | W15: 46.46599877 | X15: 47.96101727 | Y15: 49.50499318 | Z15: 51.10428404 | AA15: 52.47408876 | AB15: 52.2792105 | AC15: 53.20274411 | AD15: 54.3434579 | AE15: 56.03558886 | AF15: 57.78418925 | AG15: 59.58239719
B16: ILB | C16: Illinois | D16: Rail | E16: 11500 | F16: 5 | G16: 10 | H16: 0.102 | I16: 0.0012 | J16: ILLB-IN-Rail-Sullivan-11500-VH-5 - Fall 18 | K16: 39.46284369 | L16: 38.32636541 | M16: 37.27266589 | N16: 38.01323107 | O16: 38.44687879 | P16: 39.64096381 | Q16: 40.86857466 | R16: 42.14826233 | S16: 43.46082208 | T16: 44.82395568 | U16: 44.65017883 | V16: 45.02998396 | W16: 46.46599877 | X16: 47.96101727 | Y16: 49.50499318 | Z16: 51.10428404 | AA16: 52.47408876 | AB16: 52.2792105 | AC16: 53.20274411 | AD16: 54.3434579 | AE16: 56.03558886 | AF16: 57.78418925 | AG16: 59.58239719
B17: ILB | C17: Illinois | D17: Barge | E17: 11000 | F17: 6 | G17: 10 | H17: 0.102 | I17: 0.001 | J17: ILLB-WKY-Barge-OhioR-11000-XH-6 - Fall 18 | K17: 35.78594178 | L17: 34.75535347 | M17: 33.7998311 | N17: 34.47139504 | O17: 34.86463816 | P17: 35.94746577 | Q17: 37.0606955 | R17: 38.22114984 | S17: 39.41141346 | T17: 40.64753875 | U17: 40.48995335 | V17: 40.83437061 | W17: 42.13658651 | X17: 43.49230849 | Y17: 44.89242635 | Z17: 46.34270525 | AA17: 47.5848801 | AB17: 47.40815938 | AC17: 48.24564388 | AD17: 49.28007307 | AE17: 50.81454181 | AF17: 52.40021851 | AG17: 54.03088064
B18: ILB | C18: Illinois | D18: Rail | E18: 11000 | F18: 6 | G18: 10 | H18: 0.102 | I18: 0.0015 | J18: ILLB-IN-Rail-Sullivan-11000-XH-6 - Fall 18 | K18: 35.78594178 | L18: 34.75535347 | M18: 33.7998311 | N18: 34.47139504 | O18: 34.86463816 | P18: 35.94746577 | Q18: 37.0606955 | R18: 38.22114984 | S18: 39.41141346 | T18: 40.64753875 | U18: 40.48995335 | V18: 40.83437061 | W18: 42.13658651 | X18: 43.49230849 | Y18: 44.89242635 | Z18: 46.34270525 | AA18: 47.5848801 | AB18: 47.40815938 | AC18: 48.24564388 | AD18: 49.28007307 | AE18: 50.81454181 | AF18: 52.40021851 | AG18: 54.03088064
B19: ILB | C19: Illinois | D19: Rail | E19: 11000 | F19: 6 | G19: 10 | H19: 0.102 | I19: 0.0015 | J19: ILLB-IL-Rail-Central IL-11000-XH-6 - Fall 18 | K19: 35.78594178 | L19: 34.75535347 | M19: 33.7998311 | N19: 34.47139504 | O19: 34.86463816 | P19: 35.94746577 | Q19: 37.0606955 | R19: 38.22114984 | S19: 39.41141346 | T19: 40.64753875 | U19: 40.48995335 | V19: 40.83437061 | W19: 42.13658651 | X19: 43.49230849 | Y19: 44.89242635 | Z19: 46.34270525 | AA19: 47.5848801 | AB19: 47.40815938 | AC19: 48.24564388 | AD19: 49.28007307 | AE19: 50.81454181 | AF19: 52.40021851 | AG19: 54.03088064
B20: ILB | C20: Illinois | D20: Barge | E20: 11800 | F20: 4.5 | G20: 10 | H20: 0.102 | I20: 0.002 | J20: ILLB-WKY-Barge-Green River-11800-XH-4.5 - Fall 18 | K20: 42.15906858 | L20: 41.42924601 | M20: 40.77803925 | N20: 42.09142754 | O20: 43.08491876 | P20: 44.93651993 | Q20: 46.46706262 | R20: 47.92205163 | S20: 49.4144158 | T20: 50.96428179 | U20: 50.76669967 | V20: 51.1985334 | W20: 52.83126443 | X20: 54.53108192 | Y20: 56.28656339 | Z20: 58.10493726 | AA20: 59.66238824 | AB20: 59.44081408 | AC20: 60.49086034 | AD20: 61.78783778 | AE20: 63.71176969 | AF20: 65.69990666 | AG20: 67.74444679
B21: ILB | C21: Illinois | D21: Barge | E21: 11800 | F21: 4.5 | G21: 10 | H21: 0.102 | I21: 0.002 | J21: ILLB-WKY-Barge-OhioR-11800-XH-4.5 - Fall 18 | K21: 42.15906858 | L21: 41.42924601 | M21: 40.77803925 | N21: 42.09142754 | O21: 43.08491876 | P21: 44.93651993 | Q21: 46.46706262 | R21: 47.92205163 | S21: 49.4144158 | T21: 50.96428179 | U21: 50.76669967 | V21: 51.1985334 | W21: 52.83126443 | X21: 54.53108192 | Y21: 56.28656339 | Z21: 58.10493726 | AA21: 59.66238824 | AB21: 59.44081408 | AC21: 60.49086034 | AD21: 61.78783778 | AE21: 63.71176969 | AF21: 65.69990666 | AG21: 67.74444679
B22: ILB | C22: Low Chlorine | D22: Barge | E22: 11500 | F22: 5.2 | G22: 10 | H22: 0.102 | I22: 0.0008 | J22: ILLB-WKY-Barge-OhioR-11500-VH-5.2-LC-.8 - Fall 18 | K22: 40.65182978 | L22: 39.94809927 | M22: 39.32017396 | N22: 40.58660699 | O22: 41.54457967 | P22: 43.32998381 | Q22: 44.80580771 | R22: 46.20877906 | S22: 47.64778937 | T22: 49.14224574 | U22: 48.95172742 | V22: 49.36812256 | W22: 50.94248144 | X22: 52.58152835 | Y22: 54.27424919 | Z22: 56.02761395 | AA22: 57.52938413 | AB22: 57.31573152 | AC22: 58.32823733 | AD22: 59.57884622 | AE22: 61.43399519 | AF22: 63.3510538 | AG22: 65.3224991
B23: ILB | C23: Low Chlorine | D23: Rail | E23: 11500 | F23: 5.2 | G23: 10 | H23: 0.102 | I23: 0.0008 | J23: ILLB-WKY-CSX-WKY-11500-VH-5.2-LC-.8 - Fall 18 | K23: 40.65182978 | L23: 39.94809927 | M23: 39.32017396 | N23: 40.58660699 | O23: 41.54457967 | P23: 43.32998381 | Q23: 44.80580771 | R23: 46.20877906 | S23: 47.64778937 | T23: 49.14224574 | U23: 48.95172742 | V23: 49.36812256 | W23: 50.94248144 | X23: 52.58152835 | Y23: 54.27424919 | Z23: 56.02761395 | AA23: 57.52938413 | AB23: 57.31573152 | AC23: 58.32823733 | AD23: 59.57884622 | AE23: 61.43399519 | AF23: 63.3510538 | AG23: 65.3224991
B24: PRB | C24: High-Btu Gillette | D24: Rail | E24: 8800 | F24: 0.8 | G24: 5 | H24: 0.06 | I24: 0.0001 | J24: PRB-WY-BN/UP-Gillette-8800-CS-0.8 - Fall 18 | K24: 12.512565 | L24: 11.90526003 | M24: 11.95278479 | N24: 12.12329716 | O24: 13.67947777 | P24: 14.1741591 | Q24: 14.68544997 | R24: 14.99453992 | S24: 15.45052404 | T24: 16.01401111 | U24: 16.58885676 | V24: 17.18615588 | W24: 17.81005314 | X24: 18.46195519 | Y24: 19.13842724 | Z24: 19.84220945 | AA24: 20.57219625 | AB24: 21.32737661 | AC24: 22.11201273 | AD24: 22.92379262 | AE24: 23.76805219 | AF24: 24.15023839 | AG24: 25.02892509
B25: RM | C25: Rockies | D25: Rail | E25: 11700 | F25: 0.8 | G25: 8 | H25: 0.04 | I25: 0.0002 | J25: Rockies-CO-UP-North Fork-11700-CS-.8 - Fall 18 | K25: 34.48595273 | L25: 33.88673731 | M25: 33.63615198 | N25: 35.70813675 | O25: 36.92366326 | P25: 38.06151888 | Q25: 39.36301817 | R25: 40.67671007 | S25: 42.05504721 | T25: 43.51274402 | U25: 44.99706128 | V25: 46.53798639 | W25: 46.41133972 | X25: 48.02750963 | Y25: 49.70291739 | Z25: 51.44445721 | AA25: 52.3258471 | AB25: 54.15673372 | AC25: 56.05730246 | AD25: 58.02146002 | AE25: 60.06248503 | AF25: 62.17967555 | AG25: 64.36630066
B26: RM | C26: Rockies | D26: Barge | E26: 11700 | F26: 0.8 | G26: 8 | H26: 0.04 | I26: 0.0002 | J26: Rockies-CO-UP-North Fork-11700-CS-.8 - Fall 18 | K26: 34.48595273 | L26: 33.88673731 | M26: 33.63615198 | N26: 35.70813675 | O26: 36.92366326 | P26: 38.06151888 | Q26: 39.36301817 | R26: 40.67671007 | S26: 42.05504721 | T26: 43.51274402 | U26: 44.99706128 | V26: 46.53798639 | W26: 46.41133972 | X26: 48.02750963 | Y26: 49.70291739 | Z26: 51.44445721 | AA26: 52.3258471 | AB26: 54.15673372 | AC26: 56.05730246 | AD26: 58.02146002 | AE26: 60.06248503 | AF26: 62.17967555 | AG26: 64.36630066
A28: Price Forecast Received from Jeff Lamb via e-mail on 9/14/18 at 1:23 p.m. (Nominal $/ton) **
A30: Reviewed transportation delivery locations with Shawn Shultz, Manager Coal Transportation

Sheet Coal Spring 2019 Price Inputs
E1: Florida- Spring 2019 IRP Refresh Update - Coal | F1: No Carbon | K1: * Internal escalation rate of 2.5% applied starting in 2041 due to escalation rate error in HIS supplied market update (per email from Mike Quinto received 4/25/19)
C2: CERA Fundamental Price Forecast* | K2: Updated: | L2: 2019-04-29 | M2: Tiffany Weir
C3: Source File: | D3: Fuel-Forecast_Spring_2019_IHS_03292019 | H3: Source Tab: | I3: Coal Spring 2019
C4: From: | D4: Andrew James via e-mail on 3/29/2019 at 12:13 p.m
H6: Avg Hg | I6: Chlorine
B7: Basin | C7: Coal Type | D7: FOB Point | E7: Btu/lb | F7: #SO2/MMBtu | G7: %Ash | H7: ppm (dry) | I7: % AR | J7: INDEX | K7: 2019 | L7: =K7+1 -> 2020 | M7: =L7+1 -> 2021 | N7: 2022 | O7: 2023 | P7: 2024 | Q7: 2025 | R7: 2026 | S7: 2027 | T7: 2028 | U7: 2029 | V7: 2030 | W7: 2031 | X7: 2032 | Y7: 2033 | Z7: 2034 | AA7: 2035 | AB7: 2036 | AC7: 2037 | AD7: 2038 | AE7: 2039 | AF7: 2040 | AG7: 2041 | AH7: 2042 | AI7: 2043 | AJ7: 2044 | AK7: 2045 | AL7: 2046 | AM7: 2047 | AN7: 2048 | AO7: 2049 | AP7: 2050
J8: Inflator 2018 = 1.0>>> | K8: 1 | L8: 1.020031642 | M8: 1.047125925 | N8: 1.07305955 | O8: 1.095487429 | P8: 1.116839505 | Q8: 1.138684996 | R8: 1.161442557 | S8: 1.184403047 | T8: 1.207417296 | U8: 1.231114817 | V8: 1.25572786 | W8: 1.281380642 | X8: 1.307483527 | Y8: 1.333820513 | Z8: 1.36040346 | AA8: 1.387702685 | AB8: 1.415904285 | AC8: 1.44433974 | AD8: 1.472836292 | AE8: 1.501515389 | AF8: 1.530730123 | AG8: 2.5 | AH8: 2.5 | AI8: 2.5 | AJ8: 2.5 | AK8: 2.5 | AL8: 2.5 | AM8: 2.5 | AN8: 2.5 | AO8: 2.5 | AP8: 2.5
B10: NAPP | C10: Pittsburgh Seam | D10: Rail | E10: 13000 | F10: 4 | G10: 8 | H10: 0.122 | I10: 0.001 | J10: NAPP-Pitt-CSX/NS-MGA-13000-HS-4.0 0- Spring 19 | K10: 53.66974163 | L10: 53.25036403 | M10: 52.75037481 | N10: 52.15642887 | O10: 56.11481247 | P10: 55.62594926 | Q10: 57.43922702 | R10: 60.37611008 | S10: 62.33048965 | T10: 64.35945954 | U10: 66.48475795 | V10: 67.49866048 | W10: 69.80520682 | X10: 73.4735627 | Y10: 74.66833017 | Z10: 77.24883035 | AA10: 79.90131376 | AB10: 77.49790223 | AC10: 78.72086464 | AD10: 81.11227289 | AE10: 83.60432393 | AF10: 86.18171422 | AG10: 88.33625707 | AH10: 90.5446635 | AI10: 92.80828009 | AJ10: 95.12848709 | AK10: 97.50669927 | AL10: 99.94436675 | AM10: 102.4429759 | AN10: 105.0040503 | AO10: 107.6291516 | AP10: 110.3198804
B11: NAPP | C11: Pittsburgh Seam | D11: Barge | E11: 13000 | F11: 4 | G11: 8 | H11: 0.122 | I11: 0.001 | J11: NAPP-Pitt-Barge-MonR-13000-HS-4.0 - Spring 19 | K11: 53.66974163 | L11: 53.25036403 | M11: 52.75037481 | N11: 52.15642887 | O11: 56.11481247 | P11: 55.62594926 | Q11: 57.43922702 | R11: 60.37611008 | S11: 62.33048965 | T11: 64.35945954 | U11: 66.48475795 | V11: 67.49866048 | W11: 69.80520682 | X11: 73.4735627 | Y11: 74.66833017 | Z11: 77.24883035 | AA11: 79.90131376 | AB11: 77.49790223 | AC11: 78.72086464 | AD11: 81.11227289 | AE11: 83.60432393 | AF11: 86.18171422 | AG11: 88.33625707 | AH11: 90.5446635 | AI11: 92.80828009 | AJ11: 95.12848709 | AK11: 97.50669927 | AL11: 99.94436675 | AM11: 102.4429759 | AN11: 105.0040503 | AO11: 107.6291516 | AP11: 110.3198804
B12: CAPP | C12: Low-Sulfur | D12: Rail | E12: 12500 | F12: 1.6 | G12: 10 | H12: 0.11 | I12: 0.001 | J12: CAPP-EKY-CSX-Big Sandy-12500-LS-1.6 - Spring 19 | K12: 65.32821992 | L12: 64.26652213 | M12: 60.06140222 | N12: 64.44959014 | O12: 66.92506657 | P12: 69.3508614 | Q12: 72.08046857 | R12: 75.0561208 | S12: 78.1329892 | T12: 81.18561265 | U12: 83.17165822 | V12: 85.12886739 | W12: 89.24867243 | X12: 88.97504382 | Y12: 92.77168124 | Z12: 95.93848718 | AA12: 100.0204634 | AB12: 104.2825389 | AC12: 108.6000598 | AD12: 113.2616093 | AE12: 111.9890897 | AF12: 115.8297639 | AG12: 118.725508 | AH12: 121.6936457 | AI12: 124.7359868 | AJ12: 127.8543865 | AK12: 131.0507462 | AL12: 134.3270148 | AM12: 137.6851902 | AN12: 141.12732 | AO12: 144.655503 | AP12: 148.2718905
B13: CAPP | C13: Low-Sulfur | D13: Barge | E13: 12500 | F13: 1.6 | G13: 10 | H13: 0.11 | I13: 0.001 | J13: CAPP-EKY-Barge-BSR-12000-LS-1.6 - Spring 19 | K13: 65.32821992 | L13: 64.26652213 | M13: 60.06140222 | N13: 64.44959014 | O13: 66.92506657 | P13: 69.3508614 | Q13: 72.08046857 | R13: 75.0561208 | S13: 78.1329892 | T13: 81.18561265 | U13: 83.17165822 | V13: 85.12886739 | W13: 89.24867243 | X13: 88.97504382 | Y13: 92.77168124 | Z13: 95.93848718 | AA13: 100.0204634 | AB13: 104.2825389 | AC13: 108.6000598 | AD13: 113.2616093 | AE13: 111.9890897 | AF13: 115.8297639 | AG13: 118.725508 | AH13: 121.6936457 | AI13: 124.7359868 | AJ13: 127.8543865 | AK13: 131.0507462 | AL13: 134.3270148 | AM13: 137.6851902 | AN13: 141.12732 | AO13: 144.655503 | AP13: 148.2718905
B14: ILB | C14: Illinois | D14: Rail | E14: 11500 | F14: 5 | G14: 10 | H14: 0.102 | I14: 0.003 | J14: ILLB-IL-Rail-South IL-11500-VH-5 - Spring 19 | K14: 43.48378568 | L14: 44.18949149 | M14: 44.01323107 | N14: 43.86808649 | O14: 45.78538718 | P14: 47.39172232 | Q14: 48.87798781 | R14: 50.81808346 | S14: 52.1969347 | T14: 54.27973551 | U14: 54.68099235 | V14: 52.8723692 | W14: 58.96749209 | X14: 61.70863385 | Y14: 64.27028413 | Z14: 66.61884034 | AA14: 66.9976426 | AB14: 68.88718806 | AC14: 71.70373789 | AD14: 74.00836378 | AE14: 77.07361743 | AF14: 79.50489468 | AG14: 81.49251705 | AH14: 83.52982998 | AI14: 85.61807573 | AJ14: 87.75852762 | AK14: 89.95249081 | AL14: 92.20130308 | AM14: 94.50633566 | AN14: 96.86899405 | AO14: 99.2907189 | AP14: 101.7729869
B15: ILB | C15: Illinois | D15: Barge | E15: 11500 | F15: 5 | G15: 10 | H15: 0.102 | I15: 0.0015 | J15: ILLB-IL-Barge-OhioR-11500-XH-5 - Spring 19 | K15: 43.48378568 | L15: 44.18949149 | M15: 44.01323107 | N15: 43.86808649 | O15: 45.78538718 | P15: 47.39172232 | Q15: 48.87798781 | R15: 50.81808346 | S15: 52.1969347 | T15: 54.27973551 | U15: 54.68099235 | V15: 52.8723692 | W15: 58.96749209 | X15: 61.70863385 | Y15: 64.27028413 | Z15: 66.61884034 | AA15: 66.9976426 | AB15: 68.88718806 | AC15: 71.70373789 | AD15: 74.00836378 | AE15: 77.07361743 | AF15: 79.50489468 | AG15: 81.49251705 | AH15: 83.52982998 | AI15: 85.61807573 | AJ15: 87.75852762 | AK15: 89.95249081 | AL15: 92.20130308 | AM15: 94.50633566 | AN15: 96.86899405 | AO15: 99.2907189 | AP15: 101.7729869
B16: ILB | C16: Illinois | D16: Rail | E16: 11500 | F16: 5 | G16: 10 | H16: 0.102 | I16: 0.0012 | J16: ILLB-IN-Rail-Sullivan-11500-VH-5 - Spring 19 | K16: 43.48378568 | L16: 44.18949149 | M16: 44.01323107 | N16: 43.86808649 | O16: 45.78538718 | P16: 47.39172232 | Q16: 48.87798781 | R16: 50.81808346 | S16: 52.1969347 | T16: 54.27973551 | U16: 54.68099235 | V16: 52.8723692 | W16: 58.96749209 | X16: 61.70863385 | Y16: 64.27028413 | Z16: 66.61884034 | AA16: 66.9976426 | AB16: 68.88718806 | AC16: 71.70373789 | AD16: 74.00836378 | AE16: 77.07361743 | AF16: 79.50489468 | AG16: 81.49251705 | AH16: 83.52982998 | AI16: 85.61807573 | AJ16: 87.75852762 | AK16: 89.95249081 | AL16: 92.20130308 | AM16: 94.50633566 | AN16: 96.86899405 | AO16: 99.2907189 | AP16: 101.7729869
B17: ILB | C17: Illinois | D17: Barge | E17: 11000 | F17: 6 | G17: 10 | H17: 0.102 | I17: 0.001 | J17: ILLB-WKY-Barge-OhioR-11000-XH-6 - Spring 19 | K17: 39.72592402 | L17: 40.23959281 | M17: 40.07908751 | N17: 39.94691675 | O17: 41.6928386 | P17: 43.15559071 | Q17: 44.50900566 | R17: 46.27568493 | S17: 47.53128691 | T17: 49.42791558 | U17: 49.79330588 | V17: 48.14634738 | W17: 53.6966548 | X17: 56.19277831 | Y17: 58.52545427 | Z17: 60.66408366 | AA17: 61.0090265 | AB17: 62.72967405 | AC17: 65.29446523 | AD17: 67.39309104 | AE17: 70.18435554 | AF17: 72.39831192 | AG17: 74.20826972 | AH17: 76.06347646 | AI17: 77.96506337 | AJ17: 79.91418996 | AK17: 81.9120447 | AL17: 83.95984582 | AM17: 86.05884197 | AN17: 88.21031302 | AO17: 90.41557084 | AP17: 92.67596011
B18: ILB | C18: Illinois | D18: Rail | E18: 11000 | F18: 6 | G18: 10 | H18: 0.102 | I18: 0.0015 | J18: ILLB-IN-Rail-Sullivan-11000-XH-6 - Spring 19 | K18: 39.72592402 | L18: 40.23959281 | M18: 40.07908751 | N18: 39.94691675 | O18: 41.6928386 | P18: 43.15559071 | Q18: 44.50900566 | R18: 46.27568493 | S18: 47.53128691 | T18: 49.42791558 | U18: 49.79330588 | V18: 48.14634738 | W18: 53.6966548 | X18: 56.19277831 | Y18: 58.52545427 | Z18: 60.66408366 | AA18: 61.0090265 | AB18: 62.72967405 | AC18: 65.29446523 | AD18: 67.39309104 | AE18: 70.18435554 | AF18: 72.39831192 | AG18: 74.20826972 | AH18: 76.06347646 | AI18: 77.96506337 | AJ18: 79.91418996 | AK18: 81.9120447 | AL18: 83.95984582 | AM18: 86.05884197 | AN18: 88.21031302 | AO18: 90.41557084 | AP18: 92.67596011
B19: ILB | C19: Illinois | D19: Rail | E19: 11000 | F19: 6 | G19: 10 | H19: 0.102 | I19: 0.0015 | J19: ILLB-IL-Rail-Central IL-11000-XH-6 - Spring 19 | K19: 39.72592402 | L19: 40.23959281 | M19: 40.07908751 | N19: 39.94691675 | O19: 41.6928386 | P19: 43.15559071 | Q19: 44.50900566 | R19: 46.27568493 | S19: 47.53128691 | T19: 49.42791558 | U19: 49.79330588 | V19: 48.14634738 | W19: 53.6966548 | X19: 56.19277831 | Y19: 58.52545427 | Z19: 60.66408366 | AA19: 61.0090265 | AB19: 62.72967405 | AC19: 65.29446523 | AD19: 67.39309104 | AE19: 70.18435554 | AF19: 72.39831192 | AG19: 74.20826972 | AH19: 76.06347646 | AI19: 77.96506337 | AJ19: 79.91418996 | AK19: 81.9120447 | AL19: 83.95984582 | AM19: 86.05884197 | AN19: 88.21031302 | AO19: 90.41557084 | AP19: 92.67596011
B20: ILB | C20: Illinois | D20: Barge | E20: 11800 | F20: 4.5 | G20: 10 | H20: 0.102 | I20: 0.002 | J20: ILLB-WKY-Barge-Green River-11800-XH-4.5 - Spring 19 | K20: 45.83001149 | L20: 46.97872896 | M20: 47.35685093 | N20: 47.76987085 | O20: 50.43398766 | P20: 52.35997212 | Q20: 54.00204832 | R20: 56.14553138 | S20: 57.66893271 | T20: 59.97008125 | U20: 60.41340332 | V20: 58.41517551 | W20: 65.14927271 | X20: 68.17777852 | Y20: 71.00797608 | Z20: 73.60274014 | AA20: 74.02125364 | AB20: 76.10888716 | AC20: 79.22070633 | AD20: 81.7669347 | AE20: 85.15353024 | AF20: 87.83968729 | AG20: 90.03567947 | AH20: 92.28657146 | AI20: 94.59373575 | AJ20: 96.95857914 | AK20: 99.38254362 | AL20: 101.8671072 | AM20: 104.4137849 | AN20: 107.0241295 | AO20: 109.6997328 | AP20: 112.4422261
B21: ILB | C21: Illinois | D21: Barge | E21: 11800 | F21: 4.5 | G21: 10 | H21: 0.102 | I21: 0.002 | J21: ILLB-WKY-Barge-OhioR-11800-XH-4.5 - Spring 19 | K21: 45.83001149 | L21: 46.97872896 | M21: 47.35685093 | N21: 47.76987085 | O21: 50.43398766 | P21: 52.35997212 | Q21: 54.00204832 | R21: 56.14553138 | S21: 57.66893271 | T21: 59.97008125 | U21: 60.41340332 | V21: 58.41517551 | W21: 65.14927271 | X21: 68.17777852 | Y21: 71.00797608 | Z21: 73.60274014 | AA21: 74.02125364 | AB21: 76.10888716 | AC21: 79.22070633 | AD21: 81.7669347 | AE21: 85.15353024 | AF21: 87.83968729 | AG21: 90.03567947 | AH21: 92.28657146 | AI21: 94.59373575 | AJ21: 96.95857914 | AK21: 99.38254362 | AL21: 101.8671072 | AM21: 104.4137849 | AN21: 107.0241295 | AO21: 109.6997328 | AP21: 112.4422261
B22: ILB | C22: Low Chlorine | D22: Barge | E22: 11500 | F22: 5.2 | G22: 10 | H22: 0.102 | I22: 0.0008 | J22: ILLB-WKY-Barge-OhioR-11500-VH-5.2-LC-.8 - Spring 19 | K22: 45.83001149 | L22: 46.97872896 | M22: 47.35685093 | N22: 47.76987085 | O22: 50.43398766 | P22: 52.35997212 | Q22: 54.00204832 | R22: 56.14553138 | S22: 57.66893271 | T22: 59.97008125 | U22: 60.41340332 | V22: 58.41517551 | W22: 65.14927271 | X22: 68.17777852 | Y22: 71.00797608 | Z22: 73.60274014 | AA22: 74.02125364 | AB22: 76.10888716 | AC22: 79.22070633 | AD22: 81.7669347 | AE22: 85.15353024 | AF22: 87.83968729 | AG22: 90.03567947 | AH22: 92.28657146 | AI22: 94.59373575 | AJ22: 96.95857914 | AK22: 99.38254362 | AL22: 101.8671072 | AM22: 104.4137849 | AN22: 107.0241295 | AO22: 109.6997328 | AP22: 112.4422261
